Workbook

Sheet Simulador Valora
S1: - | AV1: -
C3: SIMULADOR CREDITO HIPOTECARIO
C4: FINANCIAMIENTO LIQUIDEZ LIBRE VALORA
C7: =TODAY() -> 2022-11-10
C9: Lugar | I9: Sucursal
C12: Nombre del cliente / Conyuge en su caso. | I12: Ejecutivo/Broker que le atendió | Z12: 2 | AE12: 3
U13: Tasas Valora 20 años | W13: 240 | Z13: Tasas Valora 15 años | AB13: 180 | AC13: PTI | AF13: Tasas Valora 10 años | AH13: 120 | AI13: PTI
T14: 1 | Y14: 1 | Z14: 0.175 | AA14: 15.24 | AB14: 0.015 | AC14: 0.35 | AE14: 1 | AF14: =Z14 -> 0.175 | AG14: 17.2 | AH14: 0.015 | AI14: 0.35
C15: Telefonos del cliente | I15: Teléfonos del ejecutivo | T15: 2 | Y15: 2 | Z15: 0.1825 | AA15: 15.62 | AB15: 0.015 | AC15: 0.3 | AE15: 2 | AF15: =Z15 -> 0.1825 | AG15: 17.6 | AH15: 0.015 | AI15: 0.3
T16: 3 | Y16: 3 | Z16: 0.185 | AA16: 15.71 | AB16: 0.015 | AC16: 0.2 | AE16: 3 | AF16: =Z16 -> 0.185 | AG16: 17.69 | AH16: 0.015 | AI16: 0.2
T17: 4 | AC17: 0.2 | AI17: 0.2
T18: 5 | AC18: 0.2 | AI18: 0.2
C20: Paso 1 | I20: Paso 2 | M20: Paso 3
C21: Escoja su base de cálculo | I21: Escriba los datos que se piden: | M21: Escoja el plazo y la tasa aplicable: | T21: 1 | U21: =VLOOKUP($T$21,$T$14:$W$20,2,0) -> 0 | V21: =VLOOKUP($T$21,$T$14:$W$20,3,0) -> 0 | W21: =VLOOKUP($T$21,$T$14:$W$20,4,0) -> 0 | Y21: 1 | Z21: =VLOOKUP($Y$21,$Y$14:$AB$20,2,0) -> 0.175 | AA21: =VLOOKUP($Y$21,$Y$14:$AB$20,3,0) -> 15.24 | AB21: =VLOOKUP($Y$21,$Y$14:$AB$20,4,0) -> 0.015 | AC21: =+VLOOKUP(Y21,Y14:AC18,5,0) -> 0.35 | AE21: 1 | AF21: =VLOOKUP($AE$21,$AE$14:$AH$20,2,0) -> 0.175 | AG21: =VLOOKUP($AE$21,$AE$14:$AH$20,3,0) -> 17.2 | AH21: =VLOOKUP($AE$21,$AE$14:$AH$20,4,0) -> 0.015 | AI21: =+VLOOKUP(AE21,AE14:AI18,5,0) -> 0.35
K22: =IF($AD$40=1,"Valor del inmueble","Ingresos Brutos Mensuales") -> Valor del inmueble | M22: Plazo 15 años Plazo 10 años
C23: Paso 4 | K23: =IF($AD$40=1,"Monto solictado","") -> Monto solictado | Z23: Erog | AA23: =I23/1000*AA21 -> 0 | AC23: =+G43/1000*$AA$21/$AC$21 -> 0 | AF23: Erog | AG23: =I23/1000*AG21 -> 0 | AI23: =+G43/1000*$AG$21/$AI$21 -> 0
C24: Tipo de comisión | I24: Valor Destructible
C25: =IF(AND(V40=1,I23>I22),"El enganche es mayor que el valor del inmueble",IF(AND(V40=2,I23>I22),"El monto es mayor que el valor del inmueble","")) ->  | I25: Paso 5
C26: =IF(AND($AD$40=1,$Y$40>$V$34),"El monto solicitado es mayor al "&TEXT(V34,"##0%")&" del valor del inmueble",IF(AND($AD$40=1,$I$23<$X$34),"El monto solicitado debe ser >= $"&TEXT($X$34,"#,##0"),"")) -> El monto solicitado debe ser >= $100,000 | I26: El cliente opta por seguros externos
C27: =IFERROR(IF(AND($AD$40=2,$I$22<$W$34),"Los ingresos mínimos requeridos son $"&TEXT($W$34,"#,##0"),""),"") -> 
I28: Paso 6 | Z28: ="Mínima "&TEXT(Z14,"0.00%")&" y Máxima "&TEXT(Z16,"0.00%") -> Mínima 17.50% y Máxima 18.50%
I29: El cliente es TopUp
AQ32: Producto | AR32: Fecha de Registro | AS32: Numero de registro RECA
E33: =IF(V40=1,"VALORA","") ->  | G33: VALORA | T33: Com Apert | U33: Coms. prepago | V33: LTV | W33: Ingresos min. | X33: Monto min. | Y33: Monto max | Z33: Valor min. viv. | AA33: PTI
T34: 0.02 | U34: 0.03 | V34: 0.7 | W34: 20000 | X34: 100000 | Y34: 2500000 | Z34: 1000000 | AA34: =+IF(X35=1,AC21,AI21) -> 0.35 | AC34: Aforos | AQ34: CrediResidencial Valora 20 años | AR34: 2008-09-10 | AS34: 0319-138-003323/01-04108-0908
C35: Plazo | E35: =IF(V40=1,"15 AÑOS","") ->  | G35: 10 AÑOS | K35: 15 AÑOS | U35: Esquemas | V35: Plazo | X35: 1 | AC35: 20 años | AD35: 15 años | AE35: 10 años | AQ35: CrediResidencial Valora 20 años con Apoyo Infonavit | AR35: 2008-09-10 | AS35: 0319-138-003324/01-04109-0908
V36: Pago 9.9 | AD36: =K43/K41 ->  | AE36: =G43/G41 ->  | AQ36: Pasivo Hipotecario Valora 20 años | AR36: 2008-09-10 | AS36: 0319-138-003325/01-04110-0908
C37: Tasa de Interés | G37: =+Z28 -> Mínima 17.50% y Máxima 18.50% | K37: =+Z28 -> Mínima 17.50% y Máxima 18.50% | V37: Tasa 1234 | AQ37: Preventa Valora 20 años | AR37: 2008-09-10 | AS37: 0319-138-003326/01-04111-0908
V38: Tasa Fija Pago Red 15 | Y38: Cambio de etiqueta | Z38: =IF(AD40=1,"Valor del inmueble","Ingresos Brutos Mensuales") -> Valor del inmueble | AQ38: Preventa Valora 20 años con Apoyo Infonavit | AR38: 2008-09-10 | AS38: 0319-138-003327/01-04112-0908
C39: % máximo de financiamiento | G39: =IF($V$40=1,"",$V$34) -> 0.7 | K39: =IF($V$40=1,"",$V$34) -> 0.7 | V39: Pagos reducidos 20 años | AQ39: CrediConstrucción Valora 20 años | AR39: 2008-09-10 | AS39: 0319-138-003328/01-04113-0908
U40: Destino Vivienda | V40: 2 | X40: % de aforo | Y40: =IF(I22=0,0,IF(I23/I22>1,0,I23/I22)) -> 0 | Z40: =IF(V40=2," ","Monto a Financiar") ->  | AC40: Por Valor del Inmueble | AD40: 1 | AQ40: CrediConstrucción Valora 20 años con Apoyo Infonavit | AR40: 2008-09-10 | AS40: 0319-138-003329/01-04114-0908
C41: Valor de la vivienda | G41: =IFERROR(IF($AD$40=1,$I$22,G43/$V$34),0) -> 0 | K41: =IFERROR(IF($AD$40=1,$I$22,K43/$V$34),0) -> 0 | U41: Destino Libre | W41: Cambio de pasivo o adquisi | Y41: =IF(AD40=1,"Importe a financiar","") -> Importe a financiar | Z41: =IF($X$35=1,$K$43,IF($X$35=2,$G$43,0)) -> 0 | AC41: Por Ingresos | AQ41: Crediliquidez Vivienda Valora 20 años | AR41: 2008-09-10 | AS41: 0319-138-003330/01-04115-0908
AQ42: Cofinanciamiento Fovissste Alia2 Valora 20 años | AR42: 2008-09-10 | AS42: 0319-138-003331/01-04116-0908
C43: Monto del crédito | G43: =IFERROR(IF(AND($AD$40=1,$Y$40<=$V$34),$I$23,IF($AD$40=2,$G$45/$AG$21*1000,0)),0) -> 0 | K43: =IFERROR(IF(AND($AD$40=1,$Y$40<=$V$34),$I$23,IF($AD$40=2,$K$45/$AA$21*1000,0)),0) -> 0 | W43: Pag Red 10.90 | Y43: Pag Red 10.90 | AA43: Pagos oportunos | AB43: Pagos oportunos | AD43: Pagos oportunos | AE43: Pagos oportunos | AF43: Pagos oportunos | AH43: Pagos Reducidos Liq libre | AJ43: Tasa Mixta Liq Viv | AQ43: Cofinanciamiento Fovissste Respalda2 Valora 20 años | AR43: 2008-09-10 | AS43: 0319-138-003332/01-04117-0908
T44: Plazo | W44: 15 | Y44: 20 | AA44: 10 | AB44: 15 | AD44: 20 | AH44: 20 | AJ44: 20 | AQ44: Cofinanciamiento Infonavit Valora 20 años | AR44: 2008-09-10 | AS44: 0319-138-003333/01-04118-0908
C45: Erogación inicial | G45: =IF($V$40=1,"",IF($AD$40=1,G43/1000*$AG$21,$I$22*$AA$34)) -> 0 | K45: =IF($V$40=1,"",IF($AD$40=1,K43/1000*$AA$21,$I$22*$AA$34)) -> 0
T46: Pago x mil | W46: 10.25 | Y46: 9.3 | AA46: 12.6 | AB46: 15.4 | AD46: 11.25 | AE46: 11.86 | AF46: 11.46 | AH46: 10.6 | AJ46: 13 | AM46: =+IF(X35=2,AG23,AA23) -> 0 | AQ46: Producto | AR46: Fecha de Registro | AS46: Numero de registro RECA
A47: x | C47: Seguro de vida | G47: =G43*IF($AC$62=1,0,$Y$67) -> 0 | K47: =K43*IF($AC$62=1,0,$Y$67) -> 0
T48: Incremento anual | W48: 0.03 | Y48: 0.021 | AA48: 0 | AB48: 0 | AD48: 0 | AE48: 0 | AF48: 0 | AH48: 0.018 | AJ48: 0.01 | AM48: =+IF(X35=1,$AB$21,$AH$21) -> 0.015 | AQ48: CrediResidencial Valora 20 años con Seguro de Crédito a la Vivienda | AR48: 2008-09-11 | AS48: 0319-138-003342/01-04165-0908
A49: X | C49: Seguro de daños | G49: =IF($K$24>0,$K$24,G41)*IF($AC$62=1,0,IF($AC$66=1,0,$Y$68)) -> 0 | K49: =IF($K$24>0,$K$24,K41)*IF($AC$62=1,0,IF($AC$66=1,0,$Y$68)) -> 0 | T49: Tasa de int. | W49: 0.109 | X49: 0.139 | Y49: 0.109 | Z49: 0.139 | AA49: 0.1135 | AB49: 0.1158 | AD49: 0.1175 | AE49: 0.12 | AF49: 0.125 | AH49: 0.149 | AI49: 0.169 | AJ49: 0.145 | AK49: TIIE + 8 | AQ49: CrediResidencial Valora 20 años con Apoyo Infonavit Seguro de Crédito a la Vivienda | AR49: 2008-09-11 | AS49: 0319-138-003343/01-04166-0908
AQ50: Crediliquidez Vivienda Valora 20 años Seguro de Crédito a la Vivienda | AR50: 2008-09-11 | AS50: 0319-138-003344/01-04167-0908
C51: IVA Intereses | G51: =IFERROR($AF$21/360*'Tabla Valora'!$AV$15*'Simulador Valora'!G43,0)*$X$59 -> 0 | K51: =IFERROR($Z$21/360*'Tabla Valora'!$AV$15*'Simulador Valora'!K43,0)*$X$59 -> 0 | T51: Monto a financiar adquisición | AQ51: Cofinanciamiento Fovissste Alia2 Valora 20 años Seguro de Crédito a la Vivienda | AR51: 2008-09-11 | AS51: 0319-138-003345/01-04168-0908
T52: Monto a financiar adquisición | AQ52: Cofinanciamiento Fovissste Respalda2 Valora 20 años Seguro de Crédito a la Vivienda | AR52: 2008-09-11 | AS52: 0319-138-003346/01-04169-0908
C53: Total mensualidad inicial | G53: =IFERROR(G49+G47+G45+G51,0) -> 0 | K53: =IFERROR(K49+K47+K45+K51,0) -> 0 | T53: erogación adquisición | AQ53: Cofinanciamiento Infonavit Valora 20 años Seguro de Crédito a la Vivienda | AR53: 2008-09-11 | AS53: 0319-138-003347/01-04170-0908
T54: Monto a financiar pasivo
C55: Incremento anual del pago | G55: =IF($X$35=2,$AB$21,$AH$21) -> 0.015 | K55: =IF($X$35=2,$AB$21,$AH$21) -> 0.015 | T55: Monto a financiar pasivo
T56: Desición de monto a financiar
C57: Ingresos brutos por comprobar | G57: =IF($AD$40=1,$AI$23,$I$22) -> 0 | K57: =IF($AD$40=1,$AC$23,$I$22) -> 0
T58: Frontera | U58: NO
C59: Comisión por apertura | G59: =IF($V$60=2,0,IF($AC$66=1,0,G43*$T$34)) -> 0 | K59: =IF($V$60=2,0,IF($AC$66=1,0,K43*$T$34)) -> 0 | T59: IVA | U59: SI | V59: 1 | W59: 1.16 | X59: =IF(V59=1,0.16,0.11) -> 0.16
C60: IVA / Comisión por apertura | G60: =G59*$X$59 -> 0 | K60: =K59*$X$59 -> 0 | T60: Apertura | V60: 1 | W60: =IF(V40=1,"Comisión por apertura 2.50% y comisión por prepago 0%","Comisión por apertura 2.5% más IVA") -> Comisión por apertura 2.5% más IVA | AD60: Tasas PAR | AH60: Tasas Valora 15 años | AM60: Tasas Valora 10 años
C61: ="Avalúo "&IF($V$40=2,"",IF(G41>$U$85,"'Favor de Cotizar'. Val. apróx.","")) -> Avalúo | G61: =IF($V$40=1,"",IFERROR(V104,0)) -> 0 | K61: =IF($V$40=1,"",IFERROR(V104,0)) -> 0 | T61: Prepago | V61: =IF(V60=2,3%,"NO APLICA") -> NO APLICA | W61: =IF(V40=1,"Comisión por apertura 0% y comisión por prepago 3.50% más IVA","") ->  | AB61: Contratación de Seguros | AD61: 0.0875 | AE61: 7.82 | AF61: 0.024 | AG61: 1 | AH61: =AD61 -> 0.0875 | AI61: 9 | AJ61: 0.024 | AK61: 1 | AM61: =AD61 -> 0.0875 | AN61: 11.45 | AO61: 0.024 | AP61: 4
T62: Com Aut Dif | U62: 250 | V62: 250 | W62: 250 | X62: 250 | Y62: 250 | AB62: SI | AC62: 2 | AD62: 0.09 | AE62: 7.95 | AF62: 0.024 | AG62: =IF($AG$61=1,AE61,IF($AG$61=2,AE62,IF($AG$61=3,AE63,IF($AG$61=4,AE64,IF($AG$61=5,AE65,IF($AG$61=6,AE66,AE67)))))) -> 7.82 | AH62: =AD62 -> 0.09 | AI62: 9.1 | AJ62: 0.024 | AK62: =IF($AK$61=1,AI61,IF($AK$61=2,AI62,IF($AK$61=3,AI63,IF($AK$61=4,AI64,IF($AK$61=5,AI65,IF($AK$61=6,AI66,AI67)))))) -> 9 | AM62: =AD62 -> 0.09 | AN62: 11.5 | AO62: 0.024 | AP62: =IF($AP$61=1,AN61,IF($AP$61=2,AN62,IF($AP$61=3,AN63,IF($AP$61=4,AN64,IF($AP$61=5,AN65,IF($AP$61=6,AN66,AN67)))))) -> 11.7
C63: Comisión por pagos anticipados | G63: =IF($V$60=2,$V$61,"NO APLICA") -> NO APLICA | K63: =IF($V$60=2,$V$61,"NO APLICA") -> NO APLICA | T63: AVALUO | AB63: NO | AD63: 0.0925 | AE63: 8.1 | AF63: 0.024 | AG63: =IF($AG$61=1,AF61,IF($AG$61=2,AF62,IF($AG$61=3,AF63,IF($AG$61=4,AF64,IF($AG$61=5,AF65,IF($AG$61=6,AF66,AF67)))))) -> 0.024 | AH63: 0.0925 | AI63: 9.2 | AJ63: 0.024 | AK63: =IF($AK$61=1,AJ61,IF($AK$61=2,AJ62,IF($AK$61=3,AJ63,IF($AK$61=4,AJ64,IF($AK$61=5,AJ65,IF($AK$61=6,AJ66,AJ67)))))) -> 0.024 | AM63: 0.0925 | AN63: 11.6 | AO63: 0.024 | AP63: =IF($AP$61=1,AO61,IF($AP$61=2,AO62,IF($AP$61=3,AO63,IF($AP$61=4,AO64,IF($AP$61=5,AO65,IF($AP$61=6,AO66,AO67)))))) -> 0.024
T64: Mayor a | U64: Hasta a | V64: Importe | AD64: 0.095 | AE64: 8.2 | AF64: 0.024 | AG64: =IF($AG$61=1,AD61,IF($AG$61=2,AD62,IF($AG$61=3,AD63,IF($AG$61=4,AD64,IF($AG$61=5,AD65,IF($AG$61=6,AD66,AD67)))))) -> 0.0875 | AH64: 0.095 | AI64: 9.3 | AJ64: 0.024 | AK64: =IF($AK$61=1,AH61,IF($AK$61=2,AH62,IF($AK$61=3,AH63,IF($AK$61=4,AH64,IF($AK$61=5,AH65,IF($AK$61=6,AH66,AH67)))))) -> 0.0875 | AM64: 0.095 | AN64: 11.7 | AO64: 0.024 | AP64: =IF($AP$61=1,AM61,IF($AP$61=2,AM62,IF($AP$61=3,AM63,IF($AP$61=4,AM64,IF($AP$61=5,AM65,IF($AP$61=6,AM66,AM67)))))) -> 0.095
T65: 0.01 | U65: 500000 | V65: 1900 | AB65: TopUp | AD65: 0.1 | AE65: 8.55 | AF65: 0.022 | AH65: 0.1 | AI65: 9.65 | AJ65: 0.022 | AM65: 0.1 | AN65: 12.1 | AO65: 0.022
C66: Ver tabla de amortización | T66: 500001 | U66: 1000000 | V66: 3300 | X66: Seguros | AB66: SI | AC66: 2 | AD66: 0.105 | AE66: 9 | AF66: 0.017 | AH66: 0.105 | AI66: 10.1 | AJ66: 0.017 | AM66: 0.105 | AN66: 12.55 | AO66: 0.017
C67: Observaciones: | T67: 1000001 | U67: 1500000 | V67: 4500 | X67: Vida | Y67: 0.000556 | Z67: 0.000556 | AB67: NO | AD67: 0.11 | AE67: 9.4 | AF67: 0.013 | AH67: 0.11 | AI67: 10.5 | AJ67: 0.013 | AM67: 0.11 | AN67: 13 | AO67: 0.013
C68: -No se incluyen los gastos notariales, los cuales se pagaran al momento de la firma del crédito | T68: 1500001 | U68: 2000000 | V68: 5750 | X68: Daños | Y68: 0.0003016 | Z68: 0.0003016
C69: - El crédito solicitado dependerá de la capacidad de pago de cada cliente | T69: 2000001 | U69: 2500000 | V69: 7000
C70: - Scotiabank se reserva el derecho de solicitar información adicional y/o restringir parámetros de enganche, monto, plazo o tasa en función de las características específicas | T70: 2500001 | U70: 3000000 | V70: 8200 | AD70: Valor del inmueble | AE70: =IF($X$35=2,O41,IF($X$35=6,G41,IF($X$35=3,K41,IF($X$35=4,G41,IF($X$35=5,#REF!,IF($X$35=7,#REF!)))))) -> FALSE
C71: del solicitante y del inmueble objeto de la operación. | T71: 3000001 | U71: 4000000 | V71: 11000 | AD71: Pago por mil | AE71: =IF($X$35=2,V21,IF($X$35=6,AA46,IF($X$35=3,AA21,IF($X$35=4,AG21,IF($X$35=5,AE46,IF($X$35=7,AF46)))))) -> FALSE
C72: - En caso de que aplique, la comisión por pagos anticipados causa I.V.A. | T72: 4000001 | U72: 5000000 | V72: 13900 | AD72: Plazo | AE72: =IF($X$35=2,"20 Años",IF($X$35=6,"7 Años",IF($X$35=3,"15 Años",IF($X$35=4,"10 Años",IF($X$35=5,"20 Años",IF($X$35=7,"30 Años")))))) -> FALSE
C73: - Esta cotización tiene carácter informativo, Scotiabank se reserva el derecho de cambiar cualquier condición sin previo aviso. | T73: 5000001 | U73: 6000000 | V73: 15500
C74: - Este documento NO implica que el crédito ha sido autorizado, ni establece obligación alguna para Scotiabank. | T74: 6000001 | U74: 7000000 | V74: 19000 | X74: Comisión por aut difer =
C75: - Para los esquemas de "Pagos Oportunos" y "Valora" se deberá cumplir con las reglas establecidas en los programas para la disminución de la tasa de interés | T75: 7000001 | U75: 8000000 | V75: 20000 | X75: Comisión por Apertura = | Y75: 0.02
T76: 8000001 | U76: 9000000 | V76: 20100 | X76: Comisión por Prepago = | Y76: 0.03
O77: v2022.11 | T77: 9000001 | U77: 10000000 | V77: 22500 | X77: Avalúo | Y77: 0.001
T78: 10000001 | U78: 11000000 | V78: 27000 | X78: Dictamen técnico | Y78: 0.0055 | Z78: 6600
T79: 11000001 | U79: 12000000 | V79: 28000 | Z79: Máximo
T80: 12000001 | U80: 13000000 | V80: 30000 | Z80: Ya no hay mínimo
T81: 13000001 | U81: 14000000 | V81: 32000
T82: 14000001 | U82: 15000000 | V82: 34000
T83: 15000001 | U83: 20000000 | V83: 37000
T84: 20000001 | U84: 25000000 | V84: 39000
T85: 25000001 | U85: 30000000 | V85: 40000
T86: 30000001 | U86: 30000000 | V86: 40000
V87: =+IF(G41<=$U$85,VLOOKUP(G41,$T$65:$V$86,3),$V$86) -> 
T88: TOPUP/LiqLibre
T89: Mayor a | U89: Hasta a | V89: Importe
T90: 0.01 | U90: 500000 | V90: 1253
T91: =U90+1 -> 500001 | U91: 1000000 | V91: 1740
T92: =U91+1 -> 1000001 | U92: 2000000 | V92: 2784
T93: 2000001 | U93: 3000000 | V93: 4663
T94: 3000001 | U94: 4000000 | V94: 5000
T95: 4000001 | U95: 5000000 | V95: 5000
T96: 5000001 | U96: 8000000 | V96: 5000
T97: 8000001 | U97: 11000000 | V97: 5000
T98: 11000001 | U98: 15000000 | V98: 5000
T99: 15000001 | U99: 20000000 | V99: 5000
T100: 20000001 | U100: 25000000 | V100: 5000
T101: 25000001 | U101: 30000000 | V101: 5000
T102: 30000001 | U102: 30000000 | V102: 5000
V104: =+IF(G41<=$U$93,VLOOKUP(G41,$T$90:$V$101,3),V94) -> 

Sheet Tabla Valora
A1: SIMULADOR CREDITO HIPOTECARIO | AB1: - | BD1: -
A2: FINANCIAMIENTO LIQUIDEZ LIBRE SCOTIABANK | AJ2: Comisión por apertura | AL2: =+'Simulador Valora'!G59 -> 0 | AO2: Piso | AS2: 2
A3: =IF('Simulador Valora'!X35=1,"VALORA 15 AÑOS",IF('Simulador Valora'!X35=2,"VALORA 10 AÑOS","")) -> VALORA 15 AÑOS | AJ3: avaluo | AL3: =+'Simulador Valora'!G61 -> 0 | AO3: =+'Simulador Valora'!Z14 -> 0.175 | AQ3: 3 | AS3: Disminución de plazo
AS4: Disminución de pago
A5: Observaciones | X5: =TODAY() -> 2022-11-10 | AJ5: total | AL5: =SUM(AL2:AL4) -> 0
A6: - La comisión por prepagos causa IVA y en la corrida ya lo incluye | AG6: Corrida CAT
A7: - El escenario que se presenta en la tabla de amortización siempre es considerando que se paga de manera puntual el crédito. | AG7: =IFERROR(IRR(AG14:AG254,0),0) -> 0 | AH7: =((1+AG7)^12)-1 -> 0
A8: - Para los esquemas "Pagos Oportunos" y "Valora" en Crediliquidez destino vivienda se deberá cumplir con las reglas establecidas en los programas para la disminución de la tasa de interés | AS8: =AS12*12 -> 0
A9: - Esta cotización tiene carácter informativo, Scotiabank se reserva el derecho de cambiar cualquier condición sin previo aviso. | AS9: =((1+AS12)^12)-1 -> 0
A10: - Este documento NO implica que el crédito ha sido autorizado, ni establece obligación alguna para Scotiabank. | AS10: Corrida para CAT
A11: - CAT =. | B11: =AS9 -> 0 | C11: "Para fines informativos de comparación exclusivamente, sin IVA" | P11: El crédito se liquida | U11: Años | W11: =AE14 -> 0 | Y11: Años | AS11: TIR
A12: - En caso de anticipos a capital escoja la opción: | P12: por pago puntual en: | U12: Meses | W12: =AF14 -> 0 | Y12: Meses | AS12: =IFERROR(IRR(AS13:AS254,0),0) -> 0
AS13: =AL5-AJ15 -> 0
A14: Período | B14: Saldo Inicial | D14: Erogación | F14: Interés | H14: Amortización | J14: Prepagos a capital | L14: Comisión por prepagos | N14: Tasa aplicada | P14: Saldo Final | R14: Seguro de vida | T14: Seguro de daños | V14: IVA Ints | X14: Pago Mensual | Z14: Inc. Pago | AB14: años | AC14: meses | AD14: =SUM(AD15:AD254) -> 1 | AE14: =SUM(AE15:AE254) -> 0 | AF14: =SUM(AF15:AF254) -> 0 | AG14: =AL5-B15 -> 0 | AH14: Tasa Aplic. | AI14: Factor de pago | AJ14: Saldo Inicial | AK14: Erogación | AL14: Interés | AM14: Amortización | AN14: Saldo Final | AO14: Tasa Aplic. | AP14: Seguros | AQ14: Incremento Pago | AR14: IVA Intereses | AS14: Pago Mensual | AT14: Plazo | AU14: Fecha | AV14: Dias | AW14: Período | AX14: Año actual | AY14: Mes actual | AZ14: Día actual | BA14: Dia/corte | BB14: sumar a mes
A15: 1 | B15: ='Simulador Valora'!Z41 -> 0 | D15: ='Simulador Valora'!AM46 -> 0 | F15: =IFERROR(IF(B15=0,0,N15/360*AV15*B15),0) -> 0 | H15: =D15-F15 -> 0 | L15: =IF('Simulador Valora'!$V$60=1,0,J15*'Simulador Valora'!$V$61*'Simulador Valora'!$W$59) -> 0 | N15: =IF(B15=0,"",AH15) ->  | P15: =B15-H15-J15+L15 -> 0 | R15: =IF('Simulador Valora'!$AC$62=1,0,IFERROR(IF(B15<=0,0,B15*'Simulador Valora'!$Y$67),0)) -> 0 | T15: =IF(OR('Simulador Valora'!$AC$62=1,'Simulador Valora'!$AC$66=1),0,IFERROR(IF(B15<=0,0,IF('Simulador Valora'!$X$35=2,IF('Simulador Valora'!$K$24>0,'Simulador Valora'!$K$24,'Simulador Valora'!$K$41)*'Simulador Valora'!$Y$68,IF('Simulador Valora'!$X$35=1,IF('Simulador Valora'!$K$24>0,'Simulador Valora'!$K$24,'Simulador Valora'!$G$41)*'Simulador Valora'!$Y$68,0))),0)) -> 0 | V15: =F15*'Simulador Valora'!$X$59 -> 0 | X15: =IF(B15<=0,"",(D15+J15+R15+V15+T15)) ->  | AB15: 0 | AC15: =IF(B15=0,0,1) -> 0 | AD15: =+IF(P15<=0,IF(P14>0,+A15,0),0) -> 1 | AE15: =+IF(AD15>0,+AB15,0) -> 0 | AF15: =+IF(AD15>0,+AC15,0) -> 0 | AG15: =X15 ->  | AH15: =+IF('Simulador Valora'!X35=1,'Simulador Valora'!Z21,'Simulador Valora'!AF21) -> 0.175 | AI15: =IFERROR(AK15/AJ15,0) -> 0 | AJ15: =B15 -> 0 | AK15: =D15 -> 0 | AL15: =IFERROR((AO15/360*AV15*AJ15),0) -> 0 | AM15: =+AK15-AL15 -> 0 | AN15: =+AJ15-AM15 -> 0 | AO15: =IF(AJ15=0,"",AH15) ->  | AP15: =IF(AJ15<=0,0,IF('Simulador Valora'!$AC$62=1,0,AJ15*'Simulador Valora'!$Y$67+IF('Simulador Valora'!$X$35=2,'Simulador Valora'!$G$49,IF('Simulador Valora'!$X$35=1,'Simulador Valora'!$K$49,0)))) -> 0 | AR15: =AL15*'Simulador Valora'!$X$59 -> 0 | AS15: =AL15+AM15+AP15 -> 0 | AT15: =IF('Simulador Valora'!$X$35=3,'Simulador Valora'!$AH$13,IF('Simulador Valora'!$X$35=2,'Simulador Valora'!$AB$13,0)) -> 0 | AU15: =IF(AJ15=0,"",DATE(AX15,AY15+BB15,BA15)) ->  | AV15: =IFERROR(DAY(DATE(YEAR(AU15),MONTH(AU15)+1,0)),0) -> 0 | AW15: 1 | AX15: =IFERROR(YEAR('Simulador Valora'!$C$7),YEAR('Simulador Valora'!$C$7)) -> 2022 | AY15: =IFERROR(MONTH('Simulador Valora'!$C$7),MONTH('Simulador Valora'!$C$7)) -> 11 | AZ15: =IFERROR(DAY('Simulador Valora'!$C$7),DAY('Simulador Valora'!$C$7)) -> 10 | BA15: =IF(AND(DAY('Simulador Valora'!C7)>=3,DAY('Simulador Valora'!C7)<=16),3,17) -> 3 | BB15: =IF(AZ15>BA15,1,0) -> 1
A16: 2 | B16: =IF(P15<=0,0,P15) -> 0 | D16: =IF(B16+F16-D15<=0,B16+F16,IF(J15=0,D15*(1+Z16),IF($AS$2=2,B16*AI16,D15*(1+Z16)))) -> 0 | F16: =IFERROR(IF(B16=0,0,N16/360*AV16*B16),0) -> 0 | H16: =D16-F16 -> 0 | L16: =IF('Simulador Valora'!$V$60=1,0,J16*'Simulador Valora'!$V$61*'Simulador Valora'!$W$59) -> 0 | N16: =IF(B16=0,"",AH16) ->  | P16: =B16-H16-J16+L16 -> 0 | R16: =IF('Simulador Valora'!$AC$62=1,0,IFERROR(IF(B16<=0,0,B16*'Simulador Valora'!$Y$67),0)) -> 0 | T16: =IF(OR('Simulador Valora'!$AC$62=1,'Simulador Valora'!$AC$66=1),0,IFERROR(IF(B16<=0,0,IF('Simulador Valora'!$X$35=2,IF('Simulador Valora'!$K$24>0,'Simulador Valora'!$K$24,'Simulador Valora'!$K$41)*'Simulador Valora'!$Y$68,IF('Simulador Valora'!$X$35=1,IF('Simulador Valora'!$K$24>0,'Simulador Valora'!$K$24,'Simulador Valora'!$G$41)*'Simulador Valora'!$Y$68,0))),0)) -> 0 | V16: =F16*'Simulador Valora'!$X$59 -> 0 | X16: =IF(B16<=0,"",(D16+J16+R16+V16+T16)) ->  | AB16: 0 | AC16: 2 | AD16: =+IF(P16<=0,IF(P15>0,+A16,0),0) -> 0 | AE16: =+IF(AD16>0,+AB16,0) -> 0 | AF16: =+IF(AD16>0,+AC16,0) -> 0 | AG16: =X16 ->  | AH16: =AH15 -> 0.175 | AI16: =IFERROR(AK16/AJ16,0) -> 0 | AJ16: =AN15 -> 0 | AK16: =IFERROR((IF(AJ16+AL16-AK15<0, AJ16+AL16, AK15*(1+AQ16))),0) -> 0 | AL16: =IFERROR((AO16/360*AV16*AJ16),0) -> 0 | AM16: 0 | AN16: 0 | AO16: =IF(AJ16=0,"",AH16) ->  | AP16: =IF(AJ16<=0,0,IF('Simulador Valora'!$AC$62=1,0,AJ16*'Simulador Valora'!$Y$67+IF('Simulador Valora'!$X$35=2,'Simulador Valora'!$G$49,IF('Simulador Valora'!$X$35=1,'Simulador Valora'!$K$49,0)))) -> 0 | AR16: =AL16*'Simulador Valora'!$X$59 -> 0 | AS16: =AL16+AM16+AP16 -> 0 | AT16: =IFERROR(IF(AK16<=0.01,0,AT15-1),0) -> 0 | AU16: =IF(AJ16=0,"",DATE(YEAR(AU15),MONTH(AU15)+1,1)) ->  | AV16: =IFERROR(DAY(DATE(YEAR(AU16),MONTH(AU16)+1,0)),0) -> 0 | AW16: 2
A17: 3 | B17: =IF(P16<=0,0,P16) -> 0 | D17: =IF(B17+F17-D16<=0,B17+F17,IF(J16=0,D16*(1+Z17),IF($AS$2=2,B17*AI17,D16*(1+Z17)))) -> 0 | F17: 0 | H17: =D17-F17 -> 0 | L17: =IF('Simulador Valora'!$V$60=1,0,J17*'Simulador Valora'!$V$61*'Simulador Valora'!$W$59) -> 0 | P17: 0 | R17: =IF('Simulador Valora'!$AC$62=1,0,IFERROR(IF(B17<=0,0,B17*'Simulador Valora'!$Y$67),0)) -> 0 | T17: =IF(OR('Simulador Valora'!$AC$62=1,'Simulador Valora'!$AC$66=1),0,IFERROR(IF(B17<=0,0,IF('Simulador Valora'!$X$35=2,IF('Simulador Valora'!$K$24>0,'Simulador Valora'!$K$24,'Simulador Valora'!$K$41)*'Simulador Valora'!$Y$68,IF('Simulador Valora'!$X$35=1,IF('Simulador Valora'!$K$24>0,'Simulador Valora'!$K$24,'Simulador Valora'!$G$41)*'Simulador Valora'!$Y$68,0))),0)) -> 0 | V17: =F17*'Simulador Valora'!$X$59 -> 0 | AB17: 0 | AC17: 3 | AD17: 0 | AE17: 0 | AF17: 0 | AH17: 0.175 | AI17: 0 | AJ17: =AN16 -> 0 | AK17: 0 | AL17: 0 | AM17: 0 | AN17: 0 | AP17: =IF(AJ17<=0,0,IF('Simulador Valora'!$AC$62=1,0,AJ17*'Simulador Valora'!$Y$67+IF('Simulador Valora'!$X$35=2,'Simulador Valora'!$G$49,IF('Simulador Valora'!$X$35=1,'Simulador Valora'!$K$49,0)))) -> 0 | AR17: =AL17*'Simulador Valora'!$X$59 -> 0 | AS17: 0 | AT17: 0 | AU17: =IF(AJ17=0,"",DATE(YEAR(AU16),MONTH(AU16)+1,1)) ->  | AV17: 0 | AW17: 3 | AX17: Días/Mes | AY17: =365.25/12 -> 30.4375
A18: 4 | B18: 0 | D18: =IF(B18+F18-D17<=0,B18+F18,IF(J17=0,D17*(1+Z18),IF($AS$2=2,B18*AI18,D17*(1+Z18)))) -> 0 | F18: 0 | H18: 0 | L18: =IF('Simulador Valora'!$V$60=1,0,J18*'Simulador Valora'!$V$61*'Simulador Valora'!$W$59) -> 0 | P18: 0 | R18: =IF('Simulador Valora'!$AC$62=1,0,IFERROR(IF(B18<=0,0,B18*'Simulador Valora'!$Y$67),0)) -> 0 | T18: =IF(OR('Simulador Valora'!$AC$62=1,'Simulador Valora'!$AC$66=1),0,IFERROR(IF(B18<=0,0,IF('Simulador Valora'!$X$35=2,IF('Simulador Valora'!$K$24>0,'Simulador Valora'!$K$24,'Simulador Valora'!$K$41)*'Simulador Valora'!$Y$68,IF('Simulador Valora'!$X$35=1,IF('Simulador Valora'!$K$24>0,'Simulador Valora'!$K$24,'Simulador Valora'!$G$41)*'Simulador Valora'!$Y$68,0))),0)) -> 0 | V18: =F18*'Simulador Valora'!$X$59 -> 0 | AB18: 0 | AC18: 4 | AD18: 0 | AE18: 0 | AF18: 0 | AH18: 0.175 | AI18: 0 | AJ18: 0 | AK18: 0 | AL18: 0 | AM18: 0 | AN18: 0 | AP18: =IF(AJ18<=0,0,IF('Simulador Valora'!$AC$62=1,0,AJ18*'Simulador Valora'!$Y$67+IF('Simulador Valora'!$X$35=2,'Simulador Valora'!$G$49,IF('Simulador Valora'!$X$35=1,'Simulador Valora'!$K$49,0)))) -> 0 | AR18: =AL18*'Simulador Valora'!$X$59 -> 0 | AS18: 0 | AT18: 0 | AV18: 0 | AW18: 4 | AY18: Interés mensual = Sdo inicial x tasa / 360 x # días del mes
A19: 5 | B19: 0 | D19: 0 | F19: 0 | H19: 0 | L19: =IF('Simulador Valora'!$V$60=1,0,J19*'Simulador Valora'!$V$61*'Simulador Valora'!$W$59) -> 0 | P19: 0 | R19: =IF('Simulador Valora'!$AC$62=1,0,IFERROR(IF(B19<=0,0,B19*'Simulador Valora'!$Y$67),0)) -> 0 | T19: =IF(OR('Simulador Valora'!$AC$62=1,'Simulador Valora'!$AC$66=1),0,IFERROR(IF(B19<=0,0,IF('Simulador Valora'!$X$35=2,IF('Simulador Valora'!$K$24>0,'Simulador Valora'!$K$24,'Simulador Valora'!$K$41)*'Simulador Valora'!$Y$68,IF('Simulador Valora'!$X$35=1,IF('Simulador Valora'!$K$24>0,'Simulador Valora'!$K$24,'Simulador Valora'!$G$41)*'Simulador Valora'!$Y$68,0))),0)) -> 0 | V19: =F19*'Simulador Valora'!$X$59 -> 0 | AB19: 0 | AC19: 5 | AD19: 0 | AE19: 0 | AF19: 0 | AH19: 0.175 | AI19: 0 | AJ19: 0 | AK19: 0 | AL19: 0 | AM19: 0 | AN19: 0 | AP19: =IF(AJ19<=0,0,IF('Simulador Valora'!$AC$62=1,0,AJ19*'Simulador Valora'!$Y$67+IF('Simulador Valora'!$X$35=2,'Simulador Valora'!$G$49,IF('Simulador Valora'!$X$35=1,'Simulador Valora'!$K$49,0)))) -> 0 | AR19: =AL19*'Simulador Valora'!$X$59 -> 0 | AS19: 0 | AT19: 0 | AV19: 0 | AW19: 5
A20: 6 | B20: 0 | D20: 0 | F20: 0 | H20: 0 | L20: =IF('Simulador Valora'!$V$60=1,0,J20*'Simulador Valora'!$V$61*'Simulador Valora'!$W$59) -> 0 | P20: 0 | R20: =IF('Simulador Valora'!$AC$62=1,0,IFERROR(IF(B20<=0,0,B20*'Simulador Valora'!$Y$67),0)) -> 0 | T20: =IF(OR('Simulador Valora'!$AC$62=1,'Simulador Valora'!$AC$66=1),0,IFERROR(IF(B20<=0,0,IF('Simulador Valora'!$X$35=2,IF('Simulador Valora'!$K$24>0,'Simulador Valora'!$K$24,'Simulador Valora'!$K$41)*'Simulador Valora'!$Y$68,IF('Simulador Valora'!$X$35=1,IF('Simulador Valora'!$K$24>0,'Simulador Valora'!$K$24,'Simulador Valora'!$G$41)*'Simulador Valora'!$Y$68,0))),0)) -> 0 | V20: =F20*'Simulador Valora'!$X$59 -> 0 | AB20: 0 | AC20: 6 | AD20: 0 | AE20: 0 | AF20: 0 | AH20: 0.175 | AI20: 0 | AJ20: 0 | AK20: 0 | AL20: 0 | AM20: 0 | AN20: 0 | AP20: =IF(AJ20<=0,0,IF('Simulador Valora'!$AC$62=1,0,AJ20*'Simulador Valora'!$Y$67+IF('Simulador Valora'!$X$35=2,'Simulador Valora'!$G$49,IF('Simulador Valora'!$X$35=1,'Simulador Valora'!$K$49,0)))) -> 0 | AR20: =AL20*'Simulador Valora'!$X$59 -> 0 | AS20: 0 | AT20: 0 | AV20: 0 | AW20: 6
A21: 7 | B21: 0 | D21: 0 | F21: 0 | H21: 0 | L21: =IF('Simulador Valora'!$V$60=1,0,J21*'Simulador Valora'!$V$61*'Simulador Valora'!$W$59) -> 0 | P21: 0 | R21: =IF('Simulador Valora'!$AC$62=1,0,IFERROR(IF(B21<=0,0,B21*'Simulador Valora'!$Y$67),0)) -> 0 | T21: =IF(OR('Simulador Valora'!$AC$62=1,'Simulador Valora'!$AC$66=1),0,IFERROR(IF(B21<=0,0,IF('Simulador Valora'!$X$35=2,IF('Simulador Valora'!$K$24>0,'Simulador Valora'!$K$24,'Simulador Valora'!$K$41)*'Simulador Valora'!$Y$68,IF('Simulador Valora'!$X$35=1,IF('Simulador Valora'!$K$24>0,'Simulador Valora'!$K$24,'Simulador Valora'!$G$41)*'Simulador Valora'!$Y$68,0))),0)) -> 0 | V21: =F21*'Simulador Valora'!$X$59 -> 0 | AB21: 0 | AC21: 7 | AD21: 0 | AE21: 0 | AF21: 0 | AH21: 0.175 | AI21: 0 | AJ21: 0 | AK21: 0 | AL21: 0 | AM21: 0 | AN21: 0 | AP21: =IF(AJ21<=0,0,IF('Simulador Valora'!$AC$62=1,0,AJ21*'Simulador Valora'!$Y$67+IF('Simulador Valora'!$X$35=2,'Simulador Valora'!$G$49,IF('Simulador Valora'!$X$35=1,'Simulador Valora'!$K$49,0)))) -> 0 | AR21: =AL21*'Simulador Valora'!$X$59 -> 0 | AS21: 0 | AT21: 0 | AV21: 0 | AW21: 7
A22: 8 | B22: 0 | D22: 0 | F22: 0 | H22: 0 | L22: =IF('Simulador Valora'!$V$60=1,0,J22*'Simulador Valora'!$V$61*'Simulador Valora'!$W$59) -> 0 | P22: 0 | R22: =IF('Simulador Valora'!$AC$62=1,0,IFERROR(IF(B22<=0,0,B22*'Simulador Valora'!$Y$67),0)) -> 0 | T22: =IF(OR('Simulador Valora'!$AC$62=1,'Simulador Valora'!$AC$66=1),0,IFERROR(IF(B22<=0,0,IF('Simulador Valora'!$X$35=2,IF('Simulador Valora'!$K$24>0,'Simulador Valora'!$K$24,'Simulador Valora'!$K$41)*'Simulador Valora'!$Y$68,IF('Simulador Valora'!$X$35=1,IF('Simulador Valora'!$K$24>0,'Simulador Valora'!$K$24,'Simulador Valora'!$G$41)*'Simulador Valora'!$Y$68,0))),0)) -> 0 | V22: =F22*'Simulador Valora'!$X$59 -> 0 | AB22: 0 | AC22: 8 | AD22: 0 | AE22: 0 | AF22: 0 | AH22: 0.175 | AI22: 0 | AJ22: 0 | AK22: 0 | AL22: 0 | AM22: 0 | AN22: 0 | AP22: =IF(AJ22<=0,0,IF('Simulador Valora'!$AC$62=1,0,AJ22*'Simulador Valora'!$Y$67+IF('Simulador Valora'!$X$35=2,'Simulador Valora'!$G$49,IF('Simulador Valora'!$X$35=1,'Simulador Valora'!$K$49,0)))) -> 0 | AR22: =AL22*'Simulador Valora'!$X$59 -> 0 | AS22: 0 | AT22: 0 | AV22: 0 | AW22: 8
A23: 9 | B23: 0 | D23: 0 | F23: 0 | H23: 0 | L23: =IF('Simulador Valora'!$V$60=1,0,J23*'Simulador Valora'!$V$61*'Simulador Valora'!$W$59) -> 0 | P23: 0 | R23: =IF('Simulador Valora'!$AC$62=1,0,IFERROR(IF(B23<=0,0,B23*'Simulador Valora'!$Y$67),0)) -> 0 | T23: =IF(OR('Simulador Valora'!$AC$62=1,'Simulador Valora'!$AC$66=1),0,IFERROR(IF(B23<=0,0,IF('Simulador Valora'!$X$35=2,IF('Simulador Valora'!$K$24>0,'Simulador Valora'!$K$24,'Simulador Valora'!$K$41)*'Simulador Valora'!$Y$68,IF('Simulador Valora'!$X$35=1,IF('Simulador Valora'!$K$24>0,'Simulador Valora'!$K$24,'Simulador Valora'!$G$41)*'Simulador Valora'!$Y$68,0))),0)) -> 0 | V23: =F23*'Simulador Valora'!$X$59 -> 0 | AB23: 0 | AC23: 9 | AD23: 0 | AE23: 0 | AF23: 0 | AH23: 0.175 | AI23: 0 | AJ23: 0 | AK23: 0 | AL23: 0 | AM23: 0 | AN23: 0 | AP23: =IF(AJ23<=0,0,IF('Simulador Valora'!$AC$62=1,0,AJ23*'Simulador Valora'!$Y$67+IF('Simulador Valora'!$X$35=2,'Simulador Valora'!$G$49,IF('Simulador Valora'!$X$35=1,'Simulador Valora'!$K$49,0)))) -> 0 | AR23: =AL23*'Simulador Valora'!$X$59 -> 0 | AS23: 0 | AT23: 0 | AV23: 0 | AW23: 9
A24: 10 | B24: 0 | D24: 0 | F24: 0 | H24: 0 | L24: =IF('Simulador Valora'!$V$60=1,0,J24*'Simulador Valora'!$V$61*'Simulador Valora'!$W$59) -> 0 | P24: 0 | R24: =IF('Simulador Valora'!$AC$62=1,0,IFERROR(IF(B24<=0,0,B24*'Simulador Valora'!$Y$67),0)) -> 0 | T24: =IF(OR('Simulador Valora'!$AC$62=1,'Simulador Valora'!$AC$66=1),0,IFERROR(IF(B24<=0,0,IF('Simulador Valora'!$X$35=2,IF('Simulador Valora'!$K$24>0,'Simulador Valora'!$K$24,'Simulador Valora'!$K$41)*'Simulador Valora'!$Y$68,IF('Simulador Valora'!$X$35=1,IF('Simulador Valora'!$K$24>0,'Simulador Valora'!$K$24,'Simulador Valora'!$G$41)*'Simulador Valora'!$Y$68,0))),0)) -> 0 | V24: =F24*'Simulador Valora'!$X$59 -> 0 | AB24: 0 | AC24: 10 | AD24: 0 | AE24: 0 | AF24: 0 | AH24: 0.175 | AI24: 0 | AJ24: 0 | AK24: 0 | AL24: 0 | AM24: 0 | AN24: 0 | AP24: =IF(AJ24<=0,0,IF('Simulador Valora'!$AC$62=1,0,AJ24*'Simulador Valora'!$Y$67+IF('Simulador Valora'!$X$35=2,'Simulador Valora'!$G$49,IF('Simulador Valora'!$X$35=1,'Simulador Valora'!$K$49,0)))) -> 0 | AR24: =AL24*'Simulador Valora'!$X$59 -> 0 | AS24: 0 | AT24: 0 | AV24: 0 | AW24: 10
A25: 11 | B25: 0 | D25: 0 | F25: 0 | H25: 0 | L25: =IF('Simulador Valora'!$V$60=1,0,J25*'Simulador Valora'!$V$61*'Simulador Valora'!$W$59) -> 0 | P25: 0 | R25: =IF('Simulador Valora'!$AC$62=1,0,IFERROR(IF(B25<=0,0,B25*'Simulador Valora'!$Y$67),0)) -> 0 | T25: =IF(OR('Simulador Valora'!$AC$62=1,'Simulador Valora'!$AC$66=1),0,IFERROR(IF(B25<=0,0,IF('Simulador Valora'!$X$35=2,IF('Simulador Valora'!$K$24>0,'Simulador Valora'!$K$24,'Simulador Valora'!$K$41)*'Simulador Valora'!$Y$68,IF('Simulador Valora'!$X$35=1,IF('Simulador Valora'!$K$24>0,'Simulador Valora'!$K$24,'Simulador Valora'!$G$41)*'Simulador Valora'!$Y$68,0))),0)) -> 0 | V25: =F25*'Simulador Valora'!$X$59 -> 0 | AB25: 0 | AC25: 11 | AD25: 0 | AE25: 0 | AF25: 0 | AH25: 0.175 | AI25: 0 | AJ25: 0 | AK25: 0 | AL25: 0 | AM25: 0 | AN25: 0 | AP25: =IF(AJ25<=0,0,IF('Simulador Valora'!$AC$62=1,0,AJ25*'Simulador Valora'!$Y$67+IF('Simulador Valora'!$X$35=2,'Simulador Valora'!$G$49,IF('Simulador Valora'!$X$35=1,'Simulador Valora'!$K$49,0)))) -> 0 | AR25: =AL25*'Simulador Valora'!$X$59 -> 0 | AS25: 0 | AT25: 0 | AV25: 0 | AW25: 11
A26: 12 | B26: 0 | D26: 0 | F26: 0 | H26: 0 | L26: =IF('Simulador Valora'!$V$60=1,0,J26*'Simulador Valora'!$V$61*'Simulador Valora'!$W$59) -> 0 | P26: 0 | R26: =IF('Simulador Valora'!$AC$62=1,0,IFERROR(IF(B26<=0,0,B26*'Simulador Valora'!$Y$67),0)) -> 0 | T26: =IF(OR('Simulador Valora'!$AC$62=1,'Simulador Valora'!$AC$66=1),0,IFERROR(IF(B26<=0,0,IF('Simulador Valora'!$X$35=2,IF('Simulador Valora'!$K$24>0,'Simulador Valora'!$K$24,'Simulador Valora'!$K$41)*'Simulador Valora'!$Y$68,IF('Simulador Valora'!$X$35=1,IF('Simulador Valora'!$K$24>0,'Simulador Valora'!$K$24,'Simulador Valora'!$G$41)*'Simulador Valora'!$Y$68,0))),0)) -> 0 | V26: =F26*'Simulador Valora'!$X$59 -> 0 | AB26: 1 | AC26: 0 | AD26: 0 | AE26: 0 | AF26: 0 | AH26: 0.175 | AI26: 0 | AJ26: 0 | AK26: 0 | AL26: 0 | AM26: 0 | AN26: 0 | AP26: =IF(AJ26<=0,0,IF('Simulador Valora'!$AC$62=1,0,AJ26*'Simulador Valora'!$Y$67+IF('Simulador Valora'!$X$35=2,'Simulador Valora'!$G$49,IF('Simulador Valora'!$X$35=1,'Simulador Valora'!$K$49,0)))) -> 0 | AR26: =AL26*'Simulador Valora'!$X$59 -> 0 | AS26: 0 | AT26: 0 | AV26: 0 | AW26: 12
A27: 13 | B27: 0 | D27: =IF(B27+F27-D26<=0,B27+F27,IF(J26=0,D26*(1+Z27),IF($AS$2=2,B27*AI27,D26*(1+Z27)))) -> 0 | F27: 0 | H27: 0 | L27: =IF('Simulador Valora'!$V$60=1,0,J27*'Simulador Valora'!$V$61*'Simulador Valora'!$W$59) -> 0 | P27: 0 | R27: =IF('Simulador Valora'!$AC$62=1,0,IFERROR(IF(B27<=0,0,B27*'Simulador Valora'!$Y$67),0)) -> 0 | T27: =IF(OR('Simulador Valora'!$AC$62=1,'Simulador Valora'!$AC$66=1),0,IFERROR(IF(B27<=0,0,IF('Simulador Valora'!$X$35=2,IF('Simulador Valora'!$K$24>0,'Simulador Valora'!$K$24,'Simulador Valora'!$K$41)*'Simulador Valora'!$Y$68,IF('Simulador Valora'!$X$35=1,IF('Simulador Valora'!$K$24>0,'Simulador Valora'!$K$24,'Simulador Valora'!$G$41)*'Simulador Valora'!$Y$68,0))),0)) -> 0 | V27: =F27*'Simulador Valora'!$X$59 -> 0 | Z27: =IF(B27<=0,0,'Simulador Valora'!$AM$48) -> 0 | AB27: 1 | AC27: 1 | AD27: 0 | AE27: 0 | AF27: 0 | AH27: 0.175 | AI27: 0 | AJ27: 0 | AK27: 0 | AL27: 0 | AM27: 0 | AN27: 0 | AP27: =IF(AJ27<=0,0,IF('Simulador Valora'!$AC$62=1,0,AJ27*'Simulador Valora'!$Y$67+IF('Simulador Valora'!$X$35=2,'Simulador Valora'!$G$49,IF('Simulador Valora'!$X$35=1,'Simulador Valora'!$K$49,0)))) -> 0 | AQ27: =IF(AJ27<=0,0,'Simulador Valora'!$AM$48) -> 0 | AR27: =AL27*'Simulador Valora'!$X$59 -> 0 | AS27: 0 | AT27: 0 | AV27: 0 | AW27: 13
A28: 14 | B28: 0 | D28: 0 | F28: 0 | H28: 0 | L28: =IF('Simulador Valora'!$V$60=1,0,J28*'Simulador Valora'!$V$61*'Simulador Valora'!$W$59) -> 0 | P28: 0 | R28: =IF('Simulador Valora'!$AC$62=1,0,IFERROR(IF(B28<=0,0,B28*'Simulador Valora'!$Y$67),0)) -> 0 | T28: =IF(OR('Simulador Valora'!$AC$62=1,'Simulador Valora'!$AC$66=1),0,IFERROR(IF(B28<=0,0,IF('Simulador Valora'!$X$35=2,IF('Simulador Valora'!$K$24>0,'Simulador Valora'!$K$24,'Simulador Valora'!$K$41)*'Simulador Valora'!$Y$68,IF('Simulador Valora'!$X$35=1,IF('Simulador Valora'!$K$24>0,'Simulador Valora'!$K$24,'Simulador Valora'!$G$41)*'Simulador Valora'!$Y$68,0))),0)) -> 0 | V28: =F28*'Simulador Valora'!$X$59 -> 0 | AB28: 1 | AC28: 2 | AD28: 0 | AE28: 0 | AF28: 0 | AH28: 0.175 | AI28: 0 | AJ28: 0 | AK28: 0 | AL28: 0 | AM28: 0 | AN28: 0 | AP28: =IF(AJ28<=0,0,IF('Simulador Valora'!$AC$62=1,0,AJ28*'Simulador Valora'!$Y$67+IF('Simulador Valora'!$X$35=2,'Simulador Valora'!$G$49,IF('Simulador Valora'!$X$35=1,'Simulador Valora'!$K$49,0)))) -> 0 | AR28: =AL28*'Simulador Valora'!$X$59 -> 0 | AS28: 0 | AT28: 0 | AV28: 0 | AW28: 14
A29: 15 | B29: 0 | D29: 0 | F29: 0 | H29: 0 | L29: =IF('Simulador Valora'!$V$60=1,0,J29*'Simulador Valora'!$V$61*'Simulador Valora'!$W$59) -> 0 | P29: 0 | R29: =IF('Simulador Valora'!$AC$62=1,0,IFERROR(IF(B29<=0,0,B29*'Simulador Valora'!$Y$67),0)) -> 0 | T29: =IF(OR('Simulador Valora'!$AC$62=1,'Simulador Valora'!$AC$66=1),0,IFERROR(IF(B29<=0,0,IF('Simulador Valora'!$X$35=2,IF('Simulador Valora'!$K$24>0,'Simulador Valora'!$K$24,'Simulador Valora'!$K$41)*'Simulador Valora'!$Y$68,IF('Simulador Valora'!$X$35=1,IF('Simulador Valora'!$K$24>0,'Simulador Valora'!$K$24,'Simulador Valora'!$G$41)*'Simulador Valora'!$Y$68,0))),0)) -> 0 | V29: =F29*'Simulador Valora'!$X$59 -> 0 | AB29: 1 | AC29: 3 | AD29: 0 | AE29: 0 | AF29: 0 | AH29: 0.175 | AI29: 0 | AJ29: 0 | AK29: 0 | AL29: 0 | AM29: 0 | AN29: 0 | AP29: =IF(AJ29<=0,0,IF('Simulador Valora'!$AC$62=1,0,AJ29*'Simulador Valora'!$Y$67+IF('Simulador Valora'!$X$35=2,'Simulador Valora'!$G$49,IF('Simulador Valora'!$X$35=1,'Simulador Valora'!$K$49,0)))) -> 0 | AR29: =AL29*'Simulador Valora'!$X$59 -> 0 | AS29: 0 | AT29: 0 | AV29: 0 | AW29: 15
A30: 16 | B30: 0 | D30: 0 | F30: 0 | H30: 0 | L30: =IF('Simulador Valora'!$V$60=1,0,J30*'Simulador Valora'!$V$61*'Simulador Valora'!$W$59) -> 0 | P30: 0 | R30: =IF('Simulador Valora'!$AC$62=1,0,IFERROR(IF(B30<=0,0,B30*'Simulador Valora'!$Y$67),0)) -> 0 | T30: =IF(OR('Simulador Valora'!$AC$62=1,'Simulador Valora'!$AC$66=1),0,IFERROR(IF(B30<=0,0,IF('Simulador Valora'!$X$35=2,IF('Simulador Valora'!$K$24>0,'Simulador Valora'!$K$24,'Simulador Valora'!$K$41)*'Simulador Valora'!$Y$68,IF('Simulador Valora'!$X$35=1,IF('Simulador Valora'!$K$24>0,'Simulador Valora'!$K$24,'Simulador Valora'!$G$41)*'Simulador Valora'!$Y$68,0))),0)) -> 0 | V30: =F30*'Simulador Valora'!$X$59 -> 0 | AB30: 1 | AC30: 4 | AD30: 0 | AE30: 0 | AF30: 0 | AH30: 0.175 | AI30: 0 | AJ30: 0 | AK30: 0 | AL30: 0 | AM30: 0 | AN30: 0 | AP30: =IF(AJ30<=0,0,IF('Simulador Valora'!$AC$62=1,0,AJ30*'Simulador Valora'!$Y$67+IF('Simulador Valora'!$X$35=2,'Simulador Valora'!$G$49,IF('Simulador Valora'!$X$35=1,'Simulador Valora'!$K$49,0)))) -> 0 | AR30: =AL30*'Simulador Valora'!$X$59 -> 0 | AS30: 0 | AT30: 0 | AV30: 0 | AW30: 16
A31: 17 | B31: 0 | D31: 0 | F31: 0 | H31: 0 | L31: =IF('Simulador Valora'!$V$60=1,0,J31*'Simulador Valora'!$V$61*'Simulador Valora'!$W$59) -> 0 | P31: 0 | R31: =IF('Simulador Valora'!$AC$62=1,0,IFERROR(IF(B31<=0,0,B31*'Simulador Valora'!$Y$67),0)) -> 0 | T31: =IF(OR('Simulador Valora'!$AC$62=1,'Simulador Valora'!$AC$66=1),0,IFERROR(IF(B31<=0,0,IF('Simulador Valora'!$X$35=2,IF('Simulador Valora'!$K$24>0,'Simulador Valora'!$K$24,'Simulador Valora'!$K$41)*'Simulador Valora'!$Y$68,IF('Simulador Valora'!$X$35=1,IF('Simulador Valora'!$K$24>0,'Simulador Valora'!$K$24,'Simulador Valora'!$G$41)*'Simulador Valora'!$Y$68,0))),0)) -> 0 | V31: =F31*'Simulador Valora'!$X$59 -> 0 | AB31: 1 | AC31: 5 | AD31: 0 | AE31: 0 | AF31: 0 | AH31: 0.175 | AI31: 0 | AJ31: 0 | AK31: 0 | AL31: 0 | AM31: 0 | AN31: 0 | AP31: =IF(AJ31<=0,0,IF('Simulador Valora'!$AC$62=1,0,AJ31*'Simulador Valora'!$Y$67+IF('Simulador Valora'!$X$35=2,'Simulador Valora'!$G$49,IF('Simulador Valora'!$X$35=1,'Simulador Valora'!$K$49,0)))) -> 0 | AR31: =AL31*'Simulador Valora'!$X$59 -> 0 | AS31: 0 | AT31: 0 | AV31: 0 | AW31: 17
A32: 18 | B32: 0 | D32: 0 | F32: 0 | H32: 0 | L32: =IF('Simulador Valora'!$V$60=1,0,J32*'Simulador Valora'!$V$61*'Simulador Valora'!$W$59) -> 0 | P32: 0 | R32: =IF('Simulador Valora'!$AC$62=1,0,IFERROR(IF(B32<=0,0,B32*'Simulador Valora'!$Y$67),0)) -> 0 | T32: =IF(OR('Simulador Valora'!$AC$62=1,'Simulador Valora'!$AC$66=1),0,IFERROR(IF(B32<=0,0,IF('Simulador Valora'!$X$35=2,IF('Simulador Valora'!$K$24>0,'Simulador Valora'!$K$24,'Simulador Valora'!$K$41)*'Simulador Valora'!$Y$68,IF('Simulador Valora'!$X$35=1,IF('Simulador Valora'!$K$24>0,'Simulador Valora'!$K$24,'Simulador Valora'!$G$41)*'Simulador Valora'!$Y$68,0))),0)) -> 0 | V32: =F32*'Simulador Valora'!$X$59 -> 0 | AB32: 1 | AC32: 6 | AD32: 0 | AE32: 0 | AF32: 0 | AH32: 0.175 | AI32: 0 | AJ32: 0 | AK32: 0 | AL32: 0 | AM32: 0 | AN32: 0 | AP32: =IF(AJ32<=0,0,IF('Simulador Valora'!$AC$62=1,0,AJ32*'Simulador Valora'!$Y$67+IF('Simulador Valora'!$X$35=2,'Simulador Valora'!$G$49,IF('Simulador Valora'!$X$35=1,'Simulador Valora'!$K$49,0)))) -> 0 | AR32: =AL32*'Simulador Valora'!$X$59 -> 0 | AS32: 0 | AT32: 0 | AV32: 0 | AW32: 18
A33: 19 | B33: 0 | D33: 0 | F33: 0 | H33: 0 | L33: =IF('Simulador Valora'!$V$60=1,0,J33*'Simulador Valora'!$V$61*'Simulador Valora'!$W$59) -> 0 | P33: 0 | R33: =IF('Simulador Valora'!$AC$62=1,0,IFERROR(IF(B33<=0,0,B33*'Simulador Valora'!$Y$67),0)) -> 0 | T33: =IF(OR('Simulador Valora'!$AC$62=1,'Simulador Valora'!$AC$66=1),0,IFERROR(IF(B33<=0,0,IF('Simulador Valora'!$X$35=2,IF('Simulador Valora'!$K$24>0,'Simulador Valora'!$K$24,'Simulador Valora'!$K$41)*'Simulador Valora'!$Y$68,IF('Simulador Valora'!$X$35=1,IF('Simulador Valora'!$K$24>0,'Simulador Valora'!$K$24,'Simulador Valora'!$G$41)*'Simulador Valora'!$Y$68,0))),0)) -> 0 | V33: =F33*'Simulador Valora'!$X$59 -> 0 | AB33: 1 | AC33: 7 | AD33: 0 | AE33: 0 | AF33: 0 | AH33: 0.175 | AI33: 0 | AJ33: 0 | AK33: 0 | AL33: 0 | AM33: 0 | AN33: 0 | AP33: =IF(AJ33<=0,0,IF('Simulador Valora'!$AC$62=1,0,AJ33*'Simulador Valora'!$Y$67+IF('Simulador Valora'!$X$35=2,'Simulador Valora'!$G$49,IF('Simulador Valora'!$X$35=1,'Simulador Valora'!$K$49,0)))) -> 0 | AR33: =AL33*'Simulador Valora'!$X$59 -> 0 | AS33: 0 | AT33: 0 | AV33: 0 | AW33: 19
A34: 20 | B34: 0 | D34: 0 | F34: 0 | H34: 0 | L34: =IF('Simulador Valora'!$V$60=1,0,J34*'Simulador Valora'!$V$61*'Simulador Valora'!$W$59) -> 0 | P34: 0 | R34: =IF('Simulador Valora'!$AC$62=1,0,IFERROR(IF(B34<=0,0,B34*'Simulador Valora'!$Y$67),0)) -> 0 | T34: =IF(OR('Simulador Valora'!$AC$62=1,'Simulador Valora'!$AC$66=1),0,IFERROR(IF(B34<=0,0,IF('Simulador Valora'!$X$35=2,IF('Simulador Valora'!$K$24>0,'Simulador Valora'!$K$24,'Simulador Valora'!$K$41)*'Simulador Valora'!$Y$68,IF('Simulador Valora'!$X$35=1,IF('Simulador Valora'!$K$24>0,'Simulador Valora'!$K$24,'Simulador Valora'!$G$41)*'Simulador Valora'!$Y$68,0))),0)) -> 0 | V34: =F34*'Simulador Valora'!$X$59 -> 0 | AB34: 1 | AC34: 8 | AD34: 0 | AE34: 0 | AF34: 0 | AH34: 0.175 | AI34: 0 | AJ34: 0 | AK34: 0 | AL34: 0 | AM34: 0 | AN34: 0 | AP34: =IF(AJ34<=0,0,IF('Simulador Valora'!$AC$62=1,0,AJ34*'Simulador Valora'!$Y$67+IF('Simulador Valora'!$X$35=2,'Simulador Valora'!$G$49,IF('Simulador Valora'!$X$35=1,'Simulador Valora'!$K$49,0)))) -> 0 | AR34: =AL34*'Simulador Valora'!$X$59 -> 0 | AS34: 0 | AT34: 0 | AV34: 0 | AW34: 20
A35: 21 | B35: 0 | D35: 0 | F35: 0 | H35: 0 | L35: =IF('Simulador Valora'!$V$60=1,0,J35*'Simulador Valora'!$V$61*'Simulador Valora'!$W$59) -> 0 | P35: 0 | R35: =IF('Simulador Valora'!$AC$62=1,0,IFERROR(IF(B35<=0,0,B35*'Simulador Valora'!$Y$67),0)) -> 0 | T35: =IF(OR('Simulador Valora'!$AC$62=1,'Simulador Valora'!$AC$66=1),0,IFERROR(IF(B35<=0,0,IF('Simulador Valora'!$X$35=2,IF('Simulador Valora'!$K$24>0,'Simulador Valora'!$K$24,'Simulador Valora'!$K$41)*'Simulador Valora'!$Y$68,IF('Simulador Valora'!$X$35=1,IF('Simulador Valora'!$K$24>0,'Simulador Valora'!$K$24,'Simulador Valora'!$G$41)*'Simulador Valora'!$Y$68,0))),0)) -> 0 | V35: =F35*'Simulador Valora'!$X$59 -> 0 | AB35: 1 | AC35: 9 | AD35: 0 | AE35: 0 | AF35: 0 | AH35: 0.175 | AI35: 0 | AJ35: 0 | AK35: 0 | AL35: 0 | AM35: 0 | AN35: 0 | AP35: =IF(AJ35<=0,0,IF('Simulador Valora'!$AC$62=1,0,AJ35*'Simulador Valora'!$Y$67+IF('Simulador Valora'!$X$35=2,'Simulador Valora'!$G$49,IF('Simulador Valora'!$X$35=1,'Simulador Valora'!$K$49,0)))) -> 0 | AR35: =AL35*'Simulador Valora'!$X$59 -> 0 | AS35: 0 | AT35: 0 | AV35: 0 | AW35: 21
A36: 22 | B36: 0 | D36: 0 | F36: 0 | H36: 0 | L36: =IF('Simulador Valora'!$V$60=1,0,J36*'Simulador Valora'!$V$61*'Simulador Valora'!$W$59) -> 0 | P36: 0 | R36: =IF('Simulador Valora'!$AC$62=1,0,IFERROR(IF(B36<=0,0,B36*'Simulador Valora'!$Y$67),0)) -> 0 | T36: =IF(OR('Simulador Valora'!$AC$62=1,'Simulador Valora'!$AC$66=1),0,IFERROR(IF(B36<=0,0,IF('Simulador Valora'!$X$35=2,IF('Simulador Valora'!$K$24>0,'Simulador Valora'!$K$24,'Simulador Valora'!$K$41)*'Simulador Valora'!$Y$68,IF('Simulador Valora'!$X$35=1,IF('Simulador Valora'!$K$24>0,'Simulador Valora'!$K$24,'Simulador Valora'!$G$41)*'Simulador Valora'!$Y$68,0))),0)) -> 0 | V36: =F36*'Simulador Valora'!$X$59 -> 0 | AB36: 1 | AC36: 10 | AD36: 0 | AE36: 0 | AF36: 0 | AH36: 0.175 | AI36: 0 | AJ36: 0 | AK36: 0 | AL36: 0 | AM36: 0 | AN36: 0 | AP36: =IF(AJ36<=0,0,IF('Simulador Valora'!$AC$62=1,0,AJ36*'Simulador Valora'!$Y$67+IF('Simulador Valora'!$X$35=2,'Simulador Valora'!$G$49,IF('Simulador Valora'!$X$35=1,'Simulador Valora'!$K$49,0)))) -> 0 | AR36: =AL36*'Simulador Valora'!$X$59 -> 0 | AS36: 0 | AT36: 0 | AV36: 0 | AW36: 22
A37: 23 | B37: 0 | D37: 0 | F37: 0 | H37: 0 | L37: =IF('Simulador Valora'!$V$60=1,0,J37*'Simulador Valora'!$V$61*'Simulador Valora'!$W$59) -> 0 | P37: 0 | R37: =IF('Simulador Valora'!$AC$62=1,0,IFERROR(IF(B37<=0,0,B37*'Simulador Valora'!$Y$67),0)) -> 0 | T37: =IF(OR('Simulador Valora'!$AC$62=1,'Simulador Valora'!$AC$66=1),0,IFERROR(IF(B37<=0,0,IF('Simulador Valora'!$X$35=2,IF('Simulador Valora'!$K$24>0,'Simulador Valora'!$K$24,'Simulador Valora'!$K$41)*'Simulador Valora'!$Y$68,IF('Simulador Valora'!$X$35=1,IF('Simulador Valora'!$K$24>0,'Simulador Valora'!$K$24,'Simulador Valora'!$G$41)*'Simulador Valora'!$Y$68,0))),0)) -> 0 | V37: =F37*'Simulador Valora'!$X$59 -> 0 | AB37: 1 | AC37: 11 | AD37: 0 | AE37: 0 | AF37: 0 | AH37: 0.175 | AI37: 0 | AJ37: 0 | AK37: 0 | AL37: 0 | AM37: 0 | AN37: 0 | AP37: =IF(AJ37<=0,0,IF('Simulador Valora'!$AC$62=1,0,AJ37*'Simulador Valora'!$Y$67+IF('Simulador Valora'!$X$35=2,'Simulador Valora'!$G$49,IF('Simulador Valora'!$X$35=1,'Simulador Valora'!$K$49,0)))) -> 0 | AR37: =AL37*'Simulador Valora'!$X$59 -> 0 | AS37: 0 | AT37: 0 | AV37: 0 | AW37: 23
A38: 24 | B38: 0 | D38: 0 | F38: 0 | H38: 0 | L38: =IF('Simulador Valora'!$V$60=1,0,J38*'Simulador Valora'!$V$61*'Simulador Valora'!$W$59) -> 0 | P38: 0 | R38: =IF('Simulador Valora'!$AC$62=1,0,IFERROR(IF(B38<=0,0,B38*'Simulador Valora'!$Y$67),0)) -> 0 | T38: =IF(OR('Simulador Valora'!$AC$62=1,'Simulador Valora'!$AC$66=1),0,IFERROR(IF(B38<=0,0,IF('Simulador Valora'!$X$35=2,IF('Simulador Valora'!$K$24>0,'Simulador Valora'!$K$24,'Simulador Valora'!$K$41)*'Simulador Valora'!$Y$68,IF('Simulador Valora'!$X$35=1,IF('Simulador Valora'!$K$24>0,'Simulador Valora'!$K$24,'Simulador Valora'!$G$41)*'Simulador Valora'!$Y$68,0))),0)) -> 0 | V38: =F38*'Simulador Valora'!$X$59 -> 0 | AB38: 2 | AC38: 0 | AD38: 0 | AE38: 0 | AF38: 0 | AH38: 0.175 | AI38: 0 | AJ38: 0 | AK38: 0 | AL38: 0 | AM38: 0 | AN38: 0 | AP38: =IF(AJ38<=0,0,IF('Simulador Valora'!$AC$62=1,0,AJ38*'Simulador Valora'!$Y$67+IF('Simulador Valora'!$X$35=2,'Simulador Valora'!$G$49,IF('Simulador Valora'!$X$35=1,'Simulador Valora'!$K$49,0)))) -> 0 | AR38: =AL38*'Simulador Valora'!$X$59 -> 0 | AS38: 0 | AT38: 0 | AV38: 0 | AW38: 24
A39: 25 | B39: 0 | D39: 0 | F39: 0 | H39: 0 | L39: =IF('Simulador Valora'!$V$60=1,0,J39*'Simulador Valora'!$V$61*'Simulador Valora'!$W$59) -> 0 | P39: 0 | R39: =IF('Simulador Valora'!$AC$62=1,0,IFERROR(IF(B39<=0,0,B39*'Simulador Valora'!$Y$67),0)) -> 0 | T39: =IF(OR('Simulador Valora'!$AC$62=1,'Simulador Valora'!$AC$66=1),0,IFERROR(IF(B39<=0,0,IF('Simulador Valora'!$X$35=2,IF('Simulador Valora'!$K$24>0,'Simulador Valora'!$K$24,'Simulador Valora'!$K$41)*'Simulador Valora'!$Y$68,IF('Simulador Valora'!$X$35=1,IF('Simulador Valora'!$K$24>0,'Simulador Valora'!$K$24,'Simulador Valora'!$G$41)*'Simulador Valora'!$Y$68,0))),0)) -> 0 | V39: =F39*'Simulador Valora'!$X$59 -> 0 | Z39: =IF(B39<=0,0,'Simulador Valora'!$AM$48) -> 0 | AB39: 2 | AC39: 1 | AD39: 0 | AE39: 0 | AF39: 0 | AH39: 0.175 | AI39: 0 | AJ39: 0 | AK39: 0 | AL39: 0 | AM39: 0 | AN39: 0 | AP39: =IF(AJ39<=0,0,IF('Simulador Valora'!$AC$62=1,0,AJ39*'Simulador Valora'!$Y$67+IF('Simulador Valora'!$X$35=2,'Simulador Valora'!$G$49,IF('Simulador Valora'!$X$35=1,'Simulador Valora'!$K$49,0)))) -> 0 | AQ39: =IF(AJ39<=0,0,$AQ$27) -> 0 | AR39: =AL39*'Simulador Valora'!$X$59 -> 0 | AS39: 0 | AT39: 0 | AV39: 0 | AW39: 25
A40: 26 | B40: 0 | D40: 0 | F40: 0 | H40: 0 | L40: =IF('Simulador Valora'!$V$60=1,0,J40*'Simulador Valora'!$V$61*'Simulador Valora'!$W$59) -> 0 | P40: 0 | R40: =IF('Simulador Valora'!$AC$62=1,0,IFERROR(IF(B40<=0,0,B40*'Simulador Valora'!$Y$67),0)) -> 0 | T40: =IF(OR('Simulador Valora'!$AC$62=1,'Simulador Valora'!$AC$66=1),0,IFERROR(IF(B40<=0,0,IF('Simulador Valora'!$X$35=2,IF('Simulador Valora'!$K$24>0,'Simulador Valora'!$K$24,'Simulador Valora'!$K$41)*'Simulador Valora'!$Y$68,IF('Simulador Valora'!$X$35=1,IF('Simulador Valora'!$K$24>0,'Simulador Valora'!$K$24,'Simulador Valora'!$G$41)*'Simulador Valora'!$Y$68,0))),0)) -> 0 | V40: =F40*'Simulador Valora'!$X$59 -> 0 | AB40: 2 | AC40: 2 | AD40: 0 | AE40: 0 | AF40: 0 | AH40: 0.175 | AI40: 0 | AJ40: 0 | AK40: 0 | AL40: 0 | AM40: 0 | AN40: 0 | AP40: =IF(AJ40<=0,0,IF('Simulador Valora'!$AC$62=1,0,AJ40*'Simulador Valora'!$Y$67+IF('Simulador Valora'!$X$35=2,'Simulador Valora'!$G$49,IF('Simulador Valora'!$X$35=1,'Simulador Valora'!$K$49,0)))) -> 0 | AR40: =AL40*'Simulador Valora'!$X$59 -> 0 | AS40: 0 | AT40: 0 | AV40: 0 | AW40: 26
A41: 27 | B41: 0 | D41: 0 | F41: 0 | H41: 0 | L41: =IF('Simulador Valora'!$V$60=1,0,J41*'Simulador Valora'!$V$61*'Simulador Valora'!$W$59) -> 0 | P41: 0 | R41: =IF('Simulador Valora'!$AC$62=1,0,IFERROR(IF(B41<=0,0,B41*'Simulador Valora'!$Y$67),0)) -> 0 | T41: =IF(OR('Simulador Valora'!$AC$62=1,'Simulador Valora'!$AC$66=1),0,IFERROR(IF(B41<=0,0,IF('Simulador Valora'!$X$35=2,IF('Simulador Valora'!$K$24>0,'Simulador Valora'!$K$24,'Simulador Valora'!$K$41)*'Simulador Valora'!$Y$68,IF('Simulador Valora'!$X$35=1,IF('Simulador Valora'!$K$24>0,'Simulador Valora'!$K$24,'Simulador Valora'!$G$41)*'Simulador Valora'!$Y$68,0))),0)) -> 0 | V41: =F41*'Simulador Valora'!$X$59 -> 0 | AB41: 2 | AC41: 3 | AD41: 0 | AE41: 0 | AF41: 0 | AH41: 0.175 | AI41: 0 | AJ41: 0 | AK41: 0 | AL41: 0 | AM41: 0 | AN41: 0 | AP41: =IF(AJ41<=0,0,IF('Simulador Valora'!$AC$62=1,0,AJ41*'Simulador Valora'!$Y$67+IF('Simulador Valora'!$X$35=2,'Simulador Valora'!$G$49,IF('Simulador Valora'!$X$35=1,'Simulador Valora'!$K$49,0)))) -> 0 | AR41: =AL41*'Simulador Valora'!$X$59 -> 0 | AS41: 0 | AT41: 0 | AV41: 0 | AW41: 27
A42: 28 | B42: 0 | D42: 0 | F42: 0 | H42: 0 | L42: =IF('Simulador Valora'!$V$60=1,0,J42*'Simulador Valora'!$V$61*'Simulador Valora'!$W$59) -> 0 | P42: 0 | R42: =IF('Simulador Valora'!$AC$62=1,0,IFERROR(IF(B42<=0,0,B42*'Simulador Valora'!$Y$67),0)) -> 0 | T42: =IF(OR('Simulador Valora'!$AC$62=1,'Simulador Valora'!$AC$66=1),0,IFERROR(IF(B42<=0,0,IF('Simulador Valora'!$X$35=2,IF('Simulador Valora'!$K$24>0,'Simulador Valora'!$K$24,'Simulador Valora'!$K$41)*'Simulador Valora'!$Y$68,IF('Simulador Valora'!$X$35=1,IF('Simulador Valora'!$K$24>0,'Simulador Valora'!$K$24,'Simulador Valora'!$G$41)*'Simulador Valora'!$Y$68,0))),0)) -> 0 | V42: =F42*'Simulador Valora'!$X$59 -> 0 | AB42: 2 | AC42: 4 | AD42: 0 | AE42: 0 | AF42: 0 | AH42: 0.175 | AI42: 0 | AJ42: 0 | AK42: 0 | AL42: 0 | AM42: 0 | AN42: 0 | AP42: =IF(AJ42<=0,0,IF('Simulador Valora'!$AC$62=1,0,AJ42*'Simulador Valora'!$Y$67+IF('Simulador Valora'!$X$35=2,'Simulador Valora'!$G$49,IF('Simulador Valora'!$X$35=1,'Simulador Valora'!$K$49,0)))) -> 0 | AR42: =AL42*'Simulador Valora'!$X$59 -> 0 | AS42: 0 | AT42: 0 | AV42: 0 | AW42: 28
A43: 29 | B43: 0 | D43: 0 | F43: 0 | H43: 0 | L43: =IF('Simulador Valora'!$V$60=1,0,J43*'Simulador Valora'!$V$61*'Simulador Valora'!$W$59) -> 0 | P43: 0 | R43: =IF('Simulador Valora'!$AC$62=1,0,IFERROR(IF(B43<=0,0,B43*'Simulador Valora'!$Y$67),0)) -> 0 | T43: =IF(OR('Simulador Valora'!$AC$62=1,'Simulador Valora'!$AC$66=1),0,IFERROR(IF(B43<=0,0,IF('Simulador Valora'!$X$35=2,IF('Simulador Valora'!$K$24>0,'Simulador Valora'!$K$24,'Simulador Valora'!$K$41)*'Simulador Valora'!$Y$68,IF('Simulador Valora'!$X$35=1,IF('Simulador Valora'!$K$24>0,'Simulador Valora'!$K$24,'Simulador Valora'!$G$41)*'Simulador Valora'!$Y$68,0))),0)) -> 0 | V43: =F43*'Simulador Valora'!$X$59 -> 0 | AB43: 2 | AC43: 5 | AD43: 0 | AE43: 0 | AF43: 0 | AH43: 0.175 | AI43: 0 | AJ43: 0 | AK43: 0 | AL43: 0 | AM43: 0 | AN43: 0 | AP43: =IF(AJ43<=0,0,IF('Simulador Valora'!$AC$62=1,0,AJ43*'Simulador Valora'!$Y$67+IF('Simulador Valora'!$X$35=2,'Simulador Valora'!$G$49,IF('Simulador Valora'!$X$35=1,'Simulador Valora'!$K$49,0)))) -> 0 | AR43: =AL43*'Simulador Valora'!$X$59 -> 0 | AS43: 0 | AT43: 0 | AV43: 0 | AW43: 29
A44: 30 | B44: 0 | D44: 0 | F44: 0 | H44: 0 | L44: =IF('Simulador Valora'!$V$60=1,0,J44*'Simulador Valora'!$V$61*'Simulador Valora'!$W$59) -> 0 | P44: 0 | R44: =IF('Simulador Valora'!$AC$62=1,0,IFERROR(IF(B44<=0,0,B44*'Simulador Valora'!$Y$67),0)) -> 0 | T44: =IF(OR('Simulador Valora'!$AC$62=1,'Simulador Valora'!$AC$66=1),0,IFERROR(IF(B44<=0,0,IF('Simulador Valora'!$X$35=2,IF('Simulador Valora'!$K$24>0,'Simulador Valora'!$K$24,'Simulador Valora'!$K$41)*'Simulador Valora'!$Y$68,IF('Simulador Valora'!$X$35=1,IF('Simulador Valora'!$K$24>0,'Simulador Valora'!$K$24,'Simulador Valora'!$G$41)*'Simulador Valora'!$Y$68,0))),0)) -> 0 | V44: =F44*'Simulador Valora'!$X$59 -> 0 | AB44: 2 | AC44: 6 | AD44: 0 | AE44: 0 | AF44: 0 | AH44: 0.175 | AI44: 0 | AJ44: 0 | AK44: 0 | AL44: 0 | AM44: 0 | AN44: 0 | AP44: =IF(AJ44<=0,0,IF('Simulador Valora'!$AC$62=1,0,AJ44*'Simulador Valora'!$Y$67+IF('Simulador Valora'!$X$35=2,'Simulador Valora'!$G$49,IF('Simulador Valora'!$X$35=1,'Simulador Valora'!$K$49,0)))) -> 0 | AR44: =AL44*'Simulador Valora'!$X$59 -> 0 | AS44: 0 | AT44: 0 | AV44: 0 | AW44: 30
A45: 31 | B45: 0 | D45: 0 | F45: 0 | H45: 0 | L45: =IF('Simulador Valora'!$V$60=1,0,J45*'Simulador Valora'!$V$61*'Simulador Valora'!$W$59) -> 0 | P45: 0 | R45: =IF('Simulador Valora'!$AC$62=1,0,IFERROR(IF(B45<=0,0,B45*'Simulador Valora'!$Y$67),0)) -> 0 | T45: =IF(OR('Simulador Valora'!$AC$62=1,'Simulador Valora'!$AC$66=1),0,IFERROR(IF(B45<=0,0,IF('Simulador Valora'!$X$35=2,IF('Simulador Valora'!$K$24>0,'Simulador Valora'!$K$24,'Simulador Valora'!$K$41)*'Simulador Valora'!$Y$68,IF('Simulador Valora'!$X$35=1,IF('Simulador Valora'!$K$24>0,'Simulador Valora'!$K$24,'Simulador Valora'!$G$41)*'Simulador Valora'!$Y$68,0))),0)) -> 0 | V45: =F45*'Simulador Valora'!$X$59 -> 0 | AB45: 2 | AC45: 7 | AD45: 0 | AE45: 0 | AF45: 0 | AH45: 0.175 | AI45: 0 | AJ45: 0 | AK45: 0 | AL45: 0 | AM45: 0 | AN45: 0 | AP45: =IF(AJ45<=0,0,IF('Simulador Valora'!$AC$62=1,0,AJ45*'Simulador Valora'!$Y$67+IF('Simulador Valora'!$X$35=2,'Simulador Valora'!$G$49,IF('Simulador Valora'!$X$35=1,'Simulador Valora'!$K$49,0)))) -> 0 | AR45: =AL45*'Simulador Valora'!$X$59 -> 0 | AS45: 0 | AT45: 0 | AV45: 0 | AW45: 31
A46: 32 | B46: 0 | D46: 0 | F46: 0 | H46: 0 | L46: =IF('Simulador Valora'!$V$60=1,0,J46*'Simulador Valora'!$V$61*'Simulador Valora'!$W$59) -> 0 | P46: 0 | R46: =IF('Simulador Valora'!$AC$62=1,0,IFERROR(IF(B46<=0,0,B46*'Simulador Valora'!$Y$67),0)) -> 0 | T46: =IF(OR('Simulador Valora'!$AC$62=1,'Simulador Valora'!$AC$66=1),0,IFERROR(IF(B46<=0,0,IF('Simulador Valora'!$X$35=2,IF('Simulador Valora'!$K$24>0,'Simulador Valora'!$K$24,'Simulador Valora'!$K$41)*'Simulador Valora'!$Y$68,IF('Simulador Valora'!$X$35=1,IF('Simulador Valora'!$K$24>0,'Simulador Valora'!$K$24,'Simulador Valora'!$G$41)*'Simulador Valora'!$Y$68,0))),0)) -> 0 | V46: =F46*'Simulador Valora'!$X$59 -> 0 | AB46: 2 | AC46: 8 | AD46: 0 | AE46: 0 | AF46: 0 | AH46: 0.175 | AI46: 0 | AJ46: 0 | AK46: 0 | AL46: 0 | AM46: 0 | AN46: 0 | AP46: =IF(AJ46<=0,0,IF('Simulador Valora'!$AC$62=1,0,AJ46*'Simulador Valora'!$Y$67+IF('Simulador Valora'!$X$35=2,'Simulador Valora'!$G$49,IF('Simulador Valora'!$X$35=1,'Simulador Valora'!$K$49,0)))) -> 0 | AR46: =AL46*'Simulador Valora'!$X$59 -> 0 | AS46: 0 | AT46: 0 | AV46: 0 | AW46: 32
A47: 33 | B47: 0 | D47: 0 | F47: 0 | H47: 0 | L47: =IF('Simulador Valora'!$V$60=1,0,J47*'Simulador Valora'!$V$61*'Simulador Valora'!$W$59) -> 0 | P47: 0 | R47: =IF('Simulador Valora'!$AC$62=1,0,IFERROR(IF(B47<=0,0,B47*'Simulador Valora'!$Y$67),0)) -> 0 | T47: =IF(OR('Simulador Valora'!$AC$62=1,'Simulador Valora'!$AC$66=1),0,IFERROR(IF(B47<=0,0,IF('Simulador Valora'!$X$35=2,IF('Simulador Valora'!$K$24>0,'Simulador Valora'!$K$24,'Simulador Valora'!$K$41)*'Simulador Valora'!$Y$68,IF('Simulador Valora'!$X$35=1,IF('Simulador Valora'!$K$24>0,'Simulador Valora'!$K$24,'Simulador Valora'!$G$41)*'Simulador Valora'!$Y$68,0))),0)) -> 0 | V47: =F47*'Simulador Valora'!$X$59 -> 0 | AB47: 2 | AC47: 9 | AD47: 0 | AE47: 0 | AF47: 0 | AH47: 0.175 | AI47: 0 | AJ47: 0 | AK47: 0 | AL47: 0 | AM47: 0 | AN47: 0 | AP47: =IF(AJ47<=0,0,IF('Simulador Valora'!$AC$62=1,0,AJ47*'Simulador Valora'!$Y$67+IF('Simulador Valora'!$X$35=2,'Simulador Valora'!$G$49,IF('Simulador Valora'!$X$35=1,'Simulador Valora'!$K$49,0)))) -> 0 | AR47: =AL47*'Simulador Valora'!$X$59 -> 0 | AS47: 0 | AT47: 0 | AV47: 0 | AW47: 33
A48: 34 | B48: 0 | D48: 0 | F48: 0 | H48: 0 | L48: =IF('Simulador Valora'!$V$60=1,0,J48*'Simulador Valora'!$V$61*'Simulador Valora'!$W$59) -> 0 | P48: 0 | R48: =IF('Simulador Valora'!$AC$62=1,0,IFERROR(IF(B48<=0,0,B48*'Simulador Valora'!$Y$67),0)) -> 0 | T48: =IF(OR('Simulador Valora'!$AC$62=1,'Simulador Valora'!$AC$66=1),0,IFERROR(IF(B48<=0,0,IF('Simulador Valora'!$X$35=2,IF('Simulador Valora'!$K$24>0,'Simulador Valora'!$K$24,'Simulador Valora'!$K$41)*'Simulador Valora'!$Y$68,IF('Simulador Valora'!$X$35=1,IF('Simulador Valora'!$K$24>0,'Simulador Valora'!$K$24,'Simulador Valora'!$G$41)*'Simulador Valora'!$Y$68,0))),0)) -> 0 | V48: =F48*'Simulador Valora'!$X$59 -> 0 | AB48: 2 | AC48: 10 | AD48: 0 | AE48: 0 | AF48: 0 | AH48: 0.175 | AI48: 0 | AJ48: 0 | AK48: 0 | AL48: 0 | AM48: 0 | AN48: 0 | AP48: =IF(AJ48<=0,0,IF('Simulador Valora'!$AC$62=1,0,AJ48*'Simulador Valora'!$Y$67+IF('Simulador Valora'!$X$35=2,'Simulador Valora'!$G$49,IF('Simulador Valora'!$X$35=1,'Simulador Valora'!$K$49,0)))) -> 0 | AR48: =AL48*'Simulador Valora'!$X$59 -> 0 | AS48: 0 | AT48: 0 | AV48: 0 | AW48: 34
A49: 35 | B49: 0 | D49: 0 | F49: 0 | H49: 0 | L49: =IF('Simulador Valora'!$V$60=1,0,J49*'Simulador Valora'!$V$61*'Simulador Valora'!$W$59) -> 0 | P49: 0 | R49: =IF('Simulador Valora'!$AC$62=1,0,IFERROR(IF(B49<=0,0,B49*'Simulador Valora'!$Y$67),0)) -> 0 | T49: =IF(OR('Simulador Valora'!$AC$62=1,'Simulador Valora'!$AC$66=1),0,IFERROR(IF(B49<=0,0,IF('Simulador Valora'!$X$35=2,IF('Simulador Valora'!$K$24>0,'Simulador Valora'!$K$24,'Simulador Valora'!$K$41)*'Simulador Valora'!$Y$68,IF('Simulador Valora'!$X$35=1,IF('Simulador Valora'!$K$24>0,'Simulador Valora'!$K$24,'Simulador Valora'!$G$41)*'Simulador Valora'!$Y$68,0))),0)) -> 0 | V49: =F49*'Simulador Valora'!$X$59 -> 0 | AB49: 2 | AC49: 11 | AD49: 0 | AE49: 0 | AF49: 0 | AH49: 0.175 | AI49: 0 | AJ49: 0 | AK49: 0 | AL49: 0 | AM49: 0 | AN49: 0 | AP49: =IF(AJ49<=0,0,IF('Simulador Valora'!$AC$62=1,0,AJ49*'Simulador Valora'!$Y$67+IF('Simulador Valora'!$X$35=2,'Simulador Valora'!$G$49,IF('Simulador Valora'!$X$35=1,'Simulador Valora'!$K$49,0)))) -> 0 | AR49: =AL49*'Simulador Valora'!$X$59 -> 0 | AS49: 0 | AT49: 0 | AV49: 0 | AW49: 35
A50: 36 | B50: 0 | D50: 0 | F50: 0 | H50: 0 | L50: =IF('Simulador Valora'!$V$60=1,0,J50*'Simulador Valora'!$V$61*'Simulador Valora'!$W$59) -> 0 | P50: 0 | R50: =IF('Simulador Valora'!$AC$62=1,0,IFERROR(IF(B50<=0,0,B50*'Simulador Valora'!$Y$67),0)) -> 0 | T50: =IF(OR('Simulador Valora'!$AC$62=1,'Simulador Valora'!$AC$66=1),0,IFERROR(IF(B50<=0,0,IF('Simulador Valora'!$X$35=2,IF('Simulador Valora'!$K$24>0,'Simulador Valora'!$K$24,'Simulador Valora'!$K$41)*'Simulador Valora'!$Y$68,IF('Simulador Valora'!$X$35=1,IF('Simulador Valora'!$K$24>0,'Simulador Valora'!$K$24,'Simulador Valora'!$G$41)*'Simulador Valora'!$Y$68,0))),0)) -> 0 | V50: =F50*'Simulador Valora'!$X$59 -> 0 | AB50: 3 | AC50: 0 | AD50: 0 | AE50: 0 | AF50: 0 | AH50: 0.175 | AI50: 0 | AJ50: 0 | AK50: 0 | AL50: 0 | AM50: 0 | AN50: 0 | AP50: =IF(AJ50<=0,0,IF('Simulador Valora'!$AC$62=1,0,AJ50*'Simulador Valora'!$Y$67+IF('Simulador Valora'!$X$35=2,'Simulador Valora'!$G$49,IF('Simulador Valora'!$X$35=1,'Simulador Valora'!$K$49,0)))) -> 0 | AR50: =AL50*'Simulador Valora'!$X$59 -> 0 | AS50: 0 | AT50: 0 | AV50: 0 | AW50: 36
A51: 37 | B51: 0 | D51: 0 | F51: 0 | H51: 0 | L51: =IF('Simulador Valora'!$V$60=1,0,J51*'Simulador Valora'!$V$61*'Simulador Valora'!$W$59) -> 0 | P51: 0 | R51: =IF('Simulador Valora'!$AC$62=1,0,IFERROR(IF(B51<=0,0,B51*'Simulador Valora'!$Y$67),0)) -> 0 | T51: =IF(OR('Simulador Valora'!$AC$62=1,'Simulador Valora'!$AC$66=1),0,IFERROR(IF(B51<=0,0,IF('Simulador Valora'!$X$35=2,IF('Simulador Valora'!$K$24>0,'Simulador Valora'!$K$24,'Simulador Valora'!$K$41)*'Simulador Valora'!$Y$68,IF('Simulador Valora'!$X$35=1,IF('Simulador Valora'!$K$24>0,'Simulador Valora'!$K$24,'Simulador Valora'!$G$41)*'Simulador Valora'!$Y$68,0))),0)) -> 0 | V51: =F51*'Simulador Valora'!$X$59 -> 0 | Z51: =IF(B51<=0,0,'Simulador Valora'!$AM$48) -> 0 | AB51: 3 | AC51: 1 | AD51: 0 | AE51: 0 | AF51: 0 | AH51: =IF(AH50=$AO$3,$AO$3,IF(AH50=$AO$3,AH50,IF(AH50-0.25%<=$AO$3,$AO$3,AH50-0.25%))) -> 0.175 | AI51: 0 | AJ51: 0 | AK51: 0 | AL51: 0 | AM51: 0 | AN51: 0 | AP51: =IF(AJ51<=0,0,IF('Simulador Valora'!$AC$62=1,0,AJ51*'Simulador Valora'!$Y$67+IF('Simulador Valora'!$X$35=2,'Simulador Valora'!$G$49,IF('Simulador Valora'!$X$35=1,'Simulador Valora'!$K$49,0)))) -> 0 | AQ51: =IF(AJ51<=0,0,$AQ$27) -> 0 | AR51: =AL51*'Simulador Valora'!$X$59 -> 0 | AS51: 0 | AT51: 0 | AV51: 0 | AW51: 37
A52: 38 | B52: 0 | D52: 0 | F52: 0 | H52: 0 | L52: =IF('Simulador Valora'!$V$60=1,0,J52*'Simulador Valora'!$V$61*'Simulador Valora'!$W$59) -> 0 | P52: 0 | R52: =IF('Simulador Valora'!$AC$62=1,0,IFERROR(IF(B52<=0,0,B52*'Simulador Valora'!$Y$67),0)) -> 0 | T52: =IF(OR('Simulador Valora'!$AC$62=1,'Simulador Valora'!$AC$66=1),0,IFERROR(IF(B52<=0,0,IF('Simulador Valora'!$X$35=2,IF('Simulador Valora'!$K$24>0,'Simulador Valora'!$K$24,'Simulador Valora'!$K$41)*'Simulador Valora'!$Y$68,IF('Simulador Valora'!$X$35=1,IF('Simulador Valora'!$K$24>0,'Simulador Valora'!$K$24,'Simulador Valora'!$G$41)*'Simulador Valora'!$Y$68,0))),0)) -> 0 | V52: =F52*'Simulador Valora'!$X$59 -> 0 | AB52: 3 | AC52: 2 | AD52: 0 | AE52: 0 | AF52: 0 | AH52: =AH51 -> 0.175 | AI52: 0 | AJ52: 0 | AK52: 0 | AL52: 0 | AM52: 0 | AN52: 0 | AP52: =IF(AJ52<=0,0,IF('Simulador Valora'!$AC$62=1,0,AJ52*'Simulador Valora'!$Y$67+IF('Simulador Valora'!$X$35=2,'Simulador Valora'!$G$49,IF('Simulador Valora'!$X$35=1,'Simulador Valora'!$K$49,0)))) -> 0 | AR52: =AL52*'Simulador Valora'!$X$59 -> 0 | AS52: 0 | AT52: 0 | AV52: 0 | AW52: 38
A53: 39 | B53: 0 | D53: 0 | F53: 0 | H53: 0 | L53: =IF('Simulador Valora'!$V$60=1,0,J53*'Simulador Valora'!$V$61*'Simulador Valora'!$W$59) -> 0 | P53: 0 | R53: =IF('Simulador Valora'!$AC$62=1,0,IFERROR(IF(B53<=0,0,B53*'Simulador Valora'!$Y$67),0)) -> 0 | T53: =IF(OR('Simulador Valora'!$AC$62=1,'Simulador Valora'!$AC$66=1),0,IFERROR(IF(B53<=0,0,IF('Simulador Valora'!$X$35=2,IF('Simulador Valora'!$K$24>0,'Simulador Valora'!$K$24,'Simulador Valora'!$K$41)*'Simulador Valora'!$Y$68,IF('Simulador Valora'!$X$35=1,IF('Simulador Valora'!$K$24>0,'Simulador Valora'!$K$24,'Simulador Valora'!$G$41)*'Simulador Valora'!$Y$68,0))),0)) -> 0 | V53: =F53*'Simulador Valora'!$X$59 -> 0 | AB53: 3 | AC53: 3 | AD53: 0 | AE53: 0 | AF53: 0 | AH53: =AH52 -> 0.175 | AI53: 0 | AJ53: 0 | AK53: 0 | AL53: 0 | AM53: 0 | AN53: 0 | AP53: =IF(AJ53<=0,0,IF('Simulador Valora'!$AC$62=1,0,AJ53*'Simulador Valora'!$Y$67+IF('Simulador Valora'!$X$35=2,'Simulador Valora'!$G$49,IF('Simulador Valora'!$X$35=1,'Simulador Valora'!$K$49,0)))) -> 0 | AR53: =AL53*'Simulador Valora'!$X$59 -> 0 | AS53: 0 | AT53: 0 | AV53: 0 | AW53: 39
A54: 40 | B54: 0 | D54: 0 | F54: 0 | H54: 0 | L54: =IF('Simulador Valora'!$V$60=1,0,J54*'Simulador Valora'!$V$61*'Simulador Valora'!$W$59) -> 0 | P54: 0 | R54: =IF('Simulador Valora'!$AC$62=1,0,IFERROR(IF(B54<=0,0,B54*'Simulador Valora'!$Y$67),0)) -> 0 | T54: =IF(OR('Simulador Valora'!$AC$62=1,'Simulador Valora'!$AC$66=1),0,IFERROR(IF(B54<=0,0,IF('Simulador Valora'!$X$35=2,IF('Simulador Valora'!$K$24>0,'Simulador Valora'!$K$24,'Simulador Valora'!$K$41)*'Simulador Valora'!$Y$68,IF('Simulador Valora'!$X$35=1,IF('Simulador Valora'!$K$24>0,'Simulador Valora'!$K$24,'Simulador Valora'!$G$41)*'Simulador Valora'!$Y$68,0))),0)) -> 0 | V54: =F54*'Simulador Valora'!$X$59 -> 0 | AB54: 3 | AC54: 4 | AD54: 0 | AE54: 0 | AF54: 0 | AH54: 0.175 | AI54: 0 | AJ54: 0 | AK54: 0 | AL54: 0 | AM54: 0 | AN54: 0 | AP54: =IF(AJ54<=0,0,IF('Simulador Valora'!$AC$62=1,0,AJ54*'Simulador Valora'!$Y$67+IF('Simulador Valora'!$X$35=2,'Simulador Valora'!$G$49,IF('Simulador Valora'!$X$35=1,'Simulador Valora'!$K$49,0)))) -> 0 | AR54: =AL54*'Simulador Valora'!$X$59 -> 0 | AS54: 0 | AT54: 0 | AV54: 0 | AW54: 40
A55: 41 | B55: 0 | D55: 0 | F55: 0 | H55: 0 | L55: =IF('Simulador Valora'!$V$60=1,0,J55*'Simulador Valora'!$V$61*'Simulador Valora'!$W$59) -> 0 | P55: 0 | R55: =IF('Simulador Valora'!$AC$62=1,0,IFERROR(IF(B55<=0,0,B55*'Simulador Valora'!$Y$67),0)) -> 0 | T55: =IF(OR('Simulador Valora'!$AC$62=1,'Simulador Valora'!$AC$66=1),0,IFERROR(IF(B55<=0,0,IF('Simulador Valora'!$X$35=2,IF('Simulador Valora'!$K$24>0,'Simulador Valora'!$K$24,'Simulador Valora'!$K$41)*'Simulador Valora'!$Y$68,IF('Simulador Valora'!$X$35=1,IF('Simulador Valora'!$K$24>0,'Simulador Valora'!$K$24,'Simulador Valora'!$G$41)*'Simulador Valora'!$Y$68,0))),0)) -> 0 | V55: =F55*'Simulador Valora'!$X$59 -> 0 | AB55: 3 | AC55: 5 | AD55: 0 | AE55: 0 | AF55: 0 | AH55: 0.175 | AI55: 0 | AJ55: 0 | AK55: 0 | AL55: 0 | AM55: 0 | AN55: 0 | AP55: =IF(AJ55<=0,0,IF('Simulador Valora'!$AC$62=1,0,AJ55*'Simulador Valora'!$Y$67+IF('Simulador Valora'!$X$35=2,'Simulador Valora'!$G$49,IF('Simulador Valora'!$X$35=1,'Simulador Valora'!$K$49,0)))) -> 0 | AR55: =AL55*'Simulador Valora'!$X$59 -> 0 | AS55: 0 | AT55: 0 | AV55: 0 | AW55: 41
A56: 42 | B56: 0 | D56: 0 | F56: 0 | H56: 0 | L56: =IF('Simulador Valora'!$V$60=1,0,J56*'Simulador Valora'!$V$61*'Simulador Valora'!$W$59) -> 0 | P56: 0 | R56: =IF('Simulador Valora'!$AC$62=1,0,IFERROR(IF(B56<=0,0,B56*'Simulador Valora'!$Y$67),0)) -> 0 | T56: =IF(OR('Simulador Valora'!$AC$62=1,'Simulador Valora'!$AC$66=1),0,IFERROR(IF(B56<=0,0,IF('Simulador Valora'!$X$35=2,IF('Simulador Valora'!$K$24>0,'Simulador Valora'!$K$24,'Simulador Valora'!$K$41)*'Simulador Valora'!$Y$68,IF('Simulador Valora'!$X$35=1,IF('Simulador Valora'!$K$24>0,'Simulador Valora'!$K$24,'Simulador Valora'!$G$41)*'Simulador Valora'!$Y$68,0))),0)) -> 0 | V56: =F56*'Simulador Valora'!$X$59 -> 0 | AB56: 3 | AC56: 6 | AD56: 0 | AE56: 0 | AF56: 0 | AH56: 0.175 | AI56: 0 | AJ56: 0 | AK56: 0 | AL56: 0 | AM56: 0 | AN56: 0 | AP56: =IF(AJ56<=0,0,IF('Simulador Valora'!$AC$62=1,0,AJ56*'Simulador Valora'!$Y$67+IF('Simulador Valora'!$X$35=2,'Simulador Valora'!$G$49,IF('Simulador Valora'!$X$35=1,'Simulador Valora'!$K$49,0)))) -> 0 | AR56: =AL56*'Simulador Valora'!$X$59 -> 0 | AS56: 0 | AT56: 0 | AV56: 0 | AW56: 42
A57: 43 | B57: 0 | D57: 0 | F57: 0 | H57: 0 | L57: =IF('Simulador Valora'!$V$60=1,0,J57*'Simulador Valora'!$V$61*'Simulador Valora'!$W$59) -> 0 | P57: 0 | R57: =IF('Simulador Valora'!$AC$62=1,0,IFERROR(IF(B57<=0,0,B57*'Simulador Valora'!$Y$67),0)) -> 0 | T57: =IF(OR('Simulador Valora'!$AC$62=1,'Simulador Valora'!$AC$66=1),0,IFERROR(IF(B57<=0,0,IF('Simulador Valora'!$X$35=2,IF('Simulador Valora'!$K$24>0,'Simulador Valora'!$K$24,'Simulador Valora'!$K$41)*'Simulador Valora'!$Y$68,IF('Simulador Valora'!$X$35=1,IF('Simulador Valora'!$K$24>0,'Simulador Valora'!$K$24,'Simulador Valora'!$G$41)*'Simulador Valora'!$Y$68,0))),0)) -> 0 | V57: =F57*'Simulador Valora'!$X$59 -> 0 | AB57: 3 | AC57: 7 | AD57: 0 | AE57: 0 | AF57: 0 | AH57: 0.175 | AI57: 0 | AJ57: 0 | AK57: 0 | AL57: 0 | AM57: 0 | AN57: 0 | AP57: =IF(AJ57<=0,0,IF('Simulador Valora'!$AC$62=1,0,AJ57*'Simulador Valora'!$Y$67+IF('Simulador Valora'!$X$35=2,'Simulador Valora'!$G$49,IF('Simulador Valora'!$X$35=1,'Simulador Valora'!$K$49,0)))) -> 0 | AR57: =AL57*'Simulador Valora'!$X$59 -> 0 | AS57: 0 | AT57: 0 | AV57: 0 | AW57: 43
A58: 44 | B58: 0 | D58: 0 | F58: 0 | H58: 0 | L58: =IF('Simulador Valora'!$V$60=1,0,J58*'Simulador Valora'!$V$61*'Simulador Valora'!$W$59) -> 0 | P58: 0 | R58: =IF('Simulador Valora'!$AC$62=1,0,IFERROR(IF(B58<=0,0,B58*'Simulador Valora'!$Y$67),0)) -> 0 | T58: =IF(OR('Simulador Valora'!$AC$62=1,'Simulador Valora'!$AC$66=1),0,IFERROR(IF(B58<=0,0,IF('Simulador Valora'!$X$35=2,IF('Simulador Valora'!$K$24>0,'Simulador Valora'!$K$24,'Simulador Valora'!$K$41)*'Simulador Valora'!$Y$68,IF('Simulador Valora'!$X$35=1,IF('Simulador Valora'!$K$24>0,'Simulador Valora'!$K$24,'Simulador Valora'!$G$41)*'Simulador Valora'!$Y$68,0))),0)) -> 0 | V58: =F58*'Simulador Valora'!$X$59 -> 0 | AB58: 3 | AC58: 8 | AD58: 0 | AE58: 0 | AF58: 0 | AH58: 0.175 | AI58: 0 | AJ58: 0 | AK58: 0 | AL58: 0 | AM58: 0 | AN58: 0 | AP58: =IF(AJ58<=0,0,IF('Simulador Valora'!$AC$62=1,0,AJ58*'Simulador Valora'!$Y$67+IF('Simulador Valora'!$X$35=2,'Simulador Valora'!$G$49,IF('Simulador Valora'!$X$35=1,'Simulador Valora'!$K$49,0)))) -> 0 | AR58: =AL58*'Simulador Valora'!$X$59 -> 0 | AS58: 0 | AT58: 0 | AV58: 0 | AW58: 44
A59: 45 | B59: 0 | D59: 0 | F59: 0 | H59: 0 | L59: =IF('Simulador Valora'!$V$60=1,0,J59*'Simulador Valora'!$V$61*'Simulador Valora'!$W$59) -> 0 | P59: 0 | R59: =IF('Simulador Valora'!$AC$62=1,0,IFERROR(IF(B59<=0,0,B59*'Simulador Valora'!$Y$67),0)) -> 0 | T59: =IF(OR('Simulador Valora'!$AC$62=1,'Simulador Valora'!$AC$66=1),0,IFERROR(IF(B59<=0,0,IF('Simulador Valora'!$X$35=2,IF('Simulador Valora'!$K$24>0,'Simulador Valora'!$K$24,'Simulador Valora'!$K$41)*'Simulador Valora'!$Y$68,IF('Simulador Valora'!$X$35=1,IF('Simulador Valora'!$K$24>0,'Simulador Valora'!$K$24,'Simulador Valora'!$G$41)*'Simulador Valora'!$Y$68,0))),0)) -> 0 | V59: =F59*'Simulador Valora'!$X$59 -> 0 | AB59: 3 | AC59: 9 | AD59: 0 | AE59: 0 | AF59: 0 | AH59: 0.175 | AI59: 0 | AJ59: 0 | AK59: 0 | AL59: 0 | AM59: 0 | AN59: 0 | AP59: =IF(AJ59<=0,0,IF('Simulador Valora'!$AC$62=1,0,AJ59*'Simulador Valora'!$Y$67+IF('Simulador Valora'!$X$35=2,'Simulador Valora'!$G$49,IF('Simulador Valora'!$X$35=1,'Simulador Valora'!$K$49,0)))) -> 0 | AR59: =AL59*'Simulador Valora'!$X$59 -> 0 | AS59: 0 | AT59: 0 | AV59: 0 | AW59: 45
A60: 46 | B60: 0 | D60: 0 | F60: 0 | H60: 0 | L60: =IF('Simulador Valora'!$V$60=1,0,J60*'Simulador Valora'!$V$61*'Simulador Valora'!$W$59) -> 0 | P60: 0 | R60: =IF('Simulador Valora'!$AC$62=1,0,IFERROR(IF(B60<=0,0,B60*'Simulador Valora'!$Y$67),0)) -> 0 | T60: =IF(OR('Simulador Valora'!$AC$62=1,'Simulador Valora'!$AC$66=1),0,IFERROR(IF(B60<=0,0,IF('Simulador Valora'!$X$35=2,IF('Simulador Valora'!$K$24>0,'Simulador Valora'!$K$24,'Simulador Valora'!$K$41)*'Simulador Valora'!$Y$68,IF('Simulador Valora'!$X$35=1,IF('Simulador Valora'!$K$24>0,'Simulador Valora'!$K$24,'Simulador Valora'!$G$41)*'Simulador Valora'!$Y$68,0))),0)) -> 0 | V60: =F60*'Simulador Valora'!$X$59 -> 0 | AB60: 3 | AC60: 10 | AD60: 0 | AE60: 0 | AF60: 0 | AH60: 0.175 | AI60: 0 | AJ60: 0 | AK60: 0 | AL60: 0 | AM60: 0 | AN60: 0 | AP60: =IF(AJ60<=0,0,IF('Simulador Valora'!$AC$62=1,0,AJ60*'Simulador Valora'!$Y$67+IF('Simulador Valora'!$X$35=2,'Simulador Valora'!$G$49,IF('Simulador Valora'!$X$35=1,'Simulador Valora'!$K$49,0)))) -> 0 | AR60: =AL60*'Simulador Valora'!$X$59 -> 0 | AS60: 0 | AT60: 0 | AV60: 0 | AW60: 46
A61: 47 | B61: 0 | D61: 0 | F61: 0 | H61: 0 | L61: =IF('Simulador Valora'!$V$60=1,0,J61*'Simulador Valora'!$V$61*'Simulador Valora'!$W$59) -> 0 | P61: 0 | R61: =IF('Simulador Valora'!$AC$62=1,0,IFERROR(IF(B61<=0,0,B61*'Simulador Valora'!$Y$67),0)) -> 0 | T61: =IF(OR('Simulador Valora'!$AC$62=1,'Simulador Valora'!$AC$66=1),0,IFERROR(IF(B61<=0,0,IF('Simulador Valora'!$X$35=2,IF('Simulador Valora'!$K$24>0,'Simulador Valora'!$K$24,'Simulador Valora'!$K$41)*'Simulador Valora'!$Y$68,IF('Simulador Valora'!$X$35=1,IF('Simulador Valora'!$K$24>0,'Simulador Valora'!$K$24,'Simulador Valora'!$G$41)*'Simulador Valora'!$Y$68,0))),0)) -> 0 | V61: =F61*'Simulador Valora'!$X$59 -> 0 | AB61: 3 | AC61: 11 | AD61: 0 | AE61: 0 | AF61: 0 | AH61: 0.175 | AI61: 0 | AJ61: 0 | AK61: 0 | AL61: 0 | AM61: 0 | AN61: 0 | AP61: =IF(AJ61<=0,0,IF('Simulador Valora'!$AC$62=1,0,AJ61*'Simulador Valora'!$Y$67+IF('Simulador Valora'!$X$35=2,'Simulador Valora'!$G$49,IF('Simulador Valora'!$X$35=1,'Simulador Valora'!$K$49,0)))) -> 0 | AR61: =AL61*'Simulador Valora'!$X$59 -> 0 | AS61: 0 | AT61: 0 | AV61: 0 | AW61: 47
A62: 48 | B62: 0 | D62: 0 | F62: 0 | H62: 0 | L62: =IF('Simulador Valora'!$V$60=1,0,J62*'Simulador Valora'!$V$61*'Simulador Valora'!$W$59) -> 0 | P62: 0 | R62: =IF('Simulador Valora'!$AC$62=1,0,IFERROR(IF(B62<=0,0,B62*'Simulador Valora'!$Y$67),0)) -> 0 | T62: =IF(OR('Simulador Valora'!$AC$62=1,'Simulador Valora'!$AC$66=1),0,IFERROR(IF(B62<=0,0,IF('Simulador Valora'!$X$35=2,IF('Simulador Valora'!$K$24>0,'Simulador Valora'!$K$24,'Simulador Valora'!$K$41)*'Simulador Valora'!$Y$68,IF('Simulador Valora'!$X$35=1,IF('Simulador Valora'!$K$24>0,'Simulador Valora'!$K$24,'Simulador Valora'!$G$41)*'Simulador Valora'!$Y$68,0))),0)) -> 0 | V62: =F62*'Simulador Valora'!$X$59 -> 0 | AB62: 4 | AC62: 0 | AD62: 0 | AE62: 0 | AF62: 0 | AH62: 0.175 | AI62: 0 | AJ62: 0 | AK62: 0 | AL62: 0 | AM62: 0 | AN62: 0 | AP62: =IF(AJ62<=0,0,IF('Simulador Valora'!$AC$62=1,0,AJ62*'Simulador Valora'!$Y$67+IF('Simulador Valora'!$X$35=2,'Simulador Valora'!$G$49,IF('Simulador Valora'!$X$35=1,'Simulador Valora'!$K$49,0)))) -> 0 | AR62: =AL62*'Simulador Valora'!$X$59 -> 0 | AS62: 0 | AT62: 0 | AV62: 0 | AW62: 48
A63: 49 | B63: 0 | D63: 0 | F63: 0 | H63: 0 | L63: =IF('Simulador Valora'!$V$60=1,0,J63*'Simulador Valora'!$V$61*'Simulador Valora'!$W$59) -> 0 | P63: 0 | R63: =IF('Simulador Valora'!$AC$62=1,0,IFERROR(IF(B63<=0,0,B63*'Simulador Valora'!$Y$67),0)) -> 0 | T63: =IF(OR('Simulador Valora'!$AC$62=1,'Simulador Valora'!$AC$66=1),0,IFERROR(IF(B63<=0,0,IF('Simulador Valora'!$X$35=2,IF('Simulador Valora'!$K$24>0,'Simulador Valora'!$K$24,'Simulador Valora'!$K$41)*'Simulador Valora'!$Y$68,IF('Simulador Valora'!$X$35=1,IF('Simulador Valora'!$K$24>0,'Simulador Valora'!$K$24,'Simulador Valora'!$G$41)*'Simulador Valora'!$Y$68,0))),0)) -> 0 | V63: =F63*'Simulador Valora'!$X$59 -> 0 | Z63: =IF(B63<=0,0,'Simulador Valora'!$AM$48) -> 0 | AB63: 4 | AC63: 1 | AD63: 0 | AE63: 0 | AF63: 0 | AH63: =IF(AH62=$AO$3,$AO$3,IF(AH62=$AO$3,AH62,IF(AH62-0.25%<=$AO$3,$AO$3,AH62-0.25%))) -> 0.175 | AI63: 0 | AJ63: 0 | AK63: 0 | AL63: 0 | AM63: 0 | AN63: 0 | AP63: =IF(AJ63<=0,0,IF('Simulador Valora'!$AC$62=1,0,AJ63*'Simulador Valora'!$Y$67+IF('Simulador Valora'!$X$35=2,'Simulador Valora'!$G$49,IF('Simulador Valora'!$X$35=1,'Simulador Valora'!$K$49,0)))) -> 0 | AQ63: =IF(AJ63<=0,0,$AQ$27) -> 0 | AR63: =AL63*'Simulador Valora'!$X$59 -> 0 | AS63: 0 | AT63: 0 | AV63: 0 | AW63: 49
A64: 50 | B64: 0 | D64: 0 | F64: 0 | H64: 0 | L64: =IF('Simulador Valora'!$V$60=1,0,J64*'Simulador Valora'!$V$61*'Simulador Valora'!$W$59) -> 0 | P64: 0 | R64: =IF('Simulador Valora'!$AC$62=1,0,IFERROR(IF(B64<=0,0,B64*'Simulador Valora'!$Y$67),0)) -> 0 | T64: =IF(OR('Simulador Valora'!$AC$62=1,'Simulador Valora'!$AC$66=1),0,IFERROR(IF(B64<=0,0,IF('Simulador Valora'!$X$35=2,IF('Simulador Valora'!$K$24>0,'Simulador Valora'!$K$24,'Simulador Valora'!$K$41)*'Simulador Valora'!$Y$68,IF('Simulador Valora'!$X$35=1,IF('Simulador Valora'!$K$24>0,'Simulador Valora'!$K$24,'Simulador Valora'!$G$41)*'Simulador Valora'!$Y$68,0))),0)) -> 0 | V64: =F64*'Simulador Valora'!$X$59 -> 0 | AB64: 4 | AC64: 2 | AD64: 0 | AE64: 0 | AF64: 0 | AH64: =AH63 -> 0.175 | AI64: 0 | AJ64: 0 | AK64: 0 | AL64: 0 | AM64: 0 | AN64: 0 | AP64: =IF(AJ64<=0,0,IF('Simulador Valora'!$AC$62=1,0,AJ64*'Simulador Valora'!$Y$67+IF('Simulador Valora'!$X$35=2,'Simulador Valora'!$G$49,IF('Simulador Valora'!$X$35=1,'Simulador Valora'!$K$49,0)))) -> 0 | AR64: =AL64*'Simulador Valora'!$X$59 -> 0 | AS64: 0 | AT64: 0 | AV64: 0 | AW64: 50
A65: 51 | B65: 0 | D65: 0 | F65: 0 | H65: 0 | L65: =IF('Simulador Valora'!$V$60=1,0,J65*'Simulador Valora'!$V$61*'Simulador Valora'!$W$59) -> 0 | P65: 0 | R65: =IF('Simulador Valora'!$AC$62=1,0,IFERROR(IF(B65<=0,0,B65*'Simulador Valora'!$Y$67),0)) -> 0 | T65: =IF(OR('Simulador Valora'!$AC$62=1,'Simulador Valora'!$AC$66=1),0,IFERROR(IF(B65<=0,0,IF('Simulador Valora'!$X$35=2,IF('Simulador Valora'!$K$24>0,'Simulador Valora'!$K$24,'Simulador Valora'!$K$41)*'Simulador Valora'!$Y$68,IF('Simulador Valora'!$X$35=1,IF('Simulador Valora'!$K$24>0,'Simulador Valora'!$K$24,'Simulador Valora'!$G$41)*'Simulador Valora'!$Y$68,0))),0)) -> 0 | V65: =F65*'Simulador Valora'!$X$59 -> 0 | AB65: 4 | AC65: 3 | AD65: 0 | AE65: 0 | AF65: 0 | AH65: =AH64 -> 0.175 | AI65: 0 | AJ65: 0 | AK65: 0 | AL65: 0 | AM65: 0 | AN65: 0 | AP65: =IF(AJ65<=0,0,IF('Simulador Valora'!$AC$62=1,0,AJ65*'Simulador Valora'!$Y$67+IF('Simulador Valora'!$X$35=2,'Simulador Valora'!$G$49,IF('Simulador Valora'!$X$35=1,'Simulador Valora'!$K$49,0)))) -> 0 | AR65: =AL65*'Simulador Valora'!$X$59 -> 0 | AS65: 0 | AT65: 0 | AV65: 0 | AW65: 51
A66: 52 | B66: 0 | D66: 0 | F66: 0 | H66: 0 | L66: =IF('Simulador Valora'!$V$60=1,0,J66*'Simulador Valora'!$V$61*'Simulador Valora'!$W$59) -> 0 | P66: 0 | R66: =IF('Simulador Valora'!$AC$62=1,0,IFERROR(IF(B66<=0,0,B66*'Simulador Valora'!$Y$67),0)) -> 0 | T66: =IF(OR('Simulador Valora'!$AC$62=1,'Simulador Valora'!$AC$66=1),0,IFERROR(IF(B66<=0,0,IF('Simulador Valora'!$X$35=2,IF('Simulador Valora'!$K$24>0,'Simulador Valora'!$K$24,'Simulador Valora'!$K$41)*'Simulador Valora'!$Y$68,IF('Simulador Valora'!$X$35=1,IF('Simulador Valora'!$K$24>0,'Simulador Valora'!$K$24,'Simulador Valora'!$G$41)*'Simulador Valora'!$Y$68,0))),0)) -> 0 | V66: =F66*'Simulador Valora'!$X$59 -> 0 | AB66: 4 | AC66: 4 | AD66: 0 | AE66: 0 | AF66: 0 | AH66: 0.175 | AI66: 0 | AJ66: 0 | AK66: 0 | AL66: 0 | AM66: 0 | AN66: 0 | AP66: =IF(AJ66<=0,0,IF('Simulador Valora'!$AC$62=1,0,AJ66*'Simulador Valora'!$Y$67+IF('Simulador Valora'!$X$35=2,'Simulador Valora'!$G$49,IF('Simulador Valora'!$X$35=1,'Simulador Valora'!$K$49,0)))) -> 0 | AR66: =AL66*'Simulador Valora'!$X$59 -> 0 | AS66: 0 | AT66: 0 | AV66: 0 | AW66: 52
A67: 53 | B67: 0 | D67: 0 | F67: 0 | H67: 0 | L67: =IF('Simulador Valora'!$V$60=1,0,J67*'Simulador Valora'!$V$61*'Simulador Valora'!$W$59) -> 0 | P67: 0 | R67: =IF('Simulador Valora'!$AC$62=1,0,IFERROR(IF(B67<=0,0,B67*'Simulador Valora'!$Y$67),0)) -> 0 | T67: =IF(OR('Simulador Valora'!$AC$62=1,'Simulador Valora'!$AC$66=1),0,IFERROR(IF(B67<=0,0,IF('Simulador Valora'!$X$35=2,IF('Simulador Valora'!$K$24>0,'Simulador Valora'!$K$24,'Simulador Valora'!$K$41)*'Simulador Valora'!$Y$68,IF('Simulador Valora'!$X$35=1,IF('Simulador Valora'!$K$24>0,'Simulador Valora'!$K$24,'Simulador Valora'!$G$41)*'Simulador Valora'!$Y$68,0))),0)) -> 0 | V67: =F67*'Simulador Valora'!$X$59 -> 0 | AB67: 4 | AC67: 5 | AD67: 0 | AE67: 0 | AF67: 0 | AH67: 0.175 | AI67: 0 | AJ67: 0 | AK67: 0 | AL67: 0 | AM67: 0 | AN67: 0 | AP67: =IF(AJ67<=0,0,IF('Simulador Valora'!$AC$62=1,0,AJ67*'Simulador Valora'!$Y$67+IF('Simulador Valora'!$X$35=2,'Simulador Valora'!$G$49,IF('Simulador Valora'!$X$35=1,'Simulador Valora'!$K$49,0)))) -> 0 | AR67: =AL67*'Simulador Valora'!$X$59 -> 0 | AS67: 0 | AT67: 0 | AV67: 0 | AW67: 53
A68: 54 | B68: 0 | D68: 0 | F68: 0 | H68: 0 | L68: =IF('Simulador Valora'!$V$60=1,0,J68*'Simulador Valora'!$V$61*'Simulador Valora'!$W$59) -> 0 | P68: 0 | R68: =IF('Simulador Valora'!$AC$62=1,0,IFERROR(IF(B68<=0,0,B68*'Simulador Valora'!$Y$67),0)) -> 0 | T68: =IF(OR('Simulador Valora'!$AC$62=1,'Simulador Valora'!$AC$66=1),0,IFERROR(IF(B68<=0,0,IF('Simulador Valora'!$X$35=2,IF('Simulador Valora'!$K$24>0,'Simulador Valora'!$K$24,'Simulador Valora'!$K$41)*'Simulador Valora'!$Y$68,IF('Simulador Valora'!$X$35=1,IF('Simulador Valora'!$K$24>0,'Simulador Valora'!$K$24,'Simulador Valora'!$G$41)*'Simulador Valora'!$Y$68,0))),0)) -> 0 | V68: =F68*'Simulador Valora'!$X$59 -> 0 | AB68: 4 | AC68: 6 | AD68: 0 | AE68: 0 | AF68: 0 | AH68: 0.175 | AI68: 0 | AJ68: 0 | AK68: 0 | AL68: 0 | AM68: 0 | AN68: 0 | AP68: =IF(AJ68<=0,0,IF('Simulador Valora'!$AC$62=1,0,AJ68*'Simulador Valora'!$Y$67+IF('Simulador Valora'!$X$35=2,'Simulador Valora'!$G$49,IF('Simulador Valora'!$X$35=1,'Simulador Valora'!$K$49,0)))) -> 0 | AR68: =AL68*'Simulador Valora'!$X$59 -> 0 | AS68: 0 | AT68: 0 | AV68: 0 | AW68: 54
A69: 55 | B69: 0 | D69: 0 | F69: 0 | H69: 0 | L69: =IF('Simulador Valora'!$V$60=1,0,J69*'Simulador Valora'!$V$61*'Simulador Valora'!$W$59) -> 0 | P69: 0 | R69: =IF('Simulador Valora'!$AC$62=1,0,IFERROR(IF(B69<=0,0,B69*'Simulador Valora'!$Y$67),0)) -> 0 | T69: =IF(OR('Simulador Valora'!$AC$62=1,'Simulador Valora'!$AC$66=1),0,IFERROR(IF(B69<=0,0,IF('Simulador Valora'!$X$35=2,IF('Simulador Valora'!$K$24>0,'Simulador Valora'!$K$24,'Simulador Valora'!$K$41)*'Simulador Valora'!$Y$68,IF('Simulador Valora'!$X$35=1,IF('Simulador Valora'!$K$24>0,'Simulador Valora'!$K$24,'Simulador Valora'!$G$41)*'Simulador Valora'!$Y$68,0))),0)) -> 0 | V69: =F69*'Simulador Valora'!$X$59 -> 0 | AB69: 4 | AC69: 7 | AD69: 0 | AE69: 0 | AF69: 0 | AH69: 0.175 | AI69: 0 | AJ69: 0 | AK69: 0 | AL69: 0 | AM69: 0 | AN69: 0 | AP69: =IF(AJ69<=0,0,IF('Simulador Valora'!$AC$62=1,0,AJ69*'Simulador Valora'!$Y$67+IF('Simulador Valora'!$X$35=2,'Simulador Valora'!$G$49,IF('Simulador Valora'!$X$35=1,'Simulador Valora'!$K$49,0)))) -> 0 | AR69: =AL69*'Simulador Valora'!$X$59 -> 0 | AS69: 0 | AT69: 0 | AV69: 0 | AW69: 55
A70: 56 | B70: 0 | D70: 0 | F70: 0 | H70: 0 | L70: =IF('Simulador Valora'!$V$60=1,0,J70*'Simulador Valora'!$V$61*'Simulador Valora'!$W$59) -> 0 | P70: 0 | R70: =IF('Simulador Valora'!$AC$62=1,0,IFERROR(IF(B70<=0,0,B70*'Simulador Valora'!$Y$67),0)) -> 0 | T70: =IF(OR('Simulador Valora'!$AC$62=1,'Simulador Valora'!$AC$66=1),0,IFERROR(IF(B70<=0,0,IF('Simulador Valora'!$X$35=2,IF('Simulador Valora'!$K$24>0,'Simulador Valora'!$K$24,'Simulador Valora'!$K$41)*'Simulador Valora'!$Y$68,IF('Simulador Valora'!$X$35=1,IF('Simulador Valora'!$K$24>0,'Simulador Valora'!$K$24,'Simulador Valora'!$G$41)*'Simulador Valora'!$Y$68,0))),0)) -> 0 | V70: =F70*'Simulador Valora'!$X$59 -> 0 | AB70: 4 | AC70: 8 | AD70: 0 | AE70: 0 | AF70: 0 | AH70: 0.175 | AI70: 0 | AJ70: 0 | AK70: 0 | AL70: 0 | AM70: 0 | AN70: 0 | AP70: =IF(AJ70<=0,0,IF('Simulador Valora'!$AC$62=1,0,AJ70*'Simulador Valora'!$Y$67+IF('Simulador Valora'!$X$35=2,'Simulador Valora'!$G$49,IF('Simulador Valora'!$X$35=1,'Simulador Valora'!$K$49,0)))) -> 0 | AR70: =AL70*'Simulador Valora'!$X$59 -> 0 | AS70: 0 | AT70: 0 | AV70: 0 | AW70: 56
A71: 57 | B71: 0 | D71: 0 | F71: 0 | H71: 0 | L71: =IF('Simulador Valora'!$V$60=1,0,J71*'Simulador Valora'!$V$61*'Simulador Valora'!$W$59) -> 0 | P71: 0 | R71: =IF('Simulador Valora'!$AC$62=1,0,IFERROR(IF(B71<=0,0,B71*'Simulador Valora'!$Y$67),0)) -> 0 | T71: =IF(OR('Simulador Valora'!$AC$62=1,'Simulador Valora'!$AC$66=1),0,IFERROR(IF(B71<=0,0,IF('Simulador Valora'!$X$35=2,IF('Simulador Valora'!$K$24>0,'Simulador Valora'!$K$24,'Simulador Valora'!$K$41)*'Simulador Valora'!$Y$68,IF('Simulador Valora'!$X$35=1,IF('Simulador Valora'!$K$24>0,'Simulador Valora'!$K$24,'Simulador Valora'!$G$41)*'Simulador Valora'!$Y$68,0))),0)) -> 0 | V71: =F71*'Simulador Valora'!$X$59 -> 0 | AB71: 4 | AC71: 9 | AD71: 0 | AE71: 0 | AF71: 0 | AH71: 0.175 | AI71: 0 | AJ71: 0 | AK71: 0 | AL71: 0 | AM71: 0 | AN71: 0 | AP71: =IF(AJ71<=0,0,IF('Simulador Valora'!$AC$62=1,0,AJ71*'Simulador Valora'!$Y$67+IF('Simulador Valora'!$X$35=2,'Simulador Valora'!$G$49,IF('Simulador Valora'!$X$35=1,'Simulador Valora'!$K$49,0)))) -> 0 | AR71: =AL71*'Simulador Valora'!$X$59 -> 0 | AS71: 0 | AT71: 0 | AV71: 0 | AW71: 57
A72: 58 | B72: 0 | D72: 0 | F72: 0 | H72: 0 | L72: =IF('Simulador Valora'!$V$60=1,0,J72*'Simulador Valora'!$V$61*'Simulador Valora'!$W$59) -> 0 | P72: 0 | R72: =IF('Simulador Valora'!$AC$62=1,0,IFERROR(IF(B72<=0,0,B72*'Simulador Valora'!$Y$67),0)) -> 0 | T72: =IF(OR('Simulador Valora'!$AC$62=1,'Simulador Valora'!$AC$66=1),0,IFERROR(IF(B72<=0,0,IF('Simulador Valora'!$X$35=2,IF('Simulador Valora'!$K$24>0,'Simulador Valora'!$K$24,'Simulador Valora'!$K$41)*'Simulador Valora'!$Y$68,IF('Simulador Valora'!$X$35=1,IF('Simulador Valora'!$K$24>0,'Simulador Valora'!$K$24,'Simulador Valora'!$G$41)*'Simulador Valora'!$Y$68,0))),0)) -> 0 | V72: =F72*'Simulador Valora'!$X$59 -> 0 | AB72: 4 | AC72: 10 | AD72: 0 | AE72: 0 | AF72: 0 | AH72: 0.175 | AI72: 0 | AJ72: 0 | AK72: 0 | AL72: 0 | AM72: 0 | AN72: 0 | AP72: =IF(AJ72<=0,0,IF('Simulador Valora'!$AC$62=1,0,AJ72*'Simulador Valora'!$Y$67+IF('Simulador Valora'!$X$35=2,'Simulador Valora'!$G$49,IF('Simulador Valora'!$X$35=1,'Simulador Valora'!$K$49,0)))) -> 0 | AR72: =AL72*'Simulador Valora'!$X$59 -> 0 | AS72: 0 | AT72: 0 | AV72: 0 | AW72: 58
A73: 59 | B73: 0 | D73: 0 | F73: 0 | H73: 0 | L73: =IF('Simulador Valora'!$V$60=1,0,J73*'Simulador Valora'!$V$61*'Simulador Valora'!$W$59) -> 0 | P73: 0 | R73: =IF('Simulador Valora'!$AC$62=1,0,IFERROR(IF(B73<=0,0,B73*'Simulador Valora'!$Y$67),0)) -> 0 | T73: =IF(OR('Simulador Valora'!$AC$62=1,'Simulador Valora'!$AC$66=1),0,IFERROR(IF(B73<=0,0,IF('Simulador Valora'!$X$35=2,IF('Simulador Valora'!$K$24>0,'Simulador Valora'!$K$24,'Simulador Valora'!$K$41)*'Simulador Valora'!$Y$68,IF('Simulador Valora'!$X$35=1,IF('Simulador Valora'!$K$24>0,'Simulador Valora'!$K$24,'Simulador Valora'!$G$41)*'Simulador Valora'!$Y$68,0))),0)) -> 0 | V73: =F73*'Simulador Valora'!$X$59 -> 0 | AB73: 4 | AC73: 11 | AD73: 0 | AE73: 0 | AF73: 0 | AH73: 0.175 | AI73: 0 | AJ73: 0 | AK73: 0 | AL73: 0 | AM73: 0 | AN73: 0 | AP73: =IF(AJ73<=0,0,IF('Simulador Valora'!$AC$62=1,0,AJ73*'Simulador Valora'!$Y$67+IF('Simulador Valora'!$X$35=2,'Simulador Valora'!$G$49,IF('Simulador Valora'!$X$35=1,'Simulador Valora'!$K$49,0)))) -> 0 | AR73: =AL73*'Simulador Valora'!$X$59 -> 0 | AS73: 0 | AT73: 0 | AV73: 0 | AW73: 59
A74: 60 | B74: 0 | D74: 0 | F74: 0 | H74: 0 | L74: =IF('Simulador Valora'!$V$60=1,0,J74*'Simulador Valora'!$V$61*'Simulador Valora'!$W$59) -> 0 | P74: 0 | R74: =IF('Simulador Valora'!$AC$62=1,0,IFERROR(IF(B74<=0,0,B74*'Simulador Valora'!$Y$67),0)) -> 0 | T74: =IF(OR('Simulador Valora'!$AC$62=1,'Simulador Valora'!$AC$66=1),0,IFERROR(IF(B74<=0,0,IF('Simulador Valora'!$X$35=2,IF('Simulador Valora'!$K$24>0,'Simulador Valora'!$K$24,'Simulador Valora'!$K$41)*'Simulador Valora'!$Y$68,IF('Simulador Valora'!$X$35=1,IF('Simulador Valora'!$K$24>0,'Simulador Valora'!$K$24,'Simulador Valora'!$G$41)*'Simulador Valora'!$Y$68,0))),0)) -> 0 | V74: =F74*'Simulador Valora'!$X$59 -> 0 | AB74: 5 | AC74: 0 | AD74: 0 | AE74: 0 | AF74: 0 | AH74: 0.175 | AI74: 0 | AJ74: 0 | AK74: 0 | AL74: 0 | AM74: 0 | AN74: 0 | AP74: =IF(AJ74<=0,0,IF('Simulador Valora'!$AC$62=1,0,AJ74*'Simulador Valora'!$Y$67+IF('Simulador Valora'!$X$35=2,'Simulador Valora'!$G$49,IF('Simulador Valora'!$X$35=1,'Simulador Valora'!$K$49,0)))) -> 0 | AR74: =AL74*'Simulador Valora'!$X$59 -> 0 | AS74: 0 | AT74: 0 | AV74: 0 | AW74: 60
A75: 61 | B75: 0 | D75: 0 | F75: 0 | H75: 0 | L75: =IF('Simulador Valora'!$V$60=1,0,J75*'Simulador Valora'!$V$61*'Simulador Valora'!$W$59) -> 0 | P75: 0 | R75: =IF('Simulador Valora'!$AC$62=1,0,IFERROR(IF(B75<=0,0,B75*'Simulador Valora'!$Y$67),0)) -> 0 | T75: =IF(OR('Simulador Valora'!$AC$62=1,'Simulador Valora'!$AC$66=1),0,IFERROR(IF(B75<=0,0,IF('Simulador Valora'!$X$35=2,IF('Simulador Valora'!$K$24>0,'Simulador Valora'!$K$24,'Simulador Valora'!$K$41)*'Simulador Valora'!$Y$68,IF('Simulador Valora'!$X$35=1,IF('Simulador Valora'!$K$24>0,'Simulador Valora'!$K$24,'Simulador Valora'!$G$41)*'Simulador Valora'!$Y$68,0))),0)) -> 0 | V75: =F75*'Simulador Valora'!$X$59 -> 0 | Z75: =IF(B75<=0,0,'Simulador Valora'!$AM$48) -> 0 | AB75: 5 | AC75: 1 | AD75: 0 | AE75: 0 | AF75: 0 | AH75: =IF(AH74=$AO$3,$AO$3,IF(AH74=$AO$3,AH74,IF(AH74-0.25%<=$AO$3,$AO$3,AH74-0.25%))) -> 0.175 | AI75: 0 | AJ75: 0 | AK75: 0 | AL75: 0 | AM75: 0 | AN75: 0 | AP75: =IF(AJ75<=0,0,IF('Simulador Valora'!$AC$62=1,0,AJ75*'Simulador Valora'!$Y$67+IF('Simulador Valora'!$X$35=2,'Simulador Valora'!$G$49,IF('Simulador Valora'!$X$35=1,'Simulador Valora'!$K$49,0)))) -> 0 | AQ75: =IF(AJ75<=0,0,$AQ$27) -> 0 | AR75: =AL75*'Simulador Valora'!$X$59 -> 0 | AS75: 0 | AT75: 0 | AV75: 0 | AW75: 61
A76: 62 | B76: 0 | D76: 0 | F76: 0 | H76: 0 | L76: =IF('Simulador Valora'!$V$60=1,0,J76*'Simulador Valora'!$V$61*'Simulador Valora'!$W$59) -> 0 | P76: 0 | R76: =IF('Simulador Valora'!$AC$62=1,0,IFERROR(IF(B76<=0,0,B76*'Simulador Valora'!$Y$67),0)) -> 0 | T76: =IF(OR('Simulador Valora'!$AC$62=1,'Simulador Valora'!$AC$66=1),0,IFERROR(IF(B76<=0,0,IF('Simulador Valora'!$X$35=2,IF('Simulador Valora'!$K$24>0,'Simulador Valora'!$K$24,'Simulador Valora'!$K$41)*'Simulador Valora'!$Y$68,IF('Simulador Valora'!$X$35=1,IF('Simulador Valora'!$K$24>0,'Simulador Valora'!$K$24,'Simulador Valora'!$G$41)*'Simulador Valora'!$Y$68,0))),0)) -> 0 | V76: =F76*'Simulador Valora'!$X$59 -> 0 | AB76: 5 | AC76: 2 | AD76: 0 | AE76: 0 | AF76: 0 | AH76: =AH75 -> 0.175 | AI76: 0 | AJ76: 0 | AK76: 0 | AL76: 0 | AM76: 0 | AN76: 0 | AP76: =IF(AJ76<=0,0,IF('Simulador Valora'!$AC$62=1,0,AJ76*'Simulador Valora'!$Y$67+IF('Simulador Valora'!$X$35=2,'Simulador Valora'!$G$49,IF('Simulador Valora'!$X$35=1,'Simulador Valora'!$K$49,0)))) -> 0 | AR76: =AL76*'Simulador Valora'!$X$59 -> 0 | AS76: 0 | AT76: 0 | AV76: 0 | AW76: 62
A77: 63 | B77: 0 | D77: 0 | F77: 0 | H77: 0 | L77: =IF('Simulador Valora'!$V$60=1,0,J77*'Simulador Valora'!$V$61*'Simulador Valora'!$W$59) -> 0 | P77: 0 | R77: =IF('Simulador Valora'!$AC$62=1,0,IFERROR(IF(B77<=0,0,B77*'Simulador Valora'!$Y$67),0)) -> 0 | T77: =IF(OR('Simulador Valora'!$AC$62=1,'Simulador Valora'!$AC$66=1),0,IFERROR(IF(B77<=0,0,IF('Simulador Valora'!$X$35=2,IF('Simulador Valora'!$K$24>0,'Simulador Valora'!$K$24,'Simulador Valora'!$K$41)*'Simulador Valora'!$Y$68,IF('Simulador Valora'!$X$35=1,IF('Simulador Valora'!$K$24>0,'Simulador Valora'!$K$24,'Simulador Valora'!$G$41)*'Simulador Valora'!$Y$68,0))),0)) -> 0 | V77: =F77*'Simulador Valora'!$X$59 -> 0 | AB77: 5 | AC77: 3 | AD77: 0 | AE77: 0 | AF77: 0 | AH77: =AH76 -> 0.175 | AI77: 0 | AJ77: 0 | AK77: 0 | AL77: 0 | AM77: 0 | AN77: 0 | AP77: =IF(AJ77<=0,0,IF('Simulador Valora'!$AC$62=1,0,AJ77*'Simulador Valora'!$Y$67+IF('Simulador Valora'!$X$35=2,'Simulador Valora'!$G$49,IF('Simulador Valora'!$X$35=1,'Simulador Valora'!$K$49,0)))) -> 0 | AR77: =AL77*'Simulador Valora'!$X$59 -> 0 | AS77: 0 | AT77: 0 | AV77: 0 | AW77: 63
A78: 64 | B78: 0 | D78: 0 | F78: 0 | H78: 0 | L78: =IF('Simulador Valora'!$V$60=1,0,J78*'Simulador Valora'!$V$61*'Simulador Valora'!$W$59) -> 0 | P78: 0 | R78: =IF('Simulador Valora'!$AC$62=1,0,IFERROR(IF(B78<=0,0,B78*'Simulador Valora'!$Y$67),0)) -> 0 | T78: =IF(OR('Simulador Valora'!$AC$62=1,'Simulador Valora'!$AC$66=1),0,IFERROR(IF(B78<=0,0,IF('Simulador Valora'!$X$35=2,IF('Simulador Valora'!$K$24>0,'Simulador Valora'!$K$24,'Simulador Valora'!$K$41)*'Simulador Valora'!$Y$68,IF('Simulador Valora'!$X$35=1,IF('Simulador Valora'!$K$24>0,'Simulador Valora'!$K$24,'Simulador Valora'!$G$41)*'Simulador Valora'!$Y$68,0))),0)) -> 0 | V78: =F78*'Simulador Valora'!$X$59 -> 0 | AB78: 5 | AC78: 4 | AD78: 0 | AE78: 0 | AF78: 0 | AH78: 0.175 | AI78: 0 | AJ78: 0 | AK78: 0 | AL78: 0 | AM78: 0 | AN78: 0 | AP78: =IF(AJ78<=0,0,IF('Simulador Valora'!$AC$62=1,0,AJ78*'Simulador Valora'!$Y$67+IF('Simulador Valora'!$X$35=2,'Simulador Valora'!$G$49,IF('Simulador Valora'!$X$35=1,'Simulador Valora'!$K$49,0)))) -> 0 | AR78: =AL78*'Simulador Valora'!$X$59 -> 0 | AS78: 0 | AT78: 0 | AV78: 0 | AW78: 64
A79: 65 | B79: 0 | D79: 0 | F79: 0 | H79: 0 | L79: =IF('Simulador Valora'!$V$60=1,0,J79*'Simulador Valora'!$V$61*'Simulador Valora'!$W$59) -> 0 | P79: 0 | R79: =IF('Simulador Valora'!$AC$62=1,0,IFERROR(IF(B79<=0,0,B79*'Simulador Valora'!$Y$67),0)) -> 0 | T79: =IF(OR('Simulador Valora'!$AC$62=1,'Simulador Valora'!$AC$66=1),0,IFERROR(IF(B79<=0,0,IF('Simulador Valora'!$X$35=2,IF('Simulador Valora'!$K$24>0,'Simulador Valora'!$K$24,'Simulador Valora'!$K$41)*'Simulador Valora'!$Y$68,IF('Simulador Valora'!$X$35=1,IF('Simulador Valora'!$K$24>0,'Simulador Valora'!$K$24,'Simulador Valora'!$G$41)*'Simulador Valora'!$Y$68,0))),0)) -> 0 | V79: =F79*'Simulador Valora'!$X$59 -> 0 | AB79: 5 | AC79: 5 | AD79: 0 | AE79: 0 | AF79: 0 | AH79: 0.175 | AI79: 0 | AJ79: 0 | AK79: 0 | AL79: 0 | AM79: =+AK79-AL79 -> 0 | AN79: =+AJ79-AM79 -> 0 | AP79: =IF(AJ79<=0,0,IF('Simulador Valora'!$AC$62=1,0,AJ79*'Simulador Valora'!$Y$67+IF('Simulador Valora'!$X$35=2,'Simulador Valora'!$G$49,IF('Simulador Valora'!$X$35=1,'Simulador Valora'!$K$49,0)))) -> 0 | AR79: =AL79*'Simulador Valora'!$X$59 -> 0 | AS79: 0 | AT79: 0 | AV79: 0 | AW79: 65
A80: 66 | B80: 0 | D80: 0 | F80: =IFERROR(IF(B80=0,0,N80/360*AV80*B80),0) -> 0 | H80: 0 | L80: =IF('Simulador Valora'!$V$60=1,0,J80*'Simulador Valora'!$V$61*'Simulador Valora'!$W$59) -> 0 | N80: =IF(B80=0,"",AH80) ->  | P80: =B80-H80-J80+L80 -> 0 | R80: =IF('Simulador Valora'!$AC$62=1,0,IFERROR(IF(B80<=0,0,B80*'Simulador Valora'!$Y$67),0)) -> 0 | T80: =IF(OR('Simulador Valora'!$AC$62=1,'Simulador Valora'!$AC$66=1),0,IFERROR(IF(B80<=0,0,IF('Simulador Valora'!$X$35=2,IF('Simulador Valora'!$K$24>0,'Simulador Valora'!$K$24,'Simulador Valora'!$K$41)*'Simulador Valora'!$Y$68,IF('Simulador Valora'!$X$35=1,IF('Simulador Valora'!$K$24>0,'Simulador Valora'!$K$24,'Simulador Valora'!$G$41)*'Simulador Valora'!$Y$68,0))),0)) -> 0 | V80: =F80*'Simulador Valora'!$X$59 -> 0 | X80: =IF(B80<=0,"",(D80+J80+R80+V80+T80)) ->  | AB80: 5 | AC80: 6 | AD80: =+IF(P80<=0,IF(P79>0,+A80,0),0) -> 0 | AE80: =+IF(AD80>0,+AB80,0) -> 0 | AF80: =+IF(AD80>0,+AC80,0) -> 0 | AG80: =X80 ->  | AH80: 0.175 | AI80: =IFERROR(AK80/AJ80,0) -> 0 | AJ80: 0 | AK80: =IFERROR((IF(AJ80+AL80-AK79<0, AJ80+AL80, AK79*(1+AQ80))),0) -> 0 | AL80: =IFERROR((AO80/360*AV80*AJ80),0) -> 0 | AM80: 0 | AN80: 0 | AO80: =IF(AJ80=0,"",AH80) ->  | AP80: =IF(AJ80<=0,0,IF('Simulador Valora'!$AC$62=1,0,AJ80*'Simulador Valora'!$Y$67+IF('Simulador Valora'!$X$35=2,'Simulador Valora'!$G$49,IF('Simulador Valora'!$X$35=1,'Simulador Valora'!$K$49,0)))) -> 0 | AR80: =AL80*'Simulador Valora'!$X$59 -> 0 | AS80: =AL80+AM80+AP80 -> 0 | AT80: =IFERROR(IF(AK80<=0.01,0,AT79-1),0) -> 0 | AV80: =IFERROR(DAY(DATE(YEAR(AU80),MONTH(AU80)+1,0)),0) -> 0 | AW80: 66
A81: 67 | B81: =IF(P80<=0,0,P80) -> 0 | D81: =IF(B81+F81-D80<=0,B81+F81,IF(J80=0,D80*(1+Z81),IF($AS$2=2,B81*AI81,D80*(1+Z81)))) -> 0 | F81: 0 | H81: =D81-F81 -> 0 | L81: =IF('Simulador Valora'!$V$60=1,0,J81*'Simulador Valora'!$V$61*'Simulador Valora'!$W$59) -> 0 | P81: 0 | R81: =IF('Simulador Valora'!$AC$62=1,0,IFERROR(IF(B81<=0,0,B81*'Simulador Valora'!$Y$67),0)) -> 0 | T81: =IF(OR('Simulador Valora'!$AC$62=1,'Simulador Valora'!$AC$66=1),0,IFERROR(IF(B81<=0,0,IF('Simulador Valora'!$X$35=2,IF('Simulador Valora'!$K$24>0,'Simulador Valora'!$K$24,'Simulador Valora'!$K$41)*'Simulador Valora'!$Y$68,IF('Simulador Valora'!$X$35=1,IF('Simulador Valora'!$K$24>0,'Simulador Valora'!$K$24,'Simulador Valora'!$G$41)*'Simulador Valora'!$Y$68,0))),0)) -> 0 | V81: =F81*'Simulador Valora'!$X$59 -> 0 | AB81: 5 | AC81: 7 | AD81: 0 | AE81: 0 | AF81: 0 | AH81: 0.175 | AI81: 0 | AJ81: =AN80 -> 0 | AK81: 0 | AL81: 0 | AM81: 0 | AN81: 0 | AP81: =IF(AJ81<=0,0,IF('Simulador Valora'!$AC$62=1,0,AJ81*'Simulador Valora'!$Y$67+IF('Simulador Valora'!$X$35=2,'Simulador Valora'!$G$49,IF('Simulador Valora'!$X$35=1,'Simulador Valora'!$K$49,0)))) -> 0 | AR81: =AL81*'Simulador Valora'!$X$59 -> 0 | AS81: 0 | AT81: 0 | AU81: =IF(AJ81=0,"",DATE(YEAR(AU80),MONTH(AU80)+1,1)) ->  | AV81: 0 | AW81: 67
A82: 68 | B82: 0 | D82: 0 | F82: 0 | H82: 0 | L82: =IF('Simulador Valora'!$V$60=1,0,J82*'Simulador Valora'!$V$61*'Simulador Valora'!$W$59) -> 0 | P82: 0 | R82: =IF('Simulador Valora'!$AC$62=1,0,IFERROR(IF(B82<=0,0,B82*'Simulador Valora'!$Y$67),0)) -> 0 | T82: =IF(OR('Simulador Valora'!$AC$62=1,'Simulador Valora'!$AC$66=1),0,IFERROR(IF(B82<=0,0,IF('Simulador Valora'!$X$35=2,IF('Simulador Valora'!$K$24>0,'Simulador Valora'!$K$24,'Simulador Valora'!$K$41)*'Simulador Valora'!$Y$68,IF('Simulador Valora'!$X$35=1,IF('Simulador Valora'!$K$24>0,'Simulador Valora'!$K$24,'Simulador Valora'!$G$41)*'Simulador Valora'!$Y$68,0))),0)) -> 0 | V82: =F82*'Simulador Valora'!$X$59 -> 0 | AB82: 5 | AC82: 8 | AD82: 0 | AE82: 0 | AF82: 0 | AH82: 0.175 | AI82: 0 | AJ82: 0 | AK82: 0 | AL82: 0 | AM82: 0 | AN82: 0 | AP82: =IF(AJ82<=0,0,IF('Simulador Valora'!$AC$62=1,0,AJ82*'Simulador Valora'!$Y$67+IF('Simulador Valora'!$X$35=2,'Simulador Valora'!$G$49,IF('Simulador Valora'!$X$35=1,'Simulador Valora'!$K$49,0)))) -> 0 | AR82: =AL82*'Simulador Valora'!$X$59 -> 0 | AS82: 0 | AT82: 0 | AV82: 0 | AW82: 68
A83: 69 | B83: 0 | D83: 0 | F83: 0 | H83: 0 | L83: =IF('Simulador Valora'!$V$60=1,0,J83*'Simulador Valora'!$V$61*'Simulador Valora'!$W$59) -> 0 | P83: 0 | R83: =IF('Simulador Valora'!$AC$62=1,0,IFERROR(IF(B83<=0,0,B83*'Simulador Valora'!$Y$67),0)) -> 0 | T83: =IF(OR('Simulador Valora'!$AC$62=1,'Simulador Valora'!$AC$66=1),0,IFERROR(IF(B83<=0,0,IF('Simulador Valora'!$X$35=2,IF('Simulador Valora'!$K$24>0,'Simulador Valora'!$K$24,'Simulador Valora'!$K$41)*'Simulador Valora'!$Y$68,IF('Simulador Valora'!$X$35=1,IF('Simulador Valora'!$K$24>0,'Simulador Valora'!$K$24,'Simulador Valora'!$G$41)*'Simulador Valora'!$Y$68,0))),0)) -> 0 | V83: =F83*'Simulador Valora'!$X$59 -> 0 | AB83: 5 | AC83: 9 | AD83: 0 | AE83: 0 | AF83: 0 | AH83: 0.175 | AI83: 0 | AJ83: 0 | AK83: 0 | AL83: 0 | AM83: 0 | AN83: 0 | AP83: =IF(AJ83<=0,0,IF('Simulador Valora'!$AC$62=1,0,AJ83*'Simulador Valora'!$Y$67+IF('Simulador Valora'!$X$35=2,'Simulador Valora'!$G$49,IF('Simulador Valora'!$X$35=1,'Simulador Valora'!$K$49,0)))) -> 0 | AR83: =AL83*'Simulador Valora'!$X$59 -> 0 | AS83: 0 | AT83: 0 | AV83: 0 | AW83: 69
A84: 70 | B84: 0 | D84: 0 | F84: 0 | H84: 0 | L84: =IF('Simulador Valora'!$V$60=1,0,J84*'Simulador Valora'!$V$61*'Simulador Valora'!$W$59) -> 0 | P84: 0 | R84: =IF('Simulador Valora'!$AC$62=1,0,IFERROR(IF(B84<=0,0,B84*'Simulador Valora'!$Y$67),0)) -> 0 | T84: =IF(OR('Simulador Valora'!$AC$62=1,'Simulador Valora'!$AC$66=1),0,IFERROR(IF(B84<=0,0,IF('Simulador Valora'!$X$35=2,IF('Simulador Valora'!$K$24>0,'Simulador Valora'!$K$24,'Simulador Valora'!$K$41)*'Simulador Valora'!$Y$68,IF('Simulador Valora'!$X$35=1,IF('Simulador Valora'!$K$24>0,'Simulador Valora'!$K$24,'Simulador Valora'!$G$41)*'Simulador Valora'!$Y$68,0))),0)) -> 0 | V84: =F84*'Simulador Valora'!$X$59 -> 0 | AB84: 5 | AC84: 10 | AD84: 0 | AE84: 0 | AF84: 0 | AH84: 0.175 | AI84: 0 | AJ84: 0 | AK84: 0 | AL84: 0 | AM84: 0 | AN84: 0 | AP84: =IF(AJ84<=0,0,IF('Simulador Valora'!$AC$62=1,0,AJ84*'Simulador Valora'!$Y$67+IF('Simulador Valora'!$X$35=2,'Simulador Valora'!$G$49,IF('Simulador Valora'!$X$35=1,'Simulador Valora'!$K$49,0)))) -> 0 | AR84: =AL84*'Simulador Valora'!$X$59 -> 0 | AS84: 0 | AT84: 0 | AV84: 0 | AW84: 70
A85: 71 | B85: 0 | D85: 0 | F85: 0 | H85: 0 | L85: =IF('Simulador Valora'!$V$60=1,0,J85*'Simulador Valora'!$V$61*'Simulador Valora'!$W$59) -> 0 | P85: 0 | R85: =IF('Simulador Valora'!$AC$62=1,0,IFERROR(IF(B85<=0,0,B85*'Simulador Valora'!$Y$67),0)) -> 0 | T85: =IF(OR('Simulador Valora'!$AC$62=1,'Simulador Valora'!$AC$66=1),0,IFERROR(IF(B85<=0,0,IF('Simulador Valora'!$X$35=2,IF('Simulador Valora'!$K$24>0,'Simulador Valora'!$K$24,'Simulador Valora'!$K$41)*'Simulador Valora'!$Y$68,IF('Simulador Valora'!$X$35=1,IF('Simulador Valora'!$K$24>0,'Simulador Valora'!$K$24,'Simulador Valora'!$G$41)*'Simulador Valora'!$Y$68,0))),0)) -> 0 | V85: =F85*'Simulador Valora'!$X$59 -> 0 | AB85: 5 | AC85: 11 | AD85: 0 | AE85: 0 | AF85: 0 | AH85: 0.175 | AI85: 0 | AJ85: 0 | AK85: 0 | AL85: 0 | AM85: 0 | AN85: 0 | AP85: =IF(AJ85<=0,0,IF('Simulador Valora'!$AC$62=1,0,AJ85*'Simulador Valora'!$Y$67+IF('Simulador Valora'!$X$35=2,'Simulador Valora'!$G$49,IF('Simulador Valora'!$X$35=1,'Simulador Valora'!$K$49,0)))) -> 0 | AR85: =AL85*'Simulador Valora'!$X$59 -> 0 | AS85: 0 | AT85: 0 | AV85: 0 | AW85: 71
A86: 72 | B86: 0 | D86: 0 | F86: 0 | H86: 0 | L86: =IF('Simulador Valora'!$V$60=1,0,J86*'Simulador Valora'!$V$61*'Simulador Valora'!$W$59) -> 0 | P86: 0 | R86: =IF('Simulador Valora'!$AC$62=1,0,IFERROR(IF(B86<=0,0,B86*'Simulador Valora'!$Y$67),0)) -> 0 | T86: =IF(OR('Simulador Valora'!$AC$62=1,'Simulador Valora'!$AC$66=1),0,IFERROR(IF(B86<=0,0,IF('Simulador Valora'!$X$35=2,IF('Simulador Valora'!$K$24>0,'Simulador Valora'!$K$24,'Simulador Valora'!$K$41)*'Simulador Valora'!$Y$68,IF('Simulador Valora'!$X$35=1,IF('Simulador Valora'!$K$24>0,'Simulador Valora'!$K$24,'Simulador Valora'!$G$41)*'Simulador Valora'!$Y$68,0))),0)) -> 0 | V86: =F86*'Simulador Valora'!$X$59 -> 0 | AB86: 6 | AC86: 0 | AD86: 0 | AE86: 0 | AF86: 0 | AH86: 0.175 | AI86: 0 | AJ86: 0 | AK86: 0 | AL86: 0 | AM86: 0 | AN86: 0 | AP86: =IF(AJ86<=0,0,IF('Simulador Valora'!$AC$62=1,0,AJ86*'Simulador Valora'!$Y$67+IF('Simulador Valora'!$X$35=2,'Simulador Valora'!$G$49,IF('Simulador Valora'!$X$35=1,'Simulador Valora'!$K$49,0)))) -> 0 | AR86: =AL86*'Simulador Valora'!$X$59 -> 0 | AS86: 0 | AT86: 0 | AV86: 0 | AW86: 72
A87: 73 | B87: 0 | D87: 0 | F87: 0 | H87: 0 | L87: =IF('Simulador Valora'!$V$60=1,0,J87*'Simulador Valora'!$V$61*'Simulador Valora'!$W$59) -> 0 | P87: 0 | R87: =IF('Simulador Valora'!$AC$62=1,0,IFERROR(IF(B87<=0,0,B87*'Simulador Valora'!$Y$67),0)) -> 0 | T87: =IF(OR('Simulador Valora'!$AC$62=1,'Simulador Valora'!$AC$66=1),0,IFERROR(IF(B87<=0,0,IF('Simulador Valora'!$X$35=2,IF('Simulador Valora'!$K$24>0,'Simulador Valora'!$K$24,'Simulador Valora'!$K$41)*'Simulador Valora'!$Y$68,IF('Simulador Valora'!$X$35=1,IF('Simulador Valora'!$K$24>0,'Simulador Valora'!$K$24,'Simulador Valora'!$G$41)*'Simulador Valora'!$Y$68,0))),0)) -> 0 | V87: =F87*'Simulador Valora'!$X$59 -> 0 | Z87: =IF(B87<=0,0,'Simulador Valora'!$AM$48) -> 0 | AB87: 6 | AC87: 1 | AD87: 0 | AE87: 0 | AF87: 0 | AH87: =IF(AH86=$AO$3,$AO$3,IF(AH86=$AO$3,AH86,IF(AH86-0.25%<=$AO$3,$AO$3,AH86-0.25%))) -> 0.175 | AI87: 0 | AJ87: 0 | AK87: 0 | AL87: 0 | AM87: 0 | AN87: 0 | AP87: =IF(AJ87<=0,0,IF('Simulador Valora'!$AC$62=1,0,AJ87*'Simulador Valora'!$Y$67+IF('Simulador Valora'!$X$35=2,'Simulador Valora'!$G$49,IF('Simulador Valora'!$X$35=1,'Simulador Valora'!$K$49,0)))) -> 0 | AQ87: =IF(AJ87<=0,0,$AQ$27) -> 0 | AR87: =AL87*'Simulador Valora'!$X$59 -> 0 | AS87: 0 | AT87: 0 | AV87: 0 | AW87: 73
A88: 74 | B88: 0 | D88: 0 | F88: 0 | H88: 0 | L88: =IF('Simulador Valora'!$V$60=1,0,J88*'Simulador Valora'!$V$61*'Simulador Valora'!$W$59) -> 0 | P88: 0 | R88: =IF('Simulador Valora'!$AC$62=1,0,IFERROR(IF(B88<=0,0,B88*'Simulador Valora'!$Y$67),0)) -> 0 | T88: =IF(OR('Simulador Valora'!$AC$62=1,'Simulador Valora'!$AC$66=1),0,IFERROR(IF(B88<=0,0,IF('Simulador Valora'!$X$35=2,IF('Simulador Valora'!$K$24>0,'Simulador Valora'!$K$24,'Simulador Valora'!$K$41)*'Simulador Valora'!$Y$68,IF('Simulador Valora'!$X$35=1,IF('Simulador Valora'!$K$24>0,'Simulador Valora'!$K$24,'Simulador Valora'!$G$41)*'Simulador Valora'!$Y$68,0))),0)) -> 0 | V88: =F88*'Simulador Valora'!$X$59 -> 0 | AB88: 6 | AC88: 2 | AD88: 0 | AE88: 0 | AF88: 0 | AH88: =AH87 -> 0.175 | AI88: 0 | AJ88: 0 | AK88: 0 | AL88: 0 | AM88: 0 | AN88: 0 | AP88: =IF(AJ88<=0,0,IF('Simulador Valora'!$AC$62=1,0,AJ88*'Simulador Valora'!$Y$67+IF('Simulador Valora'!$X$35=2,'Simulador Valora'!$G$49,IF('Simulador Valora'!$X$35=1,'Simulador Valora'!$K$49,0)))) -> 0 | AR88: =AL88*'Simulador Valora'!$X$59 -> 0 | AS88: 0 | AT88: 0 | AV88: 0 | AW88: 74
A89: 75 | B89: 0 | D89: 0 | F89: 0 | H89: 0 | L89: =IF('Simulador Valora'!$V$60=1,0,J89*'Simulador Valora'!$V$61*'Simulador Valora'!$W$59) -> 0 | P89: 0 | R89: =IF('Simulador Valora'!$AC$62=1,0,IFERROR(IF(B89<=0,0,B89*'Simulador Valora'!$Y$67),0)) -> 0 | T89: =IF(OR('Simulador Valora'!$AC$62=1,'Simulador Valora'!$AC$66=1),0,IFERROR(IF(B89<=0,0,IF('Simulador Valora'!$X$35=2,IF('Simulador Valora'!$K$24>0,'Simulador Valora'!$K$24,'Simulador Valora'!$K$41)*'Simulador Valora'!$Y$68,IF('Simulador Valora'!$X$35=1,IF('Simulador Valora'!$K$24>0,'Simulador Valora'!$K$24,'Simulador Valora'!$G$41)*'Simulador Valora'!$Y$68,0))),0)) -> 0 | V89: =F89*'Simulador Valora'!$X$59 -> 0 | AB89: 6 | AC89: 3 | AD89: 0 | AE89: 0 | AF89: 0 | AH89: =AH88 -> 0.175 | AI89: 0 | AJ89: 0 | AK89: 0 | AL89: 0 | AM89: 0 | AN89: 0 | AP89: =IF(AJ89<=0,0,IF('Simulador Valora'!$AC$62=1,0,AJ89*'Simulador Valora'!$Y$67+IF('Simulador Valora'!$X$35=2,'Simulador Valora'!$G$49,IF('Simulador Valora'!$X$35=1,'Simulador Valora'!$K$49,0)))) -> 0 | AR89: =AL89*'Simulador Valora'!$X$59 -> 0 | AS89: 0 | AT89: 0 | AV89: 0 | AW89: 75
A90: 76 | B90: 0 | D90: 0 | F90: 0 | H90: 0 | L90: =IF('Simulador Valora'!$V$60=1,0,J90*'Simulador Valora'!$V$61*'Simulador Valora'!$W$59) -> 0 | P90: 0 | R90: =IF('Simulador Valora'!$AC$62=1,0,IFERROR(IF(B90<=0,0,B90*'Simulador Valora'!$Y$67),0)) -> 0 | T90: =IF(OR('Simulador Valora'!$AC$62=1,'Simulador Valora'!$AC$66=1),0,IFERROR(IF(B90<=0,0,IF('Simulador Valora'!$X$35=2,IF('Simulador Valora'!$K$24>0,'Simulador Valora'!$K$24,'Simulador Valora'!$K$41)*'Simulador Valora'!$Y$68,IF('Simulador Valora'!$X$35=1,IF('Simulador Valora'!$K$24>0,'Simulador Valora'!$K$24,'Simulador Valora'!$G$41)*'Simulador Valora'!$Y$68,0))),0)) -> 0 | V90: =F90*'Simulador Valora'!$X$59 -> 0 | AB90: 6 | AC90: 4 | AD90: 0 | AE90: 0 | AF90: 0 | AH90: 0.175 | AI90: 0 | AJ90: 0 | AK90: 0 | AL90: 0 | AM90: 0 | AN90: 0 | AP90: =IF(AJ90<=0,0,IF('Simulador Valora'!$AC$62=1,0,AJ90*'Simulador Valora'!$Y$67+IF('Simulador Valora'!$X$35=2,'Simulador Valora'!$G$49,IF('Simulador Valora'!$X$35=1,'Simulador Valora'!$K$49,0)))) -> 0 | AR90: =AL90*'Simulador Valora'!$X$59 -> 0 | AS90: 0 | AT90: 0 | AV90: 0 | AW90: 76
A91: 77 | B91: 0 | D91: 0 | F91: 0 | H91: 0 | L91: =IF('Simulador Valora'!$V$60=1,0,J91*'Simulador Valora'!$V$61*'Simulador Valora'!$W$59) -> 0 | P91: 0 | R91: =IF('Simulador Valora'!$AC$62=1,0,IFERROR(IF(B91<=0,0,B91*'Simulador Valora'!$Y$67),0)) -> 0 | T91: =IF(OR('Simulador Valora'!$AC$62=1,'Simulador Valora'!$AC$66=1),0,IFERROR(IF(B91<=0,0,IF('Simulador Valora'!$X$35=2,IF('Simulador Valora'!$K$24>0,'Simulador Valora'!$K$24,'Simulador Valora'!$K$41)*'Simulador Valora'!$Y$68,IF('Simulador Valora'!$X$35=1,IF('Simulador Valora'!$K$24>0,'Simulador Valora'!$K$24,'Simulador Valora'!$G$41)*'Simulador Valora'!$Y$68,0))),0)) -> 0 | V91: =F91*'Simulador Valora'!$X$59 -> 0 | AB91: 6 | AC91: 5 | AD91: 0 | AE91: 0 | AF91: 0 | AH91: 0.175 | AI91: 0 | AJ91: 0 | AK91: 0 | AL91: 0 | AM91: 0 | AN91: 0 | AP91: =IF(AJ91<=0,0,IF('Simulador Valora'!$AC$62=1,0,AJ91*'Simulador Valora'!$Y$67+IF('Simulador Valora'!$X$35=2,'Simulador Valora'!$G$49,IF('Simulador Valora'!$X$35=1,'Simulador Valora'!$K$49,0)))) -> 0 | AR91: =AL91*'Simulador Valora'!$X$59 -> 0 | AS91: 0 | AT91: 0 | AV91: 0 | AW91: 77
A92: 78 | B92: 0 | D92: 0 | F92: 0 | H92: 0 | L92: =IF('Simulador Valora'!$V$60=1,0,J92*'Simulador Valora'!$V$61*'Simulador Valora'!$W$59) -> 0 | P92: 0 | R92: =IF('Simulador Valora'!$AC$62=1,0,IFERROR(IF(B92<=0,0,B92*'Simulador Valora'!$Y$67),0)) -> 0 | T92: =IF(OR('Simulador Valora'!$AC$62=1,'Simulador Valora'!$AC$66=1),0,IFERROR(IF(B92<=0,0,IF('Simulador Valora'!$X$35=2,IF('Simulador Valora'!$K$24>0,'Simulador Valora'!$K$24,'Simulador Valora'!$K$41)*'Simulador Valora'!$Y$68,IF('Simulador Valora'!$X$35=1,IF('Simulador Valora'!$K$24>0,'Simulador Valora'!$K$24,'Simulador Valora'!$G$41)*'Simulador Valora'!$Y$68,0))),0)) -> 0 | V92: =F92*'Simulador Valora'!$X$59 -> 0 | AB92: 6 | AC92: 6 | AD92: 0 | AE92: 0 | AF92: 0 | AH92: 0.175 | AI92: 0 | AJ92: 0 | AK92: 0 | AL92: 0 | AM92: 0 | AN92: 0 | AP92: =IF(AJ92<=0,0,IF('Simulador Valora'!$AC$62=1,0,AJ92*'Simulador Valora'!$Y$67+IF('Simulador Valora'!$X$35=2,'Simulador Valora'!$G$49,IF('Simulador Valora'!$X$35=1,'Simulador Valora'!$K$49,0)))) -> 0 | AR92: =AL92*'Simulador Valora'!$X$59 -> 0 | AS92: 0 | AT92: 0 | AV92: 0 | AW92: 78
A93: 79 | B93: 0 | D93: 0 | F93: 0 | H93: 0 | L93: =IF('Simulador Valora'!$V$60=1,0,J93*'Simulador Valora'!$V$61*'Simulador Valora'!$W$59) -> 0 | P93: 0 | R93: =IF('Simulador Valora'!$AC$62=1,0,IFERROR(IF(B93<=0,0,B93*'Simulador Valora'!$Y$67),0)) -> 0 | T93: =IF(OR('Simulador Valora'!$AC$62=1,'Simulador Valora'!$AC$66=1),0,IFERROR(IF(B93<=0,0,IF('Simulador Valora'!$X$35=2,IF('Simulador Valora'!$K$24>0,'Simulador Valora'!$K$24,'Simulador Valora'!$K$41)*'Simulador Valora'!$Y$68,IF('Simulador Valora'!$X$35=1,IF('Simulador Valora'!$K$24>0,'Simulador Valora'!$K$24,'Simulador Valora'!$G$41)*'Simulador Valora'!$Y$68,0))),0)) -> 0 | V93: =F93*'Simulador Valora'!$X$59 -> 0 | AB93: 6 | AC93: 7 | AD93: 0 | AE93: 0 | AF93: 0 | AH93: 0.175 | AI93: 0 | AJ93: 0 | AK93: 0 | AL93: 0 | AM93: 0 | AN93: 0 | AP93: =IF(AJ93<=0,0,IF('Simulador Valora'!$AC$62=1,0,AJ93*'Simulador Valora'!$Y$67+IF('Simulador Valora'!$X$35=2,'Simulador Valora'!$G$49,IF('Simulador Valora'!$X$35=1,'Simulador Valora'!$K$49,0)))) -> 0 | AR93: =AL93*'Simulador Valora'!$X$59 -> 0 | AS93: 0 | AT93: 0 | AV93: 0 | AW93: 79
A94: 80 | B94: 0 | D94: 0 | F94: 0 | H94: 0 | L94: =IF('Simulador Valora'!$V$60=1,0,J94*'Simulador Valora'!$V$61*'Simulador Valora'!$W$59) -> 0 | P94: 0 | R94: =IF('Simulador Valora'!$AC$62=1,0,IFERROR(IF(B94<=0,0,B94*'Simulador Valora'!$Y$67),0)) -> 0 | T94: =IF(OR('Simulador Valora'!$AC$62=1,'Simulador Valora'!$AC$66=1),0,IFERROR(IF(B94<=0,0,IF('Simulador Valora'!$X$35=2,IF('Simulador Valora'!$K$24>0,'Simulador Valora'!$K$24,'Simulador Valora'!$K$41)*'Simulador Valora'!$Y$68,IF('Simulador Valora'!$X$35=1,IF('Simulador Valora'!$K$24>0,'Simulador Valora'!$K$24,'Simulador Valora'!$G$41)*'Simulador Valora'!$Y$68,0))),0)) -> 0 | V94: =F94*'Simulador Valora'!$X$59 -> 0 | AB94: 6 | AC94: 8 | AD94: 0 | AE94: 0 | AF94: 0 | AH94: 0.175 | AI94: 0 | AJ94: 0 | AK94: 0 | AL94: 0 | AM94: 0 | AN94: 0 | AP94: =IF(AJ94<=0,0,IF('Simulador Valora'!$AC$62=1,0,AJ94*'Simulador Valora'!$Y$67+IF('Simulador Valora'!$X$35=2,'Simulador Valora'!$G$49,IF('Simulador Valora'!$X$35=1,'Simulador Valora'!$K$49,0)))) -> 0 | AR94: =AL94*'Simulador Valora'!$X$59 -> 0 | AS94: 0 | AT94: 0 | AV94: 0 | AW94: 80
A95: 81 | B95: 0 | D95: 0 | F95: 0 | H95: 0 | L95: =IF('Simulador Valora'!$V$60=1,0,J95*'Simulador Valora'!$V$61*'Simulador Valora'!$W$59) -> 0 | P95: 0 | R95: =IF('Simulador Valora'!$AC$62=1,0,IFERROR(IF(B95<=0,0,B95*'Simulador Valora'!$Y$67),0)) -> 0 | T95: =IF(OR('Simulador Valora'!$AC$62=1,'Simulador Valora'!$AC$66=1),0,IFERROR(IF(B95<=0,0,IF('Simulador Valora'!$X$35=2,IF('Simulador Valora'!$K$24>0,'Simulador Valora'!$K$24,'Simulador Valora'!$K$41)*'Simulador Valora'!$Y$68,IF('Simulador Valora'!$X$35=1,IF('Simulador Valora'!$K$24>0,'Simulador Valora'!$K$24,'Simulador Valora'!$G$41)*'Simulador Valora'!$Y$68,0))),0)) -> 0 | V95: =F95*'Simulador Valora'!$X$59 -> 0 | AB95: 6 | AC95: 9 | AD95: 0 | AE95: 0 | AF95: 0 | AH95: 0.175 | AI95: 0 | AJ95: 0 | AK95: 0 | AL95: 0 | AM95: 0 | AN95: 0 | AP95: =IF(AJ95<=0,0,IF('Simulador Valora'!$AC$62=1,0,AJ95*'Simulador Valora'!$Y$67+IF('Simulador Valora'!$X$35=2,'Simulador Valora'!$G$49,IF('Simulador Valora'!$X$35=1,'Simulador Valora'!$K$49,0)))) -> 0 | AR95: =AL95*'Simulador Valora'!$X$59 -> 0 | AS95: 0 | AT95: 0 | AV95: 0 | AW95: 81
A96: 82 | B96: 0 | D96: 0 | F96: 0 | H96: 0 | L96: =IF('Simulador Valora'!$V$60=1,0,J96*'Simulador Valora'!$V$61*'Simulador Valora'!$W$59) -> 0 | P96: 0 | R96: =IF('Simulador Valora'!$AC$62=1,0,IFERROR(IF(B96<=0,0,B96*'Simulador Valora'!$Y$67),0)) -> 0 | T96: =IF(OR('Simulador Valora'!$AC$62=1,'Simulador Valora'!$AC$66=1),0,IFERROR(IF(B96<=0,0,IF('Simulador Valora'!$X$35=2,IF('Simulador Valora'!$K$24>0,'Simulador Valora'!$K$24,'Simulador Valora'!$K$41)*'Simulador Valora'!$Y$68,IF('Simulador Valora'!$X$35=1,IF('Simulador Valora'!$K$24>0,'Simulador Valora'!$K$24,'Simulador Valora'!$G$41)*'Simulador Valora'!$Y$68,0))),0)) -> 0 | V96: =F96*'Simulador Valora'!$X$59 -> 0 | AB96: 6 | AC96: 10 | AD96: 0 | AE96: 0 | AF96: 0 | AH96: 0.175 | AI96: 0 | AJ96: 0 | AK96: 0 | AL96: 0 | AM96: 0 | AN96: 0 | AP96: =IF(AJ96<=0,0,IF('Simulador Valora'!$AC$62=1,0,AJ96*'Simulador Valora'!$Y$67+IF('Simulador Valora'!$X$35=2,'Simulador Valora'!$G$49,IF('Simulador Valora'!$X$35=1,'Simulador Valora'!$K$49,0)))) -> 0 | AR96: =AL96*'Simulador Valora'!$X$59 -> 0 | AS96: 0 | AT96: 0 | AV96: 0 | AW96: 82
A97: 83 | B97: 0 | D97: 0 | F97: 0 | H97: 0 | L97: =IF('Simulador Valora'!$V$60=1,0,J97*'Simulador Valora'!$V$61*'Simulador Valora'!$W$59) -> 0 | P97: 0 | R97: =IF('Simulador Valora'!$AC$62=1,0,IFERROR(IF(B97<=0,0,B97*'Simulador Valora'!$Y$67),0)) -> 0 | T97: =IF(OR('Simulador Valora'!$AC$62=1,'Simulador Valora'!$AC$66=1),0,IFERROR(IF(B97<=0,0,IF('Simulador Valora'!$X$35=2,IF('Simulador Valora'!$K$24>0,'Simulador Valora'!$K$24,'Simulador Valora'!$K$41)*'Simulador Valora'!$Y$68,IF('Simulador Valora'!$X$35=1,IF('Simulador Valora'!$K$24>0,'Simulador Valora'!$K$24,'Simulador Valora'!$G$41)*'Simulador Valora'!$Y$68,0))),0)) -> 0 | V97: =F97*'Simulador Valora'!$X$59 -> 0 | AB97: 6 | AC97: 11 | AD97: 0 | AE97: 0 | AF97: 0 | AH97: 0.175 | AI97: 0 | AJ97: 0 | AK97: 0 | AL97: 0 | AM97: 0 | AN97: 0 | AP97: =IF(AJ97<=0,0,IF('Simulador Valora'!$AC$62=1,0,AJ97*'Simulador Valora'!$Y$67+IF('Simulador Valora'!$X$35=2,'Simulador Valora'!$G$49,IF('Simulador Valora'!$X$35=1,'Simulador Valora'!$K$49,0)))) -> 0 | AR97: =AL97*'Simulador Valora'!$X$59 -> 0 | AS97: 0 | AT97: 0 | AV97: 0 | AW97: 83
A98: 84 | B98: 0 | D98: 0 | F98: 0 | H98: 0 | L98: =IF('Simulador Valora'!$V$60=1,0,J98*'Simulador Valora'!$V$61*'Simulador Valora'!$W$59) -> 0 | P98: 0 | R98: =IF('Simulador Valora'!$AC$62=1,0,IFERROR(IF(B98<=0,0,B98*'Simulador Valora'!$Y$67),0)) -> 0 | T98: =IF(OR('Simulador Valora'!$AC$62=1,'Simulador Valora'!$AC$66=1),0,IFERROR(IF(B98<=0,0,IF('Simulador Valora'!$X$35=2,IF('Simulador Valora'!$K$24>0,'Simulador Valora'!$K$24,'Simulador Valora'!$K$41)*'Simulador Valora'!$Y$68,IF('Simulador Valora'!$X$35=1,IF('Simulador Valora'!$K$24>0,'Simulador Valora'!$K$24,'Simulador Valora'!$G$41)*'Simulador Valora'!$Y$68,0))),0)) -> 0 | V98: =F98*'Simulador Valora'!$X$59 -> 0 | AB98: 7 | AC98: 0 | AD98: 0 | AE98: 0 | AF98: 0 | AH98: 0.175 | AI98: 0 | AJ98: 0 | AK98: 0 | AL98: 0 | AM98: 0 | AN98: 0 | AP98: =IF(AJ98<=0,0,IF('Simulador Valora'!$AC$62=1,0,AJ98*'Simulador Valora'!$Y$67+IF('Simulador Valora'!$X$35=2,'Simulador Valora'!$G$49,IF('Simulador Valora'!$X$35=1,'Simulador Valora'!$K$49,0)))) -> 0 | AR98: =AL98*'Simulador Valora'!$X$59 -> 0 | AS98: 0 | AT98: 0 | AV98: 0 | AW98: 84
A99: 85 | B99: 0 | D99: 0 | F99: 0 | H99: 0 | L99: =IF('Simulador Valora'!$V$60=1,0,J99*'Simulador Valora'!$V$61*'Simulador Valora'!$W$59) -> 0 | P99: 0 | R99: =IF('Simulador Valora'!$AC$62=1,0,IFERROR(IF(B99<=0,0,B99*'Simulador Valora'!$Y$67),0)) -> 0 | T99: =IF(OR('Simulador Valora'!$AC$62=1,'Simulador Valora'!$AC$66=1),0,IFERROR(IF(B99<=0,0,IF('Simulador Valora'!$X$35=2,IF('Simulador Valora'!$K$24>0,'Simulador Valora'!$K$24,'Simulador Valora'!$K$41)*'Simulador Valora'!$Y$68,IF('Simulador Valora'!$X$35=1,IF('Simulador Valora'!$K$24>0,'Simulador Valora'!$K$24,'Simulador Valora'!$G$41)*'Simulador Valora'!$Y$68,0))),0)) -> 0 | V99: =F99*'Simulador Valora'!$X$59 -> 0 | Z99: =IF(B99<=0,0,'Simulador Valora'!$AM$48) -> 0 | AB99: 7 | AC99: 1 | AD99: 0 | AE99: 0 | AF99: 0 | AH99: =IF(AH98=$AO$3,$AO$3,IF(AH98=$AO$3,AH98,IF(AH98-0.25%<=$AO$3,$AO$3,AH98-0.25%))) -> 0.175 | AI99: 0 | AJ99: 0 | AK99: 0 | AL99: 0 | AM99: 0 | AN99: 0 | AP99: =IF(AJ99<=0,0,IF('Simulador Valora'!$AC$62=1,0,AJ99*'Simulador Valora'!$Y$67+IF('Simulador Valora'!$X$35=2,'Simulador Valora'!$G$49,IF('Simulador Valora'!$X$35=1,'Simulador Valora'!$K$49,0)))) -> 0 | AQ99: =IF(AJ99<=0,0,$AQ$27) -> 0 | AR99: =AL99*'Simulador Valora'!$X$59 -> 0 | AS99: 0 | AT99: 0 | AV99: 0 | AW99: 85
A100: 86 | B100: 0 | D100: 0 | F100: 0 | H100: 0 | L100: =IF('Simulador Valora'!$V$60=1,0,J100*'Simulador Valora'!$V$61*'Simulador Valora'!$W$59) -> 0 | P100: 0 | R100: =IF('Simulador Valora'!$AC$62=1,0,IFERROR(IF(B100<=0,0,B100*'Simulador Valora'!$Y$67),0)) -> 0 | T100: =IF(OR('Simulador Valora'!$AC$62=1,'Simulador Valora'!$AC$66=1),0,IFERROR(IF(B100<=0,0,IF('Simulador Valora'!$X$35=2,IF('Simulador Valora'!$K$24>0,'Simulador Valora'!$K$24,'Simulador Valora'!$K$41)*'Simulador Valora'!$Y$68,IF('Simulador Valora'!$X$35=1,IF('Simulador Valora'!$K$24>0,'Simulador Valora'!$K$24,'Simulador Valora'!$G$41)*'Simulador Valora'!$Y$68,0))),0)) -> 0 | V100: =F100*'Simulador Valora'!$X$59 -> 0 | AB100: 7 | AC100: 2 | AD100: 0 | AE100: 0 | AF100: 0 | AH100: =AH99 -> 0.175 | AI100: 0 | AJ100: 0 | AK100: 0 | AL100: 0 | AM100: 0 | AN100: 0 | AP100: =IF(AJ100<=0,0,IF('Simulador Valora'!$AC$62=1,0,AJ100*'Simulador Valora'!$Y$67+IF('Simulador Valora'!$X$35=2,'Simulador Valora'!$G$49,IF('Simulador Valora'!$X$35=1,'Simulador Valora'!$K$49,0)))) -> 0 | AR100: =AL100*'Simulador Valora'!$X$59 -> 0 | AS100: 0 | AT100: 0 | AV100: 0 | AW100: 86
A101: 87 | B101: 0 | D101: 0 | F101: 0 | H101: 0 | L101: =IF('Simulador Valora'!$V$60=1,0,J101*'Simulador Valora'!$V$61*'Simulador Valora'!$W$59) -> 0 | P101: 0 | R101: =IF('Simulador Valora'!$AC$62=1,0,IFERROR(IF(B101<=0,0,B101*'Simulador Valora'!$Y$67),0)) -> 0 | T101: =IF(OR('Simulador Valora'!$AC$62=1,'Simulador Valora'!$AC$66=1),0,IFERROR(IF(B101<=0,0,IF('Simulador Valora'!$X$35=2,IF('Simulador Valora'!$K$24>0,'Simulador Valora'!$K$24,'Simulador Valora'!$K$41)*'Simulador Valora'!$Y$68,IF('Simulador Valora'!$X$35=1,IF('Simulador Valora'!$K$24>0,'Simulador Valora'!$K$24,'Simulador Valora'!$G$41)*'Simulador Valora'!$Y$68,0))),0)) -> 0 | V101: =F101*'Simulador Valora'!$X$59 -> 0 | AB101: 7 | AC101: 3 | AD101: 0 | AE101: 0 | AF101: 0 | AH101: =AH100 -> 0.175 | AI101: 0 | AJ101: 0 | AK101: 0 | AL101: 0 | AM101: 0 | AN101: 0 | AP101: =IF(AJ101<=0,0,IF('Simulador Valora'!$AC$62=1,0,AJ101*'Simulador Valora'!$Y$67+IF('Simulador Valora'!$X$35=2,'Simulador Valora'!$G$49,IF('Simulador Valora'!$X$35=1,'Simulador Valora'!$K$49,0)))) -> 0 | AR101: =AL101*'Simulador Valora'!$X$59 -> 0 | AS101: 0 | AT101: 0 | AV101: 0 | AW101: 87
A102: 88 | B102: 0 | D102: 0 | F102: 0 | H102: 0 | L102: =IF('Simulador Valora'!$V$60=1,0,J102*'Simulador Valora'!$V$61*'Simulador Valora'!$W$59) -> 0 | P102: 0 | R102: =IF('Simulador Valora'!$AC$62=1,0,IFERROR(IF(B102<=0,0,B102*'Simulador Valora'!$Y$67),0)) -> 0 | T102: =IF(OR('Simulador Valora'!$AC$62=1,'Simulador Valora'!$AC$66=1),0,IFERROR(IF(B102<=0,0,IF('Simulador Valora'!$X$35=2,IF('Simulador Valora'!$K$24>0,'Simulador Valora'!$K$24,'Simulador Valora'!$K$41)*'Simulador Valora'!$Y$68,IF('Simulador Valora'!$X$35=1,IF('Simulador Valora'!$K$24>0,'Simulador Valora'!$K$24,'Simulador Valora'!$G$41)*'Simulador Valora'!$Y$68,0))),0)) -> 0 | V102: =F102*'Simulador Valora'!$X$59 -> 0 | AB102: 7 | AC102: 4 | AD102: 0 | AE102: 0 | AF102: 0 | AH102: 0.175 | AI102: 0 | AJ102: 0 | AK102: 0 | AL102: 0 | AM102: 0 | AN102: 0 | AP102: =IF(AJ102<=0,0,IF('Simulador Valora'!$AC$62=1,0,AJ102*'Simulador Valora'!$Y$67+IF('Simulador Valora'!$X$35=2,'Simulador Valora'!$G$49,IF('Simulador Valora'!$X$35=1,'Simulador Valora'!$K$49,0)))) -> 0 | AR102: =AL102*'Simulador Valora'!$X$59 -> 0 | AS102: 0 | AT102: 0 | AV102: 0 | AW102: 88
A103: 89 | B103: 0 | D103: 0 | F103: 0 | H103: 0 | L103: =IF('Simulador Valora'!$V$60=1,0,J103*'Simulador Valora'!$V$61*'Simulador Valora'!$W$59) -> 0 | P103: 0 | R103: =IF('Simulador Valora'!$AC$62=1,0,IFERROR(IF(B103<=0,0,B103*'Simulador Valora'!$Y$67),0)) -> 0 | T103: =IF(OR('Simulador Valora'!$AC$62=1,'Simulador Valora'!$AC$66=1),0,IFERROR(IF(B103<=0,0,IF('Simulador Valora'!$X$35=2,IF('Simulador Valora'!$K$24>0,'Simulador Valora'!$K$24,'Simulador Valora'!$K$41)*'Simulador Valora'!$Y$68,IF('Simulador Valora'!$X$35=1,IF('Simulador Valora'!$K$24>0,'Simulador Valora'!$K$24,'Simulador Valora'!$G$41)*'Simulador Valora'!$Y$68,0))),0)) -> 0 | V103: =F103*'Simulador Valora'!$X$59 -> 0 | AB103: 7 | AC103: 5 | AD103: 0 | AE103: 0 | AF103: 0 | AH103: 0.175 | AI103: 0 | AJ103: 0 | AK103: 0 | AL103: 0 | AM103: 0 | AN103: 0 | AP103: =IF(AJ103<=0,0,IF('Simulador Valora'!$AC$62=1,0,AJ103*'Simulador Valora'!$Y$67+IF('Simulador Valora'!$X$35=2,'Simulador Valora'!$G$49,IF('Simulador Valora'!$X$35=1,'Simulador Valora'!$K$49,0)))) -> 0 | AR103: =AL103*'Simulador Valora'!$X$59 -> 0 | AS103: 0 | AT103: 0 | AV103: 0 | AW103: 89
A104: 90 | B104: 0 | D104: 0 | F104: 0 | H104: 0 | L104: =IF('Simulador Valora'!$V$60=1,0,J104*'Simulador Valora'!$V$61*'Simulador Valora'!$W$59) -> 0 | P104: 0 | R104: =IF('Simulador Valora'!$AC$62=1,0,IFERROR(IF(B104<=0,0,B104*'Simulador Valora'!$Y$67),0)) -> 0 | T104: =IF(OR('Simulador Valora'!$AC$62=1,'Simulador Valora'!$AC$66=1),0,IFERROR(IF(B104<=0,0,IF('Simulador Valora'!$X$35=2,IF('Simulador Valora'!$K$24>0,'Simulador Valora'!$K$24,'Simulador Valora'!$K$41)*'Simulador Valora'!$Y$68,IF('Simulador Valora'!$X$35=1,IF('Simulador Valora'!$K$24>0,'Simulador Valora'!$K$24,'Simulador Valora'!$G$41)*'Simulador Valora'!$Y$68,0))),0)) -> 0 | V104: =F104*'Simulador Valora'!$X$59 -> 0 | AB104: 7 | AC104: 6 | AD104: 0 | AE104: 0 | AF104: 0 | AH104: 0.175 | AI104: 0 | AJ104: 0 | AK104: 0 | AL104: 0 | AM104: 0 | AN104: 0 | AP104: =IF(AJ104<=0,0,IF('Simulador Valora'!$AC$62=1,0,AJ104*'Simulador Valora'!$Y$67+IF('Simulador Valora'!$X$35=2,'Simulador Valora'!$G$49,IF('Simulador Valora'!$X$35=1,'Simulador Valora'!$K$49,0)))) -> 0 | AR104: =AL104*'Simulador Valora'!$X$59 -> 0 | AS104: 0 | AT104: 0 | AV104: 0 | AW104: 90
A105: 91 | B105: 0 | D105: 0 | F105: 0 | H105: 0 | L105: =IF('Simulador Valora'!$V$60=1,0,J105*'Simulador Valora'!$V$61*'Simulador Valora'!$W$59) -> 0 | P105: 0 | R105: =IF('Simulador Valora'!$AC$62=1,0,IFERROR(IF(B105<=0,0,B105*'Simulador Valora'!$Y$67),0)) -> 0 | T105: =IF(OR('Simulador Valora'!$AC$62=1,'Simulador Valora'!$AC$66=1),0,IFERROR(IF(B105<=0,0,IF('Simulador Valora'!$X$35=2,IF('Simulador Valora'!$K$24>0,'Simulador Valora'!$K$24,'Simulador Valora'!$K$41)*'Simulador Valora'!$Y$68,IF('Simulador Valora'!$X$35=1,IF('Simulador Valora'!$K$24>0,'Simulador Valora'!$K$24,'Simulador Valora'!$G$41)*'Simulador Valora'!$Y$68,0))),0)) -> 0 | V105: =F105*'Simulador Valora'!$X$59 -> 0 | AB105: 7 | AC105: 7 | AD105: 0 | AE105: 0 | AF105: 0 | AH105: 0.175 | AI105: 0 | AJ105: 0 | AK105: 0 | AL105: 0 | AM105: 0 | AN105: 0 | AP105: =IF(AJ105<=0,0,IF('Simulador Valora'!$AC$62=1,0,AJ105*'Simulador Valora'!$Y$67+IF('Simulador Valora'!$X$35=2,'Simulador Valora'!$G$49,IF('Simulador Valora'!$X$35=1,'Simulador Valora'!$K$49,0)))) -> 0 | AR105: =AL105*'Simulador Valora'!$X$59 -> 0 | AS105: 0 | AT105: 0 | AV105: 0 | AW105: 91
A106: 92 | B106: 0 | D106: 0 | F106: 0 | H106: 0 | L106: =IF('Simulador Valora'!$V$60=1,0,J106*'Simulador Valora'!$V$61*'Simulador Valora'!$W$59) -> 0 | P106: 0 | R106: =IF('Simulador Valora'!$AC$62=1,0,IFERROR(IF(B106<=0,0,B106*'Simulador Valora'!$Y$67),0)) -> 0 | T106: =IF(OR('Simulador Valora'!$AC$62=1,'Simulador Valora'!$AC$66=1),0,IFERROR(IF(B106<=0,0,IF('Simulador Valora'!$X$35=2,IF('Simulador Valora'!$K$24>0,'Simulador Valora'!$K$24,'Simulador Valora'!$K$41)*'Simulador Valora'!$Y$68,IF('Simulador Valora'!$X$35=1,IF('Simulador Valora'!$K$24>0,'Simulador Valora'!$K$24,'Simulador Valora'!$G$41)*'Simulador Valora'!$Y$68,0))),0)) -> 0 | V106: =F106*'Simulador Valora'!$X$59 -> 0 | AB106: 7 | AC106: 8 | AD106: 0 | AE106: 0 | AF106: 0 | AH106: 0.175 | AI106: 0 | AJ106: 0 | AK106: 0 | AL106: 0 | AM106: 0 | AN106: 0 | AP106: =IF(AJ106<=0,0,IF('Simulador Valora'!$AC$62=1,0,AJ106*'Simulador Valora'!$Y$67+IF('Simulador Valora'!$X$35=2,'Simulador Valora'!$G$49,IF('Simulador Valora'!$X$35=1,'Simulador Valora'!$K$49,0)))) -> 0 | AR106: =AL106*'Simulador Valora'!$X$59 -> 0 | AS106: 0 | AT106: 0 | AV106: 0 | AW106: 92
A107: 93 | B107: 0 | D107: 0 | F107: 0 | H107: 0 | L107: =IF('Simulador Valora'!$V$60=1,0,J107*'Simulador Valora'!$V$61*'Simulador Valora'!$W$59) -> 0 | P107: 0 | R107: =IF('Simulador Valora'!$AC$62=1,0,IFERROR(IF(B107<=0,0,B107*'Simulador Valora'!$Y$67),0)) -> 0 | T107: =IF(OR('Simulador Valora'!$AC$62=1,'Simulador Valora'!$AC$66=1),0,IFERROR(IF(B107<=0,0,IF('Simulador Valora'!$X$35=2,IF('Simulador Valora'!$K$24>0,'Simulador Valora'!$K$24,'Simulador Valora'!$K$41)*'Simulador Valora'!$Y$68,IF('Simulador Valora'!$X$35=1,IF('Simulador Valora'!$K$24>0,'Simulador Valora'!$K$24,'Simulador Valora'!$G$41)*'Simulador Valora'!$Y$68,0))),0)) -> 0 | V107: =F107*'Simulador Valora'!$X$59 -> 0 | AB107: 7 | AC107: 9 | AD107: 0 | AE107: 0 | AF107: 0 | AH107: 0.175 | AI107: 0 | AJ107: 0 | AK107: 0 | AL107: 0 | AM107: 0 | AN107: 0 | AP107: =IF(AJ107<=0,0,IF('Simulador Valora'!$AC$62=1,0,AJ107*'Simulador Valora'!$Y$67+IF('Simulador Valora'!$X$35=2,'Simulador Valora'!$G$49,IF('Simulador Valora'!$X$35=1,'Simulador Valora'!$K$49,0)))) -> 0 | AR107: =AL107*'Simulador Valora'!$X$59 -> 0 | AS107: 0 | AT107: 0 | AV107: 0 | AW107: 93
A108: 94 | B108: 0 | D108: 0 | F108: 0 | H108: 0 | L108: =IF('Simulador Valora'!$V$60=1,0,J108*'Simulador Valora'!$V$61*'Simulador Valora'!$W$59) -> 0 | P108: 0 | R108: =IF('Simulador Valora'!$AC$62=1,0,IFERROR(IF(B108<=0,0,B108*'Simulador Valora'!$Y$67),0)) -> 0 | T108: =IF(OR('Simulador Valora'!$AC$62=1,'Simulador Valora'!$AC$66=1),0,IFERROR(IF(B108<=0,0,IF('Simulador Valora'!$X$35=2,IF('Simulador Valora'!$K$24>0,'Simulador Valora'!$K$24,'Simulador Valora'!$K$41)*'Simulador Valora'!$Y$68,IF('Simulador Valora'!$X$35=1,IF('Simulador Valora'!$K$24>0,'Simulador Valora'!$K$24,'Simulador Valora'!$G$41)*'Simulador Valora'!$Y$68,0))),0)) -> 0 | V108: =F108*'Simulador Valora'!$X$59 -> 0 | AB108: 7 | AC108: 10 | AD108: 0 | AE108: 0 | AF108: 0 | AH108: 0.175 | AI108: 0 | AJ108: 0 | AK108: 0 | AL108: 0 | AM108: 0 | AN108: 0 | AP108: =IF(AJ108<=0,0,IF('Simulador Valora'!$AC$62=1,0,AJ108*'Simulador Valora'!$Y$67+IF('Simulador Valora'!$X$35=2,'Simulador Valora'!$G$49,IF('Simulador Valora'!$X$35=1,'Simulador Valora'!$K$49,0)))) -> 0 | AR108: =AL108*'Simulador Valora'!$X$59 -> 0 | AS108: 0 | AT108: 0 | AV108: 0 | AW108: 94
A109: 95 | B109: 0 | D109: 0 | F109: 0 | H109: 0 | L109: =IF('Simulador Valora'!$V$60=1,0,J109*'Simulador Valora'!$V$61*'Simulador Valora'!$W$59) -> 0 | P109: 0 | R109: =IF('Simulador Valora'!$AC$62=1,0,IFERROR(IF(B109<=0,0,B109*'Simulador Valora'!$Y$67),0)) -> 0 | T109: =IF(OR('Simulador Valora'!$AC$62=1,'Simulador Valora'!$AC$66=1),0,IFERROR(IF(B109<=0,0,IF('Simulador Valora'!$X$35=2,IF('Simulador Valora'!$K$24>0,'Simulador Valora'!$K$24,'Simulador Valora'!$K$41)*'Simulador Valora'!$Y$68,IF('Simulador Valora'!$X$35=1,IF('Simulador Valora'!$K$24>0,'Simulador Valora'!$K$24,'Simulador Valora'!$G$41)*'Simulador Valora'!$Y$68,0))),0)) -> 0 | V109: =F109*'Simulador Valora'!$X$59 -> 0 | AB109: 7 | AC109: 11 | AD109: 0 | AE109: 0 | AF109: 0 | AH109: 0.175 | AI109: 0 | AJ109: 0 | AK109: 0 | AL109: 0 | AM109: 0 | AN109: 0 | AP109: =IF(AJ109<=0,0,IF('Simulador Valora'!$AC$62=1,0,AJ109*'Simulador Valora'!$Y$67+IF('Simulador Valora'!$X$35=2,'Simulador Valora'!$G$49,IF('Simulador Valora'!$X$35=1,'Simulador Valora'!$K$49,0)))) -> 0 | AR109: =AL109*'Simulador Valora'!$X$59 -> 0 | AS109: 0 | AT109: 0 | AV109: 0 | AW109: 95
A110: 96 | B110: 0 | D110: 0 | F110: 0 | H110: 0 | L110: =IF('Simulador Valora'!$V$60=1,0,J110*'Simulador Valora'!$V$61*'Simulador Valora'!$W$59) -> 0 | P110: 0 | R110: =IF('Simulador Valora'!$AC$62=1,0,IFERROR(IF(B110<=0,0,B110*'Simulador Valora'!$Y$67),0)) -> 0 | T110: =IF(OR('Simulador Valora'!$AC$62=1,'Simulador Valora'!$AC$66=1),0,IFERROR(IF(B110<=0,0,IF('Simulador Valora'!$X$35=2,IF('Simulador Valora'!$K$24>0,'Simulador Valora'!$K$24,'Simulador Valora'!$K$41)*'Simulador Valora'!$Y$68,IF('Simulador Valora'!$X$35=1,IF('Simulador Valora'!$K$24>0,'Simulador Valora'!$K$24,'Simulador Valora'!$G$41)*'Simulador Valora'!$Y$68,0))),0)) -> 0 | V110: =F110*'Simulador Valora'!$X$59 -> 0 | AB110: 8 | AC110: 0 | AD110: 0 | AE110: 0 | AF110: 0 | AH110: 0.175 | AI110: 0 | AJ110: 0 | AK110: 0 | AL110: 0 | AM110: 0 | AN110: 0 | AP110: =IF(AJ110<=0,0,IF('Simulador Valora'!$AC$62=1,0,AJ110*'Simulador Valora'!$Y$67+IF('Simulador Valora'!$X$35=2,'Simulador Valora'!$G$49,IF('Simulador Valora'!$X$35=1,'Simulador Valora'!$K$49,0)))) -> 0 | AR110: =AL110*'Simulador Valora'!$X$59 -> 0 | AS110: 0 | AT110: 0 | AV110: 0 | AW110: 96
A111: 97 | B111: 0 | D111: 0 | F111: 0 | H111: 0 | L111: =IF('Simulador Valora'!$V$60=1,0,J111*'Simulador Valora'!$V$61*'Simulador Valora'!$W$59) -> 0 | P111: 0 | R111: =IF('Simulador Valora'!$AC$62=1,0,IFERROR(IF(B111<=0,0,B111*'Simulador Valora'!$Y$67),0)) -> 0 | T111: =IF(OR('Simulador Valora'!$AC$62=1,'Simulador Valora'!$AC$66=1),0,IFERROR(IF(B111<=0,0,IF('Simulador Valora'!$X$35=2,IF('Simulador Valora'!$K$24>0,'Simulador Valora'!$K$24,'Simulador Valora'!$K$41)*'Simulador Valora'!$Y$68,IF('Simulador Valora'!$X$35=1,IF('Simulador Valora'!$K$24>0,'Simulador Valora'!$K$24,'Simulador Valora'!$G$41)*'Simulador Valora'!$Y$68,0))),0)) -> 0 | V111: =F111*'Simulador Valora'!$X$59 -> 0 | Z111: =IF(B111<=0,0,'Simulador Valora'!$AM$48) -> 0 | AB111: 8 | AC111: 1 | AD111: 0 | AE111: 0 | AF111: 0 | AH111: =IF(AH110=$AO$3,$AO$3,IF(AH110=$AO$3,AH110,IF(AH110-0.25%<=$AO$3,$AO$3,AH110-0.25%))) -> 0.175 | AI111: 0 | AJ111: 0 | AK111: 0 | AL111: 0 | AM111: 0 | AN111: 0 | AP111: =IF(AJ111<=0,0,IF('Simulador Valora'!$AC$62=1,0,AJ111*'Simulador Valora'!$Y$67+IF('Simulador Valora'!$X$35=2,'Simulador Valora'!$G$49,IF('Simulador Valora'!$X$35=1,'Simulador Valora'!$K$49,0)))) -> 0 | AQ111: =IF(AJ111<=0,0,$AQ$27) -> 0 | AR111: =AL111*'Simulador Valora'!$X$59 -> 0 | AS111: 0 | AT111: 0 | AV111: 0 | AW111: 97
A112: 98 | B112: 0 | D112: 0 | F112: 0 | H112: 0 | L112: =IF('Simulador Valora'!$V$60=1,0,J112*'Simulador Valora'!$V$61*'Simulador Valora'!$W$59) -> 0 | P112: 0 | R112: =IF('Simulador Valora'!$AC$62=1,0,IFERROR(IF(B112<=0,0,B112*'Simulador Valora'!$Y$67),0)) -> 0 | T112: =IF(OR('Simulador Valora'!$AC$62=1,'Simulador Valora'!$AC$66=1),0,IFERROR(IF(B112<=0,0,IF('Simulador Valora'!$X$35=2,IF('Simulador Valora'!$K$24>0,'Simulador Valora'!$K$24,'Simulador Valora'!$K$41)*'Simulador Valora'!$Y$68,IF('Simulador Valora'!$X$35=1,IF('Simulador Valora'!$K$24>0,'Simulador Valora'!$K$24,'Simulador Valora'!$G$41)*'Simulador Valora'!$Y$68,0))),0)) -> 0 | V112: =F112*'Simulador Valora'!$X$59 -> 0 | AB112: 8 | AC112: 2 | AD112: 0 | AE112: 0 | AF112: 0 | AH112: =AH111 -> 0.175 | AI112: 0 | AJ112: 0 | AK112: 0 | AL112: 0 | AM112: 0 | AN112: 0 | AP112: =IF(AJ112<=0,0,IF('Simulador Valora'!$AC$62=1,0,AJ112*'Simulador Valora'!$Y$67+IF('Simulador Valora'!$X$35=2,'Simulador Valora'!$G$49,IF('Simulador Valora'!$X$35=1,'Simulador Valora'!$K$49,0)))) -> 0 | AR112: =AL112*'Simulador Valora'!$X$59 -> 0 | AS112: 0 | AT112: 0 | AV112: 0 | AW112: 98
A113: 99 | B113: 0 | D113: 0 | F113: 0 | H113: 0 | L113: =IF('Simulador Valora'!$V$60=1,0,J113*'Simulador Valora'!$V$61*'Simulador Valora'!$W$59) -> 0 | P113: 0 | R113: =IF('Simulador Valora'!$AC$62=1,0,IFERROR(IF(B113<=0,0,B113*'Simulador Valora'!$Y$67),0)) -> 0 | T113: =IF(OR('Simulador Valora'!$AC$62=1,'Simulador Valora'!$AC$66=1),0,IFERROR(IF(B113<=0,0,IF('Simulador Valora'!$X$35=2,IF('Simulador Valora'!$K$24>0,'Simulador Valora'!$K$24,'Simulador Valora'!$K$41)*'Simulador Valora'!$Y$68,IF('Simulador Valora'!$X$35=1,IF('Simulador Valora'!$K$24>0,'Simulador Valora'!$K$24,'Simulador Valora'!$G$41)*'Simulador Valora'!$Y$68,0))),0)) -> 0 | V113: =F113*'Simulador Valora'!$X$59 -> 0 | AB113: 8 | AC113: 3 | AD113: 0 | AE113: 0 | AF113: 0 | AH113: =AH112 -> 0.175 | AI113: 0 | AJ113: 0 | AK113: 0 | AL113: 0 | AM113: 0 | AN113: 0 | AP113: =IF(AJ113<=0,0,IF('Simulador Valora'!$AC$62=1,0,AJ113*'Simulador Valora'!$Y$67+IF('Simulador Valora'!$X$35=2,'Simulador Valora'!$G$49,IF('Simulador Valora'!$X$35=1,'Simulador Valora'!$K$49,0)))) -> 0 | AR113: =AL113*'Simulador Valora'!$X$59 -> 0 | AS113: 0 | AT113: 0 | AV113: 0 | AW113: 99
A114: 100 | B114: 0 | D114: 0 | F114: 0 | H114: 0 | L114: =IF('Simulador Valora'!$V$60=1,0,J114*'Simulador Valora'!$V$61*'Simulador Valora'!$W$59) -> 0 | P114: 0 | R114: =IF('Simulador Valora'!$AC$62=1,0,IFERROR(IF(B114<=0,0,B114*'Simulador Valora'!$Y$67),0)) -> 0 | T114: =IF(OR('Simulador Valora'!$AC$62=1,'Simulador Valora'!$AC$66=1),0,IFERROR(IF(B114<=0,0,IF('Simulador Valora'!$X$35=2,IF('Simulador Valora'!$K$24>0,'Simulador Valora'!$K$24,'Simulador Valora'!$K$41)*'Simulador Valora'!$Y$68,IF('Simulador Valora'!$X$35=1,IF('Simulador Valora'!$K$24>0,'Simulador Valora'!$K$24,'Simulador Valora'!$G$41)*'Simulador Valora'!$Y$68,0))),0)) -> 0 | V114: =F114*'Simulador Valora'!$X$59 -> 0 | AB114: 8 | AC114: 4 | AD114: 0 | AE114: 0 | AF114: 0 | AH114: 0.175 | AI114: 0 | AJ114: 0 | AK114: 0 | AL114: 0 | AM114: 0 | AN114: 0 | AP114: =IF(AJ114<=0,0,IF('Simulador Valora'!$AC$62=1,0,AJ114*'Simulador Valora'!$Y$67+IF('Simulador Valora'!$X$35=2,'Simulador Valora'!$G$49,IF('Simulador Valora'!$X$35=1,'Simulador Valora'!$K$49,0)))) -> 0 | AR114: =AL114*'Simulador Valora'!$X$59 -> 0 | AS114: 0 | AT114: 0 | AV114: 0 | AW114: 100
A115: 101 | B115: 0 | D115: 0 | F115: 0 | H115: 0 | L115: =IF('Simulador Valora'!$V$60=1,0,J115*'Simulador Valora'!$V$61*'Simulador Valora'!$W$59) -> 0 | P115: 0 | R115: =IF('Simulador Valora'!$AC$62=1,0,IFERROR(IF(B115<=0,0,B115*'Simulador Valora'!$Y$67),0)) -> 0 | T115: =IF(OR('Simulador Valora'!$AC$62=1,'Simulador Valora'!$AC$66=1),0,IFERROR(IF(B115<=0,0,IF('Simulador Valora'!$X$35=2,IF('Simulador Valora'!$K$24>0,'Simulador Valora'!$K$24,'Simulador Valora'!$K$41)*'Simulador Valora'!$Y$68,IF('Simulador Valora'!$X$35=1,IF('Simulador Valora'!$K$24>0,'Simulador Valora'!$K$24,'Simulador Valora'!$G$41)*'Simulador Valora'!$Y$68,0))),0)) -> 0 | V115: =F115*'Simulador Valora'!$X$59 -> 0 | AB115: 8 | AC115: 5 | AD115: 0 | AE115: 0 | AF115: 0 | AH115: 0.175 | AI115: 0 | AJ115: 0 | AK115: 0 | AL115: 0 | AM115: 0 | AN115: 0 | AP115: =IF(AJ115<=0,0,IF('Simulador Valora'!$AC$62=1,0,AJ115*'Simulador Valora'!$Y$67+IF('Simulador Valora'!$X$35=2,'Simulador Valora'!$G$49,IF('Simulador Valora'!$X$35=1,'Simulador Valora'!$K$49,0)))) -> 0 | AR115: =AL115*'Simulador Valora'!$X$59 -> 0 | AS115: 0 | AT115: 0 | AV115: 0 | AW115: 101
A116: 102 | B116: 0 | D116: 0 | F116: 0 | H116: 0 | L116: =IF('Simulador Valora'!$V$60=1,0,J116*'Simulador Valora'!$V$61*'Simulador Valora'!$W$59) -> 0 | P116: 0 | R116: =IF('Simulador Valora'!$AC$62=1,0,IFERROR(IF(B116<=0,0,B116*'Simulador Valora'!$Y$67),0)) -> 0 | T116: =IF(OR('Simulador Valora'!$AC$62=1,'Simulador Valora'!$AC$66=1),0,IFERROR(IF(B116<=0,0,IF('Simulador Valora'!$X$35=2,IF('Simulador Valora'!$K$24>0,'Simulador Valora'!$K$24,'Simulador Valora'!$K$41)*'Simulador Valora'!$Y$68,IF('Simulador Valora'!$X$35=1,IF('Simulador Valora'!$K$24>0,'Simulador Valora'!$K$24,'Simulador Valora'!$G$41)*'Simulador Valora'!$Y$68,0))),0)) -> 0 | V116: =F116*'Simulador Valora'!$X$59 -> 0 | AB116: 8 | AC116: 6 | AD116: 0 | AE116: 0 | AF116: 0 | AH116: 0.175 | AI116: 0 | AJ116: 0 | AK116: 0 | AL116: 0 | AM116: 0 | AN116: 0 | AP116: =IF(AJ116<=0,0,IF('Simulador Valora'!$AC$62=1,0,AJ116*'Simulador Valora'!$Y$67+IF('Simulador Valora'!$X$35=2,'Simulador Valora'!$G$49,IF('Simulador Valora'!$X$35=1,'Simulador Valora'!$K$49,0)))) -> 0 | AR116: =AL116*'Simulador Valora'!$X$59 -> 0 | AS116: 0 | AT116: 0 | AV116: 0 | AW116: 102
A117: 103 | B117: 0 | D117: 0 | F117: 0 | H117: 0 | L117: =IF('Simulador Valora'!$V$60=1,0,J117*'Simulador Valora'!$V$61*'Simulador Valora'!$W$59) -> 0 | P117: 0 | R117: =IF('Simulador Valora'!$AC$62=1,0,IFERROR(IF(B117<=0,0,B117*'Simulador Valora'!$Y$67),0)) -> 0 | T117: =IF(OR('Simulador Valora'!$AC$62=1,'Simulador Valora'!$AC$66=1),0,IFERROR(IF(B117<=0,0,IF('Simulador Valora'!$X$35=2,IF('Simulador Valora'!$K$24>0,'Simulador Valora'!$K$24,'Simulador Valora'!$K$41)*'Simulador Valora'!$Y$68,IF('Simulador Valora'!$X$35=1,IF('Simulador Valora'!$K$24>0,'Simulador Valora'!$K$24,'Simulador Valora'!$G$41)*'Simulador Valora'!$Y$68,0))),0)) -> 0 | V117: =F117*'Simulador Valora'!$X$59 -> 0 | AB117: 8 | AC117: 7 | AD117: 0 | AE117: 0 | AF117: 0 | AH117: 0.175 | AI117: 0 | AJ117: 0 | AK117: 0 | AL117: 0 | AM117: 0 | AN117: 0 | AP117: =IF(AJ117<=0,0,IF('Simulador Valora'!$AC$62=1,0,AJ117*'Simulador Valora'!$Y$67+IF('Simulador Valora'!$X$35=2,'Simulador Valora'!$G$49,IF('Simulador Valora'!$X$35=1,'Simulador Valora'!$K$49,0)))) -> 0 | AR117: =AL117*'Simulador Valora'!$X$59 -> 0 | AS117: 0 | AT117: 0 | AV117: 0 | AW117: 103
A118: 104 | B118: 0 | D118: 0 | F118: 0 | H118: 0 | L118: =IF('Simulador Valora'!$V$60=1,0,J118*'Simulador Valora'!$V$61*'Simulador Valora'!$W$59) -> 0 | P118: 0 | R118: =IF('Simulador Valora'!$AC$62=1,0,IFERROR(IF(B118<=0,0,B118*'Simulador Valora'!$Y$67),0)) -> 0 | T118: =IF(OR('Simulador Valora'!$AC$62=1,'Simulador Valora'!$AC$66=1),0,IFERROR(IF(B118<=0,0,IF('Simulador Valora'!$X$35=2,IF('Simulador Valora'!$K$24>0,'Simulador Valora'!$K$24,'Simulador Valora'!$K$41)*'Simulador Valora'!$Y$68,IF('Simulador Valora'!$X$35=1,IF('Simulador Valora'!$K$24>0,'Simulador Valora'!$K$24,'Simulador Valora'!$G$41)*'Simulador Valora'!$Y$68,0))),0)) -> 0 | V118: =F118*'Simulador Valora'!$X$59 -> 0 | AB118: 8 | AC118: 8 | AD118: 0 | AE118: 0 | AF118: 0 | AH118: 0.175 | AI118: 0 | AJ118: 0 | AK118: 0 | AL118: 0 | AM118: 0 | AN118: 0 | AP118: =IF(AJ118<=0,0,IF('Simulador Valora'!$AC$62=1,0,AJ118*'Simulador Valora'!$Y$67+IF('Simulador Valora'!$X$35=2,'Simulador Valora'!$G$49,IF('Simulador Valora'!$X$35=1,'Simulador Valora'!$K$49,0)))) -> 0 | AR118: =AL118*'Simulador Valora'!$X$59 -> 0 | AS118: 0 | AT118: 0 | AV118: 0 | AW118: 104
A119: 105 | B119: 0 | D119: 0 | F119: 0 | H119: 0 | L119: =IF('Simulador Valora'!$V$60=1,0,J119*'Simulador Valora'!$V$61*'Simulador Valora'!$W$59) -> 0 | P119: 0 | R119: =IF('Simulador Valora'!$AC$62=1,0,IFERROR(IF(B119<=0,0,B119*'Simulador Valora'!$Y$67),0)) -> 0 | T119: =IF(OR('Simulador Valora'!$AC$62=1,'Simulador Valora'!$AC$66=1),0,IFERROR(IF(B119<=0,0,IF('Simulador Valora'!$X$35=2,IF('Simulador Valora'!$K$24>0,'Simulador Valora'!$K$24,'Simulador Valora'!$K$41)*'Simulador Valora'!$Y$68,IF('Simulador Valora'!$X$35=1,IF('Simulador Valora'!$K$24>0,'Simulador Valora'!$K$24,'Simulador Valora'!$G$41)*'Simulador Valora'!$Y$68,0))),0)) -> 0 | V119: =F119*'Simulador Valora'!$X$59 -> 0 | AB119: 8 | AC119: 9 | AD119: 0 | AE119: 0 | AF119: 0 | AH119: 0.175 | AI119: 0 | AJ119: 0 | AK119: 0 | AL119: 0 | AM119: 0 | AN119: 0 | AP119: =IF(AJ119<=0,0,IF('Simulador Valora'!$AC$62=1,0,AJ119*'Simulador Valora'!$Y$67+IF('Simulador Valora'!$X$35=2,'Simulador Valora'!$G$49,IF('Simulador Valora'!$X$35=1,'Simulador Valora'!$K$49,0)))) -> 0 | AR119: =AL119*'Simulador Valora'!$X$59 -> 0 | AS119: 0 | AT119: 0 | AV119: 0 | AW119: 105
A120: 106 | B120: 0 | D120: 0 | F120: 0 | H120: 0 | L120: =IF('Simulador Valora'!$V$60=1,0,J120*'Simulador Valora'!$V$61*'Simulador Valora'!$W$59) -> 0 | P120: 0 | R120: =IF('Simulador Valora'!$AC$62=1,0,IFERROR(IF(B120<=0,0,B120*'Simulador Valora'!$Y$67),0)) -> 0 | T120: =IF(OR('Simulador Valora'!$AC$62=1,'Simulador Valora'!$AC$66=1),0,IFERROR(IF(B120<=0,0,IF('Simulador Valora'!$X$35=2,IF('Simulador Valora'!$K$24>0,'Simulador Valora'!$K$24,'Simulador Valora'!$K$41)*'Simulador Valora'!$Y$68,IF('Simulador Valora'!$X$35=1,IF('Simulador Valora'!$K$24>0,'Simulador Valora'!$K$24,'Simulador Valora'!$G$41)*'Simulador Valora'!$Y$68,0))),0)) -> 0 | V120: =F120*'Simulador Valora'!$X$59 -> 0 | AB120: 8 | AC120: 10 | AD120: 0 | AE120: 0 | AF120: 0 | AH120: 0.175 | AI120: 0 | AJ120: 0 | AK120: 0 | AL120: 0 | AM120: 0 | AN120: 0 | AP120: =IF(AJ120<=0,0,IF('Simulador Valora'!$AC$62=1,0,AJ120*'Simulador Valora'!$Y$67+IF('Simulador Valora'!$X$35=2,'Simulador Valora'!$G$49,IF('Simulador Valora'!$X$35=1,'Simulador Valora'!$K$49,0)))) -> 0 | AR120: =AL120*'Simulador Valora'!$X$59 -> 0 | AS120: 0 | AT120: 0 | AV120: 0 | AW120: 106
A121: 107 | B121: 0 | D121: 0 | F121: 0 | H121: 0 | L121: =IF('Simulador Valora'!$V$60=1,0,J121*'Simulador Valora'!$V$61*'Simulador Valora'!$W$59) -> 0 | P121: 0 | R121: =IF('Simulador Valora'!$AC$62=1,0,IFERROR(IF(B121<=0,0,B121*'Simulador Valora'!$Y$67),0)) -> 0 | T121: =IF(OR('Simulador Valora'!$AC$62=1,'Simulador Valora'!$AC$66=1),0,IFERROR(IF(B121<=0,0,IF('Simulador Valora'!$X$35=2,IF('Simulador Valora'!$K$24>0,'Simulador Valora'!$K$24,'Simulador Valora'!$K$41)*'Simulador Valora'!$Y$68,IF('Simulador Valora'!$X$35=1,IF('Simulador Valora'!$K$24>0,'Simulador Valora'!$K$24,'Simulador Valora'!$G$41)*'Simulador Valora'!$Y$68,0))),0)) -> 0 | V121: =F121*'Simulador Valora'!$X$59 -> 0 | AB121: 8 | AC121: 11 | AD121: 0 | AE121: 0 | AF121: 0 | AH121: 0.175 | AI121: 0 | AJ121: 0 | AK121: 0 | AL121: 0 | AM121: 0 | AN121: 0 | AP121: =IF(AJ121<=0,0,IF('Simulador Valora'!$AC$62=1,0,AJ121*'Simulador Valora'!$Y$67+IF('Simulador Valora'!$X$35=2,'Simulador Valora'!$G$49,IF('Simulador Valora'!$X$35=1,'Simulador Valora'!$K$49,0)))) -> 0 | AR121: =AL121*'Simulador Valora'!$X$59 -> 0 | AS121: 0 | AT121: 0 | AV121: 0 | AW121: 107
A122: 108 | B122: 0 | D122: 0 | F122: 0 | H122: 0 | L122: =IF('Simulador Valora'!$V$60=1,0,J122*'Simulador Valora'!$V$61*'Simulador Valora'!$W$59) -> 0 | N122: =IF(B122=0,"",AH122) ->  | P122: 0 | R122: =IF('Simulador Valora'!$AC$62=1,0,IFERROR(IF(B122<=0,0,B122*'Simulador Valora'!$Y$67),0)) -> 0 | T122: =IF(OR('Simulador Valora'!$AC$62=1,'Simulador Valora'!$AC$66=1),0,IFERROR(IF(B122<=0,0,IF('Simulador Valora'!$X$35=2,IF('Simulador Valora'!$K$24>0,'Simulador Valora'!$K$24,'Simulador Valora'!$K$41)*'Simulador Valora'!$Y$68,IF('Simulador Valora'!$X$35=1,IF('Simulador Valora'!$K$24>0,'Simulador Valora'!$K$24,'Simulador Valora'!$G$41)*'Simulador Valora'!$Y$68,0))),0)) -> 0 | V122: =F122*'Simulador Valora'!$X$59 -> 0 | AB122: 9 | AC122: 0 | AD122: 0 | AE122: 0 | AF122: 0 | AH122: 0.175 | AI122: 0 | AJ122: 0 | AK122: 0 | AL122: 0 | AM122: 0 | AN122: 0 | AP122: =IF(AJ122<=0,0,IF('Simulador Valora'!$AC$62=1,0,AJ122*'Simulador Valora'!$Y$67+IF('Simulador Valora'!$X$35=2,'Simulador Valora'!$G$49,IF('Simulador Valora'!$X$35=1,'Simulador Valora'!$K$49,0)))) -> 0 | AR122: =AL122*'Simulador Valora'!$X$59 -> 0 | AS122: 0 | AT122: 0 | AV122: 0 | AW122: 108
A123: 109 | B123: 0 | D123: 0 | F123: 0 | H123: 0 | L123: =IF('Simulador Valora'!$V$60=1,0,J123*'Simulador Valora'!$V$61*'Simulador Valora'!$W$59) -> 0 | P123: 0 | R123: =IF('Simulador Valora'!$AC$62=1,0,IFERROR(IF(B123<=0,0,B123*'Simulador Valora'!$Y$67),0)) -> 0 | T123: =IF(OR('Simulador Valora'!$AC$62=1,'Simulador Valora'!$AC$66=1),0,IFERROR(IF(B123<=0,0,IF('Simulador Valora'!$X$35=2,IF('Simulador Valora'!$K$24>0,'Simulador Valora'!$K$24,'Simulador Valora'!$K$41)*'Simulador Valora'!$Y$68,IF('Simulador Valora'!$X$35=1,IF('Simulador Valora'!$K$24>0,'Simulador Valora'!$K$24,'Simulador Valora'!$G$41)*'Simulador Valora'!$Y$68,0))),0)) -> 0 | V123: =F123*'Simulador Valora'!$X$59 -> 0 | Z123: =IF(B123<=0,0,'Simulador Valora'!$AM$48) -> 0 | AB123: 9 | AC123: 1 | AD123: 0 | AE123: 0 | AF123: 0 | AH123: =IF(AH122=$AO$3,$AO$3,IF(AH122=$AO$3,AH122,IF(AH122-0.25%<=$AO$3,$AO$3,AH122-0.25%))) -> 0.175 | AI123: 0 | AJ123: 0 | AK123: 0 | AL123: 0 | AM123: 0 | AN123: 0 | AP123: =IF(AJ123<=0,0,IF('Simulador Valora'!$AC$62=1,0,AJ123*'Simulador Valora'!$Y$67+IF('Simulador Valora'!$X$35=2,'Simulador Valora'!$G$49,IF('Simulador Valora'!$X$35=1,'Simulador Valora'!$K$49,0)))) -> 0 | AQ123: =IF(AJ123<=0,0,$AQ$27) -> 0 | AR123: =AL123*'Simulador Valora'!$X$59 -> 0 | AS123: 0 | AT123: 0 | AV123: 0 | AW123: 109
A124: 110 | B124: 0 | D124: 0 | F124: 0 | H124: 0 | L124: =IF('Simulador Valora'!$V$60=1,0,J124*'Simulador Valora'!$V$61*'Simulador Valora'!$W$59) -> 0 | P124: 0 | R124: =IF('Simulador Valora'!$AC$62=1,0,IFERROR(IF(B124<=0,0,B124*'Simulador Valora'!$Y$67),0)) -> 0 | T124: =IF(OR('Simulador Valora'!$AC$62=1,'Simulador Valora'!$AC$66=1),0,IFERROR(IF(B124<=0,0,IF('Simulador Valora'!$X$35=2,IF('Simulador Valora'!$K$24>0,'Simulador Valora'!$K$24,'Simulador Valora'!$K$41)*'Simulador Valora'!$Y$68,IF('Simulador Valora'!$X$35=1,IF('Simulador Valora'!$K$24>0,'Simulador Valora'!$K$24,'Simulador Valora'!$G$41)*'Simulador Valora'!$Y$68,0))),0)) -> 0 | V124: =F124*'Simulador Valora'!$X$59 -> 0 | AB124: 9 | AC124: 2 | AD124: 0 | AE124: 0 | AF124: 0 | AH124: =AH123 -> 0.175 | AI124: 0 | AJ124: 0 | AK124: 0 | AL124: 0 | AM124: 0 | AN124: 0 | AP124: =IF(AJ124<=0,0,IF('Simulador Valora'!$AC$62=1,0,AJ124*'Simulador Valora'!$Y$67+IF('Simulador Valora'!$X$35=2,'Simulador Valora'!$G$49,IF('Simulador Valora'!$X$35=1,'Simulador Valora'!$K$49,0)))) -> 0 | AR124: =AL124*'Simulador Valora'!$X$59 -> 0 | AS124: 0 | AT124: 0 | AV124: 0 | AW124: 110
A125: 111 | B125: 0 | D125: 0 | F125: 0 | H125: 0 | L125: =IF('Simulador Valora'!$V$60=1,0,J125*'Simulador Valora'!$V$61*'Simulador Valora'!$W$59) -> 0 | P125: 0 | R125: =IF('Simulador Valora'!$AC$62=1,0,IFERROR(IF(B125<=0,0,B125*'Simulador Valora'!$Y$67),0)) -> 0 | T125: =IF(OR('Simulador Valora'!$AC$62=1,'Simulador Valora'!$AC$66=1),0,IFERROR(IF(B125<=0,0,IF('Simulador Valora'!$X$35=2,IF('Simulador Valora'!$K$24>0,'Simulador Valora'!$K$24,'Simulador Valora'!$K$41)*'Simulador Valora'!$Y$68,IF('Simulador Valora'!$X$35=1,IF('Simulador Valora'!$K$24>0,'Simulador Valora'!$K$24,'Simulador Valora'!$G$41)*'Simulador Valora'!$Y$68,0))),0)) -> 0 | V125: =F125*'Simulador Valora'!$X$59 -> 0 | AB125: 9 | AC125: 3 | AD125: 0 | AE125: 0 | AF125: 0 | AH125: =AH124 -> 0.175 | AI125: 0 | AJ125: 0 | AK125: 0 | AL125: 0 | AM125: 0 | AN125: 0 | AP125: =IF(AJ125<=0,0,IF('Simulador Valora'!$AC$62=1,0,AJ125*'Simulador Valora'!$Y$67+IF('Simulador Valora'!$X$35=2,'Simulador Valora'!$G$49,IF('Simulador Valora'!$X$35=1,'Simulador Valora'!$K$49,0)))) -> 0 | AR125: =AL125*'Simulador Valora'!$X$59 -> 0 | AS125: 0 | AT125: 0 | AV125: 0 | AW125: 111
A126: 112 | B126: 0 | D126: 0 | F126: 0 | H126: 0 | L126: =IF('Simulador Valora'!$V$60=1,0,J126*'Simulador Valora'!$V$61*'Simulador Valora'!$W$59) -> 0 | P126: 0 | R126: =IF('Simulador Valora'!$AC$62=1,0,IFERROR(IF(B126<=0,0,B126*'Simulador Valora'!$Y$67),0)) -> 0 | T126: =IF(OR('Simulador Valora'!$AC$62=1,'Simulador Valora'!$AC$66=1),0,IFERROR(IF(B126<=0,0,IF('Simulador Valora'!$X$35=2,IF('Simulador Valora'!$K$24>0,'Simulador Valora'!$K$24,'Simulador Valora'!$K$41)*'Simulador Valora'!$Y$68,IF('Simulador Valora'!$X$35=1,IF('Simulador Valora'!$K$24>0,'Simulador Valora'!$K$24,'Simulador Valora'!$G$41)*'Simulador Valora'!$Y$68,0))),0)) -> 0 | V126: =F126*'Simulador Valora'!$X$59 -> 0 | AB126: 9 | AC126: 4 | AD126: 0 | AE126: 0 | AF126: 0 | AH126: 0.175 | AI126: 0 | AJ126: 0 | AK126: 0 | AL126: 0 | AM126: 0 | AN126: 0 | AP126: =IF(AJ126<=0,0,IF('Simulador Valora'!$AC$62=1,0,AJ126*'Simulador Valora'!$Y$67+IF('Simulador Valora'!$X$35=2,'Simulador Valora'!$G$49,IF('Simulador Valora'!$X$35=1,'Simulador Valora'!$K$49,0)))) -> 0 | AR126: =AL126*'Simulador Valora'!$X$59 -> 0 | AS126: 0 | AT126: 0 | AV126: 0 | AW126: 112
A127: 113 | B127: 0 | D127: 0 | F127: 0 | H127: 0 | L127: =IF('Simulador Valora'!$V$60=1,0,J127*'Simulador Valora'!$V$61*'Simulador Valora'!$W$59) -> 0 | P127: 0 | R127: =IF('Simulador Valora'!$AC$62=1,0,IFERROR(IF(B127<=0,0,B127*'Simulador Valora'!$Y$67),0)) -> 0 | T127: =IF(OR('Simulador Valora'!$AC$62=1,'Simulador Valora'!$AC$66=1),0,IFERROR(IF(B127<=0,0,IF('Simulador Valora'!$X$35=2,IF('Simulador Valora'!$K$24>0,'Simulador Valora'!$K$24,'Simulador Valora'!$K$41)*'Simulador Valora'!$Y$68,IF('Simulador Valora'!$X$35=1,IF('Simulador Valora'!$K$24>0,'Simulador Valora'!$K$24,'Simulador Valora'!$G$41)*'Simulador Valora'!$Y$68,0))),0)) -> 0 | V127: =F127*'Simulador Valora'!$X$59 -> 0 | AB127: 9 | AC127: 5 | AD127: 0 | AE127: 0 | AF127: 0 | AH127: 0.175 | AI127: 0 | AJ127: 0 | AK127: 0 | AL127: 0 | AM127: 0 | AN127: 0 | AP127: =IF(AJ127<=0,0,IF('Simulador Valora'!$AC$62=1,0,AJ127*'Simulador Valora'!$Y$67+IF('Simulador Valora'!$X$35=2,'Simulador Valora'!$G$49,IF('Simulador Valora'!$X$35=1,'Simulador Valora'!$K$49,0)))) -> 0 | AR127: =AL127*'Simulador Valora'!$X$59 -> 0 | AS127: 0 | AT127: 0 | AV127: 0 | AW127: 113
A128: 114 | B128: 0 | D128: 0 | F128: 0 | H128: 0 | L128: =IF('Simulador Valora'!$V$60=1,0,J128*'Simulador Valora'!$V$61*'Simulador Valora'!$W$59) -> 0 | P128: 0 | R128: =IF('Simulador Valora'!$AC$62=1,0,IFERROR(IF(B128<=0,0,B128*'Simulador Valora'!$Y$67),0)) -> 0 | T128: =IF(OR('Simulador Valora'!$AC$62=1,'Simulador Valora'!$AC$66=1),0,IFERROR(IF(B128<=0,0,IF('Simulador Valora'!$X$35=2,IF('Simulador Valora'!$K$24>0,'Simulador Valora'!$K$24,'Simulador Valora'!$K$41)*'Simulador Valora'!$Y$68,IF('Simulador Valora'!$X$35=1,IF('Simulador Valora'!$K$24>0,'Simulador Valora'!$K$24,'Simulador Valora'!$G$41)*'Simulador Valora'!$Y$68,0))),0)) -> 0 | V128: =F128*'Simulador Valora'!$X$59 -> 0 | AB128: 9 | AC128: 6 | AD128: 0 | AE128: 0 | AF128: 0 | AH128: 0.175 | AI128: 0 | AJ128: 0 | AK128: 0 | AL128: 0 | AM128: 0 | AN128: 0 | AP128: =IF(AJ128<=0,0,IF('Simulador Valora'!$AC$62=1,0,AJ128*'Simulador Valora'!$Y$67+IF('Simulador Valora'!$X$35=2,'Simulador Valora'!$G$49,IF('Simulador Valora'!$X$35=1,'Simulador Valora'!$K$49,0)))) -> 0 | AR128: =AL128*'Simulador Valora'!$X$59 -> 0 | AS128: 0 | AT128: 0 | AV128: 0 | AW128: 114
A129: 115 | B129: 0 | D129: 0 | F129: 0 | H129: 0 | L129: =IF('Simulador Valora'!$V$60=1,0,J129*'Simulador Valora'!$V$61*'Simulador Valora'!$W$59) -> 0 | P129: 0 | R129: =IF('Simulador Valora'!$AC$62=1,0,IFERROR(IF(B129<=0,0,B129*'Simulador Valora'!$Y$67),0)) -> 0 | T129: =IF(OR('Simulador Valora'!$AC$62=1,'Simulador Valora'!$AC$66=1),0,IFERROR(IF(B129<=0,0,IF('Simulador Valora'!$X$35=2,IF('Simulador Valora'!$K$24>0,'Simulador Valora'!$K$24,'Simulador Valora'!$K$41)*'Simulador Valora'!$Y$68,IF('Simulador Valora'!$X$35=1,IF('Simulador Valora'!$K$24>0,'Simulador Valora'!$K$24,'Simulador Valora'!$G$41)*'Simulador Valora'!$Y$68,0))),0)) -> 0 | V129: =F129*'Simulador Valora'!$X$59 -> 0 | AB129: 9 | AC129: 7 | AD129: 0 | AE129: 0 | AF129: 0 | AH129: 0.175 | AI129: 0 | AJ129: 0 | AK129: 0 | AL129: 0 | AM129: 0 | AN129: 0 | AP129: =IF(AJ129<=0,0,IF('Simulador Valora'!$AC$62=1,0,AJ129*'Simulador Valora'!$Y$67+IF('Simulador Valora'!$X$35=2,'Simulador Valora'!$G$49,IF('Simulador Valora'!$X$35=1,'Simulador Valora'!$K$49,0)))) -> 0 | AR129: =AL129*'Simulador Valora'!$X$59 -> 0 | AS129: 0 | AT129: 0 | AV129: 0 | AW129: 115
A130: 116 | B130: 0 | D130: 0 | F130: 0 | H130: 0 | L130: =IF('Simulador Valora'!$V$60=1,0,J130*'Simulador Valora'!$V$61*'Simulador Valora'!$W$59) -> 0 | P130: 0 | R130: =IF('Simulador Valora'!$AC$62=1,0,IFERROR(IF(B130<=0,0,B130*'Simulador Valora'!$Y$67),0)) -> 0 | T130: =IF(OR('Simulador Valora'!$AC$62=1,'Simulador Valora'!$AC$66=1),0,IFERROR(IF(B130<=0,0,IF('Simulador Valora'!$X$35=2,IF('Simulador Valora'!$K$24>0,'Simulador Valora'!$K$24,'Simulador Valora'!$K$41)*'Simulador Valora'!$Y$68,IF('Simulador Valora'!$X$35=1,IF('Simulador Valora'!$K$24>0,'Simulador Valora'!$K$24,'Simulador Valora'!$G$41)*'Simulador Valora'!$Y$68,0))),0)) -> 0 | V130: =F130*'Simulador Valora'!$X$59 -> 0 | AB130: 9 | AC130: 8 | AD130: 0 | AE130: 0 | AF130: 0 | AH130: 0.175 | AI130: 0 | AJ130: 0 | AK130: 0 | AL130: 0 | AM130: 0 | AN130: 0 | AP130: =IF(AJ130<=0,0,IF('Simulador Valora'!$AC$62=1,0,AJ130*'Simulador Valora'!$Y$67+IF('Simulador Valora'!$X$35=2,'Simulador Valora'!$G$49,IF('Simulador Valora'!$X$35=1,'Simulador Valora'!$K$49,0)))) -> 0 | AR130: =AL130*'Simulador Valora'!$X$59 -> 0 | AS130: 0 | AT130: 0 | AV130: 0 | AW130: 116
A131: 117 | B131: 0 | D131: 0 | F131: 0 | H131: 0 | L131: =IF('Simulador Valora'!$V$60=1,0,J131*'Simulador Valora'!$V$61*'Simulador Valora'!$W$59) -> 0 | P131: 0 | R131: =IF('Simulador Valora'!$AC$62=1,0,IFERROR(IF(B131<=0,0,B131*'Simulador Valora'!$Y$67),0)) -> 0 | T131: =IF(OR('Simulador Valora'!$AC$62=1,'Simulador Valora'!$AC$66=1),0,IFERROR(IF(B131<=0,0,IF('Simulador Valora'!$X$35=2,IF('Simulador Valora'!$K$24>0,'Simulador Valora'!$K$24,'Simulador Valora'!$K$41)*'Simulador Valora'!$Y$68,IF('Simulador Valora'!$X$35=1,IF('Simulador Valora'!$K$24>0,'Simulador Valora'!$K$24,'Simulador Valora'!$G$41)*'Simulador Valora'!$Y$68,0))),0)) -> 0 | V131: =F131*'Simulador Valora'!$X$59 -> 0 | AB131: 9 | AC131: 9 | AD131: 0 | AE131: 0 | AF131: 0 | AH131: 0.175 | AI131: 0 | AJ131: 0 | AK131: 0 | AL131: 0 | AM131: 0 | AN131: 0 | AP131: =IF(AJ131<=0,0,IF('Simulador Valora'!$AC$62=1,0,AJ131*'Simulador Valora'!$Y$67+IF('Simulador Valora'!$X$35=2,'Simulador Valora'!$G$49,IF('Simulador Valora'!$X$35=1,'Simulador Valora'!$K$49,0)))) -> 0 | AR131: =AL131*'Simulador Valora'!$X$59 -> 0 | AS131: 0 | AT131: 0 | AV131: 0 | AW131: 117
A132: 118 | B132: 0 | D132: 0 | F132: 0 | H132: 0 | L132: =IF('Simulador Valora'!$V$60=1,0,J132*'Simulador Valora'!$V$61*'Simulador Valora'!$W$59) -> 0 | P132: 0 | R132: =IF('Simulador Valora'!$AC$62=1,0,IFERROR(IF(B132<=0,0,B132*'Simulador Valora'!$Y$67),0)) -> 0 | T132: =IF(OR('Simulador Valora'!$AC$62=1,'Simulador Valora'!$AC$66=1),0,IFERROR(IF(B132<=0,0,IF('Simulador Valora'!$X$35=2,IF('Simulador Valora'!$K$24>0,'Simulador Valora'!$K$24,'Simulador Valora'!$K$41)*'Simulador Valora'!$Y$68,IF('Simulador Valora'!$X$35=1,IF('Simulador Valora'!$K$24>0,'Simulador Valora'!$K$24,'Simulador Valora'!$G$41)*'Simulador Valora'!$Y$68,0))),0)) -> 0 | V132: =F132*'Simulador Valora'!$X$59 -> 0 | AB132: 9 | AC132: 10 | AD132: 0 | AE132: 0 | AF132: 0 | AH132: 0.175 | AI132: 0 | AJ132: 0 | AK132: 0 | AL132: 0 | AM132: 0 | AN132: 0 | AP132: =IF(AJ132<=0,0,IF('Simulador Valora'!$AC$62=1,0,AJ132*'Simulador Valora'!$Y$67+IF('Simulador Valora'!$X$35=2,'Simulador Valora'!$G$49,IF('Simulador Valora'!$X$35=1,'Simulador Valora'!$K$49,0)))) -> 0 | AR132: =AL132*'Simulador Valora'!$X$59 -> 0 | AS132: 0 | AT132: 0 | AV132: 0 | AW132: 118
A133: 119 | B133: 0 | D133: 0 | F133: 0 | H133: 0 | L133: =IF('Simulador Valora'!$V$60=1,0,J133*'Simulador Valora'!$V$61*'Simulador Valora'!$W$59) -> 0 | P133: 0 | R133: =IF('Simulador Valora'!$AC$62=1,0,IFERROR(IF(B133<=0,0,B133*'Simulador Valora'!$Y$67),0)) -> 0 | T133: =IF(OR('Simulador Valora'!$AC$62=1,'Simulador Valora'!$AC$66=1),0,IFERROR(IF(B133<=0,0,IF('Simulador Valora'!$X$35=2,IF('Simulador Valora'!$K$24>0,'Simulador Valora'!$K$24,'Simulador Valora'!$K$41)*'Simulador Valora'!$Y$68,IF('Simulador Valora'!$X$35=1,IF('Simulador Valora'!$K$24>0,'Simulador Valora'!$K$24,'Simulador Valora'!$G$41)*'Simulador Valora'!$Y$68,0))),0)) -> 0 | V133: =F133*'Simulador Valora'!$X$59 -> 0 | AB133: 9 | AC133: 11 | AD133: 0 | AE133: 0 | AF133: 0 | AH133: 0.175 | AI133: 0 | AJ133: 0 | AK133: 0 | AL133: 0 | AM133: 0 | AN133: 0 | AP133: =IF(AJ133<=0,0,IF('Simulador Valora'!$AC$62=1,0,AJ133*'Simulador Valora'!$Y$67+IF('Simulador Valora'!$X$35=2,'Simulador Valora'!$G$49,IF('Simulador Valora'!$X$35=1,'Simulador Valora'!$K$49,0)))) -> 0 | AR133: =AL133*'Simulador Valora'!$X$59 -> 0 | AS133: 0 | AT133: 0 | AV133: 0 | AW133: 119
A134: 120 | B134: 0 | D134: 0 | F134: 0 | H134: 0 | L134: =IF('Simulador Valora'!$V$60=1,0,J134*'Simulador Valora'!$V$61*'Simulador Valora'!$W$59) -> 0 | P134: 0 | R134: =IF('Simulador Valora'!$AC$62=1,0,IFERROR(IF(B134<=0,0,B134*'Simulador Valora'!$Y$67),0)) -> 0 | T134: =IF(OR('Simulador Valora'!$AC$62=1,'Simulador Valora'!$AC$66=1),0,IFERROR(IF(B134<=0,0,IF('Simulador Valora'!$X$35=2,IF('Simulador Valora'!$K$24>0,'Simulador Valora'!$K$24,'Simulador Valora'!$K$41)*'Simulador Valora'!$Y$68,IF('Simulador Valora'!$X$35=1,IF('Simulador Valora'!$K$24>0,'Simulador Valora'!$K$24,'Simulador Valora'!$G$41)*'Simulador Valora'!$Y$68,0))),0)) -> 0 | V134: =F134*'Simulador Valora'!$X$59 -> 0 | AB134: 10 | AC134: 0 | AD134: 0 | AE134: 0 | AF134: 0 | AH134: 0.175 | AI134: 0 | AJ134: 0 | AK134: 0 | AL134: 0 | AM134: 0 | AN134: 0 | AP134: =IF(AJ134<=0,0,IF('Simulador Valora'!$AC$62=1,0,AJ134*'Simulador Valora'!$Y$67+IF('Simulador Valora'!$X$35=2,'Simulador Valora'!$G$49,IF('Simulador Valora'!$X$35=1,'Simulador Valora'!$K$49,0)))) -> 0 | AR134: =AL134*'Simulador Valora'!$X$59 -> 0 | AS134: 0 | AT134: 0 | AV134: 0 | AW134: 120
A135: 121 | B135: 0 | D135: 0 | F135: 0 | H135: 0 | L135: =IF('Simulador Valora'!$V$60=1,0,J135*'Simulador Valora'!$V$61*'Simulador Valora'!$W$59) -> 0 | P135: 0 | R135: =IF('Simulador Valora'!$AC$62=1,0,IFERROR(IF(B135<=0,0,B135*'Simulador Valora'!$Y$67),0)) -> 0 | T135: =IF(OR('Simulador Valora'!$AC$62=1,'Simulador Valora'!$AC$66=1),0,IFERROR(IF(B135<=0,0,IF('Simulador Valora'!$X$35=2,IF('Simulador Valora'!$K$24>0,'Simulador Valora'!$K$24,'Simulador Valora'!$K$41)*'Simulador Valora'!$Y$68,IF('Simulador Valora'!$X$35=1,IF('Simulador Valora'!$K$24>0,'Simulador Valora'!$K$24,'Simulador Valora'!$G$41)*'Simulador Valora'!$Y$68,0))),0)) -> 0 | V135: =F135*'Simulador Valora'!$X$59 -> 0 | Z135: =IF(B135<=0,0,IF(AND('Simulador Valora'!$V$40=2,'Simulador Valora'!$X$35=4),0,'Simulador Valora'!$AM$48)) -> 0 | AB135: 10 | AC135: 1 | AD135: 0 | AE135: 0 | AF135: 0 | AH135: =IF(AH134=$AO$3,$AO$3,IF(AH134=$AO$3,AH134,IF(AH134-0.25%<=$AO$3,$AO$3,AH134-0.25%))) -> 0.175 | AI135: 0 | AJ135: 0 | AK135: 0 | AL135: 0 | AM135: 0 | AN135: 0 | AP135: =IF(AJ135<=0,0,IF('Simulador Valora'!$AC$62=1,0,AJ135*'Simulador Valora'!$Y$67+IF('Simulador Valora'!$X$35=2,'Simulador Valora'!$G$49,IF('Simulador Valora'!$X$35=1,'Simulador Valora'!$K$49,0)))) -> 0 | AQ135: =IF(AJ135<=0,0,$AQ$27) -> 0 | AR135: =AL135*'Simulador Valora'!$X$59 -> 0 | AS135: 0 | AT135: =IFERROR(IF(AK135<=0.01,0,AT134-1),0) -> 0 | AV135: 0 | AW135: 121
A136: 122 | B136: 0 | D136: 0 | F136: 0 | H136: 0 | L136: =IF('Simulador Valora'!$V$60=1,0,J136*'Simulador Valora'!$V$61*'Simulador Valora'!$W$59) -> 0 | P136: 0 | R136: =IF('Simulador Valora'!$AC$62=1,0,IFERROR(IF(B136<=0,0,B136*'Simulador Valora'!$Y$67),0)) -> 0 | T136: =IF(OR('Simulador Valora'!$AC$62=1,'Simulador Valora'!$AC$66=1),0,IFERROR(IF(B136<=0,0,IF('Simulador Valora'!$X$35=2,IF('Simulador Valora'!$K$24>0,'Simulador Valora'!$K$24,'Simulador Valora'!$K$41)*'Simulador Valora'!$Y$68,IF('Simulador Valora'!$X$35=1,IF('Simulador Valora'!$K$24>0,'Simulador Valora'!$K$24,'Simulador Valora'!$G$41)*'Simulador Valora'!$Y$68,0))),0)) -> 0 | V136: =F136*'Simulador Valora'!$X$59 -> 0 | AB136: 10 | AC136: 2 | AD136: 0 | AE136: 0 | AF136: 0 | AH136: =AH135 -> 0.175 | AI136: 0 | AJ136: 0 | AK136: 0 | AL136: 0 | AM136: 0 | AN136: 0 | AP136: =IF(AJ136<=0,0,IF('Simulador Valora'!$AC$62=1,0,AJ136*'Simulador Valora'!$Y$67+IF('Simulador Valora'!$X$35=2,'Simulador Valora'!$G$49,IF('Simulador Valora'!$X$35=1,'Simulador Valora'!$K$49,0)))) -> 0 | AR136: =AL136*'Simulador Valora'!$X$59 -> 0 | AS136: 0 | AT136: =IFERROR(IF(AK136<=0.01,0,AT135-1),0) -> 0 | AV136: 0 | AW136: 122
A137: 123 | B137: 0 | D137: 0 | F137: 0 | H137: 0 | L137: =IF('Simulador Valora'!$V$60=1,0,J137*'Simulador Valora'!$V$61*'Simulador Valora'!$W$59) -> 0 | P137: 0 | R137: =IF('Simulador Valora'!$AC$62=1,0,IFERROR(IF(B137<=0,0,B137*'Simulador Valora'!$Y$67),0)) -> 0 | T137: =IF(OR('Simulador Valora'!$AC$62=1,'Simulador Valora'!$AC$66=1),0,IFERROR(IF(B137<=0,0,IF('Simulador Valora'!$X$35=2,IF('Simulador Valora'!$K$24>0,'Simulador Valora'!$K$24,'Simulador Valora'!$K$41)*'Simulador Valora'!$Y$68,IF('Simulador Valora'!$X$35=1,IF('Simulador Valora'!$K$24>0,'Simulador Valora'!$K$24,'Simulador Valora'!$G$41)*'Simulador Valora'!$Y$68,0))),0)) -> 0 | V137: =F137*'Simulador Valora'!$X$59 -> 0 | AB137: 10 | AC137: 3 | AD137: 0 | AE137: 0 | AF137: 0 | AH137: =AH136 -> 0.175 | AI137: 0 | AJ137: 0 | AK137: 0 | AL137: 0 | AM137: 0 | AN137: 0 | AP137: =IF(AJ137<=0,0,IF('Simulador Valora'!$AC$62=1,0,AJ137*'Simulador Valora'!$Y$67+IF('Simulador Valora'!$X$35=2,'Simulador Valora'!$G$49,IF('Simulador Valora'!$X$35=1,'Simulador Valora'!$K$49,0)))) -> 0 | AR137: =AL137*'Simulador Valora'!$X$59 -> 0 | AS137: 0 | AT137: 0 | AV137: 0 | AW137: 123
A138: 124 | B138: 0 | D138: 0 | F138: 0 | H138: 0 | L138: =IF('Simulador Valora'!$V$60=1,0,J138*'Simulador Valora'!$V$61*'Simulador Valora'!$W$59) -> 0 | P138: 0 | R138: =IF('Simulador Valora'!$AC$62=1,0,IFERROR(IF(B138<=0,0,B138*'Simulador Valora'!$Y$67),0)) -> 0 | T138: =IF(OR('Simulador Valora'!$AC$62=1,'Simulador Valora'!$AC$66=1),0,IFERROR(IF(B138<=0,0,IF('Simulador Valora'!$X$35=2,IF('Simulador Valora'!$K$24>0,'Simulador Valora'!$K$24,'Simulador Valora'!$K$41)*'Simulador Valora'!$Y$68,IF('Simulador Valora'!$X$35=1,IF('Simulador Valora'!$K$24>0,'Simulador Valora'!$K$24,'Simulador Valora'!$G$41)*'Simulador Valora'!$Y$68,0))),0)) -> 0 | V138: =F138*'Simulador Valora'!$X$59 -> 0 | AB138: 10 | AC138: 4 | AD138: 0 | AE138: 0 | AF138: 0 | AH138: 0.175 | AI138: 0 | AJ138: 0 | AK138: 0 | AL138: 0 | AM138: 0 | AN138: 0 | AP138: =IF(AJ138<=0,0,IF('Simulador Valora'!$AC$62=1,0,AJ138*'Simulador Valora'!$Y$67+IF('Simulador Valora'!$X$35=2,'Simulador Valora'!$G$49,IF('Simulador Valora'!$X$35=1,'Simulador Valora'!$K$49,0)))) -> 0 | AR138: =AL138*'Simulador Valora'!$X$59 -> 0 | AS138: 0 | AT138: 0 | AV138: 0 | AW138: 124
A139: 125 | B139: 0 | D139: 0 | F139: 0 | H139: 0 | L139: =IF('Simulador Valora'!$V$60=1,0,J139*'Simulador Valora'!$V$61*'Simulador Valora'!$W$59) -> 0 | P139: 0 | R139: =IF('Simulador Valora'!$AC$62=1,0,IFERROR(IF(B139<=0,0,B139*'Simulador Valora'!$Y$67),0)) -> 0 | T139: =IF(OR('Simulador Valora'!$AC$62=1,'Simulador Valora'!$AC$66=1),0,IFERROR(IF(B139<=0,0,IF('Simulador Valora'!$X$35=2,IF('Simulador Valora'!$K$24>0,'Simulador Valora'!$K$24,'Simulador Valora'!$K$41)*'Simulador Valora'!$Y$68,IF('Simulador Valora'!$X$35=1,IF('Simulador Valora'!$K$24>0,'Simulador Valora'!$K$24,'Simulador Valora'!$G$41)*'Simulador Valora'!$Y$68,0))),0)) -> 0 | V139: =F139*'Simulador Valora'!$X$59 -> 0 | AB139: 10 | AC139: 5 | AD139: 0 | AE139: 0 | AF139: 0 | AH139: 0.175 | AI139: 0 | AJ139: 0 | AK139: 0 | AL139: 0 | AM139: 0 | AN139: 0 | AP139: =IF(AJ139<=0,0,IF('Simulador Valora'!$AC$62=1,0,AJ139*'Simulador Valora'!$Y$67+IF('Simulador Valora'!$X$35=2,'Simulador Valora'!$G$49,IF('Simulador Valora'!$X$35=1,'Simulador Valora'!$K$49,0)))) -> 0 | AR139: =AL139*'Simulador Valora'!$X$59 -> 0 | AS139: 0 | AT139: 0 | AV139: 0 | AW139: 125
A140: 126 | B140: 0 | D140: 0 | F140: 0 | H140: 0 | L140: =IF('Simulador Valora'!$V$60=1,0,J140*'Simulador Valora'!$V$61*'Simulador Valora'!$W$59) -> 0 | P140: 0 | R140: =IF('Simulador Valora'!$AC$62=1,0,IFERROR(IF(B140<=0,0,B140*'Simulador Valora'!$Y$67),0)) -> 0 | T140: =IF(OR('Simulador Valora'!$AC$62=1,'Simulador Valora'!$AC$66=1),0,IFERROR(IF(B140<=0,0,IF('Simulador Valora'!$X$35=2,IF('Simulador Valora'!$K$24>0,'Simulador Valora'!$K$24,'Simulador Valora'!$K$41)*'Simulador Valora'!$Y$68,IF('Simulador Valora'!$X$35=1,IF('Simulador Valora'!$K$24>0,'Simulador Valora'!$K$24,'Simulador Valora'!$G$41)*'Simulador Valora'!$Y$68,0))),0)) -> 0 | V140: =F140*'Simulador Valora'!$X$59 -> 0 | AB140: 10 | AC140: 6 | AD140: 0 | AE140: 0 | AF140: 0 | AH140: 0.175 | AI140: 0 | AJ140: 0 | AK140: 0 | AL140: 0 | AM140: 0 | AN140: 0 | AP140: =IF(AJ140<=0,0,IF('Simulador Valora'!$AC$62=1,0,AJ140*'Simulador Valora'!$Y$67+IF('Simulador Valora'!$X$35=2,'Simulador Valora'!$G$49,IF('Simulador Valora'!$X$35=1,'Simulador Valora'!$K$49,0)))) -> 0 | AR140: =AL140*'Simulador Valora'!$X$59 -> 0 | AS140: 0 | AT140: 0 | AV140: 0 | AW140: 126
A141: 127 | B141: 0 | D141: 0 | F141: 0 | H141: 0 | L141: =IF('Simulador Valora'!$V$60=1,0,J141*'Simulador Valora'!$V$61*'Simulador Valora'!$W$59) -> 0 | P141: 0 | R141: =IF('Simulador Valora'!$AC$62=1,0,IFERROR(IF(B141<=0,0,B141*'Simulador Valora'!$Y$67),0)) -> 0 | T141: =IF(OR('Simulador Valora'!$AC$62=1,'Simulador Valora'!$AC$66=1),0,IFERROR(IF(B141<=0,0,IF('Simulador Valora'!$X$35=2,IF('Simulador Valora'!$K$24>0,'Simulador Valora'!$K$24,'Simulador Valora'!$K$41)*'Simulador Valora'!$Y$68,IF('Simulador Valora'!$X$35=1,IF('Simulador Valora'!$K$24>0,'Simulador Valora'!$K$24,'Simulador Valora'!$G$41)*'Simulador Valora'!$Y$68,0))),0)) -> 0 | V141: =F141*'Simulador Valora'!$X$59 -> 0 | AB141: 10 | AC141: 7 | AD141: 0 | AE141: 0 | AF141: 0 | AH141: 0.175 | AI141: 0 | AJ141: 0 | AK141: 0 | AL141: 0 | AM141: 0 | AN141: 0 | AP141: =IF(AJ141<=0,0,IF('Simulador Valora'!$AC$62=1,0,AJ141*'Simulador Valora'!$Y$67+IF('Simulador Valora'!$X$35=2,'Simulador Valora'!$G$49,IF('Simulador Valora'!$X$35=1,'Simulador Valora'!$K$49,0)))) -> 0 | AR141: =AL141*'Simulador Valora'!$X$59 -> 0 | AS141: 0 | AT141: 0 | AV141: 0 | AW141: 127
A142: 128 | B142: 0 | D142: 0 | F142: 0 | H142: 0 | L142: =IF('Simulador Valora'!$V$60=1,0,J142*'Simulador Valora'!$V$61*'Simulador Valora'!$W$59) -> 0 | P142: 0 | R142: =IF('Simulador Valora'!$AC$62=1,0,IFERROR(IF(B142<=0,0,B142*'Simulador Valora'!$Y$67),0)) -> 0 | T142: =IF(OR('Simulador Valora'!$AC$62=1,'Simulador Valora'!$AC$66=1),0,IFERROR(IF(B142<=0,0,IF('Simulador Valora'!$X$35=2,IF('Simulador Valora'!$K$24>0,'Simulador Valora'!$K$24,'Simulador Valora'!$K$41)*'Simulador Valora'!$Y$68,IF('Simulador Valora'!$X$35=1,IF('Simulador Valora'!$K$24>0,'Simulador Valora'!$K$24,'Simulador Valora'!$G$41)*'Simulador Valora'!$Y$68,0))),0)) -> 0 | V142: =F142*'Simulador Valora'!$X$59 -> 0 | AB142: 10 | AC142: 8 | AD142: 0 | AE142: 0 | AF142: 0 | AH142: 0.175 | AI142: 0 | AJ142: 0 | AK142: 0 | AL142: 0 | AM142: 0 | AN142: 0 | AP142: =IF(AJ142<=0,0,IF('Simulador Valora'!$AC$62=1,0,AJ142*'Simulador Valora'!$Y$67+IF('Simulador Valora'!$X$35=2,'Simulador Valora'!$G$49,IF('Simulador Valora'!$X$35=1,'Simulador Valora'!$K$49,0)))) -> 0 | AR142: =AL142*'Simulador Valora'!$X$59 -> 0 | AS142: 0 | AT142: 0 | AV142: 0 | AW142: 128
A143: 129 | B143: 0 | D143: 0 | F143: 0 | H143: 0 | L143: =IF('Simulador Valora'!$V$60=1,0,J143*'Simulador Valora'!$V$61*'Simulador Valora'!$W$59) -> 0 | P143: 0 | R143: =IF('Simulador Valora'!$AC$62=1,0,IFERROR(IF(B143<=0,0,B143*'Simulador Valora'!$Y$67),0)) -> 0 | T143: =IF(OR('Simulador Valora'!$AC$62=1,'Simulador Valora'!$AC$66=1),0,IFERROR(IF(B143<=0,0,IF('Simulador Valora'!$X$35=2,IF('Simulador Valora'!$K$24>0,'Simulador Valora'!$K$24,'Simulador Valora'!$K$41)*'Simulador Valora'!$Y$68,IF('Simulador Valora'!$X$35=1,IF('Simulador Valora'!$K$24>0,'Simulador Valora'!$K$24,'Simulador Valora'!$G$41)*'Simulador Valora'!$Y$68,0))),0)) -> 0 | V143: =F143*'Simulador Valora'!$X$59 -> 0 | AB143: 10 | AC143: 9 | AD143: 0 | AE143: 0 | AF143: 0 | AH143: 0.175 | AI143: 0 | AJ143: 0 | AK143: 0 | AL143: 0 | AM143: =+AK143-AL143 -> 0 | AN143: =+AJ143-AM143 -> 0 | AP143: =IF(AJ143<=0,0,IF('Simulador Valora'!$AC$62=1,0,AJ143*'Simulador Valora'!$Y$67+IF('Simulador Valora'!$X$35=2,'Simulador Valora'!$G$49,IF('Simulador Valora'!$X$35=1,'Simulador Valora'!$K$49,0)))) -> 0 | AR143: =AL143*'Simulador Valora'!$X$59 -> 0 | AS143: 0 | AT143: 0 | AV143: 0 | AW143: 129
A144: 130 | B144: 0 | D144: 0 | F144: =IFERROR(IF(B144=0,0,N144/360*AV144*B144),0) -> 0 | H144: 0 | L144: =IF('Simulador Valora'!$V$60=1,0,J144*'Simulador Valora'!$V$61*'Simulador Valora'!$W$59) -> 0 | N144: =IF(B144=0,"",AH144) ->  | P144: =B144-H144-J144+L144 -> 0 | R144: =IF('Simulador Valora'!$AC$62=1,0,IFERROR(IF(B144<=0,0,B144*'Simulador Valora'!$Y$67),0)) -> 0 | T144: =IF(OR('Simulador Valora'!$AC$62=1,'Simulador Valora'!$AC$66=1),0,IFERROR(IF(B144<=0,0,IF('Simulador Valora'!$X$35=2,IF('Simulador Valora'!$K$24>0,'Simulador Valora'!$K$24,'Simulador Valora'!$K$41)*'Simulador Valora'!$Y$68,IF('Simulador Valora'!$X$35=1,IF('Simulador Valora'!$K$24>0,'Simulador Valora'!$K$24,'Simulador Valora'!$G$41)*'Simulador Valora'!$Y$68,0))),0)) -> 0 | V144: =F144*'Simulador Valora'!$X$59 -> 0 | X144: =IF(B144<=0,"",(D144+J144+R144+V144+T144)) ->  | AB144: 10 | AC144: 10 | AD144: =+IF(P144<=0,IF(P143>0,+A144,0),0) -> 0 | AE144: =+IF(AD144>0,+AB144,0) -> 0 | AF144: =+IF(AD144>0,+AC144,0) -> 0 | AG144: =X144 ->  | AH144: 0.175 | AI144: =IFERROR(AK144/AJ144,0) -> 0 | AJ144: 0 | AK144: =IFERROR((IF(AJ144+AL144-AK143<0, AJ144+AL144, AK143*(1+AQ144))),0) -> 0 | AL144: =IFERROR((AO144/360*AV144*AJ144),0) -> 0 | AM144: 0 | AN144: 0 | AO144: =IF(AJ144=0,"",AH144) ->  | AP144: =IF(AJ144<=0,0,IF('Simulador Valora'!$AC$62=1,0,AJ144*'Simulador Valora'!$Y$67+IF('Simulador Valora'!$X$35=2,'Simulador Valora'!$G$49,IF('Simulador Valora'!$X$35=1,'Simulador Valora'!$K$49,0)))) -> 0 | AR144: =AL144*'Simulador Valora'!$X$59 -> 0 | AS144: =AL144+AM144+AP144 -> 0 | AT144: 0 | AV144: =IFERROR(DAY(DATE(YEAR(AU144),MONTH(AU144)+1,0)),0) -> 0 | AW144: 130
A145: 131 | B145: =IF(P144<=0,0,P144) -> 0 | D145: =IF(B145+F145-D144<=0,B145+F145,IF(J144=0,D144*(1+Z145),IF($AS$2=2,B145*AI145,D144*(1+Z145)))) -> 0 | F145: 0 | H145: =D145-F145 -> 0 | L145: =IF('Simulador Valora'!$V$60=1,0,J145*'Simulador Valora'!$V$61*'Simulador Valora'!$W$59) -> 0 | P145: 0 | R145: =IF('Simulador Valora'!$AC$62=1,0,IFERROR(IF(B145<=0,0,B145*'Simulador Valora'!$Y$67),0)) -> 0 | T145: =IF(OR('Simulador Valora'!$AC$62=1,'Simulador Valora'!$AC$66=1),0,IFERROR(IF(B145<=0,0,IF('Simulador Valora'!$X$35=2,IF('Simulador Valora'!$K$24>0,'Simulador Valora'!$K$24,'Simulador Valora'!$K$41)*'Simulador Valora'!$Y$68,IF('Simulador Valora'!$X$35=1,IF('Simulador Valora'!$K$24>0,'Simulador Valora'!$K$24,'Simulador Valora'!$G$41)*'Simulador Valora'!$Y$68,0))),0)) -> 0 | V145: =F145*'Simulador Valora'!$X$59 -> 0 | AB145: 10 | AC145: 11 | AD145: 0 | AE145: 0 | AF145: 0 | AH145: 0.175 | AI145: 0 | AJ145: =AN144 -> 0 | AK145: 0 | AL145: 0 | AM145: 0 | AN145: 0 | AP145: =IF(AJ145<=0,0,IF('Simulador Valora'!$AC$62=1,0,AJ145*'Simulador Valora'!$Y$67+IF('Simulador Valora'!$X$35=2,'Simulador Valora'!$G$49,IF('Simulador Valora'!$X$35=1,'Simulador Valora'!$K$49,0)))) -> 0 | AR145: =AL145*'Simulador Valora'!$X$59 -> 0 | AS145: 0 | AT145: 0 | AU145: =IF(AJ145=0,"",DATE(YEAR(AU144),MONTH(AU144)+1,1)) ->  | AV145: 0 | AW145: 131
A146: 132 | B146: 0 | D146: 0 | F146: 0 | H146: 0 | L146: =IF('Simulador Valora'!$V$60=1,0,J146*'Simulador Valora'!$V$61*'Simulador Valora'!$W$59) -> 0 | P146: 0 | R146: =IF('Simulador Valora'!$AC$62=1,0,IFERROR(IF(B146<=0,0,B146*'Simulador Valora'!$Y$67),0)) -> 0 | T146: =IF(OR('Simulador Valora'!$AC$62=1,'Simulador Valora'!$AC$66=1),0,IFERROR(IF(B146<=0,0,IF('Simulador Valora'!$X$35=2,IF('Simulador Valora'!$K$24>0,'Simulador Valora'!$K$24,'Simulador Valora'!$K$41)*'Simulador Valora'!$Y$68,IF('Simulador Valora'!$X$35=1,IF('Simulador Valora'!$K$24>0,'Simulador Valora'!$K$24,'Simulador Valora'!$G$41)*'Simulador Valora'!$Y$68,0))),0)) -> 0 | V146: =F146*'Simulador Valora'!$X$59 -> 0 | AB146: 11 | AC146: 0 | AD146: 0 | AE146: 0 | AF146: 0 | AH146: 0.175 | AI146: 0 | AJ146: 0 | AK146: 0 | AL146: 0 | AM146: 0 | AN146: 0 | AP146: =IF(AJ146<=0,0,IF('Simulador Valora'!$AC$62=1,0,AJ146*'Simulador Valora'!$Y$67+IF('Simulador Valora'!$X$35=2,'Simulador Valora'!$G$49,IF('Simulador Valora'!$X$35=1,'Simulador Valora'!$K$49,0)))) -> 0 | AR146: =AL146*'Simulador Valora'!$X$59 -> 0 | AS146: 0 | AT146: 0 | AV146: 0 | AW146: 132
A147: 133 | B147: 0 | D147: 0 | F147: 0 | H147: 0 | L147: =IF('Simulador Valora'!$V$60=1,0,J147*'Simulador Valora'!$V$61*'Simulador Valora'!$W$59) -> 0 | P147: 0 | R147: =IF('Simulador Valora'!$AC$62=1,0,IFERROR(IF(B147<=0,0,B147*'Simulador Valora'!$Y$67),0)) -> 0 | T147: =IF(OR('Simulador Valora'!$AC$62=1,'Simulador Valora'!$AC$66=1),0,IFERROR(IF(B147<=0,0,IF('Simulador Valora'!$X$35=2,IF('Simulador Valora'!$K$24>0,'Simulador Valora'!$K$24,'Simulador Valora'!$K$41)*'Simulador Valora'!$Y$68,IF('Simulador Valora'!$X$35=1,IF('Simulador Valora'!$K$24>0,'Simulador Valora'!$K$24,'Simulador Valora'!$G$41)*'Simulador Valora'!$Y$68,0))),0)) -> 0 | V147: =F147*'Simulador Valora'!$X$59 -> 0 | Z147: =IF(B147<=0,0,IF(AND('Simulador Valora'!$V$40=2,'Simulador Valora'!$X$35=4),0,'Simulador Valora'!$AM$48)) -> 0 | AB147: 11 | AC147: 1 | AD147: 0 | AE147: 0 | AF147: 0 | AH147: =IF(AH146=$AO$3,$AO$3,IF(AH146=$AO$3,AH146,IF(AH146-0.25%<=$AO$3,$AO$3,AH146-0.25%))) -> 0.175 | AI147: 0 | AJ147: 0 | AK147: 0 | AL147: 0 | AM147: 0 | AN147: 0 | AP147: =IF(AJ147<=0,0,IF('Simulador Valora'!$AC$62=1,0,AJ147*'Simulador Valora'!$Y$67+IF('Simulador Valora'!$X$35=2,'Simulador Valora'!$G$49,IF('Simulador Valora'!$X$35=1,'Simulador Valora'!$K$49,0)))) -> 0 | AQ147: =IF(AJ147<=0,0,$AQ$27) -> 0 | AR147: =AL147*'Simulador Valora'!$X$59 -> 0 | AS147: 0 | AT147: 0 | AV147: 0 | AW147: 133
A148: 134 | B148: 0 | D148: 0 | F148: 0 | H148: 0 | L148: =IF('Simulador Valora'!$V$60=1,0,J148*'Simulador Valora'!$V$61*'Simulador Valora'!$W$59) -> 0 | P148: 0 | R148: =IF('Simulador Valora'!$AC$62=1,0,IFERROR(IF(B148<=0,0,B148*'Simulador Valora'!$Y$67),0)) -> 0 | T148: =IF(OR('Simulador Valora'!$AC$62=1,'Simulador Valora'!$AC$66=1),0,IFERROR(IF(B148<=0,0,IF('Simulador Valora'!$X$35=2,IF('Simulador Valora'!$K$24>0,'Simulador Valora'!$K$24,'Simulador Valora'!$K$41)*'Simulador Valora'!$Y$68,IF('Simulador Valora'!$X$35=1,IF('Simulador Valora'!$K$24>0,'Simulador Valora'!$K$24,'Simulador Valora'!$G$41)*'Simulador Valora'!$Y$68,0))),0)) -> 0 | V148: =F148*'Simulador Valora'!$X$59 -> 0 | AB148: 11 | AC148: 2 | AD148: 0 | AE148: 0 | AF148: 0 | AH148: =AH147 -> 0.175 | AI148: 0 | AJ148: 0 | AK148: 0 | AL148: 0 | AM148: 0 | AN148: 0 | AP148: =IF(AJ148<=0,0,IF('Simulador Valora'!$AC$62=1,0,AJ148*'Simulador Valora'!$Y$67+IF('Simulador Valora'!$X$35=2,'Simulador Valora'!$G$49,IF('Simulador Valora'!$X$35=1,'Simulador Valora'!$K$49,0)))) -> 0 | AR148: =AL148*'Simulador Valora'!$X$59 -> 0 | AS148: 0 | AT148: 0 | AV148: 0 | AW148: 134
A149: 135 | B149: 0 | D149: 0 | F149: 0 | H149: 0 | L149: =IF('Simulador Valora'!$V$60=1,0,J149*'Simulador Valora'!$V$61*'Simulador Valora'!$W$59) -> 0 | P149: 0 | R149: =IF('Simulador Valora'!$AC$62=1,0,IFERROR(IF(B149<=0,0,B149*'Simulador Valora'!$Y$67),0)) -> 0 | T149: =IF(OR('Simulador Valora'!$AC$62=1,'Simulador Valora'!$AC$66=1),0,IFERROR(IF(B149<=0,0,IF('Simulador Valora'!$X$35=2,IF('Simulador Valora'!$K$24>0,'Simulador Valora'!$K$24,'Simulador Valora'!$K$41)*'Simulador Valora'!$Y$68,IF('Simulador Valora'!$X$35=1,IF('Simulador Valora'!$K$24>0,'Simulador Valora'!$K$24,'Simulador Valora'!$G$41)*'Simulador Valora'!$Y$68,0))),0)) -> 0 | V149: =F149*'Simulador Valora'!$X$59 -> 0 | AB149: 11 | AC149: 3 | AD149: 0 | AE149: 0 | AF149: 0 | AH149: =AH148 -> 0.175 | AI149: 0 | AJ149: 0 | AK149: 0 | AL149: 0 | AM149: 0 | AN149: 0 | AP149: =IF(AJ149<=0,0,IF('Simulador Valora'!$AC$62=1,0,AJ149*'Simulador Valora'!$Y$67+IF('Simulador Valora'!$X$35=2,'Simulador Valora'!$G$49,IF('Simulador Valora'!$X$35=1,'Simulador Valora'!$K$49,0)))) -> 0 | AR149: =AL149*'Simulador Valora'!$X$59 -> 0 | AS149: 0 | AT149: 0 | AV149: 0 | AW149: 135
A150: 136 | B150: 0 | D150: 0 | F150: 0 | H150: 0 | L150: =IF('Simulador Valora'!$V$60=1,0,J150*'Simulador Valora'!$V$61*'Simulador Valora'!$W$59) -> 0 | P150: 0 | R150: =IF('Simulador Valora'!$AC$62=1,0,IFERROR(IF(B150<=0,0,B150*'Simulador Valora'!$Y$67),0)) -> 0 | T150: =IF(OR('Simulador Valora'!$AC$62=1,'Simulador Valora'!$AC$66=1),0,IFERROR(IF(B150<=0,0,IF('Simulador Valora'!$X$35=2,IF('Simulador Valora'!$K$24>0,'Simulador Valora'!$K$24,'Simulador Valora'!$K$41)*'Simulador Valora'!$Y$68,IF('Simulador Valora'!$X$35=1,IF('Simulador Valora'!$K$24>0,'Simulador Valora'!$K$24,'Simulador Valora'!$G$41)*'Simulador Valora'!$Y$68,0))),0)) -> 0 | V150: =F150*'Simulador Valora'!$X$59 -> 0 | AB150: 11 | AC150: 4 | AD150: 0 | AE150: 0 | AF150: 0 | AH150: 0.175 | AI150: 0 | AJ150: 0 | AK150: 0 | AL150: 0 | AM150: 0 | AN150: 0 | AP150: =IF(AJ150<=0,0,IF('Simulador Valora'!$AC$62=1,0,AJ150*'Simulador Valora'!$Y$67+IF('Simulador Valora'!$X$35=2,'Simulador Valora'!$G$49,IF('Simulador Valora'!$X$35=1,'Simulador Valora'!$K$49,0)))) -> 0 | AR150: =AL150*'Simulador Valora'!$X$59 -> 0 | AS150: 0 | AT150: 0 | AV150: 0 | AW150: 136
A151: 137 | B151: 0 | D151: 0 | F151: 0 | H151: 0 | L151: =IF('Simulador Valora'!$V$60=1,0,J151*'Simulador Valora'!$V$61*'Simulador Valora'!$W$59) -> 0 | P151: 0 | R151: =IF('Simulador Valora'!$AC$62=1,0,IFERROR(IF(B151<=0,0,B151*'Simulador Valora'!$Y$67),0)) -> 0 | T151: =IF(OR('Simulador Valora'!$AC$62=1,'Simulador Valora'!$AC$66=1),0,IFERROR(IF(B151<=0,0,IF('Simulador Valora'!$X$35=2,IF('Simulador Valora'!$K$24>0,'Simulador Valora'!$K$24,'Simulador Valora'!$K$41)*'Simulador Valora'!$Y$68,IF('Simulador Valora'!$X$35=1,IF('Simulador Valora'!$K$24>0,'Simulador Valora'!$K$24,'Simulador Valora'!$G$41)*'Simulador Valora'!$Y$68,0))),0)) -> 0 | V151: =F151*'Simulador Valora'!$X$59 -> 0 | AB151: 11 | AC151: 5 | AD151: 0 | AE151: 0 | AF151: 0 | AH151: 0.175 | AI151: 0 | AJ151: 0 | AK151: 0 | AL151: 0 | AM151: 0 | AN151: 0 | AP151: =IF(AJ151<=0,0,IF('Simulador Valora'!$AC$62=1,0,AJ151*'Simulador Valora'!$Y$67+IF('Simulador Valora'!$X$35=2,'Simulador Valora'!$G$49,IF('Simulador Valora'!$X$35=1,'Simulador Valora'!$K$49,0)))) -> 0 | AR151: =AL151*'Simulador Valora'!$X$59 -> 0 | AS151: 0 | AT151: 0 | AV151: 0 | AW151: 137
A152: 138 | B152: 0 | D152: 0 | F152: 0 | H152: 0 | L152: =IF('Simulador Valora'!$V$60=1,0,J152*'Simulador Valora'!$V$61*'Simulador Valora'!$W$59) -> 0 | P152: 0 | R152: =IF('Simulador Valora'!$AC$62=1,0,IFERROR(IF(B152<=0,0,B152*'Simulador Valora'!$Y$67),0)) -> 0 | T152: =IF(OR('Simulador Valora'!$AC$62=1,'Simulador Valora'!$AC$66=1),0,IFERROR(IF(B152<=0,0,IF('Simulador Valora'!$X$35=2,IF('Simulador Valora'!$K$24>0,'Simulador Valora'!$K$24,'Simulador Valora'!$K$41)*'Simulador Valora'!$Y$68,IF('Simulador Valora'!$X$35=1,IF('Simulador Valora'!$K$24>0,'Simulador Valora'!$K$24,'Simulador Valora'!$G$41)*'Simulador Valora'!$Y$68,0))),0)) -> 0 | V152: =F152*'Simulador Valora'!$X$59 -> 0 | AB152: 11 | AC152: 6 | AD152: 0 | AE152: 0 | AF152: 0 | AH152: 0.175 | AI152: 0 | AJ152: 0 | AK152: 0 | AL152: 0 | AM152: 0 | AN152: 0 | AP152: =IF(AJ152<=0,0,IF('Simulador Valora'!$AC$62=1,0,AJ152*'Simulador Valora'!$Y$67+IF('Simulador Valora'!$X$35=2,'Simulador Valora'!$G$49,IF('Simulador Valora'!$X$35=1,'Simulador Valora'!$K$49,0)))) -> 0 | AR152: =AL152*'Simulador Valora'!$X$59 -> 0 | AS152: 0 | AT152: 0 | AV152: 0 | AW152: 138
A153: 139 | B153: 0 | D153: 0 | F153: 0 | H153: 0 | L153: =IF('Simulador Valora'!$V$60=1,0,J153*'Simulador Valora'!$V$61*'Simulador Valora'!$W$59) -> 0 | P153: 0 | R153: =IF('Simulador Valora'!$AC$62=1,0,IFERROR(IF(B153<=0,0,B153*'Simulador Valora'!$Y$67),0)) -> 0 | T153: =IF(OR('Simulador Valora'!$AC$62=1,'Simulador Valora'!$AC$66=1),0,IFERROR(IF(B153<=0,0,IF('Simulador Valora'!$X$35=2,IF('Simulador Valora'!$K$24>0,'Simulador Valora'!$K$24,'Simulador Valora'!$K$41)*'Simulador Valora'!$Y$68,IF('Simulador Valora'!$X$35=1,IF('Simulador Valora'!$K$24>0,'Simulador Valora'!$K$24,'Simulador Valora'!$G$41)*'Simulador Valora'!$Y$68,0))),0)) -> 0 | V153: =F153*'Simulador Valora'!$X$59 -> 0 | AB153: 11 | AC153: 7 | AD153: 0 | AE153: 0 | AF153: 0 | AH153: 0.175 | AI153: 0 | AJ153: 0 | AK153: 0 | AL153: 0 | AM153: 0 | AN153: 0 | AP153: =IF(AJ153<=0,0,IF('Simulador Valora'!$AC$62=1,0,AJ153*'Simulador Valora'!$Y$67+IF('Simulador Valora'!$X$35=2,'Simulador Valora'!$G$49,IF('Simulador Valora'!$X$35=1,'Simulador Valora'!$K$49,0)))) -> 0 | AR153: =AL153*'Simulador Valora'!$X$59 -> 0 | AS153: 0 | AT153: 0 | AV153: 0 | AW153: 139
A154: 140 | B154: 0 | D154: 0 | F154: 0 | H154: 0 | L154: =IF('Simulador Valora'!$V$60=1,0,J154*'Simulador Valora'!$V$61*'Simulador Valora'!$W$59) -> 0 | P154: 0 | R154: =IF('Simulador Valora'!$AC$62=1,0,IFERROR(IF(B154<=0,0,B154*'Simulador Valora'!$Y$67),0)) -> 0 | T154: =IF(OR('Simulador Valora'!$AC$62=1,'Simulador Valora'!$AC$66=1),0,IFERROR(IF(B154<=0,0,IF('Simulador Valora'!$X$35=2,IF('Simulador Valora'!$K$24>0,'Simulador Valora'!$K$24,'Simulador Valora'!$K$41)*'Simulador Valora'!$Y$68,IF('Simulador Valora'!$X$35=1,IF('Simulador Valora'!$K$24>0,'Simulador Valora'!$K$24,'Simulador Valora'!$G$41)*'Simulador Valora'!$Y$68,0))),0)) -> 0 | V154: =F154*'Simulador Valora'!$X$59 -> 0 | AB154: 11 | AC154: 8 | AD154: 0 | AE154: 0 | AF154: 0 | AH154: 0.175 | AI154: 0 | AJ154: 0 | AK154: 0 | AL154: 0 | AM154: 0 | AN154: 0 | AP154: =IF(AJ154<=0,0,IF('Simulador Valora'!$AC$62=1,0,AJ154*'Simulador Valora'!$Y$67+IF('Simulador Valora'!$X$35=2,'Simulador Valora'!$G$49,IF('Simulador Valora'!$X$35=1,'Simulador Valora'!$K$49,0)))) -> 0 | AR154: =AL154*'Simulador Valora'!$X$59 -> 0 | AS154: 0 | AT154: 0 | AV154: 0 | AW154: 140
A155: 141 | B155: 0 | D155: 0 | F155: 0 | H155: 0 | L155: =IF('Simulador Valora'!$V$60=1,0,J155*'Simulador Valora'!$V$61*'Simulador Valora'!$W$59) -> 0 | P155: 0 | R155: =IF('Simulador Valora'!$AC$62=1,0,IFERROR(IF(B155<=0,0,B155*'Simulador Valora'!$Y$67),0)) -> 0 | T155: =IF(OR('Simulador Valora'!$AC$62=1,'Simulador Valora'!$AC$66=1),0,IFERROR(IF(B155<=0,0,IF('Simulador Valora'!$X$35=2,IF('Simulador Valora'!$K$24>0,'Simulador Valora'!$K$24,'Simulador Valora'!$K$41)*'Simulador Valora'!$Y$68,IF('Simulador Valora'!$X$35=1,IF('Simulador Valora'!$K$24>0,'Simulador Valora'!$K$24,'Simulador Valora'!$G$41)*'Simulador Valora'!$Y$68,0))),0)) -> 0 | V155: =F155*'Simulador Valora'!$X$59 -> 0 | AB155: 11 | AC155: 9 | AD155: 0 | AE155: 0 | AF155: 0 | AH155: 0.175 | AI155: 0 | AJ155: 0 | AK155: 0 | AL155: 0 | AM155: 0 | AN155: 0 | AP155: =IF(AJ155<=0,0,IF('Simulador Valora'!$AC$62=1,0,AJ155*'Simulador Valora'!$Y$67+IF('Simulador Valora'!$X$35=2,'Simulador Valora'!$G$49,IF('Simulador Valora'!$X$35=1,'Simulador Valora'!$K$49,0)))) -> 0 | AR155: =AL155*'Simulador Valora'!$X$59 -> 0 | AS155: 0 | AT155: 0 | AV155: 0 | AW155: 141
A156: 142 | B156: 0 | D156: 0 | F156: 0 | H156: 0 | L156: =IF('Simulador Valora'!$V$60=1,0,J156*'Simulador Valora'!$V$61*'Simulador Valora'!$W$59) -> 0 | P156: 0 | R156: =IF('Simulador Valora'!$AC$62=1,0,IFERROR(IF(B156<=0,0,B156*'Simulador Valora'!$Y$67),0)) -> 0 | T156: =IF(OR('Simulador Valora'!$AC$62=1,'Simulador Valora'!$AC$66=1),0,IFERROR(IF(B156<=0,0,IF('Simulador Valora'!$X$35=2,IF('Simulador Valora'!$K$24>0,'Simulador Valora'!$K$24,'Simulador Valora'!$K$41)*'Simulador Valora'!$Y$68,IF('Simulador Valora'!$X$35=1,IF('Simulador Valora'!$K$24>0,'Simulador Valora'!$K$24,'Simulador Valora'!$G$41)*'Simulador Valora'!$Y$68,0))),0)) -> 0 | V156: =F156*'Simulador Valora'!$X$59 -> 0 | AB156: 11 | AC156: 10 | AD156: 0 | AE156: 0 | AF156: 0 | AH156: 0.175 | AI156: 0 | AJ156: 0 | AK156: 0 | AL156: 0 | AM156: 0 | AN156: 0 | AP156: =IF(AJ156<=0,0,IF('Simulador Valora'!$AC$62=1,0,AJ156*'Simulador Valora'!$Y$67+IF('Simulador Valora'!$X$35=2,'Simulador Valora'!$G$49,IF('Simulador Valora'!$X$35=1,'Simulador Valora'!$K$49,0)))) -> 0 | AR156: =AL156*'Simulador Valora'!$X$59 -> 0 | AS156: 0 | AT156: 0 | AV156: 0 | AW156: 142
A157: 143 | B157: 0 | D157: 0 | F157: 0 | H157: 0 | L157: =IF('Simulador Valora'!$V$60=1,0,J157*'Simulador Valora'!$V$61*'Simulador Valora'!$W$59) -> 0 | P157: 0 | R157: =IF('Simulador Valora'!$AC$62=1,0,IFERROR(IF(B157<=0,0,B157*'Simulador Valora'!$Y$67),0)) -> 0 | T157: =IF(OR('Simulador Valora'!$AC$62=1,'Simulador Valora'!$AC$66=1),0,IFERROR(IF(B157<=0,0,IF('Simulador Valora'!$X$35=2,IF('Simulador Valora'!$K$24>0,'Simulador Valora'!$K$24,'Simulador Valora'!$K$41)*'Simulador Valora'!$Y$68,IF('Simulador Valora'!$X$35=1,IF('Simulador Valora'!$K$24>0,'Simulador Valora'!$K$24,'Simulador Valora'!$G$41)*'Simulador Valora'!$Y$68,0))),0)) -> 0 | V157: =F157*'Simulador Valora'!$X$59 -> 0 | AB157: 11 | AC157: 11 | AD157: 0 | AE157: 0 | AF157: 0 | AH157: 0.175 | AI157: 0 | AJ157: 0 | AK157: 0 | AL157: 0 | AM157: 0 | AN157: 0 | AP157: =IF(AJ157<=0,0,IF('Simulador Valora'!$AC$62=1,0,AJ157*'Simulador Valora'!$Y$67+IF('Simulador Valora'!$X$35=2,'Simulador Valora'!$G$49,IF('Simulador Valora'!$X$35=1,'Simulador Valora'!$K$49,0)))) -> 0 | AR157: =AL157*'Simulador Valora'!$X$59 -> 0 | AS157: 0 | AT157: 0 | AV157: 0 | AW157: 143
A158: 144 | B158: 0 | D158: 0 | F158: 0 | H158: 0 | L158: =IF('Simulador Valora'!$V$60=1,0,J158*'Simulador Valora'!$V$61*'Simulador Valora'!$W$59) -> 0 | P158: 0 | R158: =IF('Simulador Valora'!$AC$62=1,0,IFERROR(IF(B158<=0,0,B158*'Simulador Valora'!$Y$67),0)) -> 0 | T158: =IF(OR('Simulador Valora'!$AC$62=1,'Simulador Valora'!$AC$66=1),0,IFERROR(IF(B158<=0,0,IF('Simulador Valora'!$X$35=2,IF('Simulador Valora'!$K$24>0,'Simulador Valora'!$K$24,'Simulador Valora'!$K$41)*'Simulador Valora'!$Y$68,IF('Simulador Valora'!$X$35=1,IF('Simulador Valora'!$K$24>0,'Simulador Valora'!$K$24,'Simulador Valora'!$G$41)*'Simulador Valora'!$Y$68,0))),0)) -> 0 | V158: =F158*'Simulador Valora'!$X$59 -> 0 | AB158: 12 | AC158: 0 | AD158: 0 | AE158: 0 | AF158: 0 | AH158: 0.175 | AI158: 0 | AJ158: 0 | AK158: 0 | AL158: 0 | AM158: 0 | AN158: 0 | AP158: =IF(AJ158<=0,0,IF('Simulador Valora'!$AC$62=1,0,AJ158*'Simulador Valora'!$Y$67+IF('Simulador Valora'!$X$35=2,'Simulador Valora'!$G$49,IF('Simulador Valora'!$X$35=1,'Simulador Valora'!$K$49,0)))) -> 0 | AR158: =AL158*'Simulador Valora'!$X$59 -> 0 | AS158: 0 | AT158: 0 | AV158: 0 | AW158: 144
A159: 145 | B159: 0 | D159: 0 | F159: 0 | H159: 0 | L159: =IF('Simulador Valora'!$V$60=1,0,J159*'Simulador Valora'!$V$61*'Simulador Valora'!$W$59) -> 0 | P159: 0 | R159: =IF('Simulador Valora'!$AC$62=1,0,IFERROR(IF(B159<=0,0,B159*'Simulador Valora'!$Y$67),0)) -> 0 | T159: =IF(OR('Simulador Valora'!$AC$62=1,'Simulador Valora'!$AC$66=1),0,IFERROR(IF(B159<=0,0,IF('Simulador Valora'!$X$35=2,IF('Simulador Valora'!$K$24>0,'Simulador Valora'!$K$24,'Simulador Valora'!$K$41)*'Simulador Valora'!$Y$68,IF('Simulador Valora'!$X$35=1,IF('Simulador Valora'!$K$24>0,'Simulador Valora'!$K$24,'Simulador Valora'!$G$41)*'Simulador Valora'!$Y$68,0))),0)) -> 0 | V159: =F159*'Simulador Valora'!$X$59 -> 0 | Z159: =IF(B159<=0,0,IF(AND('Simulador Valora'!$V$40=2,'Simulador Valora'!$X$35=4),0,'Simulador Valora'!$AM$48)) -> 0 | AB159: 12 | AC159: 1 | AD159: 0 | AE159: 0 | AF159: 0 | AH159: =IF(AH158=$AO$3,$AO$3,IF(AH158=$AO$3,AH158,IF(AH158-0.25%<=$AO$3,$AO$3,AH158-0.25%))) -> 0.175 | AI159: 0 | AJ159: 0 | AK159: 0 | AL159: 0 | AM159: 0 | AN159: 0 | AP159: =IF(AJ159<=0,0,IF('Simulador Valora'!$AC$62=1,0,AJ159*'Simulador Valora'!$Y$67+IF('Simulador Valora'!$X$35=2,'Simulador Valora'!$G$49,IF('Simulador Valora'!$X$35=1,'Simulador Valora'!$K$49,0)))) -> 0 | AQ159: =IF(AJ159<=0,0,$AQ$27) -> 0 | AR159: =AL159*'Simulador Valora'!$X$59 -> 0 | AS159: 0 | AT159: 0 | AV159: 0 | AW159: 145
A160: 146 | B160: 0 | D160: 0 | F160: 0 | H160: 0 | L160: =IF('Simulador Valora'!$V$60=1,0,J160*'Simulador Valora'!$V$61*'Simulador Valora'!$W$59) -> 0 | P160: 0 | R160: =IF('Simulador Valora'!$AC$62=1,0,IFERROR(IF(B160<=0,0,B160*'Simulador Valora'!$Y$67),0)) -> 0 | T160: =IF(OR('Simulador Valora'!$AC$62=1,'Simulador Valora'!$AC$66=1),0,IFERROR(IF(B160<=0,0,IF('Simulador Valora'!$X$35=2,IF('Simulador Valora'!$K$24>0,'Simulador Valora'!$K$24,'Simulador Valora'!$K$41)*'Simulador Valora'!$Y$68,IF('Simulador Valora'!$X$35=1,IF('Simulador Valora'!$K$24>0,'Simulador Valora'!$K$24,'Simulador Valora'!$G$41)*'Simulador Valora'!$Y$68,0))),0)) -> 0 | V160: =F160*'Simulador Valora'!$X$59 -> 0 | AB160: 12 | AC160: 2 | AD160: 0 | AE160: 0 | AF160: 0 | AH160: =AH159 -> 0.175 | AI160: 0 | AJ160: 0 | AK160: 0 | AL160: 0 | AM160: 0 | AN160: 0 | AP160: =IF(AJ160<=0,0,IF('Simulador Valora'!$AC$62=1,0,AJ160*'Simulador Valora'!$Y$67+IF('Simulador Valora'!$X$35=2,'Simulador Valora'!$G$49,IF('Simulador Valora'!$X$35=1,'Simulador Valora'!$K$49,0)))) -> 0 | AR160: =AL160*'Simulador Valora'!$X$59 -> 0 | AS160: 0 | AT160: 0 | AV160: 0 | AW160: 146
A161: 147 | B161: 0 | D161: 0 | F161: 0 | H161: 0 | L161: =IF('Simulador Valora'!$V$60=1,0,J161*'Simulador Valora'!$V$61*'Simulador Valora'!$W$59) -> 0 | P161: 0 | R161: =IF('Simulador Valora'!$AC$62=1,0,IFERROR(IF(B161<=0,0,B161*'Simulador Valora'!$Y$67),0)) -> 0 | T161: =IF(OR('Simulador Valora'!$AC$62=1,'Simulador Valora'!$AC$66=1),0,IFERROR(IF(B161<=0,0,IF('Simulador Valora'!$X$35=2,IF('Simulador Valora'!$K$24>0,'Simulador Valora'!$K$24,'Simulador Valora'!$K$41)*'Simulador Valora'!$Y$68,IF('Simulador Valora'!$X$35=1,IF('Simulador Valora'!$K$24>0,'Simulador Valora'!$K$24,'Simulador Valora'!$G$41)*'Simulador Valora'!$Y$68,0))),0)) -> 0 | V161: =F161*'Simulador Valora'!$X$59 -> 0 | AB161: 12 | AC161: 3 | AD161: 0 | AE161: 0 | AF161: 0 | AH161: =AH160 -> 0.175 | AI161: 0 | AJ161: 0 | AK161: 0 | AL161: 0 | AM161: 0 | AN161: 0 | AP161: =IF(AJ161<=0,0,IF('Simulador Valora'!$AC$62=1,0,AJ161*'Simulador Valora'!$Y$67+IF('Simulador Valora'!$X$35=2,'Simulador Valora'!$G$49,IF('Simulador Valora'!$X$35=1,'Simulador Valora'!$K$49,0)))) -> 0 | AR161: =AL161*'Simulador Valora'!$X$59 -> 0 | AS161: 0 | AT161: 0 | AV161: 0 | AW161: 147
A162: 148 | B162: 0 | D162: 0 | F162: 0 | H162: 0 | L162: =IF('Simulador Valora'!$V$60=1,0,J162*'Simulador Valora'!$V$61*'Simulador Valora'!$W$59) -> 0 | P162: 0 | R162: =IF('Simulador Valora'!$AC$62=1,0,IFERROR(IF(B162<=0,0,B162*'Simulador Valora'!$Y$67),0)) -> 0 | T162: =IF(OR('Simulador Valora'!$AC$62=1,'Simulador Valora'!$AC$66=1),0,IFERROR(IF(B162<=0,0,IF('Simulador Valora'!$X$35=2,IF('Simulador Valora'!$K$24>0,'Simulador Valora'!$K$24,'Simulador Valora'!$K$41)*'Simulador Valora'!$Y$68,IF('Simulador Valora'!$X$35=1,IF('Simulador Valora'!$K$24>0,'Simulador Valora'!$K$24,'Simulador Valora'!$G$41)*'Simulador Valora'!$Y$68,0))),0)) -> 0 | V162: =F162*'Simulador Valora'!$X$59 -> 0 | AB162: 12 | AC162: 4 | AD162: 0 | AE162: 0 | AF162: 0 | AH162: 0.175 | AI162: 0 | AJ162: 0 | AK162: 0 | AL162: 0 | AM162: 0 | AN162: 0 | AP162: =IF(AJ162<=0,0,IF('Simulador Valora'!$AC$62=1,0,AJ162*'Simulador Valora'!$Y$67+IF('Simulador Valora'!$X$35=2,'Simulador Valora'!$G$49,IF('Simulador Valora'!$X$35=1,'Simulador Valora'!$K$49,0)))) -> 0 | AR162: =AL162*'Simulador Valora'!$X$59 -> 0 | AS162: 0 | AT162: 0 | AV162: 0 | AW162: 148
A163: 149 | B163: 0 | D163: 0 | F163: 0 | H163: 0 | L163: =IF('Simulador Valora'!$V$60=1,0,J163*'Simulador Valora'!$V$61*'Simulador Valora'!$W$59) -> 0 | P163: 0 | R163: =IF('Simulador Valora'!$AC$62=1,0,IFERROR(IF(B163<=0,0,B163*'Simulador Valora'!$Y$67),0)) -> 0 | T163: =IF(OR('Simulador Valora'!$AC$62=1,'Simulador Valora'!$AC$66=1),0,IFERROR(IF(B163<=0,0,IF('Simulador Valora'!$X$35=2,IF('Simulador Valora'!$K$24>0,'Simulador Valora'!$K$24,'Simulador Valora'!$K$41)*'Simulador Valora'!$Y$68,IF('Simulador Valora'!$X$35=1,IF('Simulador Valora'!$K$24>0,'Simulador Valora'!$K$24,'Simulador Valora'!$G$41)*'Simulador Valora'!$Y$68,0))),0)) -> 0 | V163: =F163*'Simulador Valora'!$X$59 -> 0 | AB163: 12 | AC163: 5 | AD163: 0 | AE163: 0 | AF163: 0 | AH163: 0.175 | AI163: 0 | AJ163: 0 | AK163: 0 | AL163: 0 | AM163: 0 | AN163: 0 | AP163: =IF(AJ163<=0,0,IF('Simulador Valora'!$AC$62=1,0,AJ163*'Simulador Valora'!$Y$67+IF('Simulador Valora'!$X$35=2,'Simulador Valora'!$G$49,IF('Simulador Valora'!$X$35=1,'Simulador Valora'!$K$49,0)))) -> 0 | AR163: =AL163*'Simulador Valora'!$X$59 -> 0 | AS163: 0 | AT163: 0 | AV163: 0 | AW163: 149
A164: 150 | B164: 0 | D164: 0 | F164: 0 | H164: 0 | L164: =IF('Simulador Valora'!$V$60=1,0,J164*'Simulador Valora'!$V$61*'Simulador Valora'!$W$59) -> 0 | P164: 0 | R164: =IF('Simulador Valora'!$AC$62=1,0,IFERROR(IF(B164<=0,0,B164*'Simulador Valora'!$Y$67),0)) -> 0 | T164: =IF(OR('Simulador Valora'!$AC$62=1,'Simulador Valora'!$AC$66=1),0,IFERROR(IF(B164<=0,0,IF('Simulador Valora'!$X$35=2,IF('Simulador Valora'!$K$24>0,'Simulador Valora'!$K$24,'Simulador Valora'!$K$41)*'Simulador Valora'!$Y$68,IF('Simulador Valora'!$X$35=1,IF('Simulador Valora'!$K$24>0,'Simulador Valora'!$K$24,'Simulador Valora'!$G$41)*'Simulador Valora'!$Y$68,0))),0)) -> 0 | V164: =F164*'Simulador Valora'!$X$59 -> 0 | AB164: 12 | AC164: 6 | AD164: 0 | AE164: 0 | AF164: 0 | AH164: 0.175 | AI164: 0 | AJ164: 0 | AK164: 0 | AL164: 0 | AM164: 0 | AN164: 0 | AP164: =IF(AJ164<=0,0,IF('Simulador Valora'!$AC$62=1,0,AJ164*'Simulador Valora'!$Y$67+IF('Simulador Valora'!$X$35=2,'Simulador Valora'!$G$49,IF('Simulador Valora'!$X$35=1,'Simulador Valora'!$K$49,0)))) -> 0 | AR164: =AL164*'Simulador Valora'!$X$59 -> 0 | AS164: 0 | AT164: 0 | AV164: 0 | AW164: 150
A165: 151 | B165: 0 | D165: 0 | F165: 0 | H165: 0 | L165: =IF('Simulador Valora'!$V$60=1,0,J165*'Simulador Valora'!$V$61*'Simulador Valora'!$W$59) -> 0 | P165: 0 | R165: =IF('Simulador Valora'!$AC$62=1,0,IFERROR(IF(B165<=0,0,B165*'Simulador Valora'!$Y$67),0)) -> 0 | T165: =IF(OR('Simulador Valora'!$AC$62=1,'Simulador Valora'!$AC$66=1),0,IFERROR(IF(B165<=0,0,IF('Simulador Valora'!$X$35=2,IF('Simulador Valora'!$K$24>0,'Simulador Valora'!$K$24,'Simulador Valora'!$K$41)*'Simulador Valora'!$Y$68,IF('Simulador Valora'!$X$35=1,IF('Simulador Valora'!$K$24>0,'Simulador Valora'!$K$24,'Simulador Valora'!$G$41)*'Simulador Valora'!$Y$68,0))),0)) -> 0 | V165: =F165*'Simulador Valora'!$X$59 -> 0 | AB165: 12 | AC165: 7 | AD165: 0 | AE165: 0 | AF165: 0 | AH165: 0.175 | AI165: 0 | AJ165: 0 | AK165: 0 | AL165: 0 | AM165: 0 | AN165: 0 | AP165: =IF(AJ165<=0,0,IF('Simulador Valora'!$AC$62=1,0,AJ165*'Simulador Valora'!$Y$67+IF('Simulador Valora'!$X$35=2,'Simulador Valora'!$G$49,IF('Simulador Valora'!$X$35=1,'Simulador Valora'!$K$49,0)))) -> 0 | AR165: =AL165*'Simulador Valora'!$X$59 -> 0 | AS165: 0 | AT165: 0 | AV165: 0 | AW165: 151
A166: 152 | B166: 0 | D166: 0 | F166: 0 | H166: 0 | L166: =IF('Simulador Valora'!$V$60=1,0,J166*'Simulador Valora'!$V$61*'Simulador Valora'!$W$59) -> 0 | P166: 0 | R166: =IF('Simulador Valora'!$AC$62=1,0,IFERROR(IF(B166<=0,0,B166*'Simulador Valora'!$Y$67),0)) -> 0 | T166: =IF(OR('Simulador Valora'!$AC$62=1,'Simulador Valora'!$AC$66=1),0,IFERROR(IF(B166<=0,0,IF('Simulador Valora'!$X$35=2,IF('Simulador Valora'!$K$24>0,'Simulador Valora'!$K$24,'Simulador Valora'!$K$41)*'Simulador Valora'!$Y$68,IF('Simulador Valora'!$X$35=1,IF('Simulador Valora'!$K$24>0,'Simulador Valora'!$K$24,'Simulador Valora'!$G$41)*'Simulador Valora'!$Y$68,0))),0)) -> 0 | V166: =F166*'Simulador Valora'!$X$59 -> 0 | AB166: 12 | AC166: 8 | AD166: 0 | AE166: 0 | AF166: 0 | AH166: 0.175 | AI166: 0 | AJ166: 0 | AK166: 0 | AL166: 0 | AM166: 0 | AN166: 0 | AP166: =IF(AJ166<=0,0,IF('Simulador Valora'!$AC$62=1,0,AJ166*'Simulador Valora'!$Y$67+IF('Simulador Valora'!$X$35=2,'Simulador Valora'!$G$49,IF('Simulador Valora'!$X$35=1,'Simulador Valora'!$K$49,0)))) -> 0 | AR166: =AL166*'Simulador Valora'!$X$59 -> 0 | AS166: 0 | AT166: 0 | AV166: 0 | AW166: 152
A167: 153 | B167: 0 | D167: 0 | F167: 0 | H167: 0 | L167: =IF('Simulador Valora'!$V$60=1,0,J167*'Simulador Valora'!$V$61*'Simulador Valora'!$W$59) -> 0 | P167: 0 | R167: =IF('Simulador Valora'!$AC$62=1,0,IFERROR(IF(B167<=0,0,B167*'Simulador Valora'!$Y$67),0)) -> 0 | T167: =IF(OR('Simulador Valora'!$AC$62=1,'Simulador Valora'!$AC$66=1),0,IFERROR(IF(B167<=0,0,IF('Simulador Valora'!$X$35=2,IF('Simulador Valora'!$K$24>0,'Simulador Valora'!$K$24,'Simulador Valora'!$K$41)*'Simulador Valora'!$Y$68,IF('Simulador Valora'!$X$35=1,IF('Simulador Valora'!$K$24>0,'Simulador Valora'!$K$24,'Simulador Valora'!$G$41)*'Simulador Valora'!$Y$68,0))),0)) -> 0 | V167: =F167*'Simulador Valora'!$X$59 -> 0 | AB167: 12 | AC167: 9 | AD167: 0 | AE167: 0 | AF167: 0 | AH167: 0.175 | AI167: 0 | AJ167: 0 | AK167: 0 | AL167: 0 | AM167: 0 | AN167: 0 | AP167: =IF(AJ167<=0,0,IF('Simulador Valora'!$AC$62=1,0,AJ167*'Simulador Valora'!$Y$67+IF('Simulador Valora'!$X$35=2,'Simulador Valora'!$G$49,IF('Simulador Valora'!$X$35=1,'Simulador Valora'!$K$49,0)))) -> 0 | AR167: =AL167*'Simulador Valora'!$X$59 -> 0 | AS167: 0 | AT167: 0 | AV167: 0 | AW167: 153
A168: 154 | B168: 0 | D168: 0 | F168: 0 | H168: 0 | L168: =IF('Simulador Valora'!$V$60=1,0,J168*'Simulador Valora'!$V$61*'Simulador Valora'!$W$59) -> 0 | P168: 0 | R168: =IF('Simulador Valora'!$AC$62=1,0,IFERROR(IF(B168<=0,0,B168*'Simulador Valora'!$Y$67),0)) -> 0 | T168: =IF(OR('Simulador Valora'!$AC$62=1,'Simulador Valora'!$AC$66=1),0,IFERROR(IF(B168<=0,0,IF('Simulador Valora'!$X$35=2,IF('Simulador Valora'!$K$24>0,'Simulador Valora'!$K$24,'Simulador Valora'!$K$41)*'Simulador Valora'!$Y$68,IF('Simulador Valora'!$X$35=1,IF('Simulador Valora'!$K$24>0,'Simulador Valora'!$K$24,'Simulador Valora'!$G$41)*'Simulador Valora'!$Y$68,0))),0)) -> 0 | V168: =F168*'Simulador Valora'!$X$59 -> 0 | AB168: 12 | AC168: 10 | AD168: 0 | AE168: 0 | AF168: 0 | AH168: 0.175 | AI168: 0 | AJ168: 0 | AK168: 0 | AL168: 0 | AM168: 0 | AN168: 0 | AP168: =IF(AJ168<=0,0,IF('Simulador Valora'!$AC$62=1,0,AJ168*'Simulador Valora'!$Y$67+IF('Simulador Valora'!$X$35=2,'Simulador Valora'!$G$49,IF('Simulador Valora'!$X$35=1,'Simulador Valora'!$K$49,0)))) -> 0 | AR168: =AL168*'Simulador Valora'!$X$59 -> 0 | AS168: 0 | AT168: 0 | AV168: 0 | AW168: 154
A169: 155 | B169: 0 | D169: 0 | F169: 0 | H169: 0 | L169: =IF('Simulador Valora'!$V$60=1,0,J169*'Simulador Valora'!$V$61*'Simulador Valora'!$W$59) -> 0 | P169: 0 | R169: =IF('Simulador Valora'!$AC$62=1,0,IFERROR(IF(B169<=0,0,B169*'Simulador Valora'!$Y$67),0)) -> 0 | T169: =IF(OR('Simulador Valora'!$AC$62=1,'Simulador Valora'!$AC$66=1),0,IFERROR(IF(B169<=0,0,IF('Simulador Valora'!$X$35=2,IF('Simulador Valora'!$K$24>0,'Simulador Valora'!$K$24,'Simulador Valora'!$K$41)*'Simulador Valora'!$Y$68,IF('Simulador Valora'!$X$35=1,IF('Simulador Valora'!$K$24>0,'Simulador Valora'!$K$24,'Simulador Valora'!$G$41)*'Simulador Valora'!$Y$68,0))),0)) -> 0 | V169: =F169*'Simulador Valora'!$X$59 -> 0 | AB169: 12 | AC169: 11 | AD169: 0 | AE169: 0 | AF169: 0 | AH169: 0.175 | AI169: 0 | AJ169: 0 | AK169: 0 | AL169: 0 | AM169: 0 | AN169: 0 | AP169: =IF(AJ169<=0,0,IF('Simulador Valora'!$AC$62=1,0,AJ169*'Simulador Valora'!$Y$67+IF('Simulador Valora'!$X$35=2,'Simulador Valora'!$G$49,IF('Simulador Valora'!$X$35=1,'Simulador Valora'!$K$49,0)))) -> 0 | AR169: =AL169*'Simulador Valora'!$X$59 -> 0 | AS169: 0 | AT169: 0 | AV169: 0 | AW169: 155
A170: 156 | B170: 0 | D170: 0 | F170: 0 | H170: 0 | L170: =IF('Simulador Valora'!$V$60=1,0,J170*'Simulador Valora'!$V$61*'Simulador Valora'!$W$59) -> 0 | P170: 0 | R170: =IF('Simulador Valora'!$AC$62=1,0,IFERROR(IF(B170<=0,0,B170*'Simulador Valora'!$Y$67),0)) -> 0 | T170: =IF(OR('Simulador Valora'!$AC$62=1,'Simulador Valora'!$AC$66=1),0,IFERROR(IF(B170<=0,0,IF('Simulador Valora'!$X$35=2,IF('Simulador Valora'!$K$24>0,'Simulador Valora'!$K$24,'Simulador Valora'!$K$41)*'Simulador Valora'!$Y$68,IF('Simulador Valora'!$X$35=1,IF('Simulador Valora'!$K$24>0,'Simulador Valora'!$K$24,'Simulador Valora'!$G$41)*'Simulador Valora'!$Y$68,0))),0)) -> 0 | V170: =F170*'Simulador Valora'!$X$59 -> 0 | AB170: 13 | AC170: 0 | AD170: 0 | AE170: 0 | AF170: 0 | AH170: 0.175 | AI170: 0 | AJ170: 0 | AK170: 0 | AL170: 0 | AM170: 0 | AN170: 0 | AP170: =IF(AJ170<=0,0,IF('Simulador Valora'!$AC$62=1,0,AJ170*'Simulador Valora'!$Y$67+IF('Simulador Valora'!$X$35=2,'Simulador Valora'!$G$49,IF('Simulador Valora'!$X$35=1,'Simulador Valora'!$K$49,0)))) -> 0 | AR170: =AL170*'Simulador Valora'!$X$59 -> 0 | AS170: 0 | AT170: 0 | AV170: 0 | AW170: 156
A171: 157 | B171: 0 | D171: 0 | F171: 0 | H171: 0 | L171: =IF('Simulador Valora'!$V$60=1,0,J171*'Simulador Valora'!$V$61*'Simulador Valora'!$W$59) -> 0 | P171: 0 | R171: =IF('Simulador Valora'!$AC$62=1,0,IFERROR(IF(B171<=0,0,B171*'Simulador Valora'!$Y$67),0)) -> 0 | T171: =IF(OR('Simulador Valora'!$AC$62=1,'Simulador Valora'!$AC$66=1),0,IFERROR(IF(B171<=0,0,IF('Simulador Valora'!$X$35=2,IF('Simulador Valora'!$K$24>0,'Simulador Valora'!$K$24,'Simulador Valora'!$K$41)*'Simulador Valora'!$Y$68,IF('Simulador Valora'!$X$35=1,IF('Simulador Valora'!$K$24>0,'Simulador Valora'!$K$24,'Simulador Valora'!$G$41)*'Simulador Valora'!$Y$68,0))),0)) -> 0 | V171: =F171*'Simulador Valora'!$X$59 -> 0 | Z171: =IF(B171<=0,0,IF(AND('Simulador Valora'!$V$40=2,'Simulador Valora'!$X$35=4),0,'Simulador Valora'!$AM$48)) -> 0 | AB171: 13 | AC171: 1 | AD171: 0 | AE171: 0 | AF171: 0 | AH171: =IF(AH170=$AO$3,$AO$3,IF(AH170=$AO$3,AH170,IF(AH170-0.25%<=$AO$3,$AO$3,AH170-0.25%))) -> 0.175 | AI171: 0 | AJ171: 0 | AK171: 0 | AL171: 0 | AM171: 0 | AN171: 0 | AP171: =IF(AJ171<=0,0,IF('Simulador Valora'!$AC$62=1,0,AJ171*'Simulador Valora'!$Y$67+IF('Simulador Valora'!$X$35=2,'Simulador Valora'!$G$49,IF('Simulador Valora'!$X$35=1,'Simulador Valora'!$K$49,0)))) -> 0 | AQ171: =IF(AJ171<=0,0,$AQ$27) -> 0 | AR171: =AL171*'Simulador Valora'!$X$59 -> 0 | AS171: 0 | AT171: 0 | AV171: 0 | AW171: 157
A172: 158 | B172: 0 | D172: 0 | F172: 0 | H172: 0 | L172: =IF('Simulador Valora'!$V$60=1,0,J172*'Simulador Valora'!$V$61*'Simulador Valora'!$W$59) -> 0 | P172: 0 | R172: =IF('Simulador Valora'!$AC$62=1,0,IFERROR(IF(B172<=0,0,B172*'Simulador Valora'!$Y$67),0)) -> 0 | T172: =IF(OR('Simulador Valora'!$AC$62=1,'Simulador Valora'!$AC$66=1),0,IFERROR(IF(B172<=0,0,IF('Simulador Valora'!$X$35=2,IF('Simulador Valora'!$K$24>0,'Simulador Valora'!$K$24,'Simulador Valora'!$K$41)*'Simulador Valora'!$Y$68,IF('Simulador Valora'!$X$35=1,IF('Simulador Valora'!$K$24>0,'Simulador Valora'!$K$24,'Simulador Valora'!$G$41)*'Simulador Valora'!$Y$68,0))),0)) -> 0 | V172: =F172*'Simulador Valora'!$X$59 -> 0 | AB172: 13 | AC172: 2 | AD172: 0 | AE172: 0 | AF172: 0 | AH172: =AH171 -> 0.175 | AI172: 0 | AJ172: 0 | AK172: 0 | AL172: 0 | AM172: 0 | AN172: 0 | AP172: =IF(AJ172<=0,0,IF('Simulador Valora'!$AC$62=1,0,AJ172*'Simulador Valora'!$Y$67+IF('Simulador Valora'!$X$35=2,'Simulador Valora'!$G$49,IF('Simulador Valora'!$X$35=1,'Simulador Valora'!$K$49,0)))) -> 0 | AR172: =AL172*'Simulador Valora'!$X$59 -> 0 | AS172: 0 | AT172: 0 | AV172: 0 | AW172: 158
A173: 159 | B173: 0 | D173: 0 | F173: 0 | H173: 0 | L173: =IF('Simulador Valora'!$V$60=1,0,J173*'Simulador Valora'!$V$61*'Simulador Valora'!$W$59) -> 0 | P173: 0 | R173: =IF('Simulador Valora'!$AC$62=1,0,IFERROR(IF(B173<=0,0,B173*'Simulador Valora'!$Y$67),0)) -> 0 | T173: =IF(OR('Simulador Valora'!$AC$62=1,'Simulador Valora'!$AC$66=1),0,IFERROR(IF(B173<=0,0,IF('Simulador Valora'!$X$35=2,IF('Simulador Valora'!$K$24>0,'Simulador Valora'!$K$24,'Simulador Valora'!$K$41)*'Simulador Valora'!$Y$68,IF('Simulador Valora'!$X$35=1,IF('Simulador Valora'!$K$24>0,'Simulador Valora'!$K$24,'Simulador Valora'!$G$41)*'Simulador Valora'!$Y$68,0))),0)) -> 0 | V173: =F173*'Simulador Valora'!$X$59 -> 0 | AB173: 13 | AC173: 3 | AD173: 0 | AE173: 0 | AF173: 0 | AH173: =AH172 -> 0.175 | AI173: 0 | AJ173: 0 | AK173: 0 | AL173: 0 | AM173: 0 | AN173: 0 | AP173: =IF(AJ173<=0,0,IF('Simulador Valora'!$AC$62=1,0,AJ173*'Simulador Valora'!$Y$67+IF('Simulador Valora'!$X$35=2,'Simulador Valora'!$G$49,IF('Simulador Valora'!$X$35=1,'Simulador Valora'!$K$49,0)))) -> 0 | AR173: =AL173*'Simulador Valora'!$X$59 -> 0 | AS173: 0 | AT173: 0 | AV173: 0 | AW173: 159
A174: 160 | B174: 0 | D174: 0 | F174: 0 | H174: 0 | L174: =IF('Simulador Valora'!$V$60=1,0,J174*'Simulador Valora'!$V$61*'Simulador Valora'!$W$59) -> 0 | P174: 0 | R174: =IF('Simulador Valora'!$AC$62=1,0,IFERROR(IF(B174<=0,0,B174*'Simulador Valora'!$Y$67),0)) -> 0 | T174: =IF(OR('Simulador Valora'!$AC$62=1,'Simulador Valora'!$AC$66=1),0,IFERROR(IF(B174<=0,0,IF('Simulador Valora'!$X$35=2,IF('Simulador Valora'!$K$24>0,'Simulador Valora'!$K$24,'Simulador Valora'!$K$41)*'Simulador Valora'!$Y$68,IF('Simulador Valora'!$X$35=1,IF('Simulador Valora'!$K$24>0,'Simulador Valora'!$K$24,'Simulador Valora'!$G$41)*'Simulador Valora'!$Y$68,0))),0)) -> 0 | V174: =F174*'Simulador Valora'!$X$59 -> 0 | AB174: 13 | AC174: 4 | AD174: 0 | AE174: 0 | AF174: 0 | AH174: 0.175 | AI174: 0 | AJ174: 0 | AK174: 0 | AL174: 0 | AM174: 0 | AN174: 0 | AP174: =IF(AJ174<=0,0,IF('Simulador Valora'!$AC$62=1,0,AJ174*'Simulador Valora'!$Y$67+IF('Simulador Valora'!$X$35=2,'Simulador Valora'!$G$49,IF('Simulador Valora'!$X$35=1,'Simulador Valora'!$K$49,0)))) -> 0 | AR174: =AL174*'Simulador Valora'!$X$59 -> 0 | AS174: 0 | AT174: 0 | AV174: 0 | AW174: 160
A175: 161 | B175: 0 | D175: 0 | F175: 0 | H175: 0 | L175: =IF('Simulador Valora'!$V$60=1,0,J175*'Simulador Valora'!$V$61*'Simulador Valora'!$W$59) -> 0 | P175: 0 | R175: =IF('Simulador Valora'!$AC$62=1,0,IFERROR(IF(B175<=0,0,B175*'Simulador Valora'!$Y$67),0)) -> 0 | T175: =IF(OR('Simulador Valora'!$AC$62=1,'Simulador Valora'!$AC$66=1),0,IFERROR(IF(B175<=0,0,IF('Simulador Valora'!$X$35=2,IF('Simulador Valora'!$K$24>0,'Simulador Valora'!$K$24,'Simulador Valora'!$K$41)*'Simulador Valora'!$Y$68,IF('Simulador Valora'!$X$35=1,IF('Simulador Valora'!$K$24>0,'Simulador Valora'!$K$24,'Simulador Valora'!$G$41)*'Simulador Valora'!$Y$68,0))),0)) -> 0 | V175: =F175*'Simulador Valora'!$X$59 -> 0 | AB175: 13 | AC175: 5 | AD175: 0 | AE175: 0 | AF175: 0 | AH175: 0.175 | AI175: 0 | AJ175: 0 | AK175: 0 | AL175: 0 | AM175: 0 | AN175: 0 | AP175: =IF(AJ175<=0,0,IF('Simulador Valora'!$AC$62=1,0,AJ175*'Simulador Valora'!$Y$67+IF('Simulador Valora'!$X$35=2,'Simulador Valora'!$G$49,IF('Simulador Valora'!$X$35=1,'Simulador Valora'!$K$49,0)))) -> 0 | AR175: =AL175*'Simulador Valora'!$X$59 -> 0 | AS175: 0 | AT175: 0 | AV175: 0 | AW175: 161
A176: 162 | B176: 0 | D176: 0 | F176: 0 | H176: 0 | L176: =IF('Simulador Valora'!$V$60=1,0,J176*'Simulador Valora'!$V$61*'Simulador Valora'!$W$59) -> 0 | P176: 0 | R176: =IF('Simulador Valora'!$AC$62=1,0,IFERROR(IF(B176<=0,0,B176*'Simulador Valora'!$Y$67),0)) -> 0 | T176: =IF(OR('Simulador Valora'!$AC$62=1,'Simulador Valora'!$AC$66=1),0,IFERROR(IF(B176<=0,0,IF('Simulador Valora'!$X$35=2,IF('Simulador Valora'!$K$24>0,'Simulador Valora'!$K$24,'Simulador Valora'!$K$41)*'Simulador Valora'!$Y$68,IF('Simulador Valora'!$X$35=1,IF('Simulador Valora'!$K$24>0,'Simulador Valora'!$K$24,'Simulador Valora'!$G$41)*'Simulador Valora'!$Y$68,0))),0)) -> 0 | V176: =F176*'Simulador Valora'!$X$59 -> 0 | AB176: 13 | AC176: 6 | AD176: 0 | AE176: 0 | AF176: 0 | AH176: 0.175 | AI176: 0 | AJ176: 0 | AK176: 0 | AL176: 0 | AM176: 0 | AN176: 0 | AP176: =IF(AJ176<=0,0,IF('Simulador Valora'!$AC$62=1,0,AJ176*'Simulador Valora'!$Y$67+IF('Simulador Valora'!$X$35=2,'Simulador Valora'!$G$49,IF('Simulador Valora'!$X$35=1,'Simulador Valora'!$K$49,0)))) -> 0 | AR176: =AL176*'Simulador Valora'!$X$59 -> 0 | AS176: 0 | AT176: 0 | AV176: 0 | AW176: 162
A177: 163 | B177: 0 | D177: 0 | F177: 0 | H177: 0 | L177: =IF('Simulador Valora'!$V$60=1,0,J177*'Simulador Valora'!$V$61*'Simulador Valora'!$W$59) -> 0 | P177: 0 | R177: =IF('Simulador Valora'!$AC$62=1,0,IFERROR(IF(B177<=0,0,B177*'Simulador Valora'!$Y$67),0)) -> 0 | T177: =IF(OR('Simulador Valora'!$AC$62=1,'Simulador Valora'!$AC$66=1),0,IFERROR(IF(B177<=0,0,IF('Simulador Valora'!$X$35=2,IF('Simulador Valora'!$K$24>0,'Simulador Valora'!$K$24,'Simulador Valora'!$K$41)*'Simulador Valora'!$Y$68,IF('Simulador Valora'!$X$35=1,IF('Simulador Valora'!$K$24>0,'Simulador Valora'!$K$24,'Simulador Valora'!$G$41)*'Simulador Valora'!$Y$68,0))),0)) -> 0 | V177: =F177*'Simulador Valora'!$X$59 -> 0 | AB177: 13 | AC177: 7 | AD177: 0 | AE177: 0 | AF177: 0 | AH177: 0.175 | AI177: 0 | AJ177: 0 | AK177: 0 | AL177: 0 | AM177: 0 | AN177: 0 | AP177: =IF(AJ177<=0,0,IF('Simulador Valora'!$AC$62=1,0,AJ177*'Simulador Valora'!$Y$67+IF('Simulador Valora'!$X$35=2,'Simulador Valora'!$G$49,IF('Simulador Valora'!$X$35=1,'Simulador Valora'!$K$49,0)))) -> 0 | AR177: =AL177*'Simulador Valora'!$X$59 -> 0 | AS177: 0 | AT177: 0 | AV177: 0 | AW177: 163
A178: 164 | B178: 0 | D178: 0 | F178: 0 | H178: 0 | L178: =IF('Simulador Valora'!$V$60=1,0,J178*'Simulador Valora'!$V$61*'Simulador Valora'!$W$59) -> 0 | P178: 0 | R178: =IF('Simulador Valora'!$AC$62=1,0,IFERROR(IF(B178<=0,0,B178*'Simulador Valora'!$Y$67),0)) -> 0 | T178: =IF(OR('Simulador Valora'!$AC$62=1,'Simulador Valora'!$AC$66=1),0,IFERROR(IF(B178<=0,0,IF('Simulador Valora'!$X$35=2,IF('Simulador Valora'!$K$24>0,'Simulador Valora'!$K$24,'Simulador Valora'!$K$41)*'Simulador Valora'!$Y$68,IF('Simulador Valora'!$X$35=1,IF('Simulador Valora'!$K$24>0,'Simulador Valora'!$K$24,'Simulador Valora'!$G$41)*'Simulador Valora'!$Y$68,0))),0)) -> 0 | V178: =F178*'Simulador Valora'!$X$59 -> 0 | AB178: 13 | AC178: 8 | AD178: 0 | AE178: 0 | AF178: 0 | AH178: 0.175 | AI178: 0 | AJ178: 0 | AK178: 0 | AL178: 0 | AM178: 0 | AN178: 0 | AP178: =IF(AJ178<=0,0,IF('Simulador Valora'!$AC$62=1,0,AJ178*'Simulador Valora'!$Y$67+IF('Simulador Valora'!$X$35=2,'Simulador Valora'!$G$49,IF('Simulador Valora'!$X$35=1,'Simulador Valora'!$K$49,0)))) -> 0 | AR178: =AL178*'Simulador Valora'!$X$59 -> 0 | AS178: 0 | AT178: 0 | AV178: 0 | AW178: 164
A179: 165 | B179: 0 | D179: 0 | F179: 0 | H179: 0 | L179: =IF('Simulador Valora'!$V$60=1,0,J179*'Simulador Valora'!$V$61*'Simulador Valora'!$W$59) -> 0 | P179: 0 | R179: =IF('Simulador Valora'!$AC$62=1,0,IFERROR(IF(B179<=0,0,B179*'Simulador Valora'!$Y$67),0)) -> 0 | T179: =IF(OR('Simulador Valora'!$AC$62=1,'Simulador Valora'!$AC$66=1),0,IFERROR(IF(B179<=0,0,IF('Simulador Valora'!$X$35=2,IF('Simulador Valora'!$K$24>0,'Simulador Valora'!$K$24,'Simulador Valora'!$K$41)*'Simulador Valora'!$Y$68,IF('Simulador Valora'!$X$35=1,IF('Simulador Valora'!$K$24>0,'Simulador Valora'!$K$24,'Simulador Valora'!$G$41)*'Simulador Valora'!$Y$68,0))),0)) -> 0 | V179: =F179*'Simulador Valora'!$X$59 -> 0 | AB179: 13 | AC179: 9 | AD179: 0 | AE179: 0 | AF179: 0 | AH179: 0.175 | AI179: 0 | AJ179: 0 | AK179: 0 | AL179: 0 | AM179: 0 | AN179: 0 | AP179: =IF(AJ179<=0,0,IF('Simulador Valora'!$AC$62=1,0,AJ179*'Simulador Valora'!$Y$67+IF('Simulador Valora'!$X$35=2,'Simulador Valora'!$G$49,IF('Simulador Valora'!$X$35=1,'Simulador Valora'!$K$49,0)))) -> 0 | AR179: =AL179*'Simulador Valora'!$X$59 -> 0 | AS179: 0 | AT179: 0 | AV179: 0 | AW179: 165
A180: 166 | B180: 0 | D180: 0 | F180: 0 | H180: 0 | L180: =IF('Simulador Valora'!$V$60=1,0,J180*'Simulador Valora'!$V$61*'Simulador Valora'!$W$59) -> 0 | P180: 0 | R180: =IF('Simulador Valora'!$AC$62=1,0,IFERROR(IF(B180<=0,0,B180*'Simulador Valora'!$Y$67),0)) -> 0 | T180: =IF(OR('Simulador Valora'!$AC$62=1,'Simulador Valora'!$AC$66=1),0,IFERROR(IF(B180<=0,0,IF('Simulador Valora'!$X$35=2,IF('Simulador Valora'!$K$24>0,'Simulador Valora'!$K$24,'Simulador Valora'!$K$41)*'Simulador Valora'!$Y$68,IF('Simulador Valora'!$X$35=1,IF('Simulador Valora'!$K$24>0,'Simulador Valora'!$K$24,'Simulador Valora'!$G$41)*'Simulador Valora'!$Y$68,0))),0)) -> 0 | V180: =F180*'Simulador Valora'!$X$59 -> 0 | AB180: 13 | AC180: 10 | AD180: 0 | AE180: 0 | AF180: 0 | AH180: 0.175 | AI180: 0 | AJ180: 0 | AK180: 0 | AL180: 0 | AM180: 0 | AN180: 0 | AP180: =IF(AJ180<=0,0,IF('Simulador Valora'!$AC$62=1,0,AJ180*'Simulador Valora'!$Y$67+IF('Simulador Valora'!$X$35=2,'Simulador Valora'!$G$49,IF('Simulador Valora'!$X$35=1,'Simulador Valora'!$K$49,0)))) -> 0 | AR180: =AL180*'Simulador Valora'!$X$59 -> 0 | AS180: 0 | AT180: 0 | AV180: 0 | AW180: 166
A181: 167 | B181: 0 | D181: 0 | F181: 0 | H181: 0 | L181: =IF('Simulador Valora'!$V$60=1,0,J181*'Simulador Valora'!$V$61*'Simulador Valora'!$W$59) -> 0 | P181: 0 | R181: =IF('Simulador Valora'!$AC$62=1,0,IFERROR(IF(B181<=0,0,B181*'Simulador Valora'!$Y$67),0)) -> 0 | T181: =IF(OR('Simulador Valora'!$AC$62=1,'Simulador Valora'!$AC$66=1),0,IFERROR(IF(B181<=0,0,IF('Simulador Valora'!$X$35=2,IF('Simulador Valora'!$K$24>0,'Simulador Valora'!$K$24,'Simulador Valora'!$K$41)*'Simulador Valora'!$Y$68,IF('Simulador Valora'!$X$35=1,IF('Simulador Valora'!$K$24>0,'Simulador Valora'!$K$24,'Simulador Valora'!$G$41)*'Simulador Valora'!$Y$68,0))),0)) -> 0 | V181: =F181*'Simulador Valora'!$X$59 -> 0 | AB181: 13 | AC181: 11 | AD181: 0 | AE181: 0 | AF181: 0 | AH181: 0.175 | AI181: 0 | AJ181: 0 | AK181: 0 | AL181: 0 | AM181: 0 | AN181: 0 | AP181: =IF(AJ181<=0,0,IF('Simulador Valora'!$AC$62=1,0,AJ181*'Simulador Valora'!$Y$67+IF('Simulador Valora'!$X$35=2,'Simulador Valora'!$G$49,IF('Simulador Valora'!$X$35=1,'Simulador Valora'!$K$49,0)))) -> 0 | AR181: =AL181*'Simulador Valora'!$X$59 -> 0 | AS181: 0 | AT181: 0 | AV181: 0 | AW181: 167
A182: 168 | B182: 0 | D182: 0 | F182: 0 | H182: 0 | L182: =IF('Simulador Valora'!$V$60=1,0,J182*'Simulador Valora'!$V$61*'Simulador Valora'!$W$59) -> 0 | P182: 0 | R182: =IF('Simulador Valora'!$AC$62=1,0,IFERROR(IF(B182<=0,0,B182*'Simulador Valora'!$Y$67),0)) -> 0 | T182: =IF(OR('Simulador Valora'!$AC$62=1,'Simulador Valora'!$AC$66=1),0,IFERROR(IF(B182<=0,0,IF('Simulador Valora'!$X$35=2,IF('Simulador Valora'!$K$24>0,'Simulador Valora'!$K$24,'Simulador Valora'!$K$41)*'Simulador Valora'!$Y$68,IF('Simulador Valora'!$X$35=1,IF('Simulador Valora'!$K$24>0,'Simulador Valora'!$K$24,'Simulador Valora'!$G$41)*'Simulador Valora'!$Y$68,0))),0)) -> 0 | V182: =F182*'Simulador Valora'!$X$59 -> 0 | AB182: 14 | AC182: 0 | AD182: 0 | AE182: 0 | AF182: 0 | AH182: 0.175 | AI182: 0 | AJ182: 0 | AK182: 0 | AL182: 0 | AM182: 0 | AN182: 0 | AP182: =IF(AJ182<=0,0,IF('Simulador Valora'!$AC$62=1,0,AJ182*'Simulador Valora'!$Y$67+IF('Simulador Valora'!$X$35=2,'Simulador Valora'!$G$49,IF('Simulador Valora'!$X$35=1,'Simulador Valora'!$K$49,0)))) -> 0 | AR182: =AL182*'Simulador Valora'!$X$59 -> 0 | AS182: 0 | AT182: 0 | AV182: 0 | AW182: 168
A183: 169 | B183: 0 | D183: 0 | F183: 0 | H183: 0 | L183: =IF('Simulador Valora'!$V$60=1,0,J183*'Simulador Valora'!$V$61*'Simulador Valora'!$W$59) -> 0 | P183: 0 | R183: =IF('Simulador Valora'!$AC$62=1,0,IFERROR(IF(B183<=0,0,B183*'Simulador Valora'!$Y$67),0)) -> 0 | T183: =IF(OR('Simulador Valora'!$AC$62=1,'Simulador Valora'!$AC$66=1),0,IFERROR(IF(B183<=0,0,IF('Simulador Valora'!$X$35=2,IF('Simulador Valora'!$K$24>0,'Simulador Valora'!$K$24,'Simulador Valora'!$K$41)*'Simulador Valora'!$Y$68,IF('Simulador Valora'!$X$35=1,IF('Simulador Valora'!$K$24>0,'Simulador Valora'!$K$24,'Simulador Valora'!$G$41)*'Simulador Valora'!$Y$68,0))),0)) -> 0 | V183: =F183*'Simulador Valora'!$X$59 -> 0 | Z183: =IF(B183<=0,0,IF(AND('Simulador Valora'!$V$40=2,'Simulador Valora'!$X$35=4),0,'Simulador Valora'!$AM$48)) -> 0 | AB183: 14 | AC183: 1 | AD183: 0 | AE183: 0 | AF183: 0 | AH183: =IF(AH182=$AO$3,$AO$3,IF(AH182=$AO$3,AH182,IF(AH182-0.25%<=$AO$3,$AO$3,AH182-0.25%))) -> 0.175 | AI183: 0 | AJ183: 0 | AK183: 0 | AL183: 0 | AM183: 0 | AN183: 0 | AP183: =IF(AJ183<=0,0,IF('Simulador Valora'!$AC$62=1,0,AJ183*'Simulador Valora'!$Y$67+IF('Simulador Valora'!$X$35=2,'Simulador Valora'!$G$49,IF('Simulador Valora'!$X$35=1,'Simulador Valora'!$K$49,0)))) -> 0 | AQ183: =IF(AJ183<=0,0,$AQ$27) -> 0 | AR183: =AL183*'Simulador Valora'!$X$59 -> 0 | AS183: 0 | AT183: 0 | AV183: 0 | AW183: 169
A184: 170 | B184: 0 | D184: 0 | F184: 0 | H184: 0 | L184: =IF('Simulador Valora'!$V$60=1,0,J184*'Simulador Valora'!$V$61*'Simulador Valora'!$W$59) -> 0 | P184: 0 | R184: =IF('Simulador Valora'!$AC$62=1,0,IFERROR(IF(B184<=0,0,B184*'Simulador Valora'!$Y$67),0)) -> 0 | T184: =IF(OR('Simulador Valora'!$AC$62=1,'Simulador Valora'!$AC$66=1),0,IFERROR(IF(B184<=0,0,IF('Simulador Valora'!$X$35=2,IF('Simulador Valora'!$K$24>0,'Simulador Valora'!$K$24,'Simulador Valora'!$K$41)*'Simulador Valora'!$Y$68,IF('Simulador Valora'!$X$35=1,IF('Simulador Valora'!$K$24>0,'Simulador Valora'!$K$24,'Simulador Valora'!$G$41)*'Simulador Valora'!$Y$68,0))),0)) -> 0 | V184: =F184*'Simulador Valora'!$X$59 -> 0 | AB184: 14 | AC184: 2 | AD184: 0 | AE184: 0 | AF184: 0 | AH184: =AH183 -> 0.175 | AI184: 0 | AJ184: 0 | AK184: 0 | AL184: 0 | AM184: 0 | AN184: 0 | AP184: =IF(AJ184<=0,0,IF('Simulador Valora'!$AC$62=1,0,AJ184*'Simulador Valora'!$Y$67+IF('Simulador Valora'!$X$35=2,'Simulador Valora'!$G$49,IF('Simulador Valora'!$X$35=1,'Simulador Valora'!$K$49,0)))) -> 0 | AR184: =AL184*'Simulador Valora'!$X$59 -> 0 | AS184: 0 | AT184: 0 | AV184: 0 | AW184: 170
A185: 171 | B185: 0 | D185: 0 | F185: =IFERROR(IF(B185=0,0,N185/360*AV185*B185),0) -> 0 | H185: 0 | L185: =IF('Simulador Valora'!$V$60=1,0,J185*'Simulador Valora'!$V$61*'Simulador Valora'!$W$59) -> 0 | P185: 0 | R185: =IF('Simulador Valora'!$AC$62=1,0,IFERROR(IF(B185<=0,0,B185*'Simulador Valora'!$Y$67),0)) -> 0 | T185: =IF(OR('Simulador Valora'!$AC$62=1,'Simulador Valora'!$AC$66=1),0,IFERROR(IF(B185<=0,0,IF('Simulador Valora'!$X$35=2,IF('Simulador Valora'!$K$24>0,'Simulador Valora'!$K$24,'Simulador Valora'!$K$41)*'Simulador Valora'!$Y$68,IF('Simulador Valora'!$X$35=1,IF('Simulador Valora'!$K$24>0,'Simulador Valora'!$K$24,'Simulador Valora'!$G$41)*'Simulador Valora'!$Y$68,0))),0)) -> 0 | V185: =F185*'Simulador Valora'!$X$59 -> 0 | AB185: 14 | AC185: 3 | AD185: 0 | AE185: 0 | AF185: 0 | AH185: =AH184 -> 0.175 | AI185: 0 | AJ185: 0 | AK185: 0 | AL185: 0 | AM185: 0 | AN185: 0 | AP185: =IF(AJ185<=0,0,IF('Simulador Valora'!$AC$62=1,0,AJ185*'Simulador Valora'!$Y$67+IF('Simulador Valora'!$X$35=2,'Simulador Valora'!$G$49,IF('Simulador Valora'!$X$35=1,'Simulador Valora'!$K$49,0)))) -> 0 | AR185: =AL185*'Simulador Valora'!$X$59 -> 0 | AS185: 0 | AT185: 0 | AV185: 0 | AW185: 171
A186: 172 | B186: 0 | D186: 0 | F186: 0 | H186: 0 | L186: =IF('Simulador Valora'!$V$60=1,0,J186*'Simulador Valora'!$V$61*'Simulador Valora'!$W$59) -> 0 | P186: 0 | R186: =IF('Simulador Valora'!$AC$62=1,0,IFERROR(IF(B186<=0,0,B186*'Simulador Valora'!$Y$67),0)) -> 0 | T186: =IF(OR('Simulador Valora'!$AC$62=1,'Simulador Valora'!$AC$66=1),0,IFERROR(IF(B186<=0,0,IF('Simulador Valora'!$X$35=2,IF('Simulador Valora'!$K$24>0,'Simulador Valora'!$K$24,'Simulador Valora'!$K$41)*'Simulador Valora'!$Y$68,IF('Simulador Valora'!$X$35=1,IF('Simulador Valora'!$K$24>0,'Simulador Valora'!$K$24,'Simulador Valora'!$G$41)*'Simulador Valora'!$Y$68,0))),0)) -> 0 | V186: =F186*'Simulador Valora'!$X$59 -> 0 | AB186: 14 | AC186: 4 | AD186: 0 | AE186: 0 | AF186: 0 | AH186: 0.175 | AI186: 0 | AJ186: 0 | AK186: 0 | AL186: 0 | AM186: 0 | AN186: 0 | AP186: =IF(AJ186<=0,0,IF('Simulador Valora'!$AC$62=1,0,AJ186*'Simulador Valora'!$Y$67+IF('Simulador Valora'!$X$35=2,'Simulador Valora'!$G$49,IF('Simulador Valora'!$X$35=1,'Simulador Valora'!$K$49,0)))) -> 0 | AR186: =AL186*'Simulador Valora'!$X$59 -> 0 | AS186: 0 | AT186: 0 | AV186: 0 | AW186: 172
A187: 173 | B187: 0 | D187: 0 | F187: 0 | H187: 0 | L187: =IF('Simulador Valora'!$V$60=1,0,J187*'Simulador Valora'!$V$61*'Simulador Valora'!$W$59) -> 0 | P187: 0 | R187: =IF('Simulador Valora'!$AC$62=1,0,IFERROR(IF(B187<=0,0,B187*'Simulador Valora'!$Y$67),0)) -> 0 | T187: =IF(OR('Simulador Valora'!$AC$62=1,'Simulador Valora'!$AC$66=1),0,IFERROR(IF(B187<=0,0,IF('Simulador Valora'!$X$35=2,IF('Simulador Valora'!$K$24>0,'Simulador Valora'!$K$24,'Simulador Valora'!$K$41)*'Simulador Valora'!$Y$68,IF('Simulador Valora'!$X$35=1,IF('Simulador Valora'!$K$24>0,'Simulador Valora'!$K$24,'Simulador Valora'!$G$41)*'Simulador Valora'!$Y$68,0))),0)) -> 0 | V187: =F187*'Simulador Valora'!$X$59 -> 0 | AB187: 14 | AC187: 5 | AD187: 0 | AE187: 0 | AF187: 0 | AH187: 0.175 | AI187: 0 | AJ187: 0 | AK187: 0 | AL187: 0 | AM187: 0 | AN187: 0 | AP187: =IF(AJ187<=0,0,IF('Simulador Valora'!$AC$62=1,0,AJ187*'Simulador Valora'!$Y$67+IF('Simulador Valora'!$X$35=2,'Simulador Valora'!$G$49,IF('Simulador Valora'!$X$35=1,'Simulador Valora'!$K$49,0)))) -> 0 | AR187: =AL187*'Simulador Valora'!$X$59 -> 0 | AS187: 0 | AT187: 0 | AV187: 0 | AW187: 173
A188: 174 | B188: 0 | D188: 0 | F188: 0 | H188: 0 | L188: =IF('Simulador Valora'!$V$60=1,0,J188*'Simulador Valora'!$V$61*'Simulador Valora'!$W$59) -> 0 | P188: 0 | R188: =IF('Simulador Valora'!$AC$62=1,0,IFERROR(IF(B188<=0,0,B188*'Simulador Valora'!$Y$67),0)) -> 0 | T188: =IF(OR('Simulador Valora'!$AC$62=1,'Simulador Valora'!$AC$66=1),0,IFERROR(IF(B188<=0,0,IF('Simulador Valora'!$X$35=2,IF('Simulador Valora'!$K$24>0,'Simulador Valora'!$K$24,'Simulador Valora'!$K$41)*'Simulador Valora'!$Y$68,IF('Simulador Valora'!$X$35=1,IF('Simulador Valora'!$K$24>0,'Simulador Valora'!$K$24,'Simulador Valora'!$G$41)*'Simulador Valora'!$Y$68,0))),0)) -> 0 | V188: =F188*'Simulador Valora'!$X$59 -> 0 | AB188: 14 | AC188: 6 | AD188: 0 | AE188: 0 | AF188: 0 | AH188: 0.175 | AI188: 0 | AJ188: 0 | AK188: 0 | AL188: 0 | AM188: 0 | AN188: 0 | AP188: =IF(AJ188<=0,0,IF('Simulador Valora'!$AC$62=1,0,AJ188*'Simulador Valora'!$Y$67+IF('Simulador Valora'!$X$35=2,'Simulador Valora'!$G$49,IF('Simulador Valora'!$X$35=1,'Simulador Valora'!$K$49,0)))) -> 0 | AR188: =AL188*'Simulador Valora'!$X$59 -> 0 | AS188: 0 | AT188: 0 | AV188: 0 | AW188: 174
A189: 175 | B189: 0 | D189: 0 | F189: 0 | H189: 0 | L189: =IF('Simulador Valora'!$V$60=1,0,J189*'Simulador Valora'!$V$61*'Simulador Valora'!$W$59) -> 0 | P189: 0 | R189: =IF('Simulador Valora'!$AC$62=1,0,IFERROR(IF(B189<=0,0,B189*'Simulador Valora'!$Y$67),0)) -> 0 | T189: =IF(OR('Simulador Valora'!$AC$62=1,'Simulador Valora'!$AC$66=1),0,IFERROR(IF(B189<=0,0,IF('Simulador Valora'!$X$35=2,IF('Simulador Valora'!$K$24>0,'Simulador Valora'!$K$24,'Simulador Valora'!$K$41)*'Simulador Valora'!$Y$68,IF('Simulador Valora'!$X$35=1,IF('Simulador Valora'!$K$24>0,'Simulador Valora'!$K$24,'Simulador Valora'!$G$41)*'Simulador Valora'!$Y$68,0))),0)) -> 0 | V189: =F189*'Simulador Valora'!$X$59 -> 0 | AB189: 14 | AC189: 7 | AD189: 0 | AE189: 0 | AF189: 0 | AH189: 0.175 | AI189: 0 | AJ189: 0 | AK189: 0 | AL189: 0 | AM189: 0 | AN189: 0 | AP189: =IF(AJ189<=0,0,IF('Simulador Valora'!$AC$62=1,0,AJ189*'Simulador Valora'!$Y$67+IF('Simulador Valora'!$X$35=2,'Simulador Valora'!$G$49,IF('Simulador Valora'!$X$35=1,'Simulador Valora'!$K$49,0)))) -> 0 | AR189: =AL189*'Simulador Valora'!$X$59 -> 0 | AS189: 0 | AT189: 0 | AV189: 0 | AW189: 175
A190: 176 | B190: 0 | D190: 0 | F190: 0 | H190: 0 | L190: =IF('Simulador Valora'!$V$60=1,0,J190*'Simulador Valora'!$V$61*'Simulador Valora'!$W$59) -> 0 | P190: 0 | R190: =IF('Simulador Valora'!$AC$62=1,0,IFERROR(IF(B190<=0,0,B190*'Simulador Valora'!$Y$67),0)) -> 0 | T190: =IF(OR('Simulador Valora'!$AC$62=1,'Simulador Valora'!$AC$66=1),0,IFERROR(IF(B190<=0,0,IF('Simulador Valora'!$X$35=2,IF('Simulador Valora'!$K$24>0,'Simulador Valora'!$K$24,'Simulador Valora'!$K$41)*'Simulador Valora'!$Y$68,IF('Simulador Valora'!$X$35=1,IF('Simulador Valora'!$K$24>0,'Simulador Valora'!$K$24,'Simulador Valora'!$G$41)*'Simulador Valora'!$Y$68,0))),0)) -> 0 | V190: =F190*'Simulador Valora'!$X$59 -> 0 | AB190: 14 | AC190: 8 | AD190: 0 | AE190: 0 | AF190: 0 | AH190: 0.175 | AI190: 0 | AJ190: 0 | AK190: 0 | AL190: 0 | AM190: 0 | AN190: 0 | AP190: =IF(AJ190<=0,0,IF('Simulador Valora'!$AC$62=1,0,AJ190*'Simulador Valora'!$Y$67+IF('Simulador Valora'!$X$35=2,'Simulador Valora'!$G$49,IF('Simulador Valora'!$X$35=1,'Simulador Valora'!$K$49,0)))) -> 0 | AR190: =AL190*'Simulador Valora'!$X$59 -> 0 | AS190: 0 | AT190: 0 | AV190: 0 | AW190: 176
A191: 177 | B191: 0 | D191: 0 | F191: 0 | H191: 0 | L191: =IF('Simulador Valora'!$V$60=1,0,J191*'Simulador Valora'!$V$61*'Simulador Valora'!$W$59) -> 0 | P191: 0 | R191: =IF('Simulador Valora'!$AC$62=1,0,IFERROR(IF(B191<=0,0,B191*'Simulador Valora'!$Y$67),0)) -> 0 | T191: =IF(OR('Simulador Valora'!$AC$62=1,'Simulador Valora'!$AC$66=1),0,IFERROR(IF(B191<=0,0,IF('Simulador Valora'!$X$35=2,IF('Simulador Valora'!$K$24>0,'Simulador Valora'!$K$24,'Simulador Valora'!$K$41)*'Simulador Valora'!$Y$68,IF('Simulador Valora'!$X$35=1,IF('Simulador Valora'!$K$24>0,'Simulador Valora'!$K$24,'Simulador Valora'!$G$41)*'Simulador Valora'!$Y$68,0))),0)) -> 0 | V191: =F191*'Simulador Valora'!$X$59 -> 0 | AB191: 14 | AC191: 9 | AD191: 0 | AE191: 0 | AF191: 0 | AH191: 0.175 | AI191: 0 | AJ191: 0 | AK191: 0 | AL191: 0 | AM191: 0 | AN191: 0 | AP191: =IF(AJ191<=0,0,IF('Simulador Valora'!$AC$62=1,0,AJ191*'Simulador Valora'!$Y$67+IF('Simulador Valora'!$X$35=2,'Simulador Valora'!$G$49,IF('Simulador Valora'!$X$35=1,'Simulador Valora'!$K$49,0)))) -> 0 | AR191: =AL191*'Simulador Valora'!$X$59 -> 0 | AS191: 0 | AT191: 0 | AV191: 0 | AW191: 177
A192: 178 | B192: 0 | D192: 0 | F192: 0 | H192: 0 | L192: =IF('Simulador Valora'!$V$60=1,0,J192*'Simulador Valora'!$V$61*'Simulador Valora'!$W$59) -> 0 | P192: 0 | R192: =IF('Simulador Valora'!$AC$62=1,0,IFERROR(IF(B192<=0,0,B192*'Simulador Valora'!$Y$67),0)) -> 0 | T192: =IF(OR('Simulador Valora'!$AC$62=1,'Simulador Valora'!$AC$66=1),0,IFERROR(IF(B192<=0,0,IF('Simulador Valora'!$X$35=2,IF('Simulador Valora'!$K$24>0,'Simulador Valora'!$K$24,'Simulador Valora'!$K$41)*'Simulador Valora'!$Y$68,IF('Simulador Valora'!$X$35=1,IF('Simulador Valora'!$K$24>0,'Simulador Valora'!$K$24,'Simulador Valora'!$G$41)*'Simulador Valora'!$Y$68,0))),0)) -> 0 | V192: =F192*'Simulador Valora'!$X$59 -> 0 | AB192: 14 | AC192: 10 | AD192: 0 | AE192: 0 | AF192: 0 | AH192: 0.175 | AI192: 0 | AJ192: 0 | AK192: 0 | AL192: 0 | AM192: 0 | AN192: 0 | AP192: =IF(AJ192<=0,0,IF('Simulador Valora'!$AC$62=1,0,AJ192*'Simulador Valora'!$Y$67+IF('Simulador Valora'!$X$35=2,'Simulador Valora'!$G$49,IF('Simulador Valora'!$X$35=1,'Simulador Valora'!$K$49,0)))) -> 0 | AR192: =AL192*'Simulador Valora'!$X$59 -> 0 | AS192: 0 | AT192: 0 | AV192: 0 | AW192: 178
A193: 179 | B193: 0 | D193: 0 | F193: 0 | H193: 0 | L193: =IF('Simulador Valora'!$V$60=1,0,J193*'Simulador Valora'!$V$61*'Simulador Valora'!$W$59) -> 0 | P193: 0 | R193: =IF('Simulador Valora'!$AC$62=1,0,IFERROR(IF(B193<=0,0,B193*'Simulador Valora'!$Y$67),0)) -> 0 | T193: =IF(OR('Simulador Valora'!$AC$62=1,'Simulador Valora'!$AC$66=1),0,IFERROR(IF(B193<=0,0,IF('Simulador Valora'!$X$35=2,IF('Simulador Valora'!$K$24>0,'Simulador Valora'!$K$24,'Simulador Valora'!$K$41)*'Simulador Valora'!$Y$68,IF('Simulador Valora'!$X$35=1,IF('Simulador Valora'!$K$24>0,'Simulador Valora'!$K$24,'Simulador Valora'!$G$41)*'Simulador Valora'!$Y$68,0))),0)) -> 0 | V193: =F193*'Simulador Valora'!$X$59 -> 0 | AB193: 14 | AC193: 11 | AD193: 0 | AE193: 0 | AF193: 0 | AH193: 0.175 | AI193: 0 | AJ193: 0 | AK193: 0 | AL193: 0 | AM193: 0 | AN193: 0 | AP193: =IF(AJ193<=0,0,IF('Simulador Valora'!$AC$62=1,0,AJ193*'Simulador Valora'!$Y$67+IF('Simulador Valora'!$X$35=2,'Simulador Valora'!$G$49,IF('Simulador Valora'!$X$35=1,'Simulador Valora'!$K$49,0)))) -> 0 | AR193: =AL193*'Simulador Valora'!$X$59 -> 0 | AS193: 0 | AT193: 0 | AV193: 0 | AW193: 179
A194: 180 | B194: 0 | D194: 0 | F194: 0 | H194: 0 | L194: =IF('Simulador Valora'!$V$60=1,0,J194*'Simulador Valora'!$V$61*'Simulador Valora'!$W$59) -> 0 | P194: 0 | R194: =IF('Simulador Valora'!$AC$62=1,0,IFERROR(IF(B194<=0,0,B194*'Simulador Valora'!$Y$67),0)) -> 0 | T194: =IF(OR('Simulador Valora'!$AC$62=1,'Simulador Valora'!$AC$66=1),0,IFERROR(IF(B194<=0,0,IF('Simulador Valora'!$X$35=2,IF('Simulador Valora'!$K$24>0,'Simulador Valora'!$K$24,'Simulador Valora'!$K$41)*'Simulador Valora'!$Y$68,IF('Simulador Valora'!$X$35=1,IF('Simulador Valora'!$K$24>0,'Simulador Valora'!$K$24,'Simulador Valora'!$G$41)*'Simulador Valora'!$Y$68,0))),0)) -> 0 | V194: =F194*'Simulador Valora'!$X$59 -> 0 | AB194: 15 | AC194: 0 | AD194: 0 | AE194: 0 | AF194: 0 | AH194: 0.175 | AI194: 0 | AJ194: 0 | AK194: 0 | AL194: 0 | AM194: 0 | AN194: 0 | AP194: =IF(AJ194<=0,0,IF('Simulador Valora'!$AC$62=1,0,AJ194*'Simulador Valora'!$Y$67+IF('Simulador Valora'!$X$35=2,'Simulador Valora'!$G$49,IF('Simulador Valora'!$X$35=1,'Simulador Valora'!$K$49,0)))) -> 0 | AR194: =AL194*'Simulador Valora'!$X$59 -> 0 | AS194: 0 | AT194: 0 | AV194: 0 | AW194: 180
A195: 181 | B195: 0 | D195: 0 | F195: 0 | H195: 0 | L195: =IF('Simulador Valora'!$V$60=1,0,J195*'Simulador Valora'!$V$61*'Simulador Valora'!$W$59) -> 0 | P195: 0 | R195: =IF('Simulador Valora'!$AC$62=1,0,IFERROR(IF(B195<=0,0,B195*'Simulador Valora'!$Y$67),0)) -> 0 | T195: =IF('Simulador Valora'!$AC$62=1,0,IFERROR(IF(B195<=0,0,IF('Simulador Valora'!$X$35=2,IF('Simulador Valora'!$K$24>0,'Simulador Valora'!$K$24,'Simulador Valora'!$K$41)*'Simulador Valora'!$Y$68,IF('Simulador Valora'!$X$35=3,IF('Simulador Valora'!$K$24>0,'Simulador Valora'!$K$24,'Simulador Valora'!$G$41)*'Simulador Valora'!$Y$68,0))),0)) -> 0 | V195: =F195*'Simulador Valora'!$X$59 -> 0 | Z195: =IF(B195<=0,0,IF(AND('Simulador Valora'!$V$40=2,'Simulador Valora'!$X$35=4),0,'Simulador Valora'!$AM$48)) -> 0 | AB195: 15 | AC195: 1 | AD195: 0 | AE195: 0 | AF195: 0 | AH195: =IF(AH194=$AO$3,AH194,IF(AH194-0.25%<=$AO$3,$AO$3,AH194-0.25%)) -> 0.175 | AI195: 0 | AJ195: 0 | AK195: 0 | AL195: 0 | AM195: 0 | AN195: 0 | AP195: =IF(AJ195<=0,0,IF('Simulador Valora'!$AC$62=1,0,AJ195*'Simulador Valora'!$Y$67+IF('Simulador Valora'!$X$35=3,'Simulador Valora'!$G$49,IF('Simulador Valora'!$X$35=2,'Simulador Valora'!$K$49,0)))) -> 0 | AQ195: =IF(AJ195<=0,0,$AQ$27) -> 0 | AR195: =AL195*'Simulador Valora'!$X$59 -> 0 | AS195: =AL195+AM195+AP195 -> 0 | AT195: 0 | AV195: 0 | AW195: 181
A196: 182 | B196: 0 | D196: 0 | F196: 0 | H196: 0 | L196: =IF('Simulador Valora'!$V$60=1,0,J196*'Simulador Valora'!$V$61*'Simulador Valora'!$W$59) -> 0 | P196: 0 | R196: =IF('Simulador Valora'!$AC$62=1,0,IFERROR(IF(B196<=0,0,B196*'Simulador Valora'!$Y$67),0)) -> 0 | T196: =IF('Simulador Valora'!$AC$62=1,0,IFERROR(IF(B196<=0,0,IF('Simulador Valora'!$X$35=2,IF('Simulador Valora'!$K$24>0,'Simulador Valora'!$K$24,'Simulador Valora'!$K$41)*'Simulador Valora'!$Y$68,IF('Simulador Valora'!$X$35=3,IF('Simulador Valora'!$K$24>0,'Simulador Valora'!$K$24,'Simulador Valora'!$G$41)*'Simulador Valora'!$Y$68,0))),0)) -> 0 | V196: =F196*'Simulador Valora'!$X$59 -> 0 | AB196: 15 | AC196: 2 | AD196: 0 | AE196: 0 | AF196: 0 | AH196: =AH195 -> 0.175 | AI196: 0 | AJ196: 0 | AK196: 0 | AL196: 0 | AM196: 0 | AN196: 0 | AP196: =IF(AJ196<=0,0,IF('Simulador Valora'!$AC$62=1,0,AJ196*'Simulador Valora'!$Y$67+IF('Simulador Valora'!$X$35=3,'Simulador Valora'!$G$49,IF('Simulador Valora'!$X$35=2,'Simulador Valora'!$K$49,0)))) -> 0 | AR196: =AL196*'Simulador Valora'!$X$59 -> 0 | AS196: 0 | AT196: 0 | AV196: 0 | AW196: 182
A197: 183 | B197: 0 | D197: 0 | F197: 0 | H197: 0 | L197: =IF('Simulador Valora'!$V$60=1,0,J197*'Simulador Valora'!$V$61*'Simulador Valora'!$W$59) -> 0 | P197: 0 | R197: =IF('Simulador Valora'!$AC$62=1,0,IFERROR(IF(B197<=0,0,B197*'Simulador Valora'!$Y$67),0)) -> 0 | T197: =IF('Simulador Valora'!$AC$62=1,0,IFERROR(IF(B197<=0,0,IF('Simulador Valora'!$X$35=2,IF('Simulador Valora'!$K$24>0,'Simulador Valora'!$K$24,'Simulador Valora'!$K$41)*'Simulador Valora'!$Y$68,IF('Simulador Valora'!$X$35=3,IF('Simulador Valora'!$K$24>0,'Simulador Valora'!$K$24,'Simulador Valora'!$G$41)*'Simulador Valora'!$Y$68,0))),0)) -> 0 | V197: =F197*'Simulador Valora'!$X$59 -> 0 | AB197: 15 | AC197: 3 | AD197: 0 | AE197: 0 | AF197: 0 | AH197: =AH196 -> 0.175 | AI197: 0 | AJ197: 0 | AK197: 0 | AL197: 0 | AM197: 0 | AN197: 0 | AP197: =IF(AJ197<=0,0,IF('Simulador Valora'!$AC$62=1,0,AJ197*'Simulador Valora'!$Y$67+IF('Simulador Valora'!$X$35=3,'Simulador Valora'!$G$49,IF('Simulador Valora'!$X$35=2,'Simulador Valora'!$K$49,0)))) -> 0 | AR197: =AL197*'Simulador Valora'!$X$59 -> 0 | AS197: 0 | AT197: 0 | AV197: 0 | AW197: 183
A198: 184 | B198: 0 | D198: 0 | F198: 0 | H198: 0 | L198: =IF('Simulador Valora'!$V$60=1,0,J198*'Simulador Valora'!$V$61*'Simulador Valora'!$W$59) -> 0 | P198: 0 | R198: =IF('Simulador Valora'!$AC$62=1,0,IFERROR(IF(B198<=0,0,B198*'Simulador Valora'!$Y$67),0)) -> 0 | T198: =IF('Simulador Valora'!$AC$62=1,0,IFERROR(IF(B198<=0,0,IF('Simulador Valora'!$X$35=2,IF('Simulador Valora'!$K$24>0,'Simulador Valora'!$K$24,'Simulador Valora'!$K$41)*'Simulador Valora'!$Y$68,IF('Simulador Valora'!$X$35=3,IF('Simulador Valora'!$K$24>0,'Simulador Valora'!$K$24,'Simulador Valora'!$G$41)*'Simulador Valora'!$Y$68,0))),0)) -> 0 | V198: =F198*'Simulador Valora'!$X$59 -> 0 | AB198: 15 | AC198: 4 | AD198: 0 | AE198: 0 | AF198: 0 | AH198: 0.175 | AI198: 0 | AJ198: 0 | AK198: 0 | AL198: 0 | AM198: 0 | AN198: 0 | AP198: =IF(AJ198<=0,0,IF('Simulador Valora'!$AC$62=1,0,AJ198*'Simulador Valora'!$Y$67+IF('Simulador Valora'!$X$35=3,'Simulador Valora'!$G$49,IF('Simulador Valora'!$X$35=2,'Simulador Valora'!$K$49,0)))) -> 0 | AR198: =AL198*'Simulador Valora'!$X$59 -> 0 | AS198: 0 | AT198: 0 | AV198: 0 | AW198: 184
A199: 185 | B199: 0 | D199: 0 | F199: 0 | H199: 0 | L199: =IF('Simulador Valora'!$V$60=1,0,J199*'Simulador Valora'!$V$61*'Simulador Valora'!$W$59) -> 0 | P199: 0 | R199: =IF('Simulador Valora'!$AC$62=1,0,IFERROR(IF(B199<=0,0,B199*'Simulador Valora'!$Y$67),0)) -> 0 | T199: =IF('Simulador Valora'!$AC$62=1,0,IFERROR(IF(B199<=0,0,IF('Simulador Valora'!$X$35=2,IF('Simulador Valora'!$K$24>0,'Simulador Valora'!$K$24,'Simulador Valora'!$K$41)*'Simulador Valora'!$Y$68,IF('Simulador Valora'!$X$35=3,IF('Simulador Valora'!$K$24>0,'Simulador Valora'!$K$24,'Simulador Valora'!$G$41)*'Simulador Valora'!$Y$68,0))),0)) -> 0 | V199: =F199*'Simulador Valora'!$X$59 -> 0 | AB199: 15 | AC199: 5 | AD199: 0 | AE199: 0 | AF199: 0 | AH199: 0.175 | AI199: 0 | AJ199: 0 | AK199: 0 | AL199: 0 | AM199: 0 | AN199: 0 | AP199: =IF(AJ199<=0,0,IF('Simulador Valora'!$AC$62=1,0,AJ199*'Simulador Valora'!$Y$67+IF('Simulador Valora'!$X$35=3,'Simulador Valora'!$G$49,IF('Simulador Valora'!$X$35=2,'Simulador Valora'!$K$49,0)))) -> 0 | AR199: =AL199*'Simulador Valora'!$X$59 -> 0 | AS199: 0 | AT199: 0 | AV199: 0 | AW199: 185
A200: 186 | B200: 0 | D200: 0 | F200: 0 | H200: 0 | L200: =IF('Simulador Valora'!$V$60=1,0,J200*'Simulador Valora'!$V$61*'Simulador Valora'!$W$59) -> 0 | P200: 0 | R200: =IF('Simulador Valora'!$AC$62=1,0,IFERROR(IF(B200<=0,0,B200*'Simulador Valora'!$Y$67),0)) -> 0 | T200: =IF('Simulador Valora'!$AC$62=1,0,IFERROR(IF(B200<=0,0,IF('Simulador Valora'!$X$35=2,IF('Simulador Valora'!$K$24>0,'Simulador Valora'!$K$24,'Simulador Valora'!$K$41)*'Simulador Valora'!$Y$68,IF('Simulador Valora'!$X$35=3,IF('Simulador Valora'!$K$24>0,'Simulador Valora'!$K$24,'Simulador Valora'!$G$41)*'Simulador Valora'!$Y$68,0))),0)) -> 0 | V200: =F200*'Simulador Valora'!$X$59 -> 0 | AB200: 15 | AC200: 6 | AD200: 0 | AE200: 0 | AF200: 0 | AH200: 0.175 | AI200: 0 | AJ200: 0 | AK200: 0 | AL200: 0 | AM200: 0 | AN200: 0 | AP200: =IF(AJ200<=0,0,IF('Simulador Valora'!$AC$62=1,0,AJ200*'Simulador Valora'!$Y$67+IF('Simulador Valora'!$X$35=3,'Simulador Valora'!$G$49,IF('Simulador Valora'!$X$35=2,'Simulador Valora'!$K$49,0)))) -> 0 | AR200: =AL200*'Simulador Valora'!$X$59 -> 0 | AS200: 0 | AT200: =IFERROR(IF(AK200<=0.01,0,AT199-1),0) -> 0 | AV200: 0 | AW200: 186
... 58 more rows

Sheet Módulo1 (hidden)

Sheet Carat_cont_VA
A2: Carátula de Crédito
D3: Nombre del Acreditado y/o Coacreditado:
D4: =IF('Simulador Valora'!C13="","",'Simulador Valora'!C13) -> 
D5: Número de Crédito:
A7: Nombre comercial del producto: | B7: ="LIQUIDEZ LIBRE VALORA"&" "&A18 -> LIQUIDEZ LIBRE VALORA 15 Años
A9: Tipo de Crédito: Crédito Hipotecario
A10: CAT | B10: TASA DE INTERES | C10: MONTO O LINEA DE | D10: MONTO TOTAL A PAGAR O
A11: (Costo Anual Total) | B11: ANUAL ORDINARIA | C11: CRÉDITO | D11: MINIMO A PAGAR
A12: ='Tabla Valora'!B11 -> 0 | B12: =IFERROR(IF('Simulador Valora'!$I$22=0,0,IF('Simulador Valora'!$X$35=1,'Simulador Valora'!$Z$21,IF('Simulador Valora'!$X$35=2,'Simulador Valora'!$AF$21,0))),"") -> 0 | C12: ='Simulador Valora'!$Z$41 -> 0 | D12: =IFERROR(SUM('Tabla Valora'!$X$15:$X$254),0) -> 0
A13: Sin IVA | D13: Moneda en
A14: Para fines | D14: Pesos
A15: informativos y de | D15: Mexicanos
A16: comparación | B16: Tasa Fija
A17: PLAZO DEL CRÉDITO: | B17: Fecha Límite de pago: Si tu fecha de corte es el día 3, tu fecha de pago es el día 3 de cada mes. Si tu fecha de corte es el día 17, tu fecha de pago es el día 17 de cada mes.
A18: =IF('Simulador Valora'!$X$35=1,'Simulador Valora'!$AB$13,IF('Simulador Valora'!$X$35=2,'Simulador Valora'!$AH$13,0))/12&" Años" -> 15 Años | B18: Fecha de corte: Si tu fecha de disposición es entre el dia 3 y 16, tu fecha de corte será el día 3 de cada mes. Si tu fecha de disposición es entre el día 17 y 2, tu fecha de corte será el día 17 de cada mes.
A19: COMISIONES RELEVANTES
A20: ="Apertura: "&TEXT(IF('Simulador Valora'!$X$35=3,'Simulador Valora'!$G$59,IF('Simulador Valora'!$X$35=2,'Simulador Valora'!$K$59,0)),"$###,###.00")&" más IVA" -> Apertura: $.00 más IVA | C20: Cobranza: $500.00 más IVA por pago tardío
A21: ="Prepago: "&IF('Simulador Valora'!$V$60=1,"0% ","3% ")&"más IVA sobre el monto anticipado" -> Prepago: 0% más IVA sobre el monto anticipado | C21: Para otras comisiones consulte la cláusula décimo tercera
A22: ADVERTENCIAS
A24: Incumplir tus obligaciones te puede generar comisiones e intereses moratorios.
A25: Contratar créditos que excedan tu capacidad de pago afecta tu historial crediticio.
A26: El avalista, obligado solidario o coacreditado responderá como obligado principal por el total del pago frente a la Institución Financiera.
A27: SEGUROS
A28: Seguros Obligatorios: | B28: Aseguradora: | C28: Cláusulas:
A30: Vida | B30: Cardif México Seguros de Vida, S.A. de C.V. | C30: Vigésima Cuarta
C31: Scotiabank Inverlat le ofrece al acreditado y/o coacreditado, la posibilidad de contratar a nombre de este (os) último(s) los seguros establecidos en la cláusula vigésima cuarta. Lo anterior sin perjuicio del derecho innegable que el cliente tiene de contratarlos a través de terceros.
A32: Daños, Responsabilidad Civil y Desempleo | B32: Cardif México Seguros Generales, S.A. de C.V.
A34: ESTADO DE CUENTA
A35: Envío a Domicilio ü Consulta vía Internet ___ Envío por Correo Electrónico ___
A36: Aclaraciones y reclamaciones:
A37: Unidad Especializada de Aclaraciones:
A38: Domicilio: Río Usumacinta S/N, esq. con Fernando Montes de Oca, Col. La Presita, Municipio de Cuautitlán Izcalli, Estado de México, C.P. 54763
A39: Teléfono: (55) 5123 0990
A40: Correo electrónico: une@scotiabank.com.mx
A41: Página de Internet: www.scotiabank.com.mx
A42: ="Registro de Contratos de Adhesión Núm: "&IF('Simulador Valora'!I22=0,"",IFERROR(VLOOKUP('Simulador Valora'!$V$40&"-1-1",RECAS!$A$3:$D$5,4,0),"Revisa los datos ingresados")) -> Registro de Contratos de Adhesión Núm:
A43: Comisión Nacional para la Protección y Defensa de los Usuarios de Servicios Financieros (CONDUSEF):
A44: Teléfono: 800 999 8080 y (55) 5340 0999. Página de Internet. www.condusef.gob.mx

Sheet Simulador Pagos Oportunos
S1: - | AZ1: -
C3: SIMULADOR CREDITO HIPOTECARIO
C4: FINANCIAMIENTO LIQUIDEZ LIBRE PAGOS OPORTUNOS
C7: =TODAY() -> 2022-11-10
C9: Lugar | I9: Sucursal
C12: Nombre del cliente / Conyuge en su caso. | I12: Ejecutivo/Broker que le atendió
C15: Telefonos del cliente | I15: Teléfonos del ejecutivo
C20: Paso 1 | I20: Paso 2
C21: Escoja su base de cálculo | I21: Teclee la cantidad correspondiente:
K22: =IF($AD$40=1,"Valor del inmueble","Ingresos Brutos Mensuales") -> Valor del inmueble
C23: Paso 3 | K23: =IF($AD$40=1,"Monto solictado","") -> Monto solictado
C24: Tipo de comisión | I24: Valor Destructible
C25: =IF(AND(V40=1,I23>I22),"El enganche es mayor que el valor del inmueble",IF(AND(V40=2,I23>I22),"El saldo es mayor que el valor del inmueble","")) -> 
C26: =IF(AND($AD$40=1,$Y$40>$V$34),"El monto solicitado es mayor al "&TEXT(V34,"##0%")&" del valor del inmueble",IF(AND($AD$40=1,$I$23<$X$34),"El monto solicitado debe ser >= $"&TEXT($X$34,"#,##0"),"")) -> El monto solicitado debe ser >= $100,000
C27: =IFERROR(IF(AND($AD$40=2,$I$22<$W$34),"Los ingresos mínimos requeridos son $"&TEXT($W$34,"#,##0"),""),"") -> 
AC32: 84 | AD32: 120 | AE32: 180 | AQ32: Producto | AR32: Fecha de Registro | AS32: Numero de registro RECA
I33: PAGOS OPORTUNOS | T33: Com Apert | U33: Coms. prepago | V33: LTV | W33: Ingresos min. | X33: Monto min. | Y33: Monto max | Z33: Valor min. viv. | AA33: PTI | AB33: Plazo | AC33: 7 | AD33: 10 | AE33: 15
T34: 0.02 | U34: 0.03 | V34: 0.7 | W34: 20000 | X34: 100000 | Y34: 2500000 | Z34: 1000000 | AA34: 0.2 | AB34: Pxm | AC34: 21.64 | AD34: 18.6 | AE34: 17.04 | AF34: <- cambiar pago por mil | AQ34: CrediResidencial Valora 20 años | AR34: 2008-09-10 | AS34: 0319-138-003323/01-04108-0908
C35: Plazo | I35: 7 AÑOS | K35: 10 AÑOS | M35: 15 AÑOS | U35: Esquemas | V35: Plazo | X35: 5 | AB35: 1° Año | AC35: 0.185 | AD35: 0.186 | AE35: 0.19 | AF35: <- Sólo cambiar tasa 1er año | AQ35: CrediResidencial Valora 20 años con Apoyo Infonavit | AR35: 2008-09-10 | AS35: 0319-138-003324/01-04109-0908
V36: Pago 9.9 | AB36: 2° Año | AC36: =+AC35-0.2% -> 0.183 | AD36: =+AD35-0.2% -> 0.184 | AE36: 0.188 | AQ36: Pasivo Hipotecario Valora 20 años | AR36: 2008-09-10 | AS36: 0319-138-003325/01-04110-0908
C37: Tasa de Interés | I37: =+AF37 -> 1 año / 18.50% 2 año / 18.30% 3 año / 18.10% 4 año / 17.90% 5 al 7 / 17.75% | K37: =+AG37 -> 1 año / 18.60% 2 año / 18.40% 3 año / 18.20% 4 año / 18.00% 5 al 10 / 17.85% | M37: =+AH37 -> 1 año / 19.00% 2 año / 18.80% 3 año / 18.60% 4 año / 18.40% 5 al 15 / 18.25% | V37: Tasa 1234 | AB37: 3° Año | AC37: =+AC36-0.2% -> 0.181 | AD37: 0.182 | AE37: 0.186 | AF37: ="1 año / "&TEXT(AC35,"0.00%")&" 2 año / "&TEXT(AC36,"0.00%")&" 3 año / "&TEXT(AC37,"0.00%")&" 4 año / "&TEXT(AC38,"0.00%")&" 5 al 7 / "&TEXT(AC39,"0.00%") -> 1 año / 18.50% 2 año / 18.30% 3 año / 18.10% 4 año / 17.90% 5 al 7 / 17.75% | AG37: ="1 año / "&TEXT(AD35,"0.00%")&" 2 año / "&TEXT(AD36,"0.00%")&" 3 año / "&TEXT(AD37,"0.00%")&" 4 año / "&TEXT(AD38,"0.00%")&" 5 al 10 / "&TEXT(AD39,"0.00%") -> 1 año / 18.60% 2 año / 18.40% 3 año / 18.20% 4 año / 18.00% 5 al 10 / 17.85% | AH37: ="1 año / "&TEXT(AE35,"0.00%")&" 2 año / "&TEXT(AE36,"0.00%")&" 3 año / "&TEXT(AE37,"0.00%")&" 4 año / "&TEXT(AE38,"0.00%")&" 5 al 15 / "&TEXT(AE39,"0.00%") -> 1 año / 19.00% 2 año / 18.80% 3 año / 18.60% 4 año / 18.40% 5 al 15 / 18.25% | AQ37: Preventa Valora 20 años | AR37: 2008-09-10 | AS37: 0319-138-003326/01-04111-0908
V38: Tasa Fija Pago Red 15 | Y38: Cambio de etiqueta | Z38: =IF(AD40=1,"Valor del inmueble","Ingresos Brutos Mensuales") -> Valor del inmueble | AB38: 4° Año | AC38: =+AC37-0.2% -> 0.179 | AD38: 0.18 | AE38: 0.184 | AQ38: Preventa Valora 20 años con Apoyo Infonavit | AR38: 2008-09-10 | AS38: 0319-138-003327/01-04112-0908
C39: % máximo de financiamiento | I39: =IF($V$40=1,"",$V$34) -> 0.7 | K39: =IF($V$40=1,"",$V$34) -> 0.7 | M39: =IF($V$40=1,"",$V$34) -> 0.7 | V39: Pagos reducidos 20 años | AB39: 5° Año | AC39: =+AC38-0.15% -> 0.1775 | AD39: =+AD38-0.15% -> 0.1785 | AE39: =+AE38-0.15% -> 0.1825 | AQ39: CrediConstrucción Valora 20 años | AR39: 2008-09-10 | AS39: 0319-138-003328/01-04113-0908
U40: Destino Vivienda | V40: 2 | X40: % de aforo | Y40: =IF(I22=0,0,IF(I23/I22>1,0,I23/I22)) -> 0 | Z40: =IF(V40=2," ","Monto a Financiar") ->  | AC40: Por Valor del Inmueble | AD40: 1 | AE40: 1 | AJ40: 1 | AQ40: CrediConstrucción Valora 20 años con Apoyo Infonavit | AR40: 2008-09-10 | AS40: 0319-138-003329/01-04114-0908
C41: Valor de la vivienda | I41: =IFERROR(IF($AD$40=1,$I$22,I43/$V$34),0) -> 0 | K41: =IFERROR(IF($AD$40=1,$I$22,K43/$V$34),0) -> 0 | M41: =IFERROR(IF($AD$40=1,$I$22,M43/$V$34),0) -> 0 | U41: Destino Libre | W41: Cambio de pasivo o adquisi | Y41: =IF(AD40=1,"Importe a financiar","") -> Importe a financiar | Z41: =IF($X$35=3,$I$43,IF($X$35=4,$K$43,IF($X$35=5,$M$43,0))) -> 0 | AC41: Por Ingresos | AQ41: Crediliquidez Vivienda Valora 20 años | AR41: 2008-09-10 | AS41: 0319-138-003330/01-04115-0908
AQ42: Cofinanciamiento Fovissste Alia2 Valora 20 años | AR42: 2008-09-10 | AS42: 0319-138-003331/01-04116-0908
C43: Monto del crédito | I43: =IFERROR(IF(AND($AD$40=1,$Y$40<=$V$34),$I$23,IF($AD$40=2,$I$45/$AC$34*1000,0)),0) -> 0 | K43: =IFERROR(IF(AND($AD$40=1,$Y$40<=$V$34),$I$23,IF($AD$40=2,$K$45/$AC$34*1000,0)),0) -> 0 | M43: =IFERROR(IF(AND($AD$40=1,$Y$40<=$V$34),$I$23,IF($AD$40=2,$M$45/$AC$34*1000,0)),0) -> 0 | W43: Pag Red 10.90 | Y43: Pag Red 10.90 | AA43: Pagos oportunos | AB43: Pagos oportunos | AD43: Pagos oportunos | AE43: Pagos oportunos | AF43: Pagos oportunos | AH43: Pagos Reducidos Liq libre | AJ43: Tasa Mixta Liq Viv | AQ43: Cofinanciamiento Fovissste Respalda2 Valora 20 años | AR43: 2008-09-10 | AS43: 0319-138-003332/01-04117-0908
T44: Plazo | W44: 15 | Y44: 20 | AA44: 7 | AB44: 10 | AD44: 15 | AE44: 20 | AF44: 30 | AH44: 20 | AJ44: 20 | AQ44: Cofinanciamiento Infonavit Valora 20 años | AR44: 2008-09-10 | AS44: 0319-138-003333/01-04118-0908
C45: Erogación inicial | I45: =IF($V$40=1,"",IF($AD$40=1,I43/1000*$AC$34,$I$22*$AA$34)) -> 0 | K45: =IF($V$40=1,"",IF($AD$40=1,K43/1000*$AD$34,$I$22*$AA$34)) -> 0 | M45: =IF($V$40=1,"",IF($AD$40=1,M43/1000*$AE$34,$I$22*$AA$34)) -> 0
T46: Pago x mil | W46: 10.25 | Y46: 10.55 | AA46: 16.48 | AB46: 13.08 | AD46: 15.4 | AE46: 9.65 | AF46: 11.46 | AH46: 10.6 | AJ46: 13 | AM46: =IF(AND($X$35=3,$V$40=2),$AC$34*$I$43/1000,IF(AND($X$35=4,$V$40=2),$AD$34*$K$43/1000,IF(AND($X$35=5,$V$40=2),$AE$34*$M$43/1000,0))) -> 0 | AQ46: Producto | AR46: Fecha de Registro | AS46: Numero de registro RECA
C47: Seguro de vida | I47: =IFERROR(I43*$Y$67,0) -> 0 | K47: =IFERROR(K43*$Y$67,0) -> 0 | M47: =IFERROR(M43*$Y$67,0) -> 0
T48: Incremento anual | W48: 0.03 | Y48: 0.021 | AA48: 0 | AB48: 0 | AD48: 0 | AE48: 0 | AF48: 0 | AH48: 0.018 | AJ48: 0.01 | AM48: 0 | AQ48: CrediResidencial Valora 20 años con Seguro de Crédito a la Vivienda | AR48: 2008-09-11 | AS48: 0319-138-003342/01-04165-0908
C49: Seguro de daños | I49: =IF($K$24>0,$K$24,I41)*IF($AC$62=1,0,$Y$68) -> 0 | K49: =IF($K$24>0,$K$24,K41)*IF($AC$62=1,0,$Y$68) -> 0 | M49: =IF($K$24>0,$K$24,M41)*IF($AC$62=1,0,$Y$68) -> 0 | T49: Tasa de int. | W49: 0.109 | X49: 0.139 | Y49: 0.109 | Z49: 0.139 | AA49: 0.0975 | AB49: 0.0975 | AD49: 0.1 | AE49: 0.1 | AF49: 0.125 | AH49: 0.149 | AI49: 0.169 | AJ49: 0.145 | AK49: TIIE + 8 | AQ49: CrediResidencial Valora 20 años con Apoyo Infonavit Seguro de Crédito a la Vivienda | AR49: 2008-09-11 | AS49: 0319-138-003343/01-04166-0908
AQ50: Crediliquidez Vivienda Valora 20 años Seguro de Crédito a la Vivienda | AR50: 2008-09-11 | AS50: 0319-138-003344/01-04167-0908
C51: IVA Intereses | I51: =IFERROR($AC$35/360*'Tabla Pagos Oportunos'!$BA$15*'Simulador Pagos Oportunos'!I43,0)*$X$59 -> 0 | K51: =IFERROR($AD$35/360*'Tabla Pagos Oportunos'!$BA$15*'Simulador Pagos Oportunos'!K43,0)*$X$59 -> 0 | M51: =IFERROR($AE$35/360*'Tabla Pagos Oportunos'!$BA$15*'Simulador Pagos Oportunos'!M43,0)*$X$59 -> 0 | T51: Monto a financiar adquisición | AQ51: Cofinanciamiento Fovissste Alia2 Valora 20 años Seguro de Crédito a la Vivienda | AR51: 2008-09-11 | AS51: 0319-138-003345/01-04168-0908
T52: Monto a financiar adquisición | AQ52: Cofinanciamiento Fovissste Respalda2 Valora 20 años Seguro de Crédito a la Vivienda | AR52: 2008-09-11 | AS52: 0319-138-003346/01-04169-0908
C53: Total mensualidad inicial | I53: =IFERROR(I49+I47+I45+I51,0) -> 0 | K53: =IFERROR(K49+K47+K45+K51,0) -> 0 | M53: =IFERROR(M49+M47+M45+M51,0) -> 0 | T53: erogación adquisición | AQ53: Cofinanciamiento Infonavit Valora 20 años Seguro de Crédito a la Vivienda | AR53: 2008-09-11 | AS53: 0319-138-003347/01-04170-0908
T54: Monto a financiar pasivo
C55: Incremento anual del pago | I55: No aplica | K55: No aplica | M55: No aplica | T55: Monto a financiar pasivo
T56: Desición de monto a financiar
C57: Ingresos brutos por comprobar | I57: =IF($V$40=1,"",IF($AD$40=1,I45/$AA$34,$I$22)) -> 0 | K57: =IF($V$40=1,"",IF($AD$40=1,K45/$AA$34,$I$22)) -> 0 | M57: =IF($V$40=1,"",IF($AD$40=1,M45/$AA$34,$I$22)) -> 0
T58: Frontera | U58: NO
C59: Comisión por apertura | I59: =IF($V$60=2,0,I43*$T$34) -> 0 | K59: =IF($V$60=2,0,K43*$T$34) -> 0 | M59: =IF($V$60=2,0,M43*$T$34) -> 0 | T59: IVA | U59: SI | V59: 1 | W59: =IF(V59=1,1.16,1.11) -> 1.16 | X59: =IF(V59=1,0.16,0.11) -> 0.16
C60: IVA / Comisión por apertura | I60: =I59*$X$59 -> 0 | K60: =K59*$X$59 -> 0 | M60: =M59*$X$59 -> 0 | T60: Apertura | V60: 1 | W60: =IF(V40=1,"Comisión por apertura 2.50% y comisión por prepago 0%","Comisión por apertura 2.5% más IVA") -> Comisión por apertura 2.5% más IVA | AD60: Tasas PAR
C61: ="Avalúo "&IF($V$40=2,"",IF(I41>$U$85,"'Favor de Cotizar'. Val. apróx.","")) -> Avalúo | I61: =IF($V$40=1,"",IFERROR(V106,0)) -> 0 | K61: =IF($V$40=1,"",IFERROR(V106,0)) -> 0 | M61: =IF($V$40=1,"",IFERROR(V106,0)) -> 0 | T61: Prepago | V61: =IF(V60=2,3%,"NO APLICA") -> NO APLICA | W61: =IF(V40=1,"Comisión por apertura 0% y comisión por prepago 3.50% más IVA","") ->  | AB61: Contratación de Seguros | AD61: 0.105 | AE61: 9 | AF61: 0.0254 | AG61: 1
T62: Com Aut Dif | U62: 250 | V62: 250 | W62: 250 | X62: 250 | Y62: 250 | Z62: =IF(AND(V40=1,X35=1),250,IF(AND(V40=1,X35=2),0,IF(AND(V40=2,X35=4),500,0))) -> 0 | AB62: SI | AC62: 2 | AD62: 0.1075 | AE62: 9.15 | AF62: 0.0254 | AG62: =IF($AG$61=1,AE61,IF($AG$61=2,AE62,IF($AG$61=3,AE63,IF($AG$61=4,AE64,IF($AG$61=5,AE65,IF($AG$61=6,AE66,AE67)))))) -> 9
C63: Comisión por pagos anticipados | I63: =IF($V$60=2,$V$61,"NO APLICA") -> NO APLICA | K63: =IF($V$60=2,$V$61,"NO APLICA") -> NO APLICA | M63: =IF($V$60=2,$V$61,"NO APLICA") -> NO APLICA | T63: AVALUO | AB63: NO | AD63: 0.115 | AE63: 9.7 | AF63: 0.0254 | AG63: =IF($AG$61=1,AF61,IF($AG$61=2,AF62,IF($AG$61=3,AF63,IF($AG$61=4,AF64,IF($AG$61=5,AF65,IF($AG$61=6,AF66,AF67)))))) -> 0.0254
T64: Mayor a | U64: Hasta a | V64: Importe | W64: Switch | AD64: 0.12 | AE64: 10.2 | AF64: 0.0196 | AG64: =IF($AG$61=1,AD61,IF($AG$61=2,AD62,IF($AG$61=3,AD63,IF($AG$61=4,AD64,IF($AG$61=5,AD65,IF($AG$61=6,AD66,AD67)))))) -> 0.105
T65: 0.01 | U65: 500000 | V65: 1900 | W65: 1253 | AD65: 0.125 | AE65: =IF(Y40<=65%,10.6,10.55) -> 10.6 | AF65: =IF(Y40<=65%,1.72%,1.96%) -> 0.0172
C66: Ver tabla de amortización | T66: 500001 | U66: 1000000 | V66: 3300 | W66: 1740 | X66: Seguros | AD66: 0.13 | AE66: 11 | AF66: =IF(Y40<=65%,1.45%,1.72%) -> 0.0145
T67: 1000001 | U67: 1500000 | V67: 4500 | W67: 1740 | X67: Vida | Y67: 0.000556 | Z67: 0.000556 | AD67: 0.135 | AE67: 11.45 | AF67: =IF(Y40<=65%,1%,1.45%) -> 0.01
T68: 1500001 | U68: 2000000 | V68: 5750 | W68: 2784 | X68: Daños | Y68: 0.0003016 | Z68: 0.0003016
C69: Observaciones: | T69: 2000001 | U69: 2500000 | V69: 7000 | W69: 2784
C70: -No se incluyen los gastos notariales, los cuales se pagaran al momento de la firma del crédito | T70: 2500001 | U70: 3000000 | V70: 8200 | W70: 4664 | AD70: Valor del inmueble | AE70: =IF($X$35=2,G41,IF($X$35=6,I41,IF($X$35=3,K41,IF($X$35=4,M41,IF($X$35=5,O41,IF($X$35=7,#REF!)))))) -> 0
C71: - En caso de que aplique, la comisión por pagos anticipados causa I.V.A. | T71: 3000001 | U71: 4000000 | V71: 11000 | W71: 6683 | AD71: Pago por mil | AE71: =IF($X$35=6,AA46,IF($X$35=3,AB46,IF($X$35=4,AD46,IF($X$35=5,AE46)))) -> 9.65
C72: - Scotiabank se reserva el derecho de solicitar información adicional y/o restringir parámetros de enganche, monto, plazo o tasa en función de las características específicas del solicitante | T72: 4000001 | U72: 5000000 | V72: 13900 | W72: 8562 | AD72: Plazo | AE72: =IF($X$35=2,"20 Años",IF($X$35=6,"7 Años",IF($X$35=3,"10 Años",IF($X$35=4,"15 Años",IF($X$35=5,"20 Años",IF($X$35=7,"30 Años")))))) -> 20 Años
C73: y del inmueble objeto de la operación. | T73: 5000001 | U73: 6000000 | V73: 15500 | W73: 8562
C74: - Esta cotización tiene carácter informativo, Scotiabank se reserva el derecho de cambiar cualquier condición sin previo aviso. | T74: 6000001 | U74: 7000000 | V74: 19000 | W74: 8562
C75: - Este documento NO implica que el crédito ha sido autorizado, ni establece obligación alguna para Scotiabank. | T75: 7000001 | U75: 8000000 | V75: 20000 | W75: 11973
C76: - Para los esquemas de "Pagos Oportunos" y "Valora" en Crediliquidez destino vivienda se deberá cumplir con las reglas establecidas en los programas para la disminución de la tasa de interés | T76: 8000001 | U76: 9000000 | V76: 20100 | W76: 11973
O77: ='Simulador Valora'!O77 -> v2022.11 | T77: 9000001 | U77: 10000000 | V77: 22500 | W77: 11973
T78: 10000001 | U78: 11000000 | V78: 27000 | W78: 13781
T79: 11000001 | U79: 12000000 | V79: 28000 | W79: 13781
T80: 12000001 | U80: 13000000 | V80: 30000 | W80: 13781
T81: 13000001 | U81: 14000000 | V81: 32000 | W81: 13781
T82: 14000001 | U82: 15000000 | V82: 34000 | W82: 14616
T83: 15000001 | U83: 20000000 | V83: 37000 | W83: 18096
T84: 20000001 | U84: 25000000 | V84: 39000 | W84: 19140
T85: 25000001 | U85: 30000000 | V85: 40000 | W85: 20880
T86: 30000001 | U86: 30000000 | V86: 40000 | W86: 20880
T90: TOPUP/LiqLibre
T91: Mayor a | U91: Hasta a | V91: Importe
T92: 0.01 | U92: 500000 | V92: 1253
T93: =U92+1 -> 500001 | U93: 1000000 | V93: 1740
T94: =U93+1 -> 1000001 | U94: 2000000 | V94: 2784
T95: 2000001 | U95: 3000000 | V95: 4663
T96: 3000001 | U96: 4000000 | V96: 5000
T97: 4000001 | U97: 5000000 | V97: 5000
T98: 5000001 | U98: 8000000 | V98: 5000
T99: 8000001 | U99: 11000000 | V99: 5000
T100: 11000001 | U100: 15000000 | V100: 5000
T101: 15000001 | U101: 20000000 | V101: 5000
T102: 20000001 | U102: 25000000 | V102: 5000
T103: 25000001 | U103: 30000000 | V103: 5000
T104: 30000001 | U104: 30000000 | V104: 5000
V106: =+IF(I41<=$U$95,VLOOKUP(I41,$T$90:$V$101,3),V96) -> 

Sheet Tabla Pagos Oportunos
A1: SIMULADOR CREDITO HIPOTECARIO | BK1: -
A2: FINANCIAMIENTO LIQUIDEZ LIBRE SCOTIABANK | AJ2: Comisión por apertura | AL2: =IF('Simulador Pagos Oportunos'!$X$35=3,'Simulador Pagos Oportunos'!I59,IF('Simulador Pagos Oportunos'!$X$35=4,'Simulador Pagos Oportunos'!$K$59,IF('Simulador Pagos Oportunos'!$X$35=5,'Simulador Pagos Oportunos'!$M$59,0))) -> 0 | AR2: 2
A3: =IF('Simulador Pagos Oportunos'!X35=3,"PAGOS OPORTUNOS 7 AÑOS",IF('Simulador Pagos Oportunos'!X35=4,"PAGOS OPORTUNOS 10 AÑOS","PAGOS OPORTUNOS 15 AÑOS")) -> PAGOS OPORTUNOS 15 AÑOS | AJ3: avaluo | AL3: =IF('Simulador Pagos Oportunos'!$X$35=3,'Simulador Pagos Oportunos'!I61,IF('Simulador Pagos Oportunos'!$X$35=4,'Simulador Pagos Oportunos'!$K$61,IF('Simulador Pagos Oportunos'!$X$35=5,'Simulador Pagos Oportunos'!$M$61,0))) -> 0 | AR3: Disminución de plazo
AR4: Disminución de pago
A5: Observaciones | X5: =TODAY() -> 2022-11-10 | AJ5: total | AL5: =SUM(AL2:AL4) -> 0
A6: - La comisión por prepagos causa IVA y en la corrida ya lo incluye
A7: - El escenario que se presenta en la tabla de amortización siempre es considerando que se paga de manera puntual el crédito.
A8: - Para los esquemas "Pagos Oportunos" y "Valora" se deberá cumplir con las reglas establecidas en los programas para la disminución de la tasa de interés | AX8: =AX12*12 -> 0
A9: - Esta cotización tiene carácter informativo, Scotiabank se reserva el derecho de cambiar cualquier condición sin previo aviso. | AX9: =((1+AX12)^12)-1 -> 0
A10: - Este documento NO implica que el crédito ha sido autorizado, ni establece obligación alguna para Scotiabank. | AX10: Corrida para CAT
A11: - CAT =. | B11: =AX9 -> 0 | C11: "Para fines informativos de comparación exclusivamente, sin IVA" | P11: El crédito se liquida | T11: =AA15 -> 0 | U11: Años | W11: =AE14 -> 0 | Y11: Años | AX11: TIR
A12: - En caso de anticipos a capital escoja la opción: | P12: por pago puntual en: | T12: =AB15 -> 0 | U12: Meses | W12: =AF14 -> 0 | Y12: Meses | AX12: =IFERROR(IRR(AX13:AX254,0),0) -> 0
AX13: =AL5-AO15 -> 0
A14: Período | B14: Saldo Inicial | D14: Erogación | F14: Interés | H14: Amortización | J14: Prepagos a capital | L14: Comisión por prepagos | N14: Tasa aplicada | P14: Saldo Final | R14: Seguro de vida | T14: Seguro de daños | V14: Com. Aut. Dif. | W14: IVA Ints | X14: Pago Mensual | Z14: Inc. Pago | AB14: años | AC14: meses | AD14: =SUM(AD15:AD254) -> 1 | AE14: =SUM(AE15:AE254) -> 0 | AF14: =SUM(AF15:AF254) -> 0 | AG14: =AN2-H4 -> 0 | AH14: Tasa Aplic. | AI14: 7 años | AJ14: 10 años | AK14: 15 años | AL14: 20 años | AM14: 30 años | AN14: Factor de pago | AO14: Saldo Inicial | AP14: Erogación | AQ14: Interés | AR14: Amortización | AS14: Saldo Final | AT14: Tasa Aplic. | AU14: Seguros | AV14: Incremento Pago | AW14: IVA Intereses | AX14: Pago Mensual | AY14: Plazo | AZ14: Fecha | BA14: Dias | BB14: Período | BC14: Año actual | BD14: Mes actual | BE14: Día actual | BF14: Dia/corte | BG14: sumar a mes
A15: 1 | B15: ='Simulador Pagos Oportunos'!Z41 -> 0 | D15: ='Simulador Pagos Oportunos'!AM46 -> 0 | F15: =IFERROR((N15/360*BA15*B15),0) -> 0 | H15: =D15-F15 -> 0 | L15: =IF('Simulador Pagos Oportunos'!$V$60=1,0,J15*'Simulador Pagos Oportunos'!$O$63*'Simulador Pagos Oportunos'!$W$59) -> 0 | N15: =IF(B15=0,"",AH15) ->  | P15: =B15-H15-J15+L15 -> 0 | R15: =IFERROR(IF(B15<=0,0,B15*'Simulador Pagos Oportunos'!$Y$67),0) -> 0 | T15: =IFERROR(IF(B15<=0,0,IF('Simulador Pagos Oportunos'!$X$35=3,'Simulador Pagos Oportunos'!$I$49,IF('Simulador Pagos Oportunos'!$X$35=4,'Simulador Pagos Oportunos'!$K$49,IF('Simulador Pagos Oportunos'!$X$35=5,'Simulador Pagos Oportunos'!$M$49,0)))),0) -> 0 | V15: =IF(B15<=0,"",IF('Simulador Pagos Oportunos'!$V$40=1,'Simulador Pagos Oportunos'!$Z$62,'Simulador Pagos Oportunos'!$Z$62*'Simulador Pagos Oportunos'!$W$59)) ->  | W15: =F15*'Simulador Pagos Oportunos'!$X$59 -> 0 | X15: =IF(B15<=0,"",D15+J15+R15+V15+T15+W15) ->  | AB15: 0 | AC15: =IF(B15=0,0,1) -> 0 | AD15: =+IF(P15<=0,IF(P14>0,+A15,0),0) -> 1 | AE15: =+IF(AD15>0,+AB15,0) -> 0 | AF15: =+IF(AD15>0,+AC15,0) -> 0 | AG15: =X15 ->  | AH15: =IF('Simulador Pagos Oportunos'!$X$35=3,AI15,IF('Simulador Pagos Oportunos'!$X$35=4,AJ15,IF('Simulador Pagos Oportunos'!$X$35=5,AK15,0))) -> 0.19 | AI15: ='Simulador Pagos Oportunos'!AC35 -> 0.185 | AJ15: ='Simulador Pagos Oportunos'!AD35 -> 0.186 | AK15: ='Simulador Pagos Oportunos'!AE35 -> 0.19 | AL15: 0 | AM15: 0 | AN15: =IFERROR(AP15/AO15,0) -> 0 | AO15: =B15 -> 0 | AP15: =D15 -> 0 | AQ15: =IFERROR((AT15/360*BA15*AO15),0) -> 0 | AR15: =+AP15-AQ15 -> 0 | AS15: =+AO15-AR15 -> 0 | AT15: =IF('Simulador Pagos Oportunos'!$X$35=3,AI15,IF('Simulador Pagos Oportunos'!$X$35=4,AJ15,IF('Simulador Pagos Oportunos'!$X$35=5,AK15,0))) -> 0.19 | AU15: =IF(AO15<=0,0,IF('Simulador Pagos Oportunos'!$AC$62=1,0,AO15*'Simulador Pagos Oportunos'!$Y$67+IF('Simulador Pagos Oportunos'!$X$35=3,'Simulador Pagos Oportunos'!$I$49,IF('Simulador Pagos Oportunos'!$X$35=4,'Simulador Pagos Oportunos'!$K$49,IF('Simulador Pagos Oportunos'!$X$35=5,'Simulador Pagos Oportunos'!$M$49,0))))) -> 0 | AW15: =AQ15*'Simulador Pagos Oportunos'!$X$59 -> 0 | AX15: =AQ15+AR15+AU15 -> 0 | AY15: =IF('Simulador Pagos Oportunos'!$X$35=3,'Simulador Pagos Oportunos'!$AC$32,IF('Simulador Pagos Oportunos'!$X$35=4,'Simulador Pagos Oportunos'!$AD$32,IF('Simulador Pagos Oportunos'!$X$35=5,'Simulador Pagos Oportunos'!$AE$32,0))) -> 180 | AZ15: =IF(AO15=0,"",DATE(BC15,BD15+BG15,BF15)) ->  | BA15: =IFERROR(DAY(DATE(YEAR(AZ15),MONTH(AZ15)+1,0)),0) -> 0 | BB15: 1 | BC15: =IFERROR(YEAR('Simulador Pagos Oportunos'!C7),YEAR('Simulador Pagos Oportunos'!C7)) -> 2022 | BD15: =IFERROR(MONTH('Simulador Pagos Oportunos'!C7),MONTH('Simulador Pagos Oportunos'!C7)) -> 11 | BE15: =IFERROR(DAY('Simulador Pagos Oportunos'!C7),DAY('Simulador Pagos Oportunos'!C7)) -> 10 | BF15: =IF(AND(DAY('Simulador Pagos Oportunos'!C7)>=3,DAY('Simulador Pagos Oportunos'!C7)<=16),3,17) -> 3 | BG15: =IF(BE15>BF15,1,0) -> 1
A16: 2 | B16: =IF(P15<=0,0,P15) -> 0 | D16: =IF(B16+F16-D15<=0,B16+F16,IF(AND($AR$2=2,J15>0),B16*AV16,D15*(1+Z16))) -> 0 | F16: =IFERROR((N16/360*BA16*B16),0) -> 0 | H16: =D16-F16 -> 0 | L16: =IF('Simulador Pagos Oportunos'!$V$60=1,0,J16*'Simulador Pagos Oportunos'!$O$63*'Simulador Pagos Oportunos'!$W$59) -> 0 | N16: =IF(B16=0,"",AH16) ->  | P16: =B16-H16-J16+L16 -> 0 | R16: =IFERROR(IF(B16<=0,0,B16*'Simulador Pagos Oportunos'!$Y$67),0) -> 0 | T16: =IFERROR(IF(B16<=0,0,IF('Simulador Pagos Oportunos'!$X$35=3,'Simulador Pagos Oportunos'!$I$49,IF('Simulador Pagos Oportunos'!$X$35=4,'Simulador Pagos Oportunos'!$K$49,IF('Simulador Pagos Oportunos'!$X$35=5,'Simulador Pagos Oportunos'!$M$49,0)))),0) -> 0 | V16: =IF(B16<=0,"",IF('Simulador Pagos Oportunos'!$V$40=1,'Simulador Pagos Oportunos'!$Z$62,'Simulador Pagos Oportunos'!$Z$62*'Simulador Pagos Oportunos'!$W$59)) ->  | W16: =F16*'Simulador Pagos Oportunos'!$X$59 -> 0 | X16: =IF(B16<=0,"",D16+J16+R16+V16+T16+W16) ->  | AB16: 0 | AC16: 2 | AD16: =+IF(P16<=0,IF(P15>0,+A16,0),0) -> 0 | AE16: =+IF(AD16>0,+AB16,0) -> 0 | AF16: =+IF(AD16>0,+AC16,0) -> 0 | AG16: =X16 ->  | AH16: =IF('Simulador Pagos Oportunos'!$X$35=3,AI16,IF('Simulador Pagos Oportunos'!$X$35=4,AJ16,IF('Simulador Pagos Oportunos'!$X$35=5,AK16,0))) -> 0.19 | AI16: =AI15 -> 0.185 | AJ16: =AJ15 -> 0.186 | AK16: 0.19 | AL16: 0 | AM16: 0 | AN16: =IFERROR(AP16/AO16,0) -> 0 | AO16: =AS15 -> 0 | AP16: =IFERROR((IF(AO16+AQ16-AP15<0, AO16+AQ16, AP15*(1+AV16))),0) -> 0 | AQ16: =IFERROR((AT16/360*BA16*AO16),0) -> 0 | AR16: 0 | AS16: 0 | AT16: =IF('Simulador Pagos Oportunos'!$X$35=3,AI16,IF('Simulador Pagos Oportunos'!$X$35=4,AJ16,IF('Simulador Pagos Oportunos'!$X$35=5,AK16,0))) -> 0.19 | AU16: =IF(AO16<=0,0,IF('Simulador Pagos Oportunos'!$AC$62=1,0,AO16*'Simulador Pagos Oportunos'!$Y$67+IF('Simulador Pagos Oportunos'!$X$35=3,'Simulador Pagos Oportunos'!$I$49,IF('Simulador Pagos Oportunos'!$X$35=4,'Simulador Pagos Oportunos'!$K$49,IF('Simulador Pagos Oportunos'!$X$35=5,'Simulador Pagos Oportunos'!$M$49,0))))) -> 0 | AW16: =AQ16*'Simulador Pagos Oportunos'!$X$59 -> 0 | AX16: =AQ16+AR16+AU16 -> 0 | AY16: =IFERROR(IF(AP16<=0.01,0,AY15-1),0) -> 0 | AZ16: =IF(AO16=0,"",DATE(YEAR(AZ15),MONTH(AZ15)+1,1)) ->  | BA16: =IFERROR(DAY(DATE(YEAR(AZ16),MONTH(AZ16)+1,0)),0) -> 0 | BB16: 2
A17: 3 | B17: =IF(P16<=0,0,P16) -> 0 | D17: =IF(B17+F17-D16<=0,B17+F17,IF(AND($AR$2=2,J16>0),B17*AN17,D16*(1+Z17))) -> 0 | F17: 0 | H17: =D17-F17 -> 0 | L17: =IF('Simulador Pagos Oportunos'!$V$60=1,0,J17*'Simulador Pagos Oportunos'!$O$63*'Simulador Pagos Oportunos'!$W$59) -> 0 | P17: 0 | R17: =IFERROR(IF(B17<=0,0,B17*'Simulador Pagos Oportunos'!$Y$67),0) -> 0 | T17: =IFERROR(IF(B17<=0,0,IF('Simulador Pagos Oportunos'!$X$35=3,'Simulador Pagos Oportunos'!$I$49,IF('Simulador Pagos Oportunos'!$X$35=4,'Simulador Pagos Oportunos'!$K$49,IF('Simulador Pagos Oportunos'!$X$35=5,'Simulador Pagos Oportunos'!$M$49,0)))),0) -> 0 | V17: =IF(B17<=0,"",IF('Simulador Pagos Oportunos'!$V$40=1,'Simulador Pagos Oportunos'!$Z$62,'Simulador Pagos Oportunos'!$Z$62*'Simulador Pagos Oportunos'!$W$59)) ->  | W17: =F17*'Simulador Pagos Oportunos'!$X$59 -> 0 | AB17: 0 | AC17: 3 | AD17: 0 | AE17: 0 | AF17: 0 | AH17: =IF('Simulador Pagos Oportunos'!$X$35=3,AI17,IF('Simulador Pagos Oportunos'!$X$35=4,AJ17,IF('Simulador Pagos Oportunos'!$X$35=5,AK17,0))) -> 0.19 | AI17: =AI16 -> 0.185 | AJ17: 0.186 | AK17: 0.19 | AL17: 0 | AM17: 0 | AN17: 0 | AO17: =AS16 -> 0 | AP17: 0 | AQ17: 0 | AR17: 0 | AS17: 0 | AT17: =IF('Simulador Pagos Oportunos'!$X$35=3,AI17,IF('Simulador Pagos Oportunos'!$X$35=4,AJ17,IF('Simulador Pagos Oportunos'!$X$35=5,AK17,0))) -> 0.19 | AU17: =IF(AO17<=0,0,IF('Simulador Pagos Oportunos'!$AC$62=1,0,AO17*'Simulador Pagos Oportunos'!$Y$67+IF('Simulador Pagos Oportunos'!$X$35=3,'Simulador Pagos Oportunos'!$I$49,IF('Simulador Pagos Oportunos'!$X$35=4,'Simulador Pagos Oportunos'!$K$49,IF('Simulador Pagos Oportunos'!$X$35=5,'Simulador Pagos Oportunos'!$M$49,0))))) -> 0 | AW17: =AQ17*'Simulador Pagos Oportunos'!$X$59 -> 0 | AX17: 0 | AY17: 0 | AZ17: =IF(AO17=0,"",DATE(YEAR(AZ16),MONTH(AZ16)+1,1)) ->  | BA17: 0 | BB17: 3 | BC17: Días/Mes | BD17: =365.25/12 -> 30.4375
A18: 4 | B18: 0 | D18: =IF(B18+F18-D17<=0,B18+F18,IF(AND($AR$2=2,J17>0),B18*AN18,D17*(1+Z18))) -> 0 | F18: 0 | H18: 0 | L18: =IF('Simulador Pagos Oportunos'!$V$60=1,0,J18*'Simulador Pagos Oportunos'!$O$63*'Simulador Pagos Oportunos'!$W$59) -> 0 | P18: 0 | R18: =IFERROR(IF(B18<=0,0,B18*'Simulador Pagos Oportunos'!$Y$67),0) -> 0 | T18: =IFERROR(IF(B18<=0,0,IF('Simulador Pagos Oportunos'!$X$35=3,'Simulador Pagos Oportunos'!$I$49,IF('Simulador Pagos Oportunos'!$X$35=4,'Simulador Pagos Oportunos'!$K$49,IF('Simulador Pagos Oportunos'!$X$35=5,'Simulador Pagos Oportunos'!$M$49,0)))),0) -> 0 | V18: =IF(B18<=0,"",IF('Simulador Pagos Oportunos'!$V$40=1,'Simulador Pagos Oportunos'!$Z$62,'Simulador Pagos Oportunos'!$Z$62*'Simulador Pagos Oportunos'!$W$59)) ->  | W18: =F18*'Simulador Pagos Oportunos'!$X$59 -> 0 | AB18: 0 | AC18: 4 | AD18: 0 | AE18: 0 | AF18: 0 | AH18: =IF('Simulador Pagos Oportunos'!$X$35=3,AI18,IF('Simulador Pagos Oportunos'!$X$35=4,AJ18,IF('Simulador Pagos Oportunos'!$X$35=5,AK18,0))) -> 0.19 | AI18: 0.185 | AJ18: 0.186 | AK18: 0.19 | AL18: 0 | AM18: 0 | AN18: 0 | AO18: 0 | AP18: 0 | AQ18: 0 | AR18: 0 | AS18: 0 | AT18: =IF('Simulador Pagos Oportunos'!$X$35=3,AI18,IF('Simulador Pagos Oportunos'!$X$35=4,AJ18,IF('Simulador Pagos Oportunos'!$X$35=5,AK18,0))) -> 0.19 | AU18: =IF(AO18<=0,0,IF('Simulador Pagos Oportunos'!$AC$62=1,0,AO18*'Simulador Pagos Oportunos'!$Y$67+IF('Simulador Pagos Oportunos'!$X$35=3,'Simulador Pagos Oportunos'!$I$49,IF('Simulador Pagos Oportunos'!$X$35=4,'Simulador Pagos Oportunos'!$K$49,IF('Simulador Pagos Oportunos'!$X$35=5,'Simulador Pagos Oportunos'!$M$49,0))))) -> 0 | AW18: =AQ18*'Simulador Pagos Oportunos'!$X$59 -> 0 | AX18: 0 | AY18: 0 | BA18: 0 | BB18: 4 | BD18: Interés mensual = Sdo inicial x tasa / 360 x # días del mes
A19: 5 | B19: 0 | D19: 0 | F19: 0 | H19: 0 | L19: =IF('Simulador Pagos Oportunos'!$V$60=1,0,J19*'Simulador Pagos Oportunos'!$O$63*'Simulador Pagos Oportunos'!$W$59) -> 0 | P19: 0 | R19: =IFERROR(IF(B19<=0,0,B19*'Simulador Pagos Oportunos'!$Y$67),0) -> 0 | T19: =IFERROR(IF(B19<=0,0,IF('Simulador Pagos Oportunos'!$X$35=3,'Simulador Pagos Oportunos'!$I$49,IF('Simulador Pagos Oportunos'!$X$35=4,'Simulador Pagos Oportunos'!$K$49,IF('Simulador Pagos Oportunos'!$X$35=5,'Simulador Pagos Oportunos'!$M$49,0)))),0) -> 0 | V19: =IF(B19<=0,"",IF('Simulador Pagos Oportunos'!$V$40=1,'Simulador Pagos Oportunos'!$Z$62,'Simulador Pagos Oportunos'!$Z$62*'Simulador Pagos Oportunos'!$W$59)) ->  | W19: =F19*'Simulador Pagos Oportunos'!$X$59 -> 0 | AB19: 0 | AC19: 5 | AD19: 0 | AE19: 0 | AF19: 0 | AH19: =IF('Simulador Pagos Oportunos'!$X$35=3,AI19,IF('Simulador Pagos Oportunos'!$X$35=4,AJ19,IF('Simulador Pagos Oportunos'!$X$35=5,AK19,0))) -> 0.19 | AI19: 0.185 | AJ19: 0.186 | AK19: 0.19 | AL19: 0 | AM19: 0 | AN19: 0 | AO19: 0 | AP19: 0 | AQ19: 0 | AR19: 0 | AS19: 0 | AT19: =IF('Simulador Pagos Oportunos'!$X$35=3,AI19,IF('Simulador Pagos Oportunos'!$X$35=4,AJ19,IF('Simulador Pagos Oportunos'!$X$35=5,AK19,0))) -> 0.19 | AU19: =IF(AO19<=0,0,IF('Simulador Pagos Oportunos'!$AC$62=1,0,AO19*'Simulador Pagos Oportunos'!$Y$67+IF('Simulador Pagos Oportunos'!$X$35=3,'Simulador Pagos Oportunos'!$I$49,IF('Simulador Pagos Oportunos'!$X$35=4,'Simulador Pagos Oportunos'!$K$49,IF('Simulador Pagos Oportunos'!$X$35=5,'Simulador Pagos Oportunos'!$M$49,0))))) -> 0 | AW19: =AQ19*'Simulador Pagos Oportunos'!$X$59 -> 0 | AX19: 0 | AY19: 0 | BA19: 0 | BB19: 5
A20: 6 | B20: 0 | D20: 0 | F20: 0 | H20: 0 | L20: =IF('Simulador Pagos Oportunos'!$V$60=1,0,J20*'Simulador Pagos Oportunos'!$O$63*'Simulador Pagos Oportunos'!$W$59) -> 0 | P20: 0 | R20: =IFERROR(IF(B20<=0,0,B20*'Simulador Pagos Oportunos'!$Y$67),0) -> 0 | T20: =IFERROR(IF(B20<=0,0,IF('Simulador Pagos Oportunos'!$X$35=3,'Simulador Pagos Oportunos'!$I$49,IF('Simulador Pagos Oportunos'!$X$35=4,'Simulador Pagos Oportunos'!$K$49,IF('Simulador Pagos Oportunos'!$X$35=5,'Simulador Pagos Oportunos'!$M$49,0)))),0) -> 0 | V20: =IF(B20<=0,"",IF('Simulador Pagos Oportunos'!$V$40=1,'Simulador Pagos Oportunos'!$Z$62,'Simulador Pagos Oportunos'!$Z$62*'Simulador Pagos Oportunos'!$W$59)) ->  | W20: =F20*'Simulador Pagos Oportunos'!$X$59 -> 0 | AB20: 0 | AC20: 6 | AD20: 0 | AE20: 0 | AF20: 0 | AH20: =IF('Simulador Pagos Oportunos'!$X$35=3,AI20,IF('Simulador Pagos Oportunos'!$X$35=4,AJ20,IF('Simulador Pagos Oportunos'!$X$35=5,AK20,0))) -> 0.19 | AI20: 0.185 | AJ20: 0.186 | AK20: 0.19 | AL20: 0 | AM20: 0 | AN20: 0 | AO20: 0 | AP20: 0 | AQ20: 0 | AR20: 0 | AS20: 0 | AT20: =IF('Simulador Pagos Oportunos'!$X$35=3,AI20,IF('Simulador Pagos Oportunos'!$X$35=4,AJ20,IF('Simulador Pagos Oportunos'!$X$35=5,AK20,0))) -> 0.19 | AU20: =IF(AO20<=0,0,IF('Simulador Pagos Oportunos'!$AC$62=1,0,AO20*'Simulador Pagos Oportunos'!$Y$67+IF('Simulador Pagos Oportunos'!$X$35=3,'Simulador Pagos Oportunos'!$I$49,IF('Simulador Pagos Oportunos'!$X$35=4,'Simulador Pagos Oportunos'!$K$49,IF('Simulador Pagos Oportunos'!$X$35=5,'Simulador Pagos Oportunos'!$M$49,0))))) -> 0 | AW20: =AQ20*'Simulador Pagos Oportunos'!$X$59 -> 0 | AX20: 0 | AY20: 0 | BA20: 0 | BB20: 6
A21: 7 | B21: 0 | D21: =IF(B21+F21-D20<=0,B21+F21,IF(AND($AR$2=2,J20>0),B21*AN21,D20*(1+Z21))) -> 0 | F21: 0 | H21: 0 | L21: =IF('Simulador Pagos Oportunos'!$V$60=1,0,J21*'Simulador Pagos Oportunos'!$O$63*'Simulador Pagos Oportunos'!$W$59) -> 0 | P21: 0 | R21: =IFERROR(IF(B21<=0,0,B21*'Simulador Pagos Oportunos'!$Y$67),0) -> 0 | T21: =IFERROR(IF(B21<=0,0,IF('Simulador Pagos Oportunos'!$X$35=3,'Simulador Pagos Oportunos'!$I$49,IF('Simulador Pagos Oportunos'!$X$35=4,'Simulador Pagos Oportunos'!$K$49,IF('Simulador Pagos Oportunos'!$X$35=5,'Simulador Pagos Oportunos'!$M$49,0)))),0) -> 0 | V21: =IF(B21<=0,"",IF('Simulador Pagos Oportunos'!$V$40=1,'Simulador Pagos Oportunos'!$Z$62,'Simulador Pagos Oportunos'!$Z$62*'Simulador Pagos Oportunos'!$W$59)) ->  | W21: =F21*'Simulador Pagos Oportunos'!$X$59 -> 0 | AB21: 0 | AC21: 7 | AD21: 0 | AE21: 0 | AF21: 0 | AH21: =IF('Simulador Pagos Oportunos'!$X$35=3,AI21,IF('Simulador Pagos Oportunos'!$X$35=4,AJ21,IF('Simulador Pagos Oportunos'!$X$35=5,AK21,0))) -> 0.19 | AI21: 0.185 | AJ21: 0.186 | AK21: 0.19 | AL21: 0 | AM21: 0 | AN21: 0 | AO21: 0 | AP21: 0 | AQ21: 0 | AR21: 0 | AS21: 0 | AT21: =IF('Simulador Pagos Oportunos'!$X$35=3,AI21,IF('Simulador Pagos Oportunos'!$X$35=4,AJ21,IF('Simulador Pagos Oportunos'!$X$35=5,AK21,0))) -> 0.19 | AU21: =IF(AO21<=0,0,IF('Simulador Pagos Oportunos'!$AC$62=1,0,AO21*'Simulador Pagos Oportunos'!$Y$67+IF('Simulador Pagos Oportunos'!$X$35=3,'Simulador Pagos Oportunos'!$I$49,IF('Simulador Pagos Oportunos'!$X$35=4,'Simulador Pagos Oportunos'!$K$49,IF('Simulador Pagos Oportunos'!$X$35=5,'Simulador Pagos Oportunos'!$M$49,0))))) -> 0 | AW21: =AQ21*'Simulador Pagos Oportunos'!$X$59 -> 0 | AX21: 0 | AY21: 0 | BA21: 0 | BB21: 7
A22: 8 | B22: 0 | D22: 0 | F22: 0 | H22: 0 | L22: =IF('Simulador Pagos Oportunos'!$V$60=1,0,J22*'Simulador Pagos Oportunos'!$O$63*'Simulador Pagos Oportunos'!$W$59) -> 0 | P22: 0 | R22: =IFERROR(IF(B22<=0,0,B22*'Simulador Pagos Oportunos'!$Y$67),0) -> 0 | T22: =IFERROR(IF(B22<=0,0,IF('Simulador Pagos Oportunos'!$X$35=3,'Simulador Pagos Oportunos'!$I$49,IF('Simulador Pagos Oportunos'!$X$35=4,'Simulador Pagos Oportunos'!$K$49,IF('Simulador Pagos Oportunos'!$X$35=5,'Simulador Pagos Oportunos'!$M$49,0)))),0) -> 0 | V22: =IF(B22<=0,"",IF('Simulador Pagos Oportunos'!$V$40=1,'Simulador Pagos Oportunos'!$Z$62,'Simulador Pagos Oportunos'!$Z$62*'Simulador Pagos Oportunos'!$W$59)) ->  | W22: =F22*'Simulador Pagos Oportunos'!$X$59 -> 0 | AB22: 0 | AC22: 8 | AD22: 0 | AE22: 0 | AF22: 0 | AH22: =IF('Simulador Pagos Oportunos'!$X$35=3,AI22,IF('Simulador Pagos Oportunos'!$X$35=4,AJ22,IF('Simulador Pagos Oportunos'!$X$35=5,AK22,0))) -> 0.19 | AI22: 0.185 | AJ22: 0.186 | AK22: 0.19 | AL22: 0 | AM22: 0 | AN22: 0 | AO22: 0 | AP22: 0 | AQ22: 0 | AR22: 0 | AS22: 0 | AT22: =IF('Simulador Pagos Oportunos'!$X$35=3,AI22,IF('Simulador Pagos Oportunos'!$X$35=4,AJ22,IF('Simulador Pagos Oportunos'!$X$35=5,AK22,0))) -> 0.19 | AU22: =IF(AO22<=0,0,IF('Simulador Pagos Oportunos'!$AC$62=1,0,AO22*'Simulador Pagos Oportunos'!$Y$67+IF('Simulador Pagos Oportunos'!$X$35=3,'Simulador Pagos Oportunos'!$I$49,IF('Simulador Pagos Oportunos'!$X$35=4,'Simulador Pagos Oportunos'!$K$49,IF('Simulador Pagos Oportunos'!$X$35=5,'Simulador Pagos Oportunos'!$M$49,0))))) -> 0 | AW22: =AQ22*'Simulador Pagos Oportunos'!$X$59 -> 0 | AX22: 0 | AY22: 0 | BA22: 0 | BB22: 8
A23: 9 | B23: 0 | D23: 0 | F23: 0 | H23: 0 | L23: =IF('Simulador Pagos Oportunos'!$V$60=1,0,J23*'Simulador Pagos Oportunos'!$O$63*'Simulador Pagos Oportunos'!$W$59) -> 0 | P23: 0 | R23: =IFERROR(IF(B23<=0,0,B23*'Simulador Pagos Oportunos'!$Y$67),0) -> 0 | T23: =IFERROR(IF(B23<=0,0,IF('Simulador Pagos Oportunos'!$X$35=3,'Simulador Pagos Oportunos'!$I$49,IF('Simulador Pagos Oportunos'!$X$35=4,'Simulador Pagos Oportunos'!$K$49,IF('Simulador Pagos Oportunos'!$X$35=5,'Simulador Pagos Oportunos'!$M$49,0)))),0) -> 0 | V23: =IF(B23<=0,"",IF('Simulador Pagos Oportunos'!$V$40=1,'Simulador Pagos Oportunos'!$Z$62,'Simulador Pagos Oportunos'!$Z$62*'Simulador Pagos Oportunos'!$W$59)) ->  | W23: =F23*'Simulador Pagos Oportunos'!$X$59 -> 0 | AB23: 0 | AC23: 9 | AD23: 0 | AE23: 0 | AF23: 0 | AH23: =IF('Simulador Pagos Oportunos'!$X$35=3,AI23,IF('Simulador Pagos Oportunos'!$X$35=4,AJ23,IF('Simulador Pagos Oportunos'!$X$35=5,AK23,0))) -> 0.19 | AI23: 0.185 | AJ23: 0.186 | AK23: 0.19 | AL23: 0 | AM23: 0 | AN23: 0 | AO23: 0 | AP23: 0 | AQ23: 0 | AR23: 0 | AS23: 0 | AT23: =IF('Simulador Pagos Oportunos'!$X$35=3,AI23,IF('Simulador Pagos Oportunos'!$X$35=4,AJ23,IF('Simulador Pagos Oportunos'!$X$35=5,AK23,0))) -> 0.19 | AU23: =IF(AO23<=0,0,IF('Simulador Pagos Oportunos'!$AC$62=1,0,AO23*'Simulador Pagos Oportunos'!$Y$67+IF('Simulador Pagos Oportunos'!$X$35=3,'Simulador Pagos Oportunos'!$I$49,IF('Simulador Pagos Oportunos'!$X$35=4,'Simulador Pagos Oportunos'!$K$49,IF('Simulador Pagos Oportunos'!$X$35=5,'Simulador Pagos Oportunos'!$M$49,0))))) -> 0 | AW23: =AQ23*'Simulador Pagos Oportunos'!$X$59 -> 0 | AX23: 0 | AY23: 0 | BA23: 0 | BB23: 9
A24: 10 | B24: 0 | D24: 0 | F24: 0 | H24: 0 | L24: =IF('Simulador Pagos Oportunos'!$V$60=1,0,J24*'Simulador Pagos Oportunos'!$O$63*'Simulador Pagos Oportunos'!$W$59) -> 0 | P24: 0 | R24: =IFERROR(IF(B24<=0,0,B24*'Simulador Pagos Oportunos'!$Y$67),0) -> 0 | T24: =IFERROR(IF(B24<=0,0,IF('Simulador Pagos Oportunos'!$X$35=3,'Simulador Pagos Oportunos'!$I$49,IF('Simulador Pagos Oportunos'!$X$35=4,'Simulador Pagos Oportunos'!$K$49,IF('Simulador Pagos Oportunos'!$X$35=5,'Simulador Pagos Oportunos'!$M$49,0)))),0) -> 0 | V24: =IF(B24<=0,"",IF('Simulador Pagos Oportunos'!$V$40=1,'Simulador Pagos Oportunos'!$Z$62,'Simulador Pagos Oportunos'!$Z$62*'Simulador Pagos Oportunos'!$W$59)) ->  | W24: =F24*'Simulador Pagos Oportunos'!$X$59 -> 0 | AB24: 0 | AC24: 10 | AD24: 0 | AE24: 0 | AF24: 0 | AH24: =IF('Simulador Pagos Oportunos'!$X$35=3,AI24,IF('Simulador Pagos Oportunos'!$X$35=4,AJ24,IF('Simulador Pagos Oportunos'!$X$35=5,AK24,0))) -> 0.19 | AI24: 0.185 | AJ24: 0.186 | AK24: 0.19 | AL24: 0 | AM24: 0 | AN24: 0 | AO24: 0 | AP24: 0 | AQ24: 0 | AR24: 0 | AS24: 0 | AT24: =IF('Simulador Pagos Oportunos'!$X$35=3,AI24,IF('Simulador Pagos Oportunos'!$X$35=4,AJ24,IF('Simulador Pagos Oportunos'!$X$35=5,AK24,0))) -> 0.19 | AU24: =IF(AO24<=0,0,IF('Simulador Pagos Oportunos'!$AC$62=1,0,AO24*'Simulador Pagos Oportunos'!$Y$67+IF('Simulador Pagos Oportunos'!$X$35=3,'Simulador Pagos Oportunos'!$I$49,IF('Simulador Pagos Oportunos'!$X$35=4,'Simulador Pagos Oportunos'!$K$49,IF('Simulador Pagos Oportunos'!$X$35=5,'Simulador Pagos Oportunos'!$M$49,0))))) -> 0 | AW24: =AQ24*'Simulador Pagos Oportunos'!$X$59 -> 0 | AX24: 0 | AY24: 0 | BA24: 0 | BB24: 10
A25: 11 | B25: 0 | D25: 0 | F25: 0 | H25: 0 | L25: =IF('Simulador Pagos Oportunos'!$V$60=1,0,J25*'Simulador Pagos Oportunos'!$O$63*'Simulador Pagos Oportunos'!$W$59) -> 0 | P25: 0 | R25: =IFERROR(IF(B25<=0,0,B25*'Simulador Pagos Oportunos'!$Y$67),0) -> 0 | T25: =IFERROR(IF(B25<=0,0,IF('Simulador Pagos Oportunos'!$X$35=3,'Simulador Pagos Oportunos'!$I$49,IF('Simulador Pagos Oportunos'!$X$35=4,'Simulador Pagos Oportunos'!$K$49,IF('Simulador Pagos Oportunos'!$X$35=5,'Simulador Pagos Oportunos'!$M$49,0)))),0) -> 0 | V25: =IF(B25<=0,"",IF('Simulador Pagos Oportunos'!$V$40=1,'Simulador Pagos Oportunos'!$Z$62,'Simulador Pagos Oportunos'!$Z$62*'Simulador Pagos Oportunos'!$W$59)) ->  | W25: =F25*'Simulador Pagos Oportunos'!$X$59 -> 0 | AB25: 0 | AC25: 11 | AD25: 0 | AE25: 0 | AF25: 0 | AH25: =IF('Simulador Pagos Oportunos'!$X$35=3,AI25,IF('Simulador Pagos Oportunos'!$X$35=4,AJ25,IF('Simulador Pagos Oportunos'!$X$35=5,AK25,0))) -> 0.19 | AI25: 0.185 | AJ25: 0.186 | AK25: 0.19 | AL25: 0 | AM25: 0 | AN25: 0 | AO25: 0 | AP25: 0 | AQ25: 0 | AR25: 0 | AS25: 0 | AT25: =IF('Simulador Pagos Oportunos'!$X$35=3,AI25,IF('Simulador Pagos Oportunos'!$X$35=4,AJ25,IF('Simulador Pagos Oportunos'!$X$35=5,AK25,0))) -> 0.19 | AU25: =IF(AO25<=0,0,IF('Simulador Pagos Oportunos'!$AC$62=1,0,AO25*'Simulador Pagos Oportunos'!$Y$67+IF('Simulador Pagos Oportunos'!$X$35=3,'Simulador Pagos Oportunos'!$I$49,IF('Simulador Pagos Oportunos'!$X$35=4,'Simulador Pagos Oportunos'!$K$49,IF('Simulador Pagos Oportunos'!$X$35=5,'Simulador Pagos Oportunos'!$M$49,0))))) -> 0 | AW25: =AQ25*'Simulador Pagos Oportunos'!$X$59 -> 0 | AX25: 0 | AY25: 0 | BA25: 0 | BB25: 11
A26: 12 | B26: 0 | D26: 0 | F26: 0 | H26: 0 | L26: =IF('Simulador Pagos Oportunos'!$V$60=1,0,J26*'Simulador Pagos Oportunos'!$O$63*'Simulador Pagos Oportunos'!$W$59) -> 0 | P26: =B26-H26-J26+L26 -> 0 | R26: =IFERROR(IF(B26<=0,0,B26*'Simulador Pagos Oportunos'!$Y$67),0) -> 0 | T26: =IFERROR(IF(B26<=0,0,IF('Simulador Pagos Oportunos'!$X$35=3,'Simulador Pagos Oportunos'!$I$49,IF('Simulador Pagos Oportunos'!$X$35=4,'Simulador Pagos Oportunos'!$K$49,IF('Simulador Pagos Oportunos'!$X$35=5,'Simulador Pagos Oportunos'!$M$49,0)))),0) -> 0 | V26: =IF(B26<=0,"",IF('Simulador Pagos Oportunos'!$V$40=1,'Simulador Pagos Oportunos'!$Z$62,'Simulador Pagos Oportunos'!$Z$62*'Simulador Pagos Oportunos'!$W$59)) ->  | W26: =F26*'Simulador Pagos Oportunos'!$X$59 -> 0 | AB26: 1 | AC26: 0 | AD26: 0 | AE26: 0 | AF26: 0 | AH26: =IF('Simulador Pagos Oportunos'!$X$35=3,AI26,IF('Simulador Pagos Oportunos'!$X$35=4,AJ26,IF('Simulador Pagos Oportunos'!$X$35=5,AK26,0))) -> 0.19 | AI26: 0.185 | AJ26: 0.186 | AK26: 0.19 | AL26: 0 | AM26: 0 | AN26: 0 | AO26: 0 | AP26: 0 | AQ26: 0 | AR26: 0 | AS26: 0 | AT26: =IF('Simulador Pagos Oportunos'!$X$35=3,AI26,IF('Simulador Pagos Oportunos'!$X$35=4,AJ26,IF('Simulador Pagos Oportunos'!$X$35=5,AK26,0))) -> 0.19 | AU26: =IF(AO26<=0,0,IF('Simulador Pagos Oportunos'!$AC$62=1,0,AO26*'Simulador Pagos Oportunos'!$Y$67+IF('Simulador Pagos Oportunos'!$X$35=3,'Simulador Pagos Oportunos'!$I$49,IF('Simulador Pagos Oportunos'!$X$35=4,'Simulador Pagos Oportunos'!$K$49,IF('Simulador Pagos Oportunos'!$X$35=5,'Simulador Pagos Oportunos'!$M$49,0))))) -> 0 | AW26: =AQ26*'Simulador Pagos Oportunos'!$X$59 -> 0 | AX26: 0 | AY26: 0 | BA26: 0 | BB26: 12
A27: 13 | B27: =IF(P26<=0,0,P26) -> 0 | D27: 0 | F27: 0 | H27: =D27-F27 -> 0 | L27: =IF('Simulador Pagos Oportunos'!$V$60=1,0,J27*'Simulador Pagos Oportunos'!$O$63*'Simulador Pagos Oportunos'!$W$59) -> 0 | P27: 0 | R27: =IFERROR(IF(B27<=0,0,B27*'Simulador Pagos Oportunos'!$Y$67),0) -> 0 | T27: =IFERROR(IF(B27<=0,0,IF('Simulador Pagos Oportunos'!$X$35=3,'Simulador Pagos Oportunos'!$I$49,IF('Simulador Pagos Oportunos'!$X$35=4,'Simulador Pagos Oportunos'!$K$49,IF('Simulador Pagos Oportunos'!$X$35=5,'Simulador Pagos Oportunos'!$M$49,0)))),0) -> 0 | V27: =IF(B27<=0,"",IF('Simulador Pagos Oportunos'!$V$40=1,'Simulador Pagos Oportunos'!$Z$62,'Simulador Pagos Oportunos'!$Z$62*'Simulador Pagos Oportunos'!$W$59)) ->  | W27: =F27*'Simulador Pagos Oportunos'!$X$59 -> 0 | Z27: =IF(B27<=0,0,'Simulador Pagos Oportunos'!$AM$48) -> 0 | AB27: 1 | AC27: 1 | AD27: 0 | AE27: 0 | AF27: 0 | AH27: =IF('Simulador Pagos Oportunos'!$X$35=3,AI27,IF('Simulador Pagos Oportunos'!$X$35=4,AJ27,IF('Simulador Pagos Oportunos'!$X$35=5,AK27,0))) -> 0.188 | AI27: =AI26-0.2% -> 0.183 | AJ27: =AJ26-0.2% -> 0.184 | AK27: =AK26-0.2% -> 0.188 | AL27: 0 | AM27: 0 | AN27: 0 | AO27: 0 | AP27: 0 | AQ27: 0 | AR27: 0 | AS27: 0 | AT27: =IF('Simulador Pagos Oportunos'!$X$35=3,AI27,IF('Simulador Pagos Oportunos'!$X$35=4,AJ27,IF('Simulador Pagos Oportunos'!$X$35=5,AK27,0))) -> 0.188 | AU27: =IF(AO27<=0,0,IF('Simulador Pagos Oportunos'!$AC$62=1,0,AO27*'Simulador Pagos Oportunos'!$Y$67+IF('Simulador Pagos Oportunos'!$X$35=3,'Simulador Pagos Oportunos'!$I$49,IF('Simulador Pagos Oportunos'!$X$35=4,'Simulador Pagos Oportunos'!$K$49,IF('Simulador Pagos Oportunos'!$X$35=5,'Simulador Pagos Oportunos'!$M$49,0))))) -> 0 | AV27: =IF(AO27<=0,0,'Simulador Pagos Oportunos'!AM48) -> 0 | AW27: =AQ27*'Simulador Pagos Oportunos'!$X$59 -> 0 | AX27: 0 | AY27: 0 | BA27: 0 | BB27: 13
A28: 14 | B28: 0 | D28: 0 | F28: 0 | H28: 0 | L28: =IF('Simulador Pagos Oportunos'!$V$60=1,0,J28*'Simulador Pagos Oportunos'!$O$63*'Simulador Pagos Oportunos'!$W$59) -> 0 | P28: 0 | R28: =IFERROR(IF(B28<=0,0,B28*'Simulador Pagos Oportunos'!$Y$67),0) -> 0 | T28: =IFERROR(IF(B28<=0,0,IF('Simulador Pagos Oportunos'!$X$35=3,'Simulador Pagos Oportunos'!$I$49,IF('Simulador Pagos Oportunos'!$X$35=4,'Simulador Pagos Oportunos'!$K$49,IF('Simulador Pagos Oportunos'!$X$35=5,'Simulador Pagos Oportunos'!$M$49,0)))),0) -> 0 | V28: =IF(B28<=0,"",IF('Simulador Pagos Oportunos'!$V$40=1,'Simulador Pagos Oportunos'!$Z$62,'Simulador Pagos Oportunos'!$Z$62*'Simulador Pagos Oportunos'!$W$59)) ->  | W28: =F28*'Simulador Pagos Oportunos'!$X$59 -> 0 | AB28: 1 | AC28: 2 | AD28: 0 | AE28: 0 | AF28: 0 | AH28: =IF('Simulador Pagos Oportunos'!$X$35=3,AI28,IF('Simulador Pagos Oportunos'!$X$35=4,AJ28,IF('Simulador Pagos Oportunos'!$X$35=5,AK28,0))) -> 0.188 | AI28: =AI27 -> 0.183 | AJ28: =AJ27 -> 0.184 | AK28: 0.188 | AL28: 0 | AM28: 0 | AN28: 0 | AO28: 0 | AP28: 0 | AQ28: 0 | AR28: 0 | AS28: 0 | AT28: =IF('Simulador Pagos Oportunos'!$X$35=3,AI28,IF('Simulador Pagos Oportunos'!$X$35=4,AJ28,IF('Simulador Pagos Oportunos'!$X$35=5,AK28,0))) -> 0.188 | AU28: =IF(AO28<=0,0,IF('Simulador Pagos Oportunos'!$AC$62=1,0,AO28*'Simulador Pagos Oportunos'!$Y$67+IF('Simulador Pagos Oportunos'!$X$35=3,'Simulador Pagos Oportunos'!$I$49,IF('Simulador Pagos Oportunos'!$X$35=4,'Simulador Pagos Oportunos'!$K$49,IF('Simulador Pagos Oportunos'!$X$35=5,'Simulador Pagos Oportunos'!$M$49,0))))) -> 0 | AW28: =AQ28*'Simulador Pagos Oportunos'!$X$59 -> 0 | AX28: 0 | AY28: 0 | BA28: 0 | BB28: 14
A29: 15 | B29: 0 | D29: 0 | F29: 0 | H29: 0 | L29: =IF('Simulador Pagos Oportunos'!$V$60=1,0,J29*'Simulador Pagos Oportunos'!$O$63*'Simulador Pagos Oportunos'!$W$59) -> 0 | P29: 0 | R29: =IFERROR(IF(B29<=0,0,B29*'Simulador Pagos Oportunos'!$Y$67),0) -> 0 | T29: =IFERROR(IF(B29<=0,0,IF('Simulador Pagos Oportunos'!$X$35=3,'Simulador Pagos Oportunos'!$I$49,IF('Simulador Pagos Oportunos'!$X$35=4,'Simulador Pagos Oportunos'!$K$49,IF('Simulador Pagos Oportunos'!$X$35=5,'Simulador Pagos Oportunos'!$M$49,0)))),0) -> 0 | V29: =IF(B29<=0,"",IF('Simulador Pagos Oportunos'!$V$40=1,'Simulador Pagos Oportunos'!$Z$62,'Simulador Pagos Oportunos'!$Z$62*'Simulador Pagos Oportunos'!$W$59)) ->  | W29: =F29*'Simulador Pagos Oportunos'!$X$59 -> 0 | AB29: 1 | AC29: 3 | AD29: 0 | AE29: 0 | AF29: 0 | AH29: =IF('Simulador Pagos Oportunos'!$X$35=3,AI29,IF('Simulador Pagos Oportunos'!$X$35=4,AJ29,IF('Simulador Pagos Oportunos'!$X$35=5,AK29,0))) -> 0.188 | AI29: =AI28 -> 0.183 | AJ29: 0.184 | AK29: 0.188 | AL29: 0 | AM29: 0 | AN29: 0 | AO29: 0 | AP29: 0 | AQ29: 0 | AR29: 0 | AS29: 0 | AT29: =IF('Simulador Pagos Oportunos'!$X$35=3,AI29,IF('Simulador Pagos Oportunos'!$X$35=4,AJ29,IF('Simulador Pagos Oportunos'!$X$35=5,AK29,0))) -> 0.188 | AU29: =IF(AO29<=0,0,IF('Simulador Pagos Oportunos'!$AC$62=1,0,AO29*'Simulador Pagos Oportunos'!$Y$67+IF('Simulador Pagos Oportunos'!$X$35=3,'Simulador Pagos Oportunos'!$I$49,IF('Simulador Pagos Oportunos'!$X$35=4,'Simulador Pagos Oportunos'!$K$49,IF('Simulador Pagos Oportunos'!$X$35=5,'Simulador Pagos Oportunos'!$M$49,0))))) -> 0 | AW29: =AQ29*'Simulador Pagos Oportunos'!$X$59 -> 0 | AX29: 0 | AY29: 0 | BA29: 0 | BB29: 15
A30: 16 | B30: 0 | D30: 0 | F30: 0 | H30: 0 | L30: =IF('Simulador Pagos Oportunos'!$V$60=1,0,J30*'Simulador Pagos Oportunos'!$O$63*'Simulador Pagos Oportunos'!$W$59) -> 0 | P30: 0 | R30: =IFERROR(IF(B30<=0,0,B30*'Simulador Pagos Oportunos'!$Y$67),0) -> 0 | T30: =IFERROR(IF(B30<=0,0,IF('Simulador Pagos Oportunos'!$X$35=3,'Simulador Pagos Oportunos'!$I$49,IF('Simulador Pagos Oportunos'!$X$35=4,'Simulador Pagos Oportunos'!$K$49,IF('Simulador Pagos Oportunos'!$X$35=5,'Simulador Pagos Oportunos'!$M$49,0)))),0) -> 0 | V30: =IF(B30<=0,"",IF('Simulador Pagos Oportunos'!$V$40=1,'Simulador Pagos Oportunos'!$Z$62,'Simulador Pagos Oportunos'!$Z$62*'Simulador Pagos Oportunos'!$W$59)) ->  | W30: =F30*'Simulador Pagos Oportunos'!$X$59 -> 0 | AB30: 1 | AC30: 4 | AD30: 0 | AE30: 0 | AF30: 0 | AH30: =IF('Simulador Pagos Oportunos'!$X$35=3,AI30,IF('Simulador Pagos Oportunos'!$X$35=4,AJ30,IF('Simulador Pagos Oportunos'!$X$35=5,AK30,0))) -> 0.188 | AI30: 0.183 | AJ30: 0.184 | AK30: 0.188 | AL30: 0 | AM30: 0 | AN30: 0 | AO30: 0 | AP30: 0 | AQ30: 0 | AR30: 0 | AS30: 0 | AT30: =IF('Simulador Pagos Oportunos'!$X$35=3,AI30,IF('Simulador Pagos Oportunos'!$X$35=4,AJ30,IF('Simulador Pagos Oportunos'!$X$35=5,AK30,0))) -> 0.188 | AU30: =IF(AO30<=0,0,IF('Simulador Pagos Oportunos'!$AC$62=1,0,AO30*'Simulador Pagos Oportunos'!$Y$67+IF('Simulador Pagos Oportunos'!$X$35=3,'Simulador Pagos Oportunos'!$I$49,IF('Simulador Pagos Oportunos'!$X$35=4,'Simulador Pagos Oportunos'!$K$49,IF('Simulador Pagos Oportunos'!$X$35=5,'Simulador Pagos Oportunos'!$M$49,0))))) -> 0 | AW30: =AQ30*'Simulador Pagos Oportunos'!$X$59 -> 0 | AX30: 0 | AY30: 0 | BA30: 0 | BB30: 16
A31: 17 | B31: 0 | D31: 0 | F31: 0 | H31: 0 | L31: =IF('Simulador Pagos Oportunos'!$V$60=1,0,J31*'Simulador Pagos Oportunos'!$O$63*'Simulador Pagos Oportunos'!$W$59) -> 0 | P31: 0 | R31: =IFERROR(IF(B31<=0,0,B31*'Simulador Pagos Oportunos'!$Y$67),0) -> 0 | T31: =IFERROR(IF(B31<=0,0,IF('Simulador Pagos Oportunos'!$X$35=3,'Simulador Pagos Oportunos'!$I$49,IF('Simulador Pagos Oportunos'!$X$35=4,'Simulador Pagos Oportunos'!$K$49,IF('Simulador Pagos Oportunos'!$X$35=5,'Simulador Pagos Oportunos'!$M$49,0)))),0) -> 0 | V31: =IF(B31<=0,"",IF('Simulador Pagos Oportunos'!$V$40=1,'Simulador Pagos Oportunos'!$Z$62,'Simulador Pagos Oportunos'!$Z$62*'Simulador Pagos Oportunos'!$W$59)) ->  | W31: =F31*'Simulador Pagos Oportunos'!$X$59 -> 0 | AB31: 1 | AC31: 5 | AD31: 0 | AE31: 0 | AF31: 0 | AH31: =IF('Simulador Pagos Oportunos'!$X$35=3,AI31,IF('Simulador Pagos Oportunos'!$X$35=4,AJ31,IF('Simulador Pagos Oportunos'!$X$35=5,AK31,0))) -> 0.188 | AI31: 0.183 | AJ31: 0.184 | AK31: 0.188 | AL31: 0 | AM31: 0 | AN31: 0 | AO31: 0 | AP31: 0 | AQ31: 0 | AR31: 0 | AS31: 0 | AT31: =IF('Simulador Pagos Oportunos'!$X$35=3,AI31,IF('Simulador Pagos Oportunos'!$X$35=4,AJ31,IF('Simulador Pagos Oportunos'!$X$35=5,AK31,0))) -> 0.188 | AU31: =IF(AO31<=0,0,IF('Simulador Pagos Oportunos'!$AC$62=1,0,AO31*'Simulador Pagos Oportunos'!$Y$67+IF('Simulador Pagos Oportunos'!$X$35=3,'Simulador Pagos Oportunos'!$I$49,IF('Simulador Pagos Oportunos'!$X$35=4,'Simulador Pagos Oportunos'!$K$49,IF('Simulador Pagos Oportunos'!$X$35=5,'Simulador Pagos Oportunos'!$M$49,0))))) -> 0 | AW31: =AQ31*'Simulador Pagos Oportunos'!$X$59 -> 0 | AX31: 0 | AY31: 0 | BA31: 0 | BB31: 17
A32: 18 | B32: 0 | D32: 0 | F32: 0 | H32: 0 | L32: =IF('Simulador Pagos Oportunos'!$V$60=1,0,J32*'Simulador Pagos Oportunos'!$O$63*'Simulador Pagos Oportunos'!$W$59) -> 0 | P32: 0 | R32: =IFERROR(IF(B32<=0,0,B32*'Simulador Pagos Oportunos'!$Y$67),0) -> 0 | T32: =IFERROR(IF(B32<=0,0,IF('Simulador Pagos Oportunos'!$X$35=3,'Simulador Pagos Oportunos'!$I$49,IF('Simulador Pagos Oportunos'!$X$35=4,'Simulador Pagos Oportunos'!$K$49,IF('Simulador Pagos Oportunos'!$X$35=5,'Simulador Pagos Oportunos'!$M$49,0)))),0) -> 0 | V32: =IF(B32<=0,"",IF('Simulador Pagos Oportunos'!$V$40=1,'Simulador Pagos Oportunos'!$Z$62,'Simulador Pagos Oportunos'!$Z$62*'Simulador Pagos Oportunos'!$W$59)) ->  | W32: =F32*'Simulador Pagos Oportunos'!$X$59 -> 0 | AB32: 1 | AC32: 6 | AD32: 0 | AE32: 0 | AF32: 0 | AH32: =IF('Simulador Pagos Oportunos'!$X$35=3,AI32,IF('Simulador Pagos Oportunos'!$X$35=4,AJ32,IF('Simulador Pagos Oportunos'!$X$35=5,AK32,0))) -> 0.188 | AI32: 0.183 | AJ32: 0.184 | AK32: 0.188 | AL32: 0 | AM32: 0 | AN32: 0 | AO32: 0 | AP32: 0 | AQ32: 0 | AR32: 0 | AS32: 0 | AT32: =IF('Simulador Pagos Oportunos'!$X$35=3,AI32,IF('Simulador Pagos Oportunos'!$X$35=4,AJ32,IF('Simulador Pagos Oportunos'!$X$35=5,AK32,0))) -> 0.188 | AU32: =IF(AO32<=0,0,IF('Simulador Pagos Oportunos'!$AC$62=1,0,AO32*'Simulador Pagos Oportunos'!$Y$67+IF('Simulador Pagos Oportunos'!$X$35=3,'Simulador Pagos Oportunos'!$I$49,IF('Simulador Pagos Oportunos'!$X$35=4,'Simulador Pagos Oportunos'!$K$49,IF('Simulador Pagos Oportunos'!$X$35=5,'Simulador Pagos Oportunos'!$M$49,0))))) -> 0 | AW32: =AQ32*'Simulador Pagos Oportunos'!$X$59 -> 0 | AX32: 0 | AY32: 0 | BA32: 0 | BB32: 18
A33: 19 | B33: 0 | D33: 0 | F33: 0 | H33: 0 | L33: =IF('Simulador Pagos Oportunos'!$V$60=1,0,J33*'Simulador Pagos Oportunos'!$O$63*'Simulador Pagos Oportunos'!$W$59) -> 0 | P33: 0 | R33: =IFERROR(IF(B33<=0,0,B33*'Simulador Pagos Oportunos'!$Y$67),0) -> 0 | T33: =IFERROR(IF(B33<=0,0,IF('Simulador Pagos Oportunos'!$X$35=3,'Simulador Pagos Oportunos'!$I$49,IF('Simulador Pagos Oportunos'!$X$35=4,'Simulador Pagos Oportunos'!$K$49,IF('Simulador Pagos Oportunos'!$X$35=5,'Simulador Pagos Oportunos'!$M$49,0)))),0) -> 0 | V33: =IF(B33<=0,"",IF('Simulador Pagos Oportunos'!$V$40=1,'Simulador Pagos Oportunos'!$Z$62,'Simulador Pagos Oportunos'!$Z$62*'Simulador Pagos Oportunos'!$W$59)) ->  | W33: =F33*'Simulador Pagos Oportunos'!$X$59 -> 0 | AB33: 1 | AC33: 7 | AD33: 0 | AE33: 0 | AF33: 0 | AH33: =IF('Simulador Pagos Oportunos'!$X$35=3,AI33,IF('Simulador Pagos Oportunos'!$X$35=4,AJ33,IF('Simulador Pagos Oportunos'!$X$35=5,AK33,0))) -> 0.188 | AI33: 0.183 | AJ33: 0.184 | AK33: 0.188 | AL33: 0 | AM33: 0 | AN33: 0 | AO33: 0 | AP33: 0 | AQ33: 0 | AR33: 0 | AS33: 0 | AT33: =IF('Simulador Pagos Oportunos'!$X$35=3,AI33,IF('Simulador Pagos Oportunos'!$X$35=4,AJ33,IF('Simulador Pagos Oportunos'!$X$35=5,AK33,0))) -> 0.188 | AU33: =IF(AO33<=0,0,IF('Simulador Pagos Oportunos'!$AC$62=1,0,AO33*'Simulador Pagos Oportunos'!$Y$67+IF('Simulador Pagos Oportunos'!$X$35=3,'Simulador Pagos Oportunos'!$I$49,IF('Simulador Pagos Oportunos'!$X$35=4,'Simulador Pagos Oportunos'!$K$49,IF('Simulador Pagos Oportunos'!$X$35=5,'Simulador Pagos Oportunos'!$M$49,0))))) -> 0 | AW33: =AQ33*'Simulador Pagos Oportunos'!$X$59 -> 0 | AX33: 0 | AY33: 0 | BA33: 0 | BB33: 19
A34: 20 | B34: 0 | D34: 0 | F34: 0 | H34: 0 | L34: =IF('Simulador Pagos Oportunos'!$V$60=1,0,J34*'Simulador Pagos Oportunos'!$O$63*'Simulador Pagos Oportunos'!$W$59) -> 0 | P34: 0 | R34: =IFERROR(IF(B34<=0,0,B34*'Simulador Pagos Oportunos'!$Y$67),0) -> 0 | T34: =IFERROR(IF(B34<=0,0,IF('Simulador Pagos Oportunos'!$X$35=3,'Simulador Pagos Oportunos'!$I$49,IF('Simulador Pagos Oportunos'!$X$35=4,'Simulador Pagos Oportunos'!$K$49,IF('Simulador Pagos Oportunos'!$X$35=5,'Simulador Pagos Oportunos'!$M$49,0)))),0) -> 0 | V34: =IF(B34<=0,"",IF('Simulador Pagos Oportunos'!$V$40=1,'Simulador Pagos Oportunos'!$Z$62,'Simulador Pagos Oportunos'!$Z$62*'Simulador Pagos Oportunos'!$W$59)) ->  | W34: =F34*'Simulador Pagos Oportunos'!$X$59 -> 0 | AB34: 1 | AC34: 8 | AD34: 0 | AE34: 0 | AF34: 0 | AH34: =IF('Simulador Pagos Oportunos'!$X$35=3,AI34,IF('Simulador Pagos Oportunos'!$X$35=4,AJ34,IF('Simulador Pagos Oportunos'!$X$35=5,AK34,0))) -> 0.188 | AI34: 0.183 | AJ34: 0.184 | AK34: 0.188 | AL34: 0 | AM34: 0 | AN34: 0 | AO34: 0 | AP34: 0 | AQ34: 0 | AR34: 0 | AS34: 0 | AT34: =IF('Simulador Pagos Oportunos'!$X$35=3,AI34,IF('Simulador Pagos Oportunos'!$X$35=4,AJ34,IF('Simulador Pagos Oportunos'!$X$35=5,AK34,0))) -> 0.188 | AU34: =IF(AO34<=0,0,IF('Simulador Pagos Oportunos'!$AC$62=1,0,AO34*'Simulador Pagos Oportunos'!$Y$67+IF('Simulador Pagos Oportunos'!$X$35=3,'Simulador Pagos Oportunos'!$I$49,IF('Simulador Pagos Oportunos'!$X$35=4,'Simulador Pagos Oportunos'!$K$49,IF('Simulador Pagos Oportunos'!$X$35=5,'Simulador Pagos Oportunos'!$M$49,0))))) -> 0 | AW34: =AQ34*'Simulador Pagos Oportunos'!$X$59 -> 0 | AX34: 0 | AY34: 0 | BA34: 0 | BB34: 20
A35: 21 | B35: 0 | D35: 0 | F35: 0 | H35: 0 | L35: =IF('Simulador Pagos Oportunos'!$V$60=1,0,J35*'Simulador Pagos Oportunos'!$O$63*'Simulador Pagos Oportunos'!$W$59) -> 0 | P35: 0 | R35: =IFERROR(IF(B35<=0,0,B35*'Simulador Pagos Oportunos'!$Y$67),0) -> 0 | T35: =IFERROR(IF(B35<=0,0,IF('Simulador Pagos Oportunos'!$X$35=3,'Simulador Pagos Oportunos'!$I$49,IF('Simulador Pagos Oportunos'!$X$35=4,'Simulador Pagos Oportunos'!$K$49,IF('Simulador Pagos Oportunos'!$X$35=5,'Simulador Pagos Oportunos'!$M$49,0)))),0) -> 0 | V35: =IF(B35<=0,"",IF('Simulador Pagos Oportunos'!$V$40=1,'Simulador Pagos Oportunos'!$Z$62,'Simulador Pagos Oportunos'!$Z$62*'Simulador Pagos Oportunos'!$W$59)) ->  | W35: =F35*'Simulador Pagos Oportunos'!$X$59 -> 0 | AB35: 1 | AC35: 9 | AD35: 0 | AE35: 0 | AF35: 0 | AH35: =IF('Simulador Pagos Oportunos'!$X$35=3,AI35,IF('Simulador Pagos Oportunos'!$X$35=4,AJ35,IF('Simulador Pagos Oportunos'!$X$35=5,AK35,0))) -> 0.188 | AI35: 0.183 | AJ35: 0.184 | AK35: 0.188 | AL35: 0 | AM35: 0 | AN35: 0 | AO35: 0 | AP35: 0 | AQ35: 0 | AR35: 0 | AS35: 0 | AT35: =IF('Simulador Pagos Oportunos'!$X$35=3,AI35,IF('Simulador Pagos Oportunos'!$X$35=4,AJ35,IF('Simulador Pagos Oportunos'!$X$35=5,AK35,0))) -> 0.188 | AU35: =IF(AO35<=0,0,IF('Simulador Pagos Oportunos'!$AC$62=1,0,AO35*'Simulador Pagos Oportunos'!$Y$67+IF('Simulador Pagos Oportunos'!$X$35=3,'Simulador Pagos Oportunos'!$I$49,IF('Simulador Pagos Oportunos'!$X$35=4,'Simulador Pagos Oportunos'!$K$49,IF('Simulador Pagos Oportunos'!$X$35=5,'Simulador Pagos Oportunos'!$M$49,0))))) -> 0 | AW35: =AQ35*'Simulador Pagos Oportunos'!$X$59 -> 0 | AX35: 0 | AY35: 0 | BA35: 0 | BB35: 21
A36: 22 | B36: 0 | D36: 0 | F36: 0 | H36: 0 | L36: =IF('Simulador Pagos Oportunos'!$V$60=1,0,J36*'Simulador Pagos Oportunos'!$O$63*'Simulador Pagos Oportunos'!$W$59) -> 0 | P36: 0 | R36: =IFERROR(IF(B36<=0,0,B36*'Simulador Pagos Oportunos'!$Y$67),0) -> 0 | T36: =IFERROR(IF(B36<=0,0,IF('Simulador Pagos Oportunos'!$X$35=3,'Simulador Pagos Oportunos'!$I$49,IF('Simulador Pagos Oportunos'!$X$35=4,'Simulador Pagos Oportunos'!$K$49,IF('Simulador Pagos Oportunos'!$X$35=5,'Simulador Pagos Oportunos'!$M$49,0)))),0) -> 0 | V36: =IF(B36<=0,"",IF('Simulador Pagos Oportunos'!$V$40=1,'Simulador Pagos Oportunos'!$Z$62,'Simulador Pagos Oportunos'!$Z$62*'Simulador Pagos Oportunos'!$W$59)) ->  | W36: =F36*'Simulador Pagos Oportunos'!$X$59 -> 0 | AB36: 1 | AC36: 10 | AD36: 0 | AE36: 0 | AF36: 0 | AH36: =IF('Simulador Pagos Oportunos'!$X$35=3,AI36,IF('Simulador Pagos Oportunos'!$X$35=4,AJ36,IF('Simulador Pagos Oportunos'!$X$35=5,AK36,0))) -> 0.188 | AI36: 0.183 | AJ36: 0.184 | AK36: 0.188 | AL36: 0 | AM36: 0 | AN36: 0 | AO36: 0 | AP36: 0 | AQ36: 0 | AR36: 0 | AS36: 0 | AT36: =IF('Simulador Pagos Oportunos'!$X$35=3,AI36,IF('Simulador Pagos Oportunos'!$X$35=4,AJ36,IF('Simulador Pagos Oportunos'!$X$35=5,AK36,0))) -> 0.188 | AU36: =IF(AO36<=0,0,IF('Simulador Pagos Oportunos'!$AC$62=1,0,AO36*'Simulador Pagos Oportunos'!$Y$67+IF('Simulador Pagos Oportunos'!$X$35=3,'Simulador Pagos Oportunos'!$I$49,IF('Simulador Pagos Oportunos'!$X$35=4,'Simulador Pagos Oportunos'!$K$49,IF('Simulador Pagos Oportunos'!$X$35=5,'Simulador Pagos Oportunos'!$M$49,0))))) -> 0 | AW36: =AQ36*'Simulador Pagos Oportunos'!$X$59 -> 0 | AX36: 0 | AY36: 0 | BA36: 0 | BB36: 22
A37: 23 | B37: 0 | D37: 0 | F37: 0 | H37: 0 | L37: =IF('Simulador Pagos Oportunos'!$V$60=1,0,J37*'Simulador Pagos Oportunos'!$O$63*'Simulador Pagos Oportunos'!$W$59) -> 0 | P37: 0 | R37: =IFERROR(IF(B37<=0,0,B37*'Simulador Pagos Oportunos'!$Y$67),0) -> 0 | T37: =IFERROR(IF(B37<=0,0,IF('Simulador Pagos Oportunos'!$X$35=3,'Simulador Pagos Oportunos'!$I$49,IF('Simulador Pagos Oportunos'!$X$35=4,'Simulador Pagos Oportunos'!$K$49,IF('Simulador Pagos Oportunos'!$X$35=5,'Simulador Pagos Oportunos'!$M$49,0)))),0) -> 0 | V37: =IF(B37<=0,"",IF('Simulador Pagos Oportunos'!$V$40=1,'Simulador Pagos Oportunos'!$Z$62,'Simulador Pagos Oportunos'!$Z$62*'Simulador Pagos Oportunos'!$W$59)) ->  | W37: =F37*'Simulador Pagos Oportunos'!$X$59 -> 0 | AB37: 1 | AC37: 11 | AD37: 0 | AE37: 0 | AF37: 0 | AH37: =IF('Simulador Pagos Oportunos'!$X$35=3,AI37,IF('Simulador Pagos Oportunos'!$X$35=4,AJ37,IF('Simulador Pagos Oportunos'!$X$35=5,AK37,0))) -> 0.188 | AI37: 0.183 | AJ37: 0.184 | AK37: 0.188 | AL37: 0 | AM37: 0 | AN37: 0 | AO37: 0 | AP37: 0 | AQ37: 0 | AR37: 0 | AS37: 0 | AT37: =IF('Simulador Pagos Oportunos'!$X$35=3,AI37,IF('Simulador Pagos Oportunos'!$X$35=4,AJ37,IF('Simulador Pagos Oportunos'!$X$35=5,AK37,0))) -> 0.188 | AU37: =IF(AO37<=0,0,IF('Simulador Pagos Oportunos'!$AC$62=1,0,AO37*'Simulador Pagos Oportunos'!$Y$67+IF('Simulador Pagos Oportunos'!$X$35=3,'Simulador Pagos Oportunos'!$I$49,IF('Simulador Pagos Oportunos'!$X$35=4,'Simulador Pagos Oportunos'!$K$49,IF('Simulador Pagos Oportunos'!$X$35=5,'Simulador Pagos Oportunos'!$M$49,0))))) -> 0 | AW37: =AQ37*'Simulador Pagos Oportunos'!$X$59 -> 0 | AX37: 0 | AY37: 0 | BA37: 0 | BB37: 23
A38: 24 | B38: 0 | D38: 0 | F38: 0 | H38: 0 | L38: =IF('Simulador Pagos Oportunos'!$V$60=1,0,J38*'Simulador Pagos Oportunos'!$O$63*'Simulador Pagos Oportunos'!$W$59) -> 0 | P38: 0 | R38: =IFERROR(IF(B38<=0,0,B38*'Simulador Pagos Oportunos'!$Y$67),0) -> 0 | T38: =IFERROR(IF(B38<=0,0,IF('Simulador Pagos Oportunos'!$X$35=3,'Simulador Pagos Oportunos'!$I$49,IF('Simulador Pagos Oportunos'!$X$35=4,'Simulador Pagos Oportunos'!$K$49,IF('Simulador Pagos Oportunos'!$X$35=5,'Simulador Pagos Oportunos'!$M$49,0)))),0) -> 0 | V38: =IF(B38<=0,"",IF('Simulador Pagos Oportunos'!$V$40=1,'Simulador Pagos Oportunos'!$Z$62,'Simulador Pagos Oportunos'!$Z$62*'Simulador Pagos Oportunos'!$W$59)) ->  | W38: =F38*'Simulador Pagos Oportunos'!$X$59 -> 0 | AB38: 2 | AC38: 0 | AD38: 0 | AE38: 0 | AF38: 0 | AH38: =IF('Simulador Pagos Oportunos'!$X$35=3,AI38,IF('Simulador Pagos Oportunos'!$X$35=4,AJ38,IF('Simulador Pagos Oportunos'!$X$35=5,AK38,0))) -> 0.188 | AI38: 0.183 | AJ38: 0.184 | AK38: 0.188 | AL38: 0 | AM38: 0 | AN38: 0 | AO38: 0 | AP38: 0 | AQ38: 0 | AR38: 0 | AS38: 0 | AT38: =IF('Simulador Pagos Oportunos'!$X$35=3,AI38,IF('Simulador Pagos Oportunos'!$X$35=4,AJ38,IF('Simulador Pagos Oportunos'!$X$35=5,AK38,0))) -> 0.188 | AU38: =IF(AO38<=0,0,IF('Simulador Pagos Oportunos'!$AC$62=1,0,AO38*'Simulador Pagos Oportunos'!$Y$67+IF('Simulador Pagos Oportunos'!$X$35=3,'Simulador Pagos Oportunos'!$I$49,IF('Simulador Pagos Oportunos'!$X$35=4,'Simulador Pagos Oportunos'!$K$49,IF('Simulador Pagos Oportunos'!$X$35=5,'Simulador Pagos Oportunos'!$M$49,0))))) -> 0 | AW38: =AQ38*'Simulador Pagos Oportunos'!$X$59 -> 0 | AX38: 0 | AY38: 0 | BA38: 0 | BB38: 24
A39: 25 | B39: 0 | D39: 0 | F39: 0 | H39: 0 | L39: =IF('Simulador Pagos Oportunos'!$V$60=1,0,J39*'Simulador Pagos Oportunos'!$O$63*'Simulador Pagos Oportunos'!$W$59) -> 0 | P39: 0 | R39: =IFERROR(IF(B39<=0,0,B39*'Simulador Pagos Oportunos'!$Y$67),0) -> 0 | T39: =IFERROR(IF(B39<=0,0,IF('Simulador Pagos Oportunos'!$X$35=3,'Simulador Pagos Oportunos'!$I$49,IF('Simulador Pagos Oportunos'!$X$35=4,'Simulador Pagos Oportunos'!$K$49,IF('Simulador Pagos Oportunos'!$X$35=5,'Simulador Pagos Oportunos'!$M$49,0)))),0) -> 0 | V39: =IF(B39<=0,"",IF('Simulador Pagos Oportunos'!$V$40=1,'Simulador Pagos Oportunos'!$Z$62,'Simulador Pagos Oportunos'!$Z$62*'Simulador Pagos Oportunos'!$W$59)) ->  | W39: =F39*'Simulador Pagos Oportunos'!$X$59 -> 0 | Z39: =IF(B39<=0,0,'Simulador Pagos Oportunos'!$AM$48) -> 0 | AB39: 2 | AC39: 1 | AD39: 0 | AE39: 0 | AF39: 0 | AH39: =IF('Simulador Pagos Oportunos'!$X$35=3,AI39,IF('Simulador Pagos Oportunos'!$X$35=4,AJ39,IF('Simulador Pagos Oportunos'!$X$35=5,AK39,0))) -> 0.186 | AI39: =AI38-0.2% -> 0.181 | AJ39: =AJ38-0.2% -> 0.182 | AK39: =AK38-0.2% -> 0.186 | AL39: 0 | AM39: 0 | AN39: 0 | AO39: 0 | AP39: 0 | AQ39: 0 | AR39: 0 | AS39: 0 | AT39: =IF('Simulador Pagos Oportunos'!$X$35=3,AI39,IF('Simulador Pagos Oportunos'!$X$35=4,AJ39,IF('Simulador Pagos Oportunos'!$X$35=5,AK39,0))) -> 0.186 | AU39: =IF(AO39<=0,0,IF('Simulador Pagos Oportunos'!$AC$62=1,0,AO39*'Simulador Pagos Oportunos'!$Y$67+IF('Simulador Pagos Oportunos'!$X$35=3,'Simulador Pagos Oportunos'!$I$49,IF('Simulador Pagos Oportunos'!$X$35=4,'Simulador Pagos Oportunos'!$K$49,IF('Simulador Pagos Oportunos'!$X$35=5,'Simulador Pagos Oportunos'!$M$49,0))))) -> 0 | AV39: =IF(AO39<=0,0,$AV$32) -> 0 | AW39: =AQ39*'Simulador Pagos Oportunos'!$X$59 -> 0 | AX39: 0 | AY39: 0 | BA39: 0 | BB39: 25
A40: 26 | B40: 0 | D40: 0 | F40: 0 | H40: 0 | L40: =IF('Simulador Pagos Oportunos'!$V$60=1,0,J40*'Simulador Pagos Oportunos'!$O$63*'Simulador Pagos Oportunos'!$W$59) -> 0 | P40: 0 | R40: =IFERROR(IF(B40<=0,0,B40*'Simulador Pagos Oportunos'!$Y$67),0) -> 0 | T40: =IFERROR(IF(B40<=0,0,IF('Simulador Pagos Oportunos'!$X$35=3,'Simulador Pagos Oportunos'!$I$49,IF('Simulador Pagos Oportunos'!$X$35=4,'Simulador Pagos Oportunos'!$K$49,IF('Simulador Pagos Oportunos'!$X$35=5,'Simulador Pagos Oportunos'!$M$49,0)))),0) -> 0 | V40: =IF(B40<=0,"",IF('Simulador Pagos Oportunos'!$V$40=1,'Simulador Pagos Oportunos'!$Z$62,'Simulador Pagos Oportunos'!$Z$62*'Simulador Pagos Oportunos'!$W$59)) ->  | W40: =F40*'Simulador Pagos Oportunos'!$X$59 -> 0 | AB40: 2 | AC40: 2 | AD40: 0 | AE40: 0 | AF40: 0 | AH40: =IF('Simulador Pagos Oportunos'!$X$35=3,AI40,IF('Simulador Pagos Oportunos'!$X$35=4,AJ40,IF('Simulador Pagos Oportunos'!$X$35=5,AK40,0))) -> 0.186 | AI40: =AI39 -> 0.181 | AJ40: =AJ39 -> 0.182 | AK40: 0.186 | AL40: 0 | AM40: 0 | AN40: 0 | AO40: 0 | AP40: 0 | AQ40: 0 | AR40: 0 | AS40: 0 | AT40: =IF('Simulador Pagos Oportunos'!$X$35=3,AI40,IF('Simulador Pagos Oportunos'!$X$35=4,AJ40,IF('Simulador Pagos Oportunos'!$X$35=5,AK40,0))) -> 0.186 | AU40: =IF(AO40<=0,0,IF('Simulador Pagos Oportunos'!$AC$62=1,0,AO40*'Simulador Pagos Oportunos'!$Y$67+IF('Simulador Pagos Oportunos'!$X$35=3,'Simulador Pagos Oportunos'!$I$49,IF('Simulador Pagos Oportunos'!$X$35=4,'Simulador Pagos Oportunos'!$K$49,IF('Simulador Pagos Oportunos'!$X$35=5,'Simulador Pagos Oportunos'!$M$49,0))))) -> 0 | AW40: =AQ40*'Simulador Pagos Oportunos'!$X$59 -> 0 | AX40: 0 | AY40: 0 | BA40: 0 | BB40: 26
A41: 27 | B41: 0 | D41: 0 | F41: 0 | H41: 0 | L41: =IF('Simulador Pagos Oportunos'!$V$60=1,0,J41*'Simulador Pagos Oportunos'!$O$63*'Simulador Pagos Oportunos'!$W$59) -> 0 | P41: 0 | R41: =IFERROR(IF(B41<=0,0,B41*'Simulador Pagos Oportunos'!$Y$67),0) -> 0 | T41: =IFERROR(IF(B41<=0,0,IF('Simulador Pagos Oportunos'!$X$35=3,'Simulador Pagos Oportunos'!$I$49,IF('Simulador Pagos Oportunos'!$X$35=4,'Simulador Pagos Oportunos'!$K$49,IF('Simulador Pagos Oportunos'!$X$35=5,'Simulador Pagos Oportunos'!$M$49,0)))),0) -> 0 | V41: =IF(B41<=0,"",IF('Simulador Pagos Oportunos'!$V$40=1,'Simulador Pagos Oportunos'!$Z$62,'Simulador Pagos Oportunos'!$Z$62*'Simulador Pagos Oportunos'!$W$59)) ->  | W41: =F41*'Simulador Pagos Oportunos'!$X$59 -> 0 | AB41: 2 | AC41: 3 | AD41: 0 | AE41: 0 | AF41: 0 | AH41: =IF('Simulador Pagos Oportunos'!$X$35=3,AI41,IF('Simulador Pagos Oportunos'!$X$35=4,AJ41,IF('Simulador Pagos Oportunos'!$X$35=5,AK41,0))) -> 0.186 | AI41: =AI40 -> 0.181 | AJ41: 0.182 | AK41: 0.186 | AL41: 0 | AM41: 0 | AN41: 0 | AO41: 0 | AP41: 0 | AQ41: 0 | AR41: 0 | AS41: 0 | AT41: =IF('Simulador Pagos Oportunos'!$X$35=3,AI41,IF('Simulador Pagos Oportunos'!$X$35=4,AJ41,IF('Simulador Pagos Oportunos'!$X$35=5,AK41,0))) -> 0.186 | AU41: =IF(AO41<=0,0,IF('Simulador Pagos Oportunos'!$AC$62=1,0,AO41*'Simulador Pagos Oportunos'!$Y$67+IF('Simulador Pagos Oportunos'!$X$35=3,'Simulador Pagos Oportunos'!$I$49,IF('Simulador Pagos Oportunos'!$X$35=4,'Simulador Pagos Oportunos'!$K$49,IF('Simulador Pagos Oportunos'!$X$35=5,'Simulador Pagos Oportunos'!$M$49,0))))) -> 0 | AW41: =AQ41*'Simulador Pagos Oportunos'!$X$59 -> 0 | AX41: 0 | AY41: 0 | BA41: 0 | BB41: 27
